{"text_format":"1","workbook":"xlsx","n_sheets":9,"sheets":["Request","Additional Action 1","Additional Action 2","Additional Action 3","Unused Vaca Days Calculations","Partial Month Calculation","All Data","Helpful Hints - All","Drop Downs"],"not_rendered":{"charts":0,"images":0,"macros":1,"external_links":0,"defined_names":6,"comments":0,"pivot_tables":0},"unopened":[],"bounds":{"document_bytes":16777216,"sheet_cells":100000,"rows_first":2000,"rows_last":500,"rows_between":2000,"halvings":0,"cell_chars":16384,"cell_head_chars":4096},"cells_cut":0,"cells_raw":0,"read":"whole","date_system":"1900"}

{"sheet":"Request","index":0,"n_rows":78,"n_cols":8,"rows_kept":78,"cut":false,"hidden":false,"merged":[[74,3,74,4],[75,3,75,4],[76,3,76,4],[68,3,68,4],[69,3,69,4],[70,3,70,4],[71,3,71,4],[72,3,72,4],[73,3,73,4],[60,3,60,4],[61,3,61,4],[64,3,64,4],[66,3,66,4],[67,3,67,4],[59,3,59,4],[48,3,48,4],[49,3,49,4],[50,3,50,4],[51,3,51,4],[52,3,52,4],[53,3,53,4],[54,3,54,4],[55,3,55,4],[56,3,56,4],[57,3,57,4],[58,3,58,4],[47,3,47,4],[37,3,37,4],[38,3,38,4],[39,3,39,4],[40,3,40,4],[41,3,41,4],[42,3,42,4],[43,3,43,4],[44,3,44,4],[45,3,45,4],[46,3,46,4],[35,3,35,4],[21,3,21,4],[22,3,22,4],[23,3,23,4],[24,3,24,4],[25,3,25,4],[27,3,27,4],[28,3,28,4],[29,3,29,4],[32,3,32,4],[33,3,33,4],[34,3,34,4],[30,0,31,0],[30,1,31,1],[30,2,31,2],[30,3,31,3],[0,3,0,4],[1,3,1,4],[2,3,2,4],[3,3,3,4],[4,3,4,4],[20,3,20,4],[9,3,9,4],[10,3,10,4],[11,3,11,4],[12,3,12,4],[13,3,13,4],[14,3,14,4],[30,5,31,5],[5,3,5,4],[6,3,6,4],[7,3,7,4],[8,3,8,4],[15,3,15,4],[16,3,16,4],[17,3,17,4],[18,3,18,4],[19,3,19,4],[26,3,26,4]]}
[null,null,null,null,null,"V8.1.25"]
[null,"Select an Action:","Revision?","Add Additional Action information to Tab 2"]
[null,"Select An Action","No","List Additional Actions Here: "]
[]
[null,"Category","Required?","Details",null,"Helpful Hints"]
[null,"Effective Date",{"$f":"_xlfn.IFNA(VLOOKUP(CONCATENATE($B$3,B6),'All Data'!$B:$D,3,FALSE),\"No\")","v":"No"},null,null,{"$f":"_xlfn.IFNA(VLOOKUP(CONCATENATE($B$3,B6),'Helpful Hints - All'!$C$1:$D$1019,2,FALSE),\" \")","v":" "}]
[null,"Last Name",{"$f":"_xlfn.IFNA(VLOOKUP(CONCATENATE($B$3,B7),'All Data'!$B:$D,3,FALSE),\"No\")","v":"No"},null,null,{"$f":"_xlfn.IFNA(VLOOKUP(CONCATENATE($B$3,B7),'Helpful Hints - All'!$C$1:$D$1019,2,FALSE),\" \")","v":" "}]
[null,"First Name",{"$f":"_xlfn.IFNA(VLOOKUP(CONCATENATE($B$3,B8),'All Data'!$B:$D,3,FALSE),\"No\")","v":"No"},null,null,{"$f":"_xlfn.IFNA(VLOOKUP(CONCATENATE($B$3,B8),'Helpful Hints - All'!$C$1:$D$1019,2,FALSE),\" \")","v":" "}]
[null,"Middle Initial",{"$f":"_xlfn.IFNA(VLOOKUP(CONCATENATE($B$3,B9),'All Data'!$B:$D,3,FALSE),\"No\")","v":"No"},null,null,{"$f":"_xlfn.IFNA(VLOOKUP(CONCATENATE($B$3,B9),'Helpful Hints - All'!$C$1:$D$1019,2,FALSE),\" \")","v":" "}]
[null,"Preferred Last Name",{"$f":"_xlfn.IFNA(VLOOKUP(CONCATENATE($B$3,B10),'All Data'!$B:$D,3,FALSE),\"No\")","v":"No"},null,null,{"$f":"_xlfn.IFNA(VLOOKUP(CONCATENATE($B$3,B10),'Helpful Hints - All'!$C$1:$D$1019,2,FALSE),\" \")","v":" "}]
[null,"Preferred First Name",{"$f":"_xlfn.IFNA(VLOOKUP(CONCATENATE($B$3,B11),'All Data'!$B:$D,3,FALSE),\"No\")","v":"No"},null,null,{"$f":"_xlfn.IFNA(VLOOKUP(CONCATENATE($B$3,B11),'Helpful Hints - All'!$C$1:$D$1019,2,FALSE),\" \")","v":" "}]
[null,"Preferred Middle Initial",{"$f":"_xlfn.IFNA(VLOOKUP(CONCATENATE($B$3,B12),'All Data'!$B:$D,3,FALSE),\"No\")","v":"No"},null,null,{"$f":"_xlfn.IFNA(VLOOKUP(CONCATENATE($B$3,B12),'Helpful Hints - All'!$C$1:$D$1019,2,FALSE),\" \")","v":" "}]
[null,"Is this a Graduate Student?",{"$f":"_xlfn.IFNA(VLOOKUP(CONCATENATE($B$3,B13),'All Data'!$B:$D,3,FALSE),\"No\")","v":"No"},null,null,"Assignments for students need to have start and end dates.  Use monthly salary unless partial month payment, then use exact pay amount for that month; see Partial Month Calculation tab for calc formula"]
[null,"Gender",{"$f":"_xlfn.IFNA(VLOOKUP(CONCATENATE($B$3,B14),'All Data'!$B:$D,3,FALSE),\"No\")","v":"No"}]
[null,"Hinman Box",{"$f":"_xlfn.IFNA(VLOOKUP(CONCATENATE($B$3,B15),'All Data'!$B:$D,3,FALSE),\"No\")","v":"No"},null,null,{"$f":"_xlfn.IFNA(VLOOKUP(CONCATENATE($B$3,B15),'Helpful Hints - All'!$C$1:$D$1019,2,FALSE),\" \")","v":" "}]
[null,"Dart ID",{"$f":"_xlfn.IFNA(VLOOKUP(CONCATENATE($B$3,B16),'All Data'!$B:$D,3,FALSE),\"No\")","v":"No"},null,null,"Employee # and Dart ID need to match IRA"]
[null,"Citizenship",{"$f":"_xlfn.IFNA(VLOOKUP(CONCATENATE($B$3,B17),'All Data'!$B:$D,3,FALSE),\"No\")","v":"No"},null,null,{"$f":"_xlfn.IFNA(VLOOKUP(CONCATENATE($B$3,B17),'Helpful Hints - All'!$C$1:$D$1019,2,FALSE),\" \")","v":" "}]
[null,"Visa Type (if not US Cititzen)",{"$f":"_xlfn.IFNA(VLOOKUP(CONCATENATE($B$3,B18),'All Data'!$B:$D,3,FALSE),\"No\")","v":"No"},null,null,{"$f":"_xlfn.IFNA(VLOOKUP(CONCATENATE($B$3,B18),'Helpful Hints - All'!$C$1:$D$1019,2,FALSE),\" \")","v":" "}]
[null,"Email (Personal Non Dartmouth)",{"$f":"_xlfn.IFNA(VLOOKUP(CONCATENATE($B$3,B19),'All Data'!$B:$D,3,FALSE),\"No\")","v":"No"},null,null,{"$f":"_xlfn.IFNA(VLOOKUP(CONCATENATE($B$3,B19),'Helpful Hints - All'!$C$1:$D$1019,2,FALSE),\" \")","v":" "}]
[null,"Work Arrangement",{"$f":"_xlfn.IFNA(VLOOKUP(CONCATENATE($B$3,B20),'All Data'!$B:$D,3,FALSE),\"No\")","v":"No"},null,null,"Please select Onsite, Remote or Hybrid from the dropdown options"]
[null,"Social Security Number",{"$f":"_xlfn.IFNA(VLOOKUP(CONCATENATE($B$3,B21),'All Data'!$B:$D,3,FALSE),\"No\")","v":"No"},null,null,{"$f":"_xlfn.IFNA(VLOOKUP(CONCATENATE($B$3,B21),'Helpful Hints - All'!$C$1:$D$1019,2,FALSE),\" \")","v":" "}]
[null,"Date of Birth",{"$f":"_xlfn.IFNA(VLOOKUP(CONCATENATE($B$3,B22),'All Data'!$B:$D,3,FALSE),\"No\")","v":"No"},null,null,{"$f":"_xlfn.IFNA(VLOOKUP(CONCATENATE($B$3,B22),'Helpful Hints - All'!$C$1:$D$1019,2,FALSE),\" \")","v":" "}]
[null,"Legal Mailing Address",{"$f":"_xlfn.IFNA(VLOOKUP(CONCATENATE($B$3,B23),'All Data'!$B:$D,3,FALSE),\"No\")","v":"No"},null,null,{"$f":"_xlfn.IFNA(VLOOKUP(CONCATENATE($B$3,B23),'Helpful Hints - All'!$C$1:$D$1019,2,FALSE),\" \")","v":" "}]
[null,"City, State & Zip",{"$f":"_xlfn.IFNA(VLOOKUP(CONCATENATE($B$3,B24),'All Data'!$B:$D,3,FALSE),\"No\")","v":"No"},null,null,{"$f":"_xlfn.IFNA(VLOOKUP(CONCATENATE($B$3,B24),'Helpful Hints - All'!$C$1:$D$1019,2,FALSE),\" \")","v":" "}]
[null,"Legal Residence Address (No PO Boxes)",{"$f":"_xlfn.IFNA(VLOOKUP(CONCATENATE($B$3,B25),'All Data'!$B:$D,3,FALSE),\"No\")","v":"No"},null,null,{"$f":"_xlfn.IFNA(VLOOKUP(CONCATENATE($B$3,B25),'Helpful Hints - All'!$C$1:$D$1019,2,FALSE),\" \")","v":" "}]
[null,"City, State & Zip",{"$f":"_xlfn.IFNA(VLOOKUP(CONCATENATE($B$3,B26),'All Data'!$B:$D,3,FALSE),\"No\")","v":"No"},null,null,{"$f":"_xlfn.IFNA(VLOOKUP(CONCATENATE($B$3,B26),'Helpful Hints - All'!$C$1:$D$1019,2,FALSE),\" \")","v":" "}]
[null,"Phone Number",{"$f":"_xlfn.IFNA(VLOOKUP(CONCATENATE($B$3,B27),'All Data'!$B:$D,3,FALSE),\"No\")","v":"No"}]
[null,"Crew Code",{"$f":"_xlfn.IFNA(VLOOKUP(CONCATENATE($B$3,B28),'All Data'!$B:$D,3,FALSE),\"No\")","v":"No"},null,null,{"$f":"_xlfn.IFNA(VLOOKUP(CONCATENATE($B$3,B28),'Helpful Hints - All'!$C$1:$D$1019,2,FALSE),\" \")","v":" "}]
[null,"Forwarding Address",{"$f":"_xlfn.IFNA(VLOOKUP(CONCATENATE($B$3,B29),'All Data'!$B:$D,3,FALSE),\"No\")","v":"No"},null,null,"For Terminations Only"]
[null,"Forwarding Address City, State & Zip",{"$f":"_xlfn.IFNA(VLOOKUP(CONCATENATE($B$3,B30),'All Data'!$B:$D,3,FALSE),\"No\")","v":"No"},null,null,{"$f":"_xlfn.IFNA(VLOOKUP(CONCATENATE($B$3,B30),'Helpful Hints - All'!$C$1:$D$1019,2,FALSE),\" \")","v":" "}]
[null,"Does Union Employee receive a footwear stipend?",{"$f":"_xlfn.IFNA(VLOOKUP(CONCATENATE($B$3,B31),'All Data'!$B:$D,3,FALSE),\"No\")","v":"No"},null,null,"If this is a Union Employee - Select Yes if they need to receive a footwear stipend.              If Yes - Please provide the type and amount of the footwear stipend"]
[]
[null,"Organization",{"$f":"_xlfn.IFNA(VLOOKUP(CONCATENATE($B$3,B33),'All Data'!$B:$D,3,FALSE),\"No\")","v":"No"},null,null,"Please list Department Name from DORR, Not ORG Number - This should match how the the DND should be listed"]
[null,"People Group",{"$f":"_xlfn.IFNA(VLOOKUP(CONCATENATE($B$3,B34),'All Data'!$B:$D,3,FALSE),\"No\")","v":"No"},null,null,"Examples: Exempt Staff (6145 Regular Full Benefits, 6151 Temp) - Non-Exempt (6163 Regular Full Benefits, 6182 Temp)"]
[null,"Title",{"$f":"_xlfn.IFNA(VLOOKUP(CONCATENATE($B$3,B35),'All Data'!$B:$D,3,FALSE),\"No\")","v":"No"},null,null,{"$f":"_xlfn.IFNA(VLOOKUP(CONCATENATE($B$3,B35),'Helpful Hints - All'!$C$1:$D$1019,2,FALSE),\" \")","v":" "}]
[null,"Grade (Union)",{"$f":"_xlfn.IFNA(VLOOKUP(CONCATENATE($B$3,B36),'All Data'!$B:$D,3,FALSE),\"No\")","v":"No"},null,null,"If applicable - needs to match what is in DORR - If not, please reach out to HR. If \"Other\" is selected - please add the correct Grade to the comments"]
[null,"Office Location (Building & Room)",{"$f":"_xlfn.IFNA(VLOOKUP(CONCATENATE($B$3,B37),'All Data'!$B:$D,3,FALSE),\"No\")","v":"No"},null,null,"Required if Hybrid or OnSite is chosen"]
[null,"Regular or Temporary",{"$f":"_xlfn.IFNA(VLOOKUP(CONCATENATE($B$3,B38),'All Data'!$B:$D,3,FALSE),\"No\")","v":"No"},null,null,{"$f":"_xlfn.IFNA(VLOOKUP(CONCATENATE($B$3,B38),'Helpful Hints - All'!$C$1:$D$1019,2,FALSE),\" \")","v":" "}]
[null,"Timekeeping Location",{"$f":"_xlfn.IFNA(VLOOKUP(CONCATENATE($B$3,B39),'All Data'!$B:$D,3,FALSE),\"No\")","v":"No"},null,null,{"$f":"_xlfn.IFNA(VLOOKUP(CONCATENATE($B$3,B39),'Helpful Hints - All'!$C$1:$D$1019,2,FALSE),\" \")","v":" "}]
[null,"Supervisor",{"$f":"_xlfn.IFNA(VLOOKUP(CONCATENATE($B$3,B40),'All Data'!$B:$D,3,FALSE),\"No\")","v":"No"},null,null,"Person directly responsible for this employee"]
[null,"FTE",{"$f":"_xlfn.IFNA(VLOOKUP(CONCATENATE($B$3,B41),'All Data'!$B:$D,3,FALSE),\"No\")","v":"No"},null,null,{"$f":"_xlfn.IFNA(VLOOKUP(CONCATENATE($B$3,B41),'Helpful Hints - All'!$C$1:$D$1019,2,FALSE),\" \")","v":" "}]
[null,"Hours/Week",{"$f":"_xlfn.IFNA(VLOOKUP(CONCATENATE($B$3,B42),'All Data'!$B:$D,3,FALSE),\"No\")","v":"No"},null,null,{"$f":"_xlfn.IFNA(VLOOKUP(CONCATENATE($B$3,B42),'Helpful Hints - All'!$C$1:$D$1019,2,FALSE),\" \")","v":" "}]
[null,"Months/Year",{"$f":"_xlfn.IFNA(VLOOKUP(CONCATENATE($B$3,B43),'All Data'!$B:$D,3,FALSE),\"No\")","v":"No"},null,null,{"$f":"_xlfn.IFNA(VLOOKUP(CONCATENATE($B$3,B43),'Helpful Hints - All'!$C$1:$D$1019,2,FALSE),\" \")","v":" "}]
[null,"Postdoc",{"$f":"_xlfn.IFNA(VLOOKUP(CONCATENATE($B$3,B44),'All Data'!$B:$D,3,FALSE),\"No\")","v":"No"},null,null,"A postdoctoral scholar is an individual who has received a doctoral degree and is appointed for a limited period of time of mentored advanced training to enhance the professional skills and research independence needed to pursue his or her chosen career path.  The primary purpose of a postdoc scholar is to engage in advanced study and training."]
[null,"Begin Date",{"$f":"_xlfn.IFNA(VLOOKUP(CONCATENATE($B$3,B45),'All Data'!$B:$D,3,FALSE),\"No\")","v":"No"},null,null,{"$f":"_xlfn.IFNA(VLOOKUP(CONCATENATE($B$3,B45),'Helpful Hints - All'!$C$1:$D$1019,2,FALSE),\" \")","v":" "}]
[null,"End Date",{"$f":"_xlfn.IFNA(VLOOKUP(CONCATENATE($B$3,B46),'All Data'!$B:$D,3,FALSE),\"No\")","v":"No"},null,null,{"$f":"_xlfn.IFNA(VLOOKUP(CONCATENATE($B$3,B46),'Helpful Hints - All'!$C$1:$D$1019,2,FALSE),\" \")","v":" "}]
[null,"Pay Amount",{"$f":"_xlfn.IFNA(VLOOKUP(CONCATENATE($B$3,B47),'All Data'!$B:$D,3,FALSE),\"No\")","v":"No"},null,null,{"$f":"_xlfn.IFNA(VLOOKUP(CONCATENATE($B$3,B47),'Helpful Hints - All'!$C$1:$D$1019,2,FALSE),\" \")","v":" "}]
[null,"Payment Period",{"$f":"_xlfn.IFNA(VLOOKUP(CONCATENATE($B$3,B48),'All Data'!$B:$D,3,FALSE),\"No\")","v":"No"},null,null,{"$f":"_xlfn.IFNA(VLOOKUP(CONCATENATE($B$3,B48),'Helpful Hints - All'!$C$1:$D$1019,2,FALSE),\" \")","v":" "}]
[null,"Payment Type",{"$f":"_xlfn.IFNA(VLOOKUP(CONCATENATE($B$3,B49),'All Data'!$B:$D,3,FALSE),\"No\")","v":"No"},null,null,{"$f":"_xlfn.IFNA(VLOOKUP(CONCATENATE($B$3,B49),'Helpful Hints - All'!$C$1:$D$1019,2,FALSE),\" \")","v":" "}]
[null,"Assignment #",{"$f":"_xlfn.IFNA(VLOOKUP(CONCATENATE($B$3,B50),'All Data'!$B:$D,3,FALSE),\"No\")","v":"No"},null,null,{"$f":"_xlfn.IFNA(VLOOKUP(CONCATENATE($B$3,B50),'Helpful Hints - All'!$C$1:$D$1019,2,FALSE),\" \")","v":" "}]
[null,"Position Number",{"$f":"_xlfn.IFNA(VLOOKUP(CONCATENATE($B$3,B51),'All Data'!$B:$D,3,FALSE),\"No\")","v":"No"},null,null,"From DORR - Can leave blank if this is a temporary position"]
[null,"Funding Information (GL or OGA)",{"$f":"_xlfn.IFNA(VLOOKUP(CONCATENATE($B$3,B52),'All Data'!$B:$D,3,FALSE),\"No\")","v":"No"},null,null,{"$f":"_xlfn.IFNA(VLOOKUP(CONCATENATE($B$3,B52),'Helpful Hints - All'!$C$1:$D$1019,2,FALSE),\" \")","v":" "}]
[null,"iExpense Default Account",{"$f":"_xlfn.IFNA(VLOOKUP(CONCATENATE($B$3,B53),'All Data'!$B:$D,3,FALSE),\"No\")","v":"No"},null,null,{"$f":"_xlfn.IFNA(VLOOKUP(CONCATENATE($B$3,B53),'Helpful Hints - All'!$C$1:$D$1019,2,FALSE),\" \")","v":" "}]
[null,"Last Day Worked",{"$f":"_xlfn.IFNA(VLOOKUP(CONCATENATE($B$3,B54),'All Data'!$B:$D,3,FALSE),\"No\")","v":"No"},null,null,{"$f":"_xlfn.IFNA(VLOOKUP(CONCATENATE($B$3,B54),'Helpful Hints - All'!$C$1:$D$1019,2,FALSE),\" \")","v":" "}]
[null,"Reason for Termination",{"$f":"_xlfn.IFNA(VLOOKUP(CONCATENATE($B$3,B55),'All Data'!$B:$D,3,FALSE),\"No\")","v":"No"},null,null,"For Terminations Only"]
[null,"Reason - Other",{"$f":"_xlfn.IFNA(VLOOKUP(CONCATENATE($B$3,B56),'All Data'!$B:$D,3,FALSE),\"No\")","v":"No"},null,null,"For Terminations Only"]
[null,"Resignation Letter Received?",{"$f":"_xlfn.IFNA(VLOOKUP(CONCATENATE($B$3,B57),'All Data'!$B:$D,3,FALSE),\"No\")","v":"No"},null,null,"For Terminations Only"]
[null,"Unused Vacation Days (Exempt ONLY)",{"$f":"_xlfn.IFNA(VLOOKUP(CONCATENATE($B$3,B58),'All Data'!$B:$D,3,FALSE),\"No\")","v":"No"},null,null,{"$f":"_xlfn.IFNA(VLOOKUP(CONCATENATE($B$3,B58),'Helpful Hints - All'!$C$1:$D$1019,2,FALSE),\" \")","v":" "}]
[null,"Approver(s)",{"$f":"_xlfn.IFNA(VLOOKUP(CONCATENATE($B$3,B59),'All Data'!$B:$D,3,FALSE),\"No\")","v":"No"},null,null,{"$f":"_xlfn.IFNA(VLOOKUP(CONCATENATE($B$3,B59),'Helpful Hints - All'!$C$1:$D$1019,2,FALSE),\" \")","v":" "}]
[null,"Additional Helpful Information",null,null,null,{"$f":"_xlfn.IFNA(VLOOKUP(CONCATENATE($B$3,B60),'Helpful Hints - All'!$C$1:$D$1019,2,FALSE),\" \")","v":" "}]
[null,"Additional Forms Needed",{"$f":"_xlfn.IFNA(VLOOKUP(CONCATENATE($B$3,B61),'All Data'!$B:$D,3,FALSE),\"No\")","v":"No"},null,null,{"$f":"_xlfn.IFNA(VLOOKUP(CONCATENATE($B$3,B61),'Helpful Hints - All'!$C$1:$D$1019,2,FALSE),\" \")","v":" "},"Communication Stipend FORM","Lump Sum Payment FORM"]
[null,"Comments (If you would like to provide any additional information)",null,null,null,{"$f":"_xlfn.IFNA(VLOOKUP(CONCATENATE($B$3,B62),'Helpful Hints - All'!$C$1:$D$1019,2,FALSE),\" \")","v":" "}]
[]
[]
[]
["Kronos Reporting for Non-Exempt, Union, Non-Union Service, and Temporary Employees "]
[null,"Is a New Report Needed?","Yes"]
[null,"Should the employee be added to an existing report?","Yes",null,null,"Please list query name from the top left of the report"]
[null,"Who should the report be sent to?",null,null,null,"Please list the name(s) of the supervisors who should receive time details for this employee"]
[]
[]
[]
["Next Steps:"]
["1)","Submit to the Finance Center for review and approval",null,"Finance Center will enter the PA Information into PA Smart Form within 2 business days of receiving this information - please allow potential extra time if additional information is needed - the FC will reach out to you if so"]
["2)","Division/Department approver will need to approve the PA in the Smart Form System",null,"This should ideally be completed within 1 business day of receiving notification from the Finance Center"]
["3)","Data is entered into HRMS",null,"Once PA is approved by the Division/Department- The Finance Center will enter the PA Information into HRMS",null,"*New Hire PAs are entered into HRMS within 2 business days of receiving the approved PA           *Termination or Change PAs are entered into HRMS within 3 business days of receiving the approved PA"]
[]
[null,"****Please feel free to contact the FC with ANY questions"]

{"sheet":"Additional Action 1","index":1,"n_rows":78,"n_cols":8,"rows_kept":78,"cut":false,"hidden":false,"merged":[[72,3,72,4],[73,3,73,4],[74,3,74,4],[75,3,75,4],[66,3,66,4],[67,3,67,4],[68,3,68,4],[69,3,69,4],[70,3,70,4],[71,3,71,4],[64,3,64,4],[52,3,52,4],[53,3,53,4],[54,3,54,4],[55,3,55,4],[56,3,56,4],[57,3,57,4],[58,3,58,4],[59,3,59,4],[60,3,60,4],[61,3,61,4],[63,3,63,4],[51,3,51,4],[40,3,40,4],[41,3,41,4],[42,3,42,4],[43,3,43,4],[44,3,44,4],[45,3,45,4],[46,3,46,4],[47,3,47,4],[48,3,48,4],[49,3,49,4],[50,3,50,4],[39,3,39,4],[24,3,24,4],[25,3,25,4],[27,3,27,4],[28,3,28,4],[29,3,29,4],[32,3,32,4],[33,3,33,4],[34,3,34,4],[35,3,35,4],[37,3,37,4],[38,3,38,4],[26,3,26,4],[23,3,23,4],[12,3,12,4],[13,3,13,4],[14,3,14,4],[15,3,15,4],[16,3,16,4],[17,3,17,4],[18,3,18,4],[19,3,19,4],[20,3,20,4],[21,3,21,4],[22,3,22,4],[11,3,11,4],[0,3,0,4],[1,3,1,4],[2,3,2,4],[3,3,3,4],[4,3,4,4],[5,3,5,4],[6,3,6,4],[7,3,7,4],[8,3,8,4],[9,3,9,4],[10,3,10,4],[30,0,31,0],[30,1,31,1],[30,2,31,2],[30,3,31,3],[30,5,31,5]]}
[]
[null,"Select an Action:","Revision?","Add Additional Action information to Tab 3"]
[null,"Select An Action","No","List Additional Actions Here: "]
[]
[null,"Category","Required?","Details",null,"Helpful Hints"]
[null,"Effective Date",{"$f":"_xlfn.IFNA(VLOOKUP(CONCATENATE($B$3,B6),'All Data'!$B:$D,3,FALSE),\"No\")","v":"No"},null,null,{"$f":"_xlfn.IFNA(VLOOKUP(CONCATENATE($B$3,B6),'Helpful Hints - All'!$C$1:$D$1019,2,FALSE),\" \")","v":" "}]
[null,"Last Name",{"$f":"_xlfn.IFNA(VLOOKUP(CONCATENATE($B$3,B7),'All Data'!$B:$D,3,FALSE),\"No\")","v":"No"},{"$f":"IF(Request!$D7=\"\",\"\",Request!$D7)","v":""},null,{"$f":"_xlfn.IFNA(VLOOKUP(CONCATENATE($B$3,B7),'Helpful Hints - All'!$C$1:$D$1019,2,FALSE),\" \")","v":" "}]
[null,"First Name",{"$f":"_xlfn.IFNA(VLOOKUP(CONCATENATE($B$3,B8),'All Data'!$B:$D,3,FALSE),\"No\")","v":"No"},{"$f":"IF(Request!$D8=\"\",\"\",Request!$D8)","v":""},null,{"$f":"_xlfn.IFNA(VLOOKUP(CONCATENATE($B$3,B8),'Helpful Hints - All'!$C$1:$D$1019,2,FALSE),\" \")","v":" "}]
[null,"Middle Initial",{"$f":"_xlfn.IFNA(VLOOKUP(CONCATENATE($B$3,B9),'All Data'!$B:$D,3,FALSE),\"No\")","v":"No"},{"$f":"IF(Request!$D9=\"\",\"\",Request!$D9)","v":""},null,{"$f":"_xlfn.IFNA(VLOOKUP(CONCATENATE($B$3,B9),'Helpful Hints - All'!$C$1:$D$1019,2,FALSE),\" \")","v":" "}]
[null,"Preferred Last Name",{"$f":"_xlfn.IFNA(VLOOKUP(CONCATENATE($B$3,B10),'All Data'!$B:$D,3,FALSE),\"No\")","v":"No"},{"$f":"IF(Request!$D10=\"\",\"\",Request!$D10)","v":""},null,{"$f":"_xlfn.IFNA(VLOOKUP(CONCATENATE($B$3,B10),'Helpful Hints - All'!$C$1:$D$1019,2,FALSE),\" \")","v":" "}]
[null,"Preferred First Name",{"$f":"_xlfn.IFNA(VLOOKUP(CONCATENATE($B$3,B11),'All Data'!$B:$D,3,FALSE),\"No\")","v":"No"},{"$f":"IF(Request!$D11=\"\",\"\",Request!$D11)","v":""},null,{"$f":"_xlfn.IFNA(VLOOKUP(CONCATENATE($B$3,B11),'Helpful Hints - All'!$C$1:$D$1019,2,FALSE),\" \")","v":" "}]
[null,"Preferred Middle Initial",{"$f":"_xlfn.IFNA(VLOOKUP(CONCATENATE($B$3,B12),'All Data'!$B:$D,3,FALSE),\"No\")","v":"No"},{"$f":"IF(Request!$D12=\"\",\"\",Request!$D12)","v":""},null,{"$f":"_xlfn.IFNA(VLOOKUP(CONCATENATE($B$3,B12),'Helpful Hints - All'!$C$1:$D$1019,2,FALSE),\" \")","v":" "}]
[null,"Is this a Graduate Student?",{"$f":"_xlfn.IFNA(VLOOKUP(CONCATENATE($B$3,B13),'All Data'!$B:$D,3,FALSE),\"No\")","v":"No"},{"$f":"IF(Request!$D13=\"\",\"\",Request!$D13)","v":""},null,"Assignments for students need to have start and end dates.  Use monthly salary unless partial month payment, then use exact pay amount for that month; see Partial Month Calculation tab for calc formula"]
[null,"Gender",{"$f":"_xlfn.IFNA(VLOOKUP(CONCATENATE($B$3,B14),'All Data'!$B:$D,3,FALSE),\"No\")","v":"No"},{"$f":"IF(Request!$D14=\"\",\"\",Request!$D14)","v":""}]
[null,"Hinman Box",{"$f":"_xlfn.IFNA(VLOOKUP(CONCATENATE($B$3,B15),'All Data'!$B:$D,3,FALSE),\"No\")","v":"No"},{"$f":"IF(Request!$D15=\"\",\"\",Request!$D15)","v":""},null,{"$f":"_xlfn.IFNA(VLOOKUP(CONCATENATE($B$3,B15),'Helpful Hints - All'!$C$1:$D$1019,2,FALSE),\" \")","v":" "}]
[null,"Dart ID",{"$f":"_xlfn.IFNA(VLOOKUP(CONCATENATE($B$3,B16),'All Data'!$B:$D,3,FALSE),\"No\")","v":"No"},{"$f":"IF(Request!$D16=\"\",\"\",Request!$D16)","v":""},null,"Employee # and Dart ID need to match IRA"]
[null,"Citizenship",{"$f":"_xlfn.IFNA(VLOOKUP(CONCATENATE($B$3,B17),'All Data'!$B:$D,3,FALSE),\"No\")","v":"No"},{"$f":"IF(Request!$D17=\"\",\"\",Request!$D17)","v":""},null,{"$f":"_xlfn.IFNA(VLOOKUP(CONCATENATE($B$3,B17),'Helpful Hints - All'!$C$1:$D$1019,2,FALSE),\" \")","v":" "}]
[null,"Visa Type (if not US Cititzen)",{"$f":"_xlfn.IFNA(VLOOKUP(CONCATENATE($B$3,B18),'All Data'!$B:$D,3,FALSE),\"No\")","v":"No"},{"$f":"IF(Request!$D18=\"\",\"\",Request!$D18)","v":""},null,{"$f":"_xlfn.IFNA(VLOOKUP(CONCATENATE($B$3,B18),'Helpful Hints - All'!$C$1:$D$1019,2,FALSE),\" \")","v":" "}]
[null,"Email (Personal Non Dartmouth)",{"$f":"_xlfn.IFNA(VLOOKUP(CONCATENATE($B$3,B19),'All Data'!$B:$D,3,FALSE),\"No\")","v":"No"},{"$f":"IF(Request!$D19=\"\",\"\",Request!$D19)","v":""},null,{"$f":"_xlfn.IFNA(VLOOKUP(CONCATENATE($B$3,B19),'Helpful Hints - All'!$C$1:$D$1019,2,FALSE),\" \")","v":" "}]
[null,"Work Arrangement",{"$f":"_xlfn.IFNA(VLOOKUP(CONCATENATE($B$3,B20),'All Data'!$B:$D,3,FALSE),\"No\")","v":"No"},null,null,"Please select Onsite, Remote or Hybrid from the dropdown options"]
[null,"Social Security Number",{"$f":"_xlfn.IFNA(VLOOKUP(CONCATENATE($B$3,B21),'All Data'!$B:$D,3,FALSE),\"No\")","v":"No"},{"$f":"IF(Request!$D21=\"\",\"\",Request!$D21)","v":""},null,{"$f":"_xlfn.IFNA(VLOOKUP(CONCATENATE($B$3,B21),'Helpful Hints - All'!$C$1:$D$1019,2,FALSE),\" \")","v":" "}]
[null,"Date of Birth",{"$f":"_xlfn.IFNA(VLOOKUP(CONCATENATE($B$3,B22),'All Data'!$B:$D,3,FALSE),\"No\")","v":"No"},{"$f":"IF(Request!$D22=\"\",\"\",Request!$D22)","v":""},null,{"$f":"_xlfn.IFNA(VLOOKUP(CONCATENATE($B$3,B22),'Helpful Hints - All'!$C$1:$D$1019,2,FALSE),\" \")","v":" "}]
[null,"Legal Mailing Address",{"$f":"_xlfn.IFNA(VLOOKUP(CONCATENATE($B$3,B23),'All Data'!$B:$D,3,FALSE),\"No\")","v":"No"},{"$f":"IF(Request!$D23=\"\",\"\",Request!$D23)","v":""},null,{"$f":"_xlfn.IFNA(VLOOKUP(CONCATENATE($B$3,B23),'Helpful Hints - All'!$C$1:$D$1019,2,FALSE),\" \")","v":" "}]
[null,"City, State & Zip",{"$f":"_xlfn.IFNA(VLOOKUP(CONCATENATE($B$3,B24),'All Data'!$B:$D,3,FALSE),\"No\")","v":"No"},{"$f":"IF(Request!$D24=\"\",\"\",Request!$D24)","v":""},null,{"$f":"_xlfn.IFNA(VLOOKUP(CONCATENATE($B$3,B24),'Helpful Hints - All'!$C$1:$D$1019,2,FALSE),\" \")","v":" "}]
[null,"Legal Residence Address (No PO Boxes)",{"$f":"_xlfn.IFNA(VLOOKUP(CONCATENATE($B$3,B25),'All Data'!$B:$D,3,FALSE),\"No\")","v":"No"},{"$f":"IF(Request!$D25=\"\",\"\",Request!$D25)","v":""},null,{"$f":"_xlfn.IFNA(VLOOKUP(CONCATENATE($B$3,B25),'Helpful Hints - All'!$C$1:$D$1019,2,FALSE),\" \")","v":" "}]
[null,"City, State & Zip",{"$f":"_xlfn.IFNA(VLOOKUP(CONCATENATE($B$3,B26),'All Data'!$B:$D,3,FALSE),\"No\")","v":"No"},{"$f":"IF(Request!$D26=\"\",\"\",Request!$D26)","v":""},null,{"$f":"_xlfn.IFNA(VLOOKUP(CONCATENATE($B$3,B26),'Helpful Hints - All'!$C$1:$D$1019,2,FALSE),\" \")","v":" "}]
[null,"Phone Number",{"$f":"_xlfn.IFNA(VLOOKUP(CONCATENATE($B$3,B27),'All Data'!$B:$D,3,FALSE),\"No\")","v":"No"},{"$f":"IF(Request!$D27=\"\",\"\",Request!$D27)","v":""}]
[null,"Crew Code",{"$f":"_xlfn.IFNA(VLOOKUP(CONCATENATE($B$3,B28),'All Data'!$B:$D,3,FALSE),\"No\")","v":"No"},null,null,{"$f":"_xlfn.IFNA(VLOOKUP(CONCATENATE($B$3,B28),'Helpful Hints - All'!$C$1:$D$1019,2,FALSE),\" \")","v":" "}]
[null,"Forwarding Address",{"$f":"_xlfn.IFNA(VLOOKUP(CONCATENATE($B$3,B29),'All Data'!$B:$D,3,FALSE),\"No\")","v":"No"},{"$f":"IF(Request!$D29=\"\",\"\",Request!$D29)","v":""},null,"For Terminations Only"]
[null,"Forwarding Address City, State & Zip",{"$f":"_xlfn.IFNA(VLOOKUP(CONCATENATE($B$3,B30),'All Data'!$B:$D,3,FALSE),\"No\")","v":"No"},{"$f":"IF(Request!$D30=\"\",\"\",Request!$D30)","v":""},null,{"$f":"_xlfn.IFNA(VLOOKUP(CONCATENATE($B$3,B30),'Helpful Hints - All'!$C$1:$D$1019,2,FALSE),\" \")","v":" "}]
[null,"Does Union Employee receive a footwear stipend?",{"$f":"_xlfn.IFNA(VLOOKUP(CONCATENATE($B$3,B31),'All Data'!$B:$D,3,FALSE),\"No\")","v":"No"},null,null,"If this is a Union Employee - Select Yes if they need to receive a footwear stipend.              If Yes - Please provide the type and amount of the footwear stipend"]
[]
[null,"Organization",{"$f":"_xlfn.IFNA(VLOOKUP(CONCATENATE($B$3,B33),'All Data'!$B:$D,3,FALSE),\"No\")","v":"No"},null,null,"Please list Department Name from DORR, Not ORG Number - This should match how the the DND should be listed"]
[null,"People Group",{"$f":"_xlfn.IFNA(VLOOKUP(CONCATENATE($B$3,B34),'All Data'!$B:$D,3,FALSE),\"No\")","v":"No"},null,null,"Examples: Exempt Staff (6145 Regular Full Benefits, 6151 Temp) - Non-Exempt (6163 Regular Full Benefits, 6182 Temp)"]
[null,"Title",{"$f":"_xlfn.IFNA(VLOOKUP(CONCATENATE($B$3,B35),'All Data'!$B:$D,3,FALSE),\"No\")","v":"No"},null,null,{"$f":"_xlfn.IFNA(VLOOKUP(CONCATENATE($B$3,B35),'Helpful Hints - All'!$C$1:$D$1019,2,FALSE),\" \")","v":" "}]
[null,"Grade (Union)",{"$f":"_xlfn.IFNA(VLOOKUP(CONCATENATE($B$3,B36),'All Data'!$B:$D,3,FALSE),\"No\")","v":"No"},null,null,"If applicable - needs to match what is in DORR - If not, please reach out to HR. If \"Other\" is selected - please add the correct Grade to the comments"]
[null,"Office Location (Building & Room)",{"$f":"_xlfn.IFNA(VLOOKUP(CONCATENATE($B$3,B37),'All Data'!$B:$D,3,FALSE),\"No\")","v":"No"},null,null,"Required if Hybrid or OnSite is chosen"]
[null,"Regular or Temporary",{"$f":"_xlfn.IFNA(VLOOKUP(CONCATENATE($B$3,B38),'All Data'!$B:$D,3,FALSE),\"No\")","v":"No"},null,null,{"$f":"_xlfn.IFNA(VLOOKUP(CONCATENATE($B$3,B38),'Helpful Hints - All'!$C$1:$D$1019,2,FALSE),\" \")","v":" "}]
[null,"Timekeeping Location",{"$f":"_xlfn.IFNA(VLOOKUP(CONCATENATE($B$3,B39),'All Data'!$B:$D,3,FALSE),\"No\")","v":"No"},null,null,{"$f":"_xlfn.IFNA(VLOOKUP(CONCATENATE($B$3,B39),'Helpful Hints - All'!$C$1:$D$1019,2,FALSE),\" \")","v":" "}]
[null,"Supervisor",{"$f":"_xlfn.IFNA(VLOOKUP(CONCATENATE($B$3,B40),'All Data'!$B:$D,3,FALSE),\"No\")","v":"No"},null,null,"Person directly responsible for this employee"]
[null,"FTE",{"$f":"_xlfn.IFNA(VLOOKUP(CONCATENATE($B$3,B41),'All Data'!$B:$D,3,FALSE),\"No\")","v":"No"},null,null,{"$f":"_xlfn.IFNA(VLOOKUP(CONCATENATE($B$3,B41),'Helpful Hints - All'!$C$1:$D$1019,2,FALSE),\" \")","v":" "}]
[null,"Hours/Week",{"$f":"_xlfn.IFNA(VLOOKUP(CONCATENATE($B$3,B42),'All Data'!$B:$D,3,FALSE),\"No\")","v":"No"},null,null,{"$f":"_xlfn.IFNA(VLOOKUP(CONCATENATE($B$3,B42),'Helpful Hints - All'!$C$1:$D$1019,2,FALSE),\" \")","v":" "}]
[null,"Months/Year",{"$f":"_xlfn.IFNA(VLOOKUP(CONCATENATE($B$3,B43),'All Data'!$B:$D,3,FALSE),\"No\")","v":"No"},null,null,{"$f":"_xlfn.IFNA(VLOOKUP(CONCATENATE($B$3,B43),'Helpful Hints - All'!$C$1:$D$1019,2,FALSE),\" \")","v":" "}]
[null,"Postdoc",{"$f":"_xlfn.IFNA(VLOOKUP(CONCATENATE($B$3,B44),'All Data'!$B:$D,3,FALSE),\"No\")","v":"No"},null,null,"A postdoctoral scholar is an individual who has received a doctoral degree and is appointed for a limited period of time of mentored advanced training to enhance the professional skills and research independence needed to pursue his or her chosen career path.  The primary purpose of a postdoc scholar is to engage in advanced study and training."]
[null,"Begin Date",{"$f":"_xlfn.IFNA(VLOOKUP(CONCATENATE($B$3,B45),'All Data'!$B:$D,3,FALSE),\"No\")","v":"No"},null,null,{"$f":"_xlfn.IFNA(VLOOKUP(CONCATENATE($B$3,B45),'Helpful Hints - All'!$C$1:$D$1019,2,FALSE),\" \")","v":" "}]
[null,"End Date",{"$f":"_xlfn.IFNA(VLOOKUP(CONCATENATE($B$3,B46),'All Data'!$B:$D,3,FALSE),\"No\")","v":"No"},null,null,{"$f":"_xlfn.IFNA(VLOOKUP(CONCATENATE($B$3,B46),'Helpful Hints - All'!$C$1:$D$1019,2,FALSE),\" \")","v":" "}]
[null,"Pay Amount",{"$f":"_xlfn.IFNA(VLOOKUP(CONCATENATE($B$3,B47),'All Data'!$B:$D,3,FALSE),\"No\")","v":"No"},null,null,{"$f":"_xlfn.IFNA(VLOOKUP(CONCATENATE($B$3,B47),'Helpful Hints - All'!$C$1:$D$1019,2,FALSE),\" \")","v":" "}]
[null,"Payment Period",{"$f":"_xlfn.IFNA(VLOOKUP(CONCATENATE($B$3,B48),'All Data'!$B:$D,3,FALSE),\"No\")","v":"No"},null,null,{"$f":"_xlfn.IFNA(VLOOKUP(CONCATENATE($B$3,B48),'Helpful Hints - All'!$C$1:$D$1019,2,FALSE),\" \")","v":" "}]
[null,"Payment Type",{"$f":"_xlfn.IFNA(VLOOKUP(CONCATENATE($B$3,B49),'All Data'!$B:$D,3,FALSE),\"No\")","v":"No"},null,null,{"$f":"_xlfn.IFNA(VLOOKUP(CONCATENATE($B$3,B49),'Helpful Hints - All'!$C$1:$D$1019,2,FALSE),\" \")","v":" "}]
[null,"Assignment #",{"$f":"_xlfn.IFNA(VLOOKUP(CONCATENATE($B$3,B50),'All Data'!$B:$D,3,FALSE),\"No\")","v":"No"},null,null,{"$f":"_xlfn.IFNA(VLOOKUP(CONCATENATE($B$3,B50),'Helpful Hints - All'!$C$1:$D$1019,2,FALSE),\" \")","v":" "}]
[null,"Position Number",{"$f":"_xlfn.IFNA(VLOOKUP(CONCATENATE($B$3,B51),'All Data'!$B:$D,3,FALSE),\"No\")","v":"No"},null,null,"From DORR - Can leave blank if this is a temporary position"]
[null,"Funding Information (GL or OGA)",{"$f":"_xlfn.IFNA(VLOOKUP(CONCATENATE($B$3,B52),'All Data'!$B:$D,3,FALSE),\"No\")","v":"No"},null,null,{"$f":"_xlfn.IFNA(VLOOKUP(CONCATENATE($B$3,B52),'Helpful Hints - All'!$C$1:$D$1019,2,FALSE),\" \")","v":" "}]
[null,"iExpense Default Account",{"$f":"_xlfn.IFNA(VLOOKUP(CONCATENATE($B$3,B53),'All Data'!$B:$D,3,FALSE),\"No\")","v":"No"},null,null,{"$f":"_xlfn.IFNA(VLOOKUP(CONCATENATE($B$3,B53),'Helpful Hints - All'!$C$1:$D$1019,2,FALSE),\" \")","v":" "}]
[null,"Last Day Worked",{"$f":"_xlfn.IFNA(VLOOKUP(CONCATENATE($B$3,B54),'All Data'!$B:$D,3,FALSE),\"No\")","v":"No"},null,null,{"$f":"_xlfn.IFNA(VLOOKUP(CONCATENATE($B$3,B54),'Helpful Hints - All'!$C$1:$D$1019,2,FALSE),\" \")","v":" "}]
[null,"Reason for Termination",{"$f":"_xlfn.IFNA(VLOOKUP(CONCATENATE($B$3,B55),'All Data'!$B:$D,3,FALSE),\"No\")","v":"No"},null,null,"For Terminations Only"]
[null,"Reason - Other",{"$f":"_xlfn.IFNA(VLOOKUP(CONCATENATE($B$3,B56),'All Data'!$B:$D,3,FALSE),\"No\")","v":"No"},null,null,"For Terminations Only"]
[null,"Resignation Letter Received?",{"$f":"_xlfn.IFNA(VLOOKUP(CONCATENATE($B$3,B57),'All Data'!$B:$D,3,FALSE),\"No\")","v":"No"},null,null,"For Terminations Only"]
[null,"Unused Vacation Days (Exempt ONLY)",{"$f":"_xlfn.IFNA(VLOOKUP(CONCATENATE($B$3,B58),'All Data'!$B:$D,3,FALSE),\"No\")","v":"No"},null,null,{"$f":"_xlfn.IFNA(VLOOKUP(CONCATENATE($B$3,B58),'Helpful Hints - All'!$C$1:$D$1019,2,FALSE),\" \")","v":" "}]
[null,"Approver(s)",{"$f":"_xlfn.IFNA(VLOOKUP(CONCATENATE($B$3,B59),'All Data'!$B:$D,3,FALSE),\"No\")","v":"No"},null,null,{"$f":"_xlfn.IFNA(VLOOKUP(CONCATENATE($B$3,B59),'Helpful Hints - All'!$C$1:$D$1019,2,FALSE),\" \")","v":" "}]
[null,"Additional Helpful Information",null,null,null,{"$f":"_xlfn.IFNA(VLOOKUP(CONCATENATE($B$3,B60),'Helpful Hints - All'!$C$1:$D$1019,2,FALSE),\" \")","v":" "}]
[null,"Additional Forms Needed",{"$f":"_xlfn.IFNA(VLOOKUP(CONCATENATE($B$3,B61),'All Data'!$B:$D,3,FALSE),\"No\")","v":"No"},null,null,{"$f":"_xlfn.IFNA(VLOOKUP(CONCATENATE($B$3,B61),'Helpful Hints - All'!$C$1:$D$1019,2,FALSE),\" \")","v":" "},"Communication Stipend FORM","Lump Sum Payment FORM"]
[null,"Comments (If you would like to provide any additional information)",null,null,null,{"$f":"_xlfn.IFNA(VLOOKUP(CONCATENATE($B$3,B62),'Helpful Hints - All'!$C$1:$D$1019,2,FALSE),\" \")","v":" "}]
[]
[]
[]
["Kronos Reporting for Non-Exempt, Union, Non-Union Service, and Temporary Employees"]
[null,"Is a New Report Needed?"]
[null,"Should the employee be added to an existing report?",null,null,null,"Please list query name from the top left of the report"]
[null,"Who should the report be sent to?",null,null,null,"Please list the name(s) of the supervisors who should receive time details for this employee"]
[null,null,null,null,null,{"$f":"_xlfn.IFNA(VLOOKUP(CONCATENATE($B$3,B70),'Helpful Hints - All'!$C$1:$D$1019,2,FALSE),\" \")","v":" "}]
[null,null,null,null,null,{"$f":"_xlfn.IFNA(VLOOKUP(CONCATENATE($B$3,B71),'Helpful Hints - All'!$C$1:$D$1019,2,FALSE),\" \")","v":" "}]
[]
["Next Steps:"]
["1)","Submit to the Finance Center for review and approval",null,"Finance Center will enter the PA Information into PA Smart Form within 2 business days of receiving this information - please allow potential extra time if additional information is needed - the FC will reach out to you if so"]
["2)","Division/Department approver will need to approve the PA in the Smart Form System",null,"This should ideally be completed within 1 business day of receiving notification from the Finance Center"]
["3)","Data is entered into HRMS",null,"Once PA is approved by the Division/Department- The Finance Center will enter the PA Information into HRMS",null,"*New Hire PAs are entered into HRMS within 2 business days of receiving the approved PA           *Termination or Change PAs are entered into HRMS within 3 business days of receiving the approved PA"]
[]
[null,"****Please feel free to contact the FC with ANY questions"]

{"sheet":"Additional Action 2","index":2,"n_rows":78,"n_cols":8,"rows_kept":78,"cut":false,"hidden":false,"merged":[[71,3,71,4],[72,3,72,4],[73,3,73,4],[74,3,74,4],[66,3,66,4],[67,3,67,4],[68,3,68,4],[69,3,69,4],[70,3,70,4],[48,3,48,4],[49,3,49,4],[63,3,63,4],[51,3,51,4],[52,3,52,4],[53,3,53,4],[54,3,54,4],[55,3,55,4],[56,3,56,4],[61,3,61,4],[57,3,57,4],[58,3,58,4],[59,3,59,4],[60,3,60,4],[19,3,19,4],[20,3,20,4],[21,3,21,4],[22,3,22,4],[38,3,38,4],[24,3,24,4],[25,3,25,4],[27,3,27,4],[28,3,28,4],[29,3,29,4],[35,3,35,4],[32,3,32,4],[33,3,33,4],[34,3,34,4],[37,3,37,4],[26,3,26,4],[14,3,14,4],[15,3,15,4],[16,3,16,4],[17,3,17,4],[18,3,18,4],[30,5,31,5],[11,3,11,4],[0,3,0,4],[1,3,1,4],[2,3,2,4],[3,3,3,4],[4,3,4,4],[5,3,5,4],[6,3,6,4],[7,3,7,4],[8,3,8,4],[9,3,9,4],[10,3,10,4],[23,3,23,4],[12,3,12,4],[13,3,13,4],[64,3,64,4],[75,3,75,4],[30,0,31,0],[30,1,31,1],[30,2,31,2],[30,3,31,3],[50,3,50,4],[39,3,39,4],[40,3,40,4],[41,3,41,4],[42,3,42,4],[43,3,43,4],[44,3,44,4],[45,3,45,4],[46,3,46,4],[47,3,47,4]]}
[]
[null,"Select an Action:","Revision?","Add Additional Action information to Tab 4"]
[null,"Select An Action","No","List Additional Actions Here: "]
[]
[null,"Category","Required?","Details",null,"Helpful Hints"]
[null,"Effective Date",{"$f":"_xlfn.IFNA(VLOOKUP(CONCATENATE($B$3,B6),'All Data'!$B:$D,3,FALSE),\"No\")","v":"No"},null,null,{"$f":"_xlfn.IFNA(VLOOKUP(CONCATENATE($B$3,B6),'Helpful Hints - All'!$C$1:$D$1019,2,FALSE),\" \")","v":" "}]
[null,"Last Name",{"$f":"_xlfn.IFNA(VLOOKUP(CONCATENATE($B$3,B7),'All Data'!$B:$D,3,FALSE),\"No\")","v":"No"},{"$f":"IF(Request!$D7=\"\",\"\",Request!$D7)","v":""},null,{"$f":"_xlfn.IFNA(VLOOKUP(CONCATENATE($B$3,B7),'Helpful Hints - All'!$C$1:$D$1019,2,FALSE),\" \")","v":" "}]
[null,"First Name",{"$f":"_xlfn.IFNA(VLOOKUP(CONCATENATE($B$3,B8),'All Data'!$B:$D,3,FALSE),\"No\")","v":"No"},{"$f":"IF(Request!$D8=\"\",\"\",Request!$D8)","v":""},null,{"$f":"_xlfn.IFNA(VLOOKUP(CONCATENATE($B$3,B8),'Helpful Hints - All'!$C$1:$D$1019,2,FALSE),\" \")","v":" "}]
[null,"Middle Initial",{"$f":"_xlfn.IFNA(VLOOKUP(CONCATENATE($B$3,B9),'All Data'!$B:$D,3,FALSE),\"No\")","v":"No"},{"$f":"IF(Request!$D9=\"\",\"\",Request!$D9)","v":""},null,{"$f":"_xlfn.IFNA(VLOOKUP(CONCATENATE($B$3,B9),'Helpful Hints - All'!$C$1:$D$1019,2,FALSE),\" \")","v":" "}]
[null,"Preferred Last Name",{"$f":"_xlfn.IFNA(VLOOKUP(CONCATENATE($B$3,B10),'All Data'!$B:$D,3,FALSE),\"No\")","v":"No"},{"$f":"IF(Request!$D10=\"\",\"\",Request!$D10)","v":""},null,{"$f":"_xlfn.IFNA(VLOOKUP(CONCATENATE($B$3,B10),'Helpful Hints - All'!$C$1:$D$1019,2,FALSE),\" \")","v":" "}]
[null,"Preferred First Name",{"$f":"_xlfn.IFNA(VLOOKUP(CONCATENATE($B$3,B11),'All Data'!$B:$D,3,FALSE),\"No\")","v":"No"},{"$f":"IF(Request!$D11=\"\",\"\",Request!$D11)","v":""},null,{"$f":"_xlfn.IFNA(VLOOKUP(CONCATENATE($B$3,B11),'Helpful Hints - All'!$C$1:$D$1019,2,FALSE),\" \")","v":" "}]
[null,"Preferred Middle Initial",{"$f":"_xlfn.IFNA(VLOOKUP(CONCATENATE($B$3,B12),'All Data'!$B:$D,3,FALSE),\"No\")","v":"No"},{"$f":"IF(Request!$D12=\"\",\"\",Request!$D12)","v":""},null,{"$f":"_xlfn.IFNA(VLOOKUP(CONCATENATE($B$3,B12),'Helpful Hints - All'!$C$1:$D$1019,2,FALSE),\" \")","v":" "}]
[null,"Is this a Graduate Student?",{"$f":"_xlfn.IFNA(VLOOKUP(CONCATENATE($B$3,B13),'All Data'!$B:$D,3,FALSE),\"No\")","v":"No"},{"$f":"IF(Request!$D13=\"\",\"\",Request!$D13)","v":""},null,"Assignments for students need to have start and end dates.  Use monthly salary unless partial month payment, then use exact pay amount for that month; see Partial Month Calculation tab for calc formula"]
[null,"Gender",{"$f":"_xlfn.IFNA(VLOOKUP(CONCATENATE($B$3,B14),'All Data'!$B:$D,3,FALSE),\"No\")","v":"No"},{"$f":"IF(Request!$D14=\"\",\"\",Request!$D14)","v":""}]
[null,"Hinman Box",{"$f":"_xlfn.IFNA(VLOOKUP(CONCATENATE($B$3,B15),'All Data'!$B:$D,3,FALSE),\"No\")","v":"No"},{"$f":"IF(Request!$D15=\"\",\"\",Request!$D15)","v":""},null,{"$f":"_xlfn.IFNA(VLOOKUP(CONCATENATE($B$3,B15),'Helpful Hints - All'!$C$1:$D$1019,2,FALSE),\" \")","v":" "}]
[null,"Dart ID",{"$f":"_xlfn.IFNA(VLOOKUP(CONCATENATE($B$3,B16),'All Data'!$B:$D,3,FALSE),\"No\")","v":"No"},{"$f":"IF(Request!$D16=\"\",\"\",Request!$D16)","v":""},null,"Employee # and Dart ID need to match IRA"]
[null,"Citizenship",{"$f":"_xlfn.IFNA(VLOOKUP(CONCATENATE($B$3,B17),'All Data'!$B:$D,3,FALSE),\"No\")","v":"No"},{"$f":"IF(Request!$D17=\"\",\"\",Request!$D17)","v":""},null,{"$f":"_xlfn.IFNA(VLOOKUP(CONCATENATE($B$3,B17),'Helpful Hints - All'!$C$1:$D$1019,2,FALSE),\" \")","v":" "}]
[null,"Visa Type (if not US Cititzen)",{"$f":"_xlfn.IFNA(VLOOKUP(CONCATENATE($B$3,B18),'All Data'!$B:$D,3,FALSE),\"No\")","v":"No"},{"$f":"IF(Request!$D18=\"\",\"\",Request!$D18)","v":""},null,{"$f":"_xlfn.IFNA(VLOOKUP(CONCATENATE($B$3,B18),'Helpful Hints - All'!$C$1:$D$1019,2,FALSE),\" \")","v":" "}]
[null,"Email (Personal Non Dartmouth)",{"$f":"_xlfn.IFNA(VLOOKUP(CONCATENATE($B$3,B19),'All Data'!$B:$D,3,FALSE),\"No\")","v":"No"},{"$f":"IF(Request!$D19=\"\",\"\",Request!$D19)","v":""},null,{"$f":"_xlfn.IFNA(VLOOKUP(CONCATENATE($B$3,B19),'Helpful Hints - All'!$C$1:$D$1019,2,FALSE),\" \")","v":" "}]
[null,"Work Arrangement",{"$f":"_xlfn.IFNA(VLOOKUP(CONCATENATE($B$3,B20),'All Data'!$B:$D,3,FALSE),\"No\")","v":"No"},null,null,"Please select Onsite, Remote or Hybrid from the dropdown options"]
[null,"Social Security Number",{"$f":"_xlfn.IFNA(VLOOKUP(CONCATENATE($B$3,B21),'All Data'!$B:$D,3,FALSE),\"No\")","v":"No"},{"$f":"IF(Request!$D21=\"\",\"\",Request!$D21)","v":""},null,{"$f":"_xlfn.IFNA(VLOOKUP(CONCATENATE($B$3,B21),'Helpful Hints - All'!$C$1:$D$1019,2,FALSE),\" \")","v":" "}]
[null,"Date of Birth",{"$f":"_xlfn.IFNA(VLOOKUP(CONCATENATE($B$3,B22),'All Data'!$B:$D,3,FALSE),\"No\")","v":"No"},{"$f":"IF(Request!$D22=\"\",\"\",Request!$D22)","v":""},null,{"$f":"_xlfn.IFNA(VLOOKUP(CONCATENATE($B$3,B22),'Helpful Hints - All'!$C$1:$D$1019,2,FALSE),\" \")","v":" "}]
[null,"Legal Mailing Address",{"$f":"_xlfn.IFNA(VLOOKUP(CONCATENATE($B$3,B23),'All Data'!$B:$D,3,FALSE),\"No\")","v":"No"},{"$f":"IF(Request!$D23=\"\",\"\",Request!$D23)","v":""},null,{"$f":"_xlfn.IFNA(VLOOKUP(CONCATENATE($B$3,B23),'Helpful Hints - All'!$C$1:$D$1019,2,FALSE),\" \")","v":" "}]
[null,"City, State & Zip",{"$f":"_xlfn.IFNA(VLOOKUP(CONCATENATE($B$3,B24),'All Data'!$B:$D,3,FALSE),\"No\")","v":"No"},{"$f":"IF(Request!$D24=\"\",\"\",Request!$D24)","v":""},null,{"$f":"_xlfn.IFNA(VLOOKUP(CONCATENATE($B$3,B24),'Helpful Hints - All'!$C$1:$D$1019,2,FALSE),\" \")","v":" "}]
[null,"Legal Residence Address (No PO Boxes)",{"$f":"_xlfn.IFNA(VLOOKUP(CONCATENATE($B$3,B25),'All Data'!$B:$D,3,FALSE),\"No\")","v":"No"},{"$f":"IF(Request!$D25=\"\",\"\",Request!$D25)","v":""},null,{"$f":"_xlfn.IFNA(VLOOKUP(CONCATENATE($B$3,B25),'Helpful Hints - All'!$C$1:$D$1019,2,FALSE),\" \")","v":" "}]
[null,"City, State & Zip",{"$f":"_xlfn.IFNA(VLOOKUP(CONCATENATE($B$3,B26),'All Data'!$B:$D,3,FALSE),\"No\")","v":"No"},{"$f":"IF(Request!$D26=\"\",\"\",Request!$D26)","v":""},null,{"$f":"_xlfn.IFNA(VLOOKUP(CONCATENATE($B$3,B26),'Helpful Hints - All'!$C$1:$D$1019,2,FALSE),\" \")","v":" "}]
[null,"Phone Number",{"$f":"_xlfn.IFNA(VLOOKUP(CONCATENATE($B$3,B27),'All Data'!$B:$D,3,FALSE),\"No\")","v":"No"},{"$f":"IF(Request!$D27=\"\",\"\",Request!$D27)","v":""}]
[null,"Crew Code",{"$f":"_xlfn.IFNA(VLOOKUP(CONCATENATE($B$3,B28),'All Data'!$B:$D,3,FALSE),\"No\")","v":"No"},null,null,{"$f":"_xlfn.IFNA(VLOOKUP(CONCATENATE($B$3,B28),'Helpful Hints - All'!$C$1:$D$1019,2,FALSE),\" \")","v":" "}]
[null,"Forwarding Address",{"$f":"_xlfn.IFNA(VLOOKUP(CONCATENATE($B$3,B29),'All Data'!$B:$D,3,FALSE),\"No\")","v":"No"},{"$f":"IF(Request!$D29=\"\",\"\",Request!$D29)","v":""},null,"For Terminations Only"]
[null,"Forwarding Address City, State & Zip",{"$f":"_xlfn.IFNA(VLOOKUP(CONCATENATE($B$3,B30),'All Data'!$B:$D,3,FALSE),\"No\")","v":"No"},{"$f":"IF(Request!$D30=\"\",\"\",Request!$D30)","v":""},null,{"$f":"_xlfn.IFNA(VLOOKUP(CONCATENATE($B$3,B30),'Helpful Hints - All'!$C$1:$D$1019,2,FALSE),\" \")","v":" "}]
[null,"Does Union Employee receive a footwear stipend?",{"$f":"_xlfn.IFNA(VLOOKUP(CONCATENATE($B$3,B31),'All Data'!$B:$D,3,FALSE),\"No\")","v":"No"},null,null,"If this is a Union Employee - Select Yes if they need to receive a footwear stipend.              If Yes - Please provide the type and amount of the footwear stipend"]
[]
[null,"Organization",{"$f":"_xlfn.IFNA(VLOOKUP(CONCATENATE($B$3,B33),'All Data'!$B:$D,3,FALSE),\"No\")","v":"No"},null,null,"Please list Department Name from DORR, Not ORG Number - This should match how the the DND should be listed"]
[null,"People Group",{"$f":"_xlfn.IFNA(VLOOKUP(CONCATENATE($B$3,B34),'All Data'!$B:$D,3,FALSE),\"No\")","v":"No"},null,null,"Examples: Exempt Staff (6145 Regular Full Benefits, 6151 Temp) - Non-Exempt (6163 Regular Full Benefits, 6182 Temp)"]
[null,"Title",{"$f":"_xlfn.IFNA(VLOOKUP(CONCATENATE($B$3,B35),'All Data'!$B:$D,3,FALSE),\"No\")","v":"No"},null,null,{"$f":"_xlfn.IFNA(VLOOKUP(CONCATENATE($B$3,B35),'Helpful Hints - All'!$C$1:$D$1019,2,FALSE),\" \")","v":" "}]
[null,"Grade (Union)",{"$f":"_xlfn.IFNA(VLOOKUP(CONCATENATE($B$3,B36),'All Data'!$B:$D,3,FALSE),\"No\")","v":"No"},null,null,"If applicable - needs to match what is in DORR - If not, please reach out to HR. If \"Other\" is selected - please add the correct Grade to the comments"]
[null,"Office Location (Building & Room)",{"$f":"_xlfn.IFNA(VLOOKUP(CONCATENATE($B$3,B37),'All Data'!$B:$D,3,FALSE),\"No\")","v":"No"},null,null,"Required if Hybrid or OnSite is chosen"]
[null,"Regular or Temporary",{"$f":"_xlfn.IFNA(VLOOKUP(CONCATENATE($B$3,B38),'All Data'!$B:$D,3,FALSE),\"No\")","v":"No"},null,null,{"$f":"_xlfn.IFNA(VLOOKUP(CONCATENATE($B$3,B38),'Helpful Hints - All'!$C$1:$D$1019,2,FALSE),\" \")","v":" "}]
[null,"Timekeeping Location",{"$f":"_xlfn.IFNA(VLOOKUP(CONCATENATE($B$3,B39),'All Data'!$B:$D,3,FALSE),\"No\")","v":"No"},null,null,{"$f":"_xlfn.IFNA(VLOOKUP(CONCATENATE($B$3,B39),'Helpful Hints - All'!$C$1:$D$1019,2,FALSE),\" \")","v":" "}]
[null,"Supervisor",{"$f":"_xlfn.IFNA(VLOOKUP(CONCATENATE($B$3,B40),'All Data'!$B:$D,3,FALSE),\"No\")","v":"No"},null,null,"Person directly responsible for this employee"]
[null,"FTE",{"$f":"_xlfn.IFNA(VLOOKUP(CONCATENATE($B$3,B41),'All Data'!$B:$D,3,FALSE),\"No\")","v":"No"},null,null,{"$f":"_xlfn.IFNA(VLOOKUP(CONCATENATE($B$3,B41),'Helpful Hints - All'!$C$1:$D$1019,2,FALSE),\" \")","v":" "}]
[null,"Hours/Week",{"$f":"_xlfn.IFNA(VLOOKUP(CONCATENATE($B$3,B42),'All Data'!$B:$D,3,FALSE),\"No\")","v":"No"},null,null,{"$f":"_xlfn.IFNA(VLOOKUP(CONCATENATE($B$3,B42),'Helpful Hints - All'!$C$1:$D$1019,2,FALSE),\" \")","v":" "}]
[null,"Months/Year",{"$f":"_xlfn.IFNA(VLOOKUP(CONCATENATE($B$3,B43),'All Data'!$B:$D,3,FALSE),\"No\")","v":"No"},null,null,{"$f":"_xlfn.IFNA(VLOOKUP(CONCATENATE($B$3,B43),'Helpful Hints - All'!$C$1:$D$1019,2,FALSE),\" \")","v":" "}]
[null,"Postdoc",{"$f":"_xlfn.IFNA(VLOOKUP(CONCATENATE($B$3,B44),'All Data'!$B:$D,3,FALSE),\"No\")","v":"No"},null,null,"A postdoctoral scholar is an individual who has received a doctoral degree and is appointed for a limited period of time of mentored advanced training to enhance the professional skills and research independence needed to pursue his or her chosen career path.  The primary purpose of a postdoc scholar is to engage in advanced study and training."]
[null,"Begin Date",{"$f":"_xlfn.IFNA(VLOOKUP(CONCATENATE($B$3,B45),'All Data'!$B:$D,3,FALSE),\"No\")","v":"No"},null,null,{"$f":"_xlfn.IFNA(VLOOKUP(CONCATENATE($B$3,B45),'Helpful Hints - All'!$C$1:$D$1019,2,FALSE),\" \")","v":" "}]
[null,"End Date",{"$f":"_xlfn.IFNA(VLOOKUP(CONCATENATE($B$3,B46),'All Data'!$B:$D,3,FALSE),\"No\")","v":"No"},null,null,{"$f":"_xlfn.IFNA(VLOOKUP(CONCATENATE($B$3,B46),'Helpful Hints - All'!$C$1:$D$1019,2,FALSE),\" \")","v":" "}]
[null,"Pay Amount",{"$f":"_xlfn.IFNA(VLOOKUP(CONCATENATE($B$3,B47),'All Data'!$B:$D,3,FALSE),\"No\")","v":"No"},null,null,{"$f":"_xlfn.IFNA(VLOOKUP(CONCATENATE($B$3,B47),'Helpful Hints - All'!$C$1:$D$1019,2,FALSE),\" \")","v":" "}]
[null,"Payment Period",{"$f":"_xlfn.IFNA(VLOOKUP(CONCATENATE($B$3,B48),'All Data'!$B:$D,3,FALSE),\"No\")","v":"No"},null,null,{"$f":"_xlfn.IFNA(VLOOKUP(CONCATENATE($B$3,B48),'Helpful Hints - All'!$C$1:$D$1019,2,FALSE),\" \")","v":" "}]
[null,"Payment Type",{"$f":"_xlfn.IFNA(VLOOKUP(CONCATENATE($B$3,B49),'All Data'!$B:$D,3,FALSE),\"No\")","v":"No"},null,null,{"$f":"_xlfn.IFNA(VLOOKUP(CONCATENATE($B$3,B49),'Helpful Hints - All'!$C$1:$D$1019,2,FALSE),\" \")","v":" "}]
[null,"Assignment #",{"$f":"_xlfn.IFNA(VLOOKUP(CONCATENATE($B$3,B50),'All Data'!$B:$D,3,FALSE),\"No\")","v":"No"},null,null,{"$f":"_xlfn.IFNA(VLOOKUP(CONCATENATE($B$3,B50),'Helpful Hints - All'!$C$1:$D$1019,2,FALSE),\" \")","v":" "}]
[null,"Position Number",{"$f":"_xlfn.IFNA(VLOOKUP(CONCATENATE($B$3,B51),'All Data'!$B:$D,3,FALSE),\"No\")","v":"No"},null,null,"From DORR - Can leave blank if this is a temporary position"]
[null,"Funding Information (GL or OGA)",{"$f":"_xlfn.IFNA(VLOOKUP(CONCATENATE($B$3,B52),'All Data'!$B:$D,3,FALSE),\"No\")","v":"No"},null,null,{"$f":"_xlfn.IFNA(VLOOKUP(CONCATENATE($B$3,B52),'Helpful Hints - All'!$C$1:$D$1019,2,FALSE),\" \")","v":" "}]
[null,"iExpense Default Account",{"$f":"_xlfn.IFNA(VLOOKUP(CONCATENATE($B$3,B53),'All Data'!$B:$D,3,FALSE),\"No\")","v":"No"},null,null,{"$f":"_xlfn.IFNA(VLOOKUP(CONCATENATE($B$3,B53),'Helpful Hints - All'!$C$1:$D$1019,2,FALSE),\" \")","v":" "}]
[null,"Last Day Worked",{"$f":"_xlfn.IFNA(VLOOKUP(CONCATENATE($B$3,B54),'All Data'!$B:$D,3,FALSE),\"No\")","v":"No"},null,null,{"$f":"_xlfn.IFNA(VLOOKUP(CONCATENATE($B$3,B54),'Helpful Hints - All'!$C$1:$D$1019,2,FALSE),\" \")","v":" "}]
[null,"Reason for Termination",{"$f":"_xlfn.IFNA(VLOOKUP(CONCATENATE($B$3,B55),'All Data'!$B:$D,3,FALSE),\"No\")","v":"No"},null,null,"For Terminations Only"]
[null,"Reason - Other",{"$f":"_xlfn.IFNA(VLOOKUP(CONCATENATE($B$3,B56),'All Data'!$B:$D,3,FALSE),\"No\")","v":"No"},null,null,"For Terminations Only"]
[null,"Resignation Letter Received?",{"$f":"_xlfn.IFNA(VLOOKUP(CONCATENATE($B$3,B57),'All Data'!$B:$D,3,FALSE),\"No\")","v":"No"},null,null,"For Terminations Only"]
[null,"Unused Vacation Days (Exempt ONLY)",{"$f":"_xlfn.IFNA(VLOOKUP(CONCATENATE($B$3,B58),'All Data'!$B:$D,3,FALSE),\"No\")","v":"No"},null,null,{"$f":"_xlfn.IFNA(VLOOKUP(CONCATENATE($B$3,B58),'Helpful Hints - All'!$C$1:$D$1019,2,FALSE),\" \")","v":" "}]
[null,"Approver(s)",{"$f":"_xlfn.IFNA(VLOOKUP(CONCATENATE($B$3,B59),'All Data'!$B:$D,3,FALSE),\"No\")","v":"No"},null,null,{"$f":"_xlfn.IFNA(VLOOKUP(CONCATENATE($B$3,B59),'Helpful Hints - All'!$C$1:$D$1019,2,FALSE),\" \")","v":" "}]
[null,"Additional Helpful Information",null,null,null,{"$f":"_xlfn.IFNA(VLOOKUP(CONCATENATE($B$3,B60),'Helpful Hints - All'!$C$1:$D$1019,2,FALSE),\" \")","v":" "}]
[null,"Additional Forms Needed",{"$f":"_xlfn.IFNA(VLOOKUP(CONCATENATE($B$3,B61),'All Data'!$B:$D,3,FALSE),\"No\")","v":"No"},null,null,{"$f":"_xlfn.IFNA(VLOOKUP(CONCATENATE($B$3,B61),'Helpful Hints - All'!$C$1:$D$1019,2,FALSE),\" \")","v":" "},"Communication Stipend FORM","Lump Sum Payment FORM"]
[null,"Comments (If you would like to provide any additional information)",null,null,null,{"$f":"_xlfn.IFNA(VLOOKUP(CONCATENATE($B$3,B62),'Helpful Hints - All'!$C$1:$D$1019,2,FALSE),\" \")","v":" "}]
[]
[]
[]
["Kronos Reporting for Non-Exempt, Union, Non-Union Service, and Temporary Employees"]
[null,"Is a New Report Needed?"]
[null,"Should the employee be added to an existing report?",null,null,null,"Please list query name from the top left of the report"]
[null,"Who should the report be sent to?",null,null,null,"Please list the name(s) of the supervisors who should receive time details for this employee"]
[null,null,null,null,null,{"$f":"_xlfn.IFNA(VLOOKUP(CONCATENATE($B$3,B70),'Helpful Hints - All'!$C$1:$D$1019,2,FALSE),\" \")","v":" "}]
[null,null,null,null,null,{"$f":"_xlfn.IFNA(VLOOKUP(CONCATENATE($B$3,B71),'Helpful Hints - All'!$C$1:$D$1019,2,FALSE),\" \")","v":" "}]
[]
["Next Steps:"]
["1)","Submit to the Finance Center for review and approval",null,"Finance Center will enter the PA Information into PA Smart Form within 2 business days of receiving this information - please allow potential extra time if additional information is needed - the FC will reach out to you if so"]
["2)","Division/Department approver will need to approve the PA in the Smart Form System",null,"This should ideally be completed within 1 business day of receiving notification from the Finance Center"]
["3)","Data is entered into HRMS",null,"Once PA is approved by the Division/Department- The Finance Center will enter the PA Information into HRMS",null,"*New Hire PAs are entered into HRMS within 2 business days of receiving the approved PA           *Termination or Change PAs are entered into HRMS within 3 business days of receiving the approved PA"]
[]
[null,"****Please feel free to contact the FC with ANY questions"]

{"sheet":"Additional Action 3","index":3,"n_rows":78,"n_cols":8,"rows_kept":78,"cut":false,"hidden":false,"merged":[[71,3,71,4],[72,3,72,4],[73,3,73,4],[74,3,74,4],[66,3,66,4],[67,3,67,4],[68,3,68,4],[69,3,69,4],[70,3,70,4],[48,3,48,4],[49,3,49,4],[63,3,63,4],[51,3,51,4],[52,3,52,4],[53,3,53,4],[54,3,54,4],[55,3,55,4],[56,3,56,4],[61,3,61,4],[57,3,57,4],[58,3,58,4],[59,3,59,4],[60,3,60,4],[19,3,19,4],[20,3,20,4],[21,3,21,4],[22,3,22,4],[38,3,38,4],[24,3,24,4],[25,3,25,4],[27,3,27,4],[28,3,28,4],[29,3,29,4],[35,3,35,4],[32,3,32,4],[33,3,33,4],[34,3,34,4],[37,3,37,4],[26,3,26,4],[14,3,14,4],[15,3,15,4],[16,3,16,4],[17,3,17,4],[18,3,18,4],[30,5,31,5],[11,3,11,4],[0,3,0,4],[1,3,1,4],[2,3,2,4],[3,3,3,4],[4,3,4,4],[5,3,5,4],[6,3,6,4],[7,3,7,4],[8,3,8,4],[9,3,9,4],[10,3,10,4],[23,3,23,4],[12,3,12,4],[13,3,13,4],[64,3,64,4],[75,3,75,4],[30,0,31,0],[30,1,31,1],[30,2,31,2],[30,3,31,3],[50,3,50,4],[39,3,39,4],[40,3,40,4],[41,3,41,4],[42,3,42,4],[43,3,43,4],[44,3,44,4],[45,3,45,4],[46,3,46,4],[47,3,47,4]]}
[]
[null,"Select an Action:","Revision?","Add Additional Action information to Tab 5"]
[null,"Select An Action","No","List Additional Actions Here: "]
[]
[null,"Category","Required?","Details",null,"Helpful Hints"]
[null,"Effective Date",{"$f":"_xlfn.IFNA(VLOOKUP(CONCATENATE($B$3,B6),'All Data'!$B:$D,3,FALSE),\"No\")","v":"No"},null,null,{"$f":"_xlfn.IFNA(VLOOKUP(CONCATENATE($B$3,B6),'Helpful Hints - All'!$C$1:$D$1019,2,FALSE),\" \")","v":" "}]
[null,"Last Name",{"$f":"_xlfn.IFNA(VLOOKUP(CONCATENATE($B$3,B7),'All Data'!$B:$D,3,FALSE),\"No\")","v":"No"},{"$f":"IF(Request!$D7=\"\",\"\",Request!$D7)","v":""},null,{"$f":"_xlfn.IFNA(VLOOKUP(CONCATENATE($B$3,B7),'Helpful Hints - All'!$C$1:$D$1019,2,FALSE),\" \")","v":" "}]
[null,"First Name",{"$f":"_xlfn.IFNA(VLOOKUP(CONCATENATE($B$3,B8),'All Data'!$B:$D,3,FALSE),\"No\")","v":"No"},{"$f":"IF(Request!$D8=\"\",\"\",Request!$D8)","v":""},null,{"$f":"_xlfn.IFNA(VLOOKUP(CONCATENATE($B$3,B8),'Helpful Hints - All'!$C$1:$D$1019,2,FALSE),\" \")","v":" "}]
[null,"Middle Initial",{"$f":"_xlfn.IFNA(VLOOKUP(CONCATENATE($B$3,B9),'All Data'!$B:$D,3,FALSE),\"No\")","v":"No"},{"$f":"IF(Request!$D9=\"\",\"\",Request!$D9)","v":""},null,{"$f":"_xlfn.IFNA(VLOOKUP(CONCATENATE($B$3,B9),'Helpful Hints - All'!$C$1:$D$1019,2,FALSE),\" \")","v":" "}]
[null,"Preferred Last Name",{"$f":"_xlfn.IFNA(VLOOKUP(CONCATENATE($B$3,B10),'All Data'!$B:$D,3,FALSE),\"No\")","v":"No"},{"$f":"IF(Request!$D10=\"\",\"\",Request!$D10)","v":""},null,{"$f":"_xlfn.IFNA(VLOOKUP(CONCATENATE($B$3,B10),'Helpful Hints - All'!$C$1:$D$1019,2,FALSE),\" \")","v":" "}]
[null,"Preferred First Name",{"$f":"_xlfn.IFNA(VLOOKUP(CONCATENATE($B$3,B11),'All Data'!$B:$D,3,FALSE),\"No\")","v":"No"},{"$f":"IF(Request!$D11=\"\",\"\",Request!$D11)","v":""},null,{"$f":"_xlfn.IFNA(VLOOKUP(CONCATENATE($B$3,B11),'Helpful Hints - All'!$C$1:$D$1019,2,FALSE),\" \")","v":" "}]
[null,"Preferred Middle Initial",{"$f":"_xlfn.IFNA(VLOOKUP(CONCATENATE($B$3,B12),'All Data'!$B:$D,3,FALSE),\"No\")","v":"No"},{"$f":"IF(Request!$D12=\"\",\"\",Request!$D12)","v":""},null,{"$f":"_xlfn.IFNA(VLOOKUP(CONCATENATE($B$3,B12),'Helpful Hints - All'!$C$1:$D$1019,2,FALSE),\" \")","v":" "}]
[null,"Is this a Graduate Student?",{"$f":"_xlfn.IFNA(VLOOKUP(CONCATENATE($B$3,B13),'All Data'!$B:$D,3,FALSE),\"No\")","v":"No"},{"$f":"IF(Request!$D13=\"\",\"\",Request!$D13)","v":""},null,"Assignments for students need to have start and end dates.  Use monthly salary unless partial month payment, then use exact pay amount for that month; see Partial Month Calculation tab for calc formula"]
[null,"Gender",{"$f":"_xlfn.IFNA(VLOOKUP(CONCATENATE($B$3,B14),'All Data'!$B:$D,3,FALSE),\"No\")","v":"No"},{"$f":"IF(Request!$D14=\"\",\"\",Request!$D14)","v":""}]
[null,"Hinman Box",{"$f":"_xlfn.IFNA(VLOOKUP(CONCATENATE($B$3,B15),'All Data'!$B:$D,3,FALSE),\"No\")","v":"No"},{"$f":"IF(Request!$D15=\"\",\"\",Request!$D15)","v":""},null,{"$f":"_xlfn.IFNA(VLOOKUP(CONCATENATE($B$3,B15),'Helpful Hints - All'!$C$1:$D$1019,2,FALSE),\" \")","v":" "}]
[null,"Dart ID",{"$f":"_xlfn.IFNA(VLOOKUP(CONCATENATE($B$3,B16),'All Data'!$B:$D,3,FALSE),\"No\")","v":"No"},{"$f":"IF(Request!$D16=\"\",\"\",Request!$D16)","v":""},null,"Employee # and Dart ID need to match IRA"]
[null,"Citizenship",{"$f":"_xlfn.IFNA(VLOOKUP(CONCATENATE($B$3,B17),'All Data'!$B:$D,3,FALSE),\"No\")","v":"No"},{"$f":"IF(Request!$D17=\"\",\"\",Request!$D17)","v":""},null,{"$f":"_xlfn.IFNA(VLOOKUP(CONCATENATE($B$3,B17),'Helpful Hints - All'!$C$1:$D$1019,2,FALSE),\" \")","v":" "}]
[null,"Visa Type (if not US Cititzen)",{"$f":"_xlfn.IFNA(VLOOKUP(CONCATENATE($B$3,B18),'All Data'!$B:$D,3,FALSE),\"No\")","v":"No"},{"$f":"IF(Request!$D18=\"\",\"\",Request!$D18)","v":""},null,{"$f":"_xlfn.IFNA(VLOOKUP(CONCATENATE($B$3,B18),'Helpful Hints - All'!$C$1:$D$1019,2,FALSE),\" \")","v":" "}]
[null,"Email (Personal Non Dartmouth)",{"$f":"_xlfn.IFNA(VLOOKUP(CONCATENATE($B$3,B19),'All Data'!$B:$D,3,FALSE),\"No\")","v":"No"},{"$f":"IF(Request!$D19=\"\",\"\",Request!$D19)","v":""},null,{"$f":"_xlfn.IFNA(VLOOKUP(CONCATENATE($B$3,B19),'Helpful Hints - All'!$C$1:$D$1019,2,FALSE),\" \")","v":" "}]
[null,"Work Arrangement",{"$f":"_xlfn.IFNA(VLOOKUP(CONCATENATE($B$3,B20),'All Data'!$B:$D,3,FALSE),\"No\")","v":"No"},null,null,"Please select Onsite, Remote or Hybrid from the dropdown options"]
[null,"Social Security Number",{"$f":"_xlfn.IFNA(VLOOKUP(CONCATENATE($B$3,B21),'All Data'!$B:$D,3,FALSE),\"No\")","v":"No"},{"$f":"IF(Request!$D21=\"\",\"\",Request!$D21)","v":""},null,{"$f":"_xlfn.IFNA(VLOOKUP(CONCATENATE($B$3,B21),'Helpful Hints - All'!$C$1:$D$1019,2,FALSE),\" \")","v":" "}]
[null,"Date of Birth",{"$f":"_xlfn.IFNA(VLOOKUP(CONCATENATE($B$3,B22),'All Data'!$B:$D,3,FALSE),\"No\")","v":"No"},{"$f":"IF(Request!$D22=\"\",\"\",Request!$D22)","v":""},null,{"$f":"_xlfn.IFNA(VLOOKUP(CONCATENATE($B$3,B22),'Helpful Hints - All'!$C$1:$D$1019,2,FALSE),\" \")","v":" "}]
[null,"Legal Mailing Address",{"$f":"_xlfn.IFNA(VLOOKUP(CONCATENATE($B$3,B23),'All Data'!$B:$D,3,FALSE),\"No\")","v":"No"},{"$f":"IF(Request!$D23=\"\",\"\",Request!$D23)","v":""},null,{"$f":"_xlfn.IFNA(VLOOKUP(CONCATENATE($B$3,B23),'Helpful Hints - All'!$C$1:$D$1019,2,FALSE),\" \")","v":" "}]
[null,"City, State & Zip",{"$f":"_xlfn.IFNA(VLOOKUP(CONCATENATE($B$3,B24),'All Data'!$B:$D,3,FALSE),\"No\")","v":"No"},{"$f":"IF(Request!$D24=\"\",\"\",Request!$D24)","v":""},null,{"$f":"_xlfn.IFNA(VLOOKUP(CONCATENATE($B$3,B24),'Helpful Hints - All'!$C$1:$D$1019,2,FALSE),\" \")","v":" "}]
[null,"Legal Residence Address (No PO Boxes)",{"$f":"_xlfn.IFNA(VLOOKUP(CONCATENATE($B$3,B25),'All Data'!$B:$D,3,FALSE),\"No\")","v":"No"},{"$f":"IF(Request!$D25=\"\",\"\",Request!$D25)","v":""},null,{"$f":"_xlfn.IFNA(VLOOKUP(CONCATENATE($B$3,B25),'Helpful Hints - All'!$C$1:$D$1019,2,FALSE),\" \")","v":" "}]
[null,"City, State & Zip",{"$f":"_xlfn.IFNA(VLOOKUP(CONCATENATE($B$3,B26),'All Data'!$B:$D,3,FALSE),\"No\")","v":"No"},{"$f":"IF(Request!$D26=\"\",\"\",Request!$D26)","v":""},null,{"$f":"_xlfn.IFNA(VLOOKUP(CONCATENATE($B$3,B26),'Helpful Hints - All'!$C$1:$D$1019,2,FALSE),\" \")","v":" "}]
[null,"Phone Number",{"$f":"_xlfn.IFNA(VLOOKUP(CONCATENATE($B$3,B27),'All Data'!$B:$D,3,FALSE),\"No\")","v":"No"},{"$f":"IF(Request!$D27=\"\",\"\",Request!$D27)","v":""}]
[null,"Crew Code",{"$f":"_xlfn.IFNA(VLOOKUP(CONCATENATE($B$3,B28),'All Data'!$B:$D,3,FALSE),\"No\")","v":"No"},null,null,{"$f":"_xlfn.IFNA(VLOOKUP(CONCATENATE($B$3,B28),'Helpful Hints - All'!$C$1:$D$1019,2,FALSE),\" \")","v":" "}]
[null,"Forwarding Address",{"$f":"_xlfn.IFNA(VLOOKUP(CONCATENATE($B$3,B29),'All Data'!$B:$D,3,FALSE),\"No\")","v":"No"},{"$f":"IF(Request!$D29=\"\",\"\",Request!$D29)","v":""},null,"For Terminations Only"]
[null,"Forwarding Address City, State & Zip",{"$f":"_xlfn.IFNA(VLOOKUP(CONCATENATE($B$3,B30),'All Data'!$B:$D,3,FALSE),\"No\")","v":"No"},{"$f":"IF(Request!$D30=\"\",\"\",Request!$D30)","v":""},null,{"$f":"_xlfn.IFNA(VLOOKUP(CONCATENATE($B$3,B30),'Helpful Hints - All'!$C$1:$D$1019,2,FALSE),\" \")","v":" "}]
[null,"Does Union Employee receive a footwear stipend?",{"$f":"_xlfn.IFNA(VLOOKUP(CONCATENATE($B$3,B31),'All Data'!$B:$D,3,FALSE),\"No\")","v":"No"},null,null,"If this is a Union Employee - Select Yes if they need to receive a footwear stipend.              If Yes - Please provide the type and amount of the footwear stipend"]
[]
[null,"Organization",{"$f":"_xlfn.IFNA(VLOOKUP(CONCATENATE($B$3,B33),'All Data'!$B:$D,3,FALSE),\"No\")","v":"No"},null,null,"Please list Department Name from DORR, Not ORG Number - This should match how the the DND should be listed"]
[null,"People Group",{"$f":"_xlfn.IFNA(VLOOKUP(CONCATENATE($B$3,B34),'All Data'!$B:$D,3,FALSE),\"No\")","v":"No"},null,null,"Examples: Exempt Staff (6145 Regular Full Benefits, 6151 Temp) - Non-Exempt (6163 Regular Full Benefits, 6182 Temp)"]
[null,"Title",{"$f":"_xlfn.IFNA(VLOOKUP(CONCATENATE($B$3,B35),'All Data'!$B:$D,3,FALSE),\"No\")","v":"No"},null,null,{"$f":"_xlfn.IFNA(VLOOKUP(CONCATENATE($B$3,B35),'Helpful Hints - All'!$C$1:$D$1019,2,FALSE),\" \")","v":" "}]
[null,"Grade (Union)",{"$f":"_xlfn.IFNA(VLOOKUP(CONCATENATE($B$3,B36),'All Data'!$B:$D,3,FALSE),\"No\")","v":"No"},null,null,"If applicable - needs to match what is in DORR - If not, please reach out to HR. If \"Other\" is selected - please add the correct Grade to the comments"]
[null,"Office Location (Building & Room)",{"$f":"_xlfn.IFNA(VLOOKUP(CONCATENATE($B$3,B37),'All Data'!$B:$D,3,FALSE),\"No\")","v":"No"},null,null,"Required if Hybrid or OnSite is chosen"]
[null,"Regular or Temporary",{"$f":"_xlfn.IFNA(VLOOKUP(CONCATENATE($B$3,B38),'All Data'!$B:$D,3,FALSE),\"No\")","v":"No"},null,null,{"$f":"_xlfn.IFNA(VLOOKUP(CONCATENATE($B$3,B38),'Helpful Hints - All'!$C$1:$D$1019,2,FALSE),\" \")","v":" "}]
[null,"Timekeeping Location",{"$f":"_xlfn.IFNA(VLOOKUP(CONCATENATE($B$3,B39),'All Data'!$B:$D,3,FALSE),\"No\")","v":"No"},null,null,{"$f":"_xlfn.IFNA(VLOOKUP(CONCATENATE($B$3,B39),'Helpful Hints - All'!$C$1:$D$1019,2,FALSE),\" \")","v":" "}]
[null,"Supervisor",{"$f":"_xlfn.IFNA(VLOOKUP(CONCATENATE($B$3,B40),'All Data'!$B:$D,3,FALSE),\"No\")","v":"No"},null,null,"Person directly responsible for this employee"]
[null,"FTE",{"$f":"_xlfn.IFNA(VLOOKUP(CONCATENATE($B$3,B41),'All Data'!$B:$D,3,FALSE),\"No\")","v":"No"},null,null,{"$f":"_xlfn.IFNA(VLOOKUP(CONCATENATE($B$3,B41),'Helpful Hints - All'!$C$1:$D$1019,2,FALSE),\" \")","v":" "}]
[null,"Hours/Week",{"$f":"_xlfn.IFNA(VLOOKUP(CONCATENATE($B$3,B42),'All Data'!$B:$D,3,FALSE),\"No\")","v":"No"},null,null,{"$f":"_xlfn.IFNA(VLOOKUP(CONCATENATE($B$3,B42),'Helpful Hints - All'!$C$1:$D$1019,2,FALSE),\" \")","v":" "}]
[null,"Months/Year",{"$f":"_xlfn.IFNA(VLOOKUP(CONCATENATE($B$3,B43),'All Data'!$B:$D,3,FALSE),\"No\")","v":"No"},null,null,{"$f":"_xlfn.IFNA(VLOOKUP(CONCATENATE($B$3,B43),'Helpful Hints - All'!$C$1:$D$1019,2,FALSE),\" \")","v":" "}]
[null,"Postdoc",{"$f":"_xlfn.IFNA(VLOOKUP(CONCATENATE($B$3,B44),'All Data'!$B:$D,3,FALSE),\"No\")","v":"No"},null,null,"A postdoctoral scholar is an individual who has received a doctoral degree and is appointed for a limited period of time of mentored advanced training to enhance the professional skills and research independence needed to pursue his or her chosen career path.  The primary purpose of a postdoc scholar is to engage in advanced study and training."]
[null,"Begin Date",{"$f":"_xlfn.IFNA(VLOOKUP(CONCATENATE($B$3,B45),'All Data'!$B:$D,3,FALSE),\"No\")","v":"No"},null,null,{"$f":"_xlfn.IFNA(VLOOKUP(CONCATENATE($B$3,B45),'Helpful Hints - All'!$C$1:$D$1019,2,FALSE),\" \")","v":" "}]
[null,"End Date",{"$f":"_xlfn.IFNA(VLOOKUP(CONCATENATE($B$3,B46),'All Data'!$B:$D,3,FALSE),\"No\")","v":"No"},null,null,{"$f":"_xlfn.IFNA(VLOOKUP(CONCATENATE($B$3,B46),'Helpful Hints - All'!$C$1:$D$1019,2,FALSE),\" \")","v":" "}]
[null,"Pay Amount",{"$f":"_xlfn.IFNA(VLOOKUP(CONCATENATE($B$3,B47),'All Data'!$B:$D,3,FALSE),\"No\")","v":"No"},null,null,{"$f":"_xlfn.IFNA(VLOOKUP(CONCATENATE($B$3,B47),'Helpful Hints - All'!$C$1:$D$1019,2,FALSE),\" \")","v":" "}]
[null,"Payment Period",{"$f":"_xlfn.IFNA(VLOOKUP(CONCATENATE($B$3,B48),'All Data'!$B:$D,3,FALSE),\"No\")","v":"No"},null,null,{"$f":"_xlfn.IFNA(VLOOKUP(CONCATENATE($B$3,B48),'Helpful Hints - All'!$C$1:$D$1019,2,FALSE),\" \")","v":" "}]
[null,"Payment Type",{"$f":"_xlfn.IFNA(VLOOKUP(CONCATENATE($B$3,B49),'All Data'!$B:$D,3,FALSE),\"No\")","v":"No"},null,null,{"$f":"_xlfn.IFNA(VLOOKUP(CONCATENATE($B$3,B49),'Helpful Hints - All'!$C$1:$D$1019,2,FALSE),\" \")","v":" "}]
[null,"Assignment #",{"$f":"_xlfn.IFNA(VLOOKUP(CONCATENATE($B$3,B50),'All Data'!$B:$D,3,FALSE),\"No\")","v":"No"},null,null,{"$f":"_xlfn.IFNA(VLOOKUP(CONCATENATE($B$3,B50),'Helpful Hints - All'!$C$1:$D$1019,2,FALSE),\" \")","v":" "}]
[null,"Position Number",{"$f":"_xlfn.IFNA(VLOOKUP(CONCATENATE($B$3,B51),'All Data'!$B:$D,3,FALSE),\"No\")","v":"No"},null,null,"From DORR - Can leave blank if this is a temporary position"]
[null,"Funding Information (GL or OGA)",{"$f":"_xlfn.IFNA(VLOOKUP(CONCATENATE($B$3,B52),'All Data'!$B:$D,3,FALSE),\"No\")","v":"No"},null,null,{"$f":"_xlfn.IFNA(VLOOKUP(CONCATENATE($B$3,B52),'Helpful Hints - All'!$C$1:$D$1019,2,FALSE),\" \")","v":" "}]
[null,"iExpense Default Account",{"$f":"_xlfn.IFNA(VLOOKUP(CONCATENATE($B$3,B53),'All Data'!$B:$D,3,FALSE),\"No\")","v":"No"},null,null,{"$f":"_xlfn.IFNA(VLOOKUP(CONCATENATE($B$3,B53),'Helpful Hints - All'!$C$1:$D$1019,2,FALSE),\" \")","v":" "}]
[null,"Last Day Worked",{"$f":"_xlfn.IFNA(VLOOKUP(CONCATENATE($B$3,B54),'All Data'!$B:$D,3,FALSE),\"No\")","v":"No"},null,null,{"$f":"_xlfn.IFNA(VLOOKUP(CONCATENATE($B$3,B54),'Helpful Hints - All'!$C$1:$D$1019,2,FALSE),\" \")","v":" "}]
[null,"Reason for Termination",{"$f":"_xlfn.IFNA(VLOOKUP(CONCATENATE($B$3,B55),'All Data'!$B:$D,3,FALSE),\"No\")","v":"No"},null,null,"For Terminations Only"]
[null,"Reason - Other",{"$f":"_xlfn.IFNA(VLOOKUP(CONCATENATE($B$3,B56),'All Data'!$B:$D,3,FALSE),\"No\")","v":"No"},null,null,"For Terminations Only"]
[null,"Resignation Letter Received?",{"$f":"_xlfn.IFNA(VLOOKUP(CONCATENATE($B$3,B57),'All Data'!$B:$D,3,FALSE),\"No\")","v":"No"},null,null,"For Terminations Only"]
[null,"Unused Vacation Days (Exempt ONLY)",{"$f":"_xlfn.IFNA(VLOOKUP(CONCATENATE($B$3,B58),'All Data'!$B:$D,3,FALSE),\"No\")","v":"No"},null,null,{"$f":"_xlfn.IFNA(VLOOKUP(CONCATENATE($B$3,B58),'Helpful Hints - All'!$C$1:$D$1019,2,FALSE),\" \")","v":" "}]
[null,"Approver(s)",{"$f":"_xlfn.IFNA(VLOOKUP(CONCATENATE($B$3,B59),'All Data'!$B:$D,3,FALSE),\"No\")","v":"No"},null,null,{"$f":"_xlfn.IFNA(VLOOKUP(CONCATENATE($B$3,B59),'Helpful Hints - All'!$C$1:$D$1019,2,FALSE),\" \")","v":" "}]
[null,"Additional Helpful Information",null,null,null,{"$f":"_xlfn.IFNA(VLOOKUP(CONCATENATE($B$3,B60),'Helpful Hints - All'!$C$1:$D$1019,2,FALSE),\" \")","v":" "}]
[null,"Additional Forms Needed",{"$f":"_xlfn.IFNA(VLOOKUP(CONCATENATE($B$3,B61),'All Data'!$B:$D,3,FALSE),\"No\")","v":"No"},null,null,{"$f":"_xlfn.IFNA(VLOOKUP(CONCATENATE($B$3,B61),'Helpful Hints - All'!$C$1:$D$1019,2,FALSE),\" \")","v":" "},"Communication Stipend FORM","Lump Sum Payment FORM"]
[null,"Comments (If you would like to provide any additional information)",null,null,null,{"$f":"_xlfn.IFNA(VLOOKUP(CONCATENATE($B$3,B62),'Helpful Hints - All'!$C$1:$D$1019,2,FALSE),\" \")","v":" "}]
[]
[]
[]
["Kronos Reporting for Non-Exempt, Union, Non-Union Service, and Temporary Employees"]
[null,"Is a New Report Needed?"]
[null,"Should the employee be added to an existing report?",null,null,null,"Please list query name from the top left of the report"]
[null,"Who should the report be sent to?",null,null,null,"Please list the name(s) of the supervisors who should receive time details for this employee"]
[null,null,null,null,null,{"$f":"_xlfn.IFNA(VLOOKUP(CONCATENATE($B$3,B70),'Helpful Hints - All'!$C$1:$D$1019,2,FALSE),\" \")","v":" "}]
[null,null,null,null,null,{"$f":"_xlfn.IFNA(VLOOKUP(CONCATENATE($B$3,B71),'Helpful Hints - All'!$C$1:$D$1019,2,FALSE),\" \")","v":" "}]
[]
["Next Steps:"]
["1)","Submit to the Finance Center for review and approval",null,"Finance Center will enter the PA Information into PA Smart Form within 2 business days of receiving this information - please allow potential extra time if additional information is needed - the FC will reach out to you if so"]
["2)","Division/Department approver will need to approve the PA in the Smart Form System",null,"This should ideally be completed within 1 business day of receiving notification from the Finance Center"]
["3)","Data is entered into HRMS",null,"Once PA is approved by the Division/Department- The Finance Center will enter the PA Information into HRMS",null,"*New Hire PAs are entered into HRMS within 2 business days of receiving the approved PA           *Termination or Change PAs are entered into HRMS within 3 business days of receiving the approved PA"]
[]
[null,"****Please feel free to contact the FC with ANY questions"]

{"sheet":"Unused Vaca Days Calculations","index":4,"n_rows":9,"n_cols":1,"rows_kept":9,"cut":false,"hidden":false,"merged":[]}
["Unused Vacation Days Calculation (Exempt): "]
["Please enter the number of unused days remaining from this year’s allotment of available days. "]
["For example, a full time person has 22 days available and used 10 so enter 12 as unused*. "]
["A part time person’s days need to be based on their scheduled hours per week. If a person’s scheduled hours per week is 10, the policy allots them 22, 2 hour days (10 hours a week over 5 work days = 2 hours per day). "]
["If, based on their actual work schedule, they used 24 hours then enter 10 days unused (44 total hours available (22 days * 2 hours per day) – 24 hours used = 20 hours. 20 hours across 2 hour days (20 hours/ 2 hours per day) = 10 days). "]
[]
[]
[]
["*Accrued time should not be added to this number. If a person borrowed against accrued time, please enter 0 unused days and note the number of borrowed days in the comments section."]

{"sheet":"Partial Month Calculation","index":5,"n_rows":11,"n_cols":4,"rows_kept":11,"cut":false,"hidden":false,"merged":[]}
["Partial Month Calculation (for Graduate Students Only):"]
["The calculation for a partial month is the full monthly amount divided by the number of working days per month (Monday - Friday including holidays) "]
["Multiply the answer by the number of workings days being paid to obtain the pay amount for the partial month. "]
["(Ex. using a start date of June 16, 2015 - 2351.67 / 22 = 106.89 * 11 = 1175.83)",null,"Enter Information in Yellow to Calculate"]
[]
[null,null,"Monthly Amount",3000]
[null,null,"Number of working days per month",20]
[null,null,"Number of working days being paid",10]
[]
[]
[null,null,"Partial Month Amount to enter",{"$f":"(D6/D7)*D8","v":1500}]

{"sheet":"All Data","index":6,"n_rows":434,"n_cols":8,"rows_kept":434,"cut":false,"hidden":false,"merged":[]}
["Action","Action+Category","Category","Required?"]
["Account Change",{"$f":"CONCATENATE(A2,C2)","v":"Account ChangeApprover(s)"},"Approver(s)","Yes"]
["Account Change","Account ChangeAssignment #","Assignment #","Yes"]
["Account Change","Account ChangeBegin Date","Begin Date","Yes"]
["Account Change","Account ChangeDart ID","Dart ID","Yes"]
["Account Change","Account ChangeEffective Date","Effective Date","Yes"]
["Account Change","Account ChangeFirst Name","First Name","Yes"]
["Account Change","Account ChangeFunding Information (GL or OGA)","Funding Information (GL or OGA)","Yes"]
["Account Change","Account ChangeiExpense Default Account","iExpense Default Account","Yes"]
["Account Change","Account ChangeIs this a graduate student?","Is this a graduate student?","Yes"]
["Account Change","Account ChangeLast Name","Last Name","Yes"]
["Account Change","Account ChangeMiddle Initial","Middle Initial","Yes"]
["Account Change","Account ChangeOrganization","Organization","Yes"]
["Account Change","Account ChangePeople Group","People Group","Yes"]
["Account Change","Account ChangeTitle","Title","Yes"]
["Account Change","Account ChangeWork Arrangement","Work Arrangement","Yes"]
["Additional Assignment","Additional AssignmentApprover(s)","Approver(s)","Yes"]
["Additional Assignment","Additional AssignmentBegin Date","Begin Date","Yes"]
["Additional Assignment","Additional AssignmentCrew Code","Crew Code","Yes"]
["Additional Assignment","Additional AssignmentDart ID","Dart ID","Yes"]
["Additional Assignment","Additional AssignmentDoes Union Employee receive a footwear stipend?","Does Union Employee receive a footwear stipend?","Yes, If Applicable"]
["Additional Assignment","Additional AssignmentEffective Date","Effective Date","Yes"]
["Additional Assignment","Additional AssignmentEnd Date","End Date","Yes, If Term/Temp"]
["Additional Assignment","Additional AssignmentFirst Name","First Name","Yes"]
["Additional Assignment","Additional AssignmentFTE","FTE","Yes, If Applicable"]
["Additional Assignment","Additional AssignmentFunding Information (GL or OGA)","Funding Information (GL or OGA)","Yes"]
["Additional Assignment","Additional AssignmentGrade","Grade","Yes"]
["Additional Assignment","Additional AssignmentGrade (Union)","Grade (Union)","Yes"]
["Additional Assignment","Additional AssignmentHours/Week","Hours/Week","Yes"]
["Additional Assignment","Additional AssignmentIs this a graduate student?","Is this a graduate student?","Yes"]
["Additional Assignment","Additional AssignmentLast Name","Last Name","Yes"]
["Additional Assignment","Additional AssignmentMiddle Initial","Middle Initial","Yes"]
["Additional Assignment","Additional AssignmentMonths/Year","Months/Year","Yes"]
["Additional Assignment","Additional AssignmentOffice Location (Building & Room)","Office Location (Building & Room)","Yes"]
["Additional Assignment","Additional AssignmentOrganization","Organization","Yes"]
["Additional Assignment","Additional AssignmentPay Amount","Pay Amount","Yes"]
["Additional Assignment","Additional AssignmentPayment Period","Payment Period","Yes"]
["Additional Assignment","Additional AssignmentPayment Type","Payment Type","Yes"]
["Additional Assignment","Additional AssignmentPeople Group","People Group","Yes"]
["Additional Assignment","Additional AssignmentPosition Number","Position Number","Yes"]
["Additional Assignment","Additional AssignmentPostdoc","Postdoc","Yes"]
["Additional Assignment","Additional AssignmentRegular or Temporary","Regular or Temporary","Yes"]
["Additional Assignment","Additional AssignmentSalary","Salary","Yes"]
["Additional Assignment","Additional AssignmentSupervisor","Supervisor","Yes"]
["Additional Assignment","Additional AssignmentTimekeeping Location","Timekeeping Location","Yes"]
["Additional Assignment","Additional AssignmentTitle","Title","Yes"]
["Additional Assignment","Additional AssignmentWork Arrangement","Work Arrangement","Yes"]
["Additional Payments","Additional PaymentsAdditional Forms Needed","Additional Forms Needed","Yes, If Applicable"]
["Additional Payments","Additional PaymentsApproval Info","Approval Info","Yes"]
["Additional Payments","Additional PaymentsApprover(s)","Approver(s)","Yes"]
["Additional Payments","Additional PaymentsBegin Date","Begin Date","Yes"]
["Additional Payments","Additional PaymentsDart ID","Dart ID","Yes"]
["Additional Payments","Additional PaymentsDoes Union Employee receive a footwear stipend?","Does Union Employee receive a footwear stipend?","Yes, If Applicable"]
["Additional Payments","Additional PaymentsEffective Date","Effective Date","Yes"]
["Additional Payments","Additional PaymentsEnd Date","End Date","Yes"]
["Additional Payments","Additional PaymentsFirst Name","First Name","Yes"]
["Additional Payments","Additional PaymentsFunding Information (GL or OGA)","Funding Information (GL or OGA)","Yes"]
["Additional Payments","Additional PaymentsIs this a graduate student?","Is this a graduate student?","Yes"]
["Additional Payments","Additional PaymentsLast Name","Last Name","Yes"]
["Additional Payments","Additional PaymentsMiddle Initial","Middle Initial","Yes"]
["Additional Payments","Additional PaymentsOffice Location (Building & Room)","Office Location (Building & Room)","Yes"]
["Additional Payments","Additional PaymentsOrganization","Organization","Yes"]
["Additional Payments","Additional PaymentsPay Amount","Pay Amount","Yes"]
["Additional Payments","Additional PaymentsPayment Period","Payment Period","Yes"]
["Additional Payments","Additional PaymentsPayment Type","Payment Type","Yes"]
["Additional Payments",{"$f":"CONCATENATE(A66,C66)","v":"Additional PaymentsPeople Group"},"People Group","Yes"]
["Additional Payments","Additional PaymentsReason - Other ","Reason - Other ","Yes"]
["Additional Payments","Additional PaymentsRegular or Temporary","Regular or Temporary","Yes"]
["Additional Payments","Additional PaymentsWork Arrangement","Work Arrangement","Yes"]
["End Assignment","End AssignmentApprover(s)","Approver(s)","Yes"]
["End Assignment","End AssignmentAssignment #","Assignment #","Yes"]
["End Assignment","End AssignmentDart ID","Dart ID","Yes"]
["End Assignment","End AssignmentEffective Date","Effective Date","Yes"]
["End Assignment","End AssignmentEnd Date","End Date","Yes"]
["End Assignment","End AssignmentFirst Name","First Name","Yes"]
["End Assignment","End AssignmentIs this a graduate student?","Is this a graduate student?","Yes"]
["End Assignment","End AssignmentLast Name","Last Name","Yes"]
["End Assignment","End AssignmentMiddle Initial","Middle Initial","Yes"]
["End Assignment","End AssignmentOrganization","Organization","Yes"]
["End Assignment","End AssignmentPeople Group","People Group","Yes"]
["End Assignment","End AssignmentPosition Number","Position Number","Yes"]
["End Assignment","End AssignmentRegular or Temporary","Regular or Temporary","Yes"]
["End Assignment","End AssignmentTitle","Title","Yes"]
["End Assignment","End AssignmentWork Arrangement","Work Arrangement","Yes"]
["FTE Change (Faculty, Research Assoc, or Fellow)","FTE Change (Faculty, Research Assoc, or Fellow)Approver(s)","Approver(s)","Yes"]
["FTE Change (Faculty, Research Assoc, or Fellow)","FTE Change (Faculty, Research Assoc, or Fellow)Assignment #","Assignment #","Yes"]
["FTE Change (Faculty, Research Assoc, or Fellow)","FTE Change (Faculty, Research Assoc, or Fellow)Begin Date","Begin Date","Yes"]
["FTE Change (Faculty, Research Assoc, or Fellow)","FTE Change (Faculty, Research Assoc, or Fellow)Dart ID","Dart ID","Yes"]
["FTE Change (Faculty, Research Assoc, or Fellow)","FTE Change (Faculty, Research Assoc, or Fellow)Effective Date","Effective Date","Yes"]
["FTE Change (Faculty, Research Assoc, or Fellow)","FTE Change (Faculty, Research Assoc, or Fellow)First Name","First Name","Yes"]
["FTE Change (Faculty, Research Assoc, or Fellow)","FTE Change (Faculty, Research Assoc, or Fellow)FTE","FTE","Yes"]
["FTE Change (Faculty, Research Assoc, or Fellow)","FTE Change (Faculty, Research Assoc, or Fellow)Hours/Week","Hours/Week","Yes"]
["FTE Change (Faculty, Research Assoc, or Fellow)","FTE Change (Faculty, Research Assoc, or Fellow)Is this a graduate student?","Is this a graduate student?","Yes"]
["FTE Change (Faculty, Research Assoc, or Fellow)","FTE Change (Faculty, Research Assoc, or Fellow)Last Name","Last Name","Yes"]
["FTE Change (Faculty, Research Assoc, or Fellow)","FTE Change (Faculty, Research Assoc, or Fellow)Middle Initial","Middle Initial","Yes"]
["FTE Change (Faculty, Research Assoc, or Fellow)","FTE Change (Faculty, Research Assoc, or Fellow)Months/Year","Months/Year","Yes"]
["FTE Change (Faculty, Research Assoc, or Fellow)","FTE Change (Faculty, Research Assoc, or Fellow)Organization","Organization","Yes"]
["FTE Change (Faculty, Research Assoc, or Fellow)","FTE Change (Faculty, Research Assoc, or Fellow)Pay Amount","Pay Amount","Yes"]
["FTE Change (Faculty, Research Assoc, or Fellow)","FTE Change (Faculty, Research Assoc, or Fellow)Payment Period","Payment Period","Yes"]
["FTE Change (Faculty, Research Assoc, or Fellow)","FTE Change (Faculty, Research Assoc, or Fellow)Payment Type","Payment Type","Yes"]
["FTE Change (Faculty, Research Assoc, or Fellow)","FTE Change (Faculty, Research Assoc, or Fellow)People Group","People Group","Yes"]
["FTE Change (Faculty, Research Assoc, or Fellow)","FTE Change (Faculty, Research Assoc, or Fellow)Position Number","Position Number","Yes"]
["FTE Change (Faculty, Research Assoc, or Fellow)","FTE Change (Faculty, Research Assoc, or Fellow)Title","Title","Yes"]
["FTE Change (Faculty, Research Assoc, or Fellow)","FTE Change (Faculty, Research Assoc, or Fellow)Work Arrangement","Work Arrangement","Yes"]
["Grade Change ","Grade Change Work Arrangement","Work Arrangement","Yes"]
["Grade Change","Grade ChangeApprover(s)","Approver(s)","Yes"]
["Grade Change","Grade ChangeAssignment #","Assignment #","Yes"]
["Grade Change","Grade ChangeBegin Date","Begin Date","Yes"]
["Grade Change","Grade ChangeCrew Code","Crew Code","Yes"]
["Grade Change","Grade ChangeDart ID","Dart ID","Yes"]
["Grade Change","Grade ChangeEffective Date","Effective Date","Yes"]
["Grade Change","Grade ChangeFirst Name","First Name","Yes"]
["Grade Change","Grade ChangeFunding Information (GL or OGA)","Funding Information (GL or OGA)","Yes"]
["Grade Change","Grade ChangeGrade (Union)","Grade (Union)","Yes"]
["Grade Change","Grade ChangeIs this a Graduate Student?","Is this a Graduate Student?","Yes"]
["Grade Change","Grade ChangeLast Name","Last Name","Yes"]
["Grade Change","Grade ChangeMiddle Initial","Middle Initial","Yes"]
["Grade Change","Grade ChangeOrganization","Organization","Yes"]
["Grade Change","Grade ChangePay Amount","Pay Amount","Yes"]
["Grade Change","Grade ChangePayment Period","Payment Period","Yes"]
["Grade Change","Grade ChangePayment Type","Payment Type","Yes"]
["Grade Change","Grade ChangePeople Group","People Group","Yes"]
["Grade Change","Grade ChangePosition Number","Position Number","Yes"]
["Grade Change","Grade ChangeTitle","Title","Yes"]
["Hours Change","Hours ChangeApprover(s)","Approver(s)","Yes"]
["Hours Change","Hours ChangeAssignment #","Assignment #","Yes"]
["Hours Change","Hours ChangeBegin Date","Begin Date","Yes"]
["Hours Change","Hours ChangeDart ID","Dart ID","Yes"]
["Hours Change","Hours ChangeEffective Date","Effective Date","Yes"]
["Hours Change",{"$f":"CONCATENATE(A130,C130)","v":"Hours ChangeFirst Name"},"First Name","Yes"]
["Hours Change","Hours ChangeFTE","FTE","Yes, If Applicable"]
["Hours Change","Hours ChangeHours/Week","Hours/Week","Yes"]
["Hours Change","Hours ChangeIs this a graduate student?","Is this a graduate student?","Yes"]
["Hours Change","Hours ChangeLast Name","Last Name","Yes"]
["Hours Change","Hours ChangeMiddle Initial","Middle Initial","Yes"]
["Hours Change","Hours ChangeMonths/Year","Months/Year","Yes"]
["Hours Change","Hours ChangeOrganization","Organization","Yes"]
["Hours Change","Hours ChangePay Amount","Pay Amount","Yes"]
["Hours Change","Hours ChangePayment Period","Payment Period","Yes"]
["Hours Change","Hours ChangePayment Type","Payment Type","Yes"]
["Hours Change","Hours ChangePeople Group","People Group","Yes"]
["Hours Change","Hours ChangePosition Number","Position Number","Yes"]
["Hours Change","Hours ChangeRegular or Temporary","Regular or Temporary","Yes"]
["Hours Change","Hours ChangeTitle","Title","Yes"]
["Hours Change","Hours ChangeWork Arrangement","Work Arrangement","Yes"]
["New Hire","New HireApprover(s)","Approver(s)","Yes"]
["New Hire","New HireBegin Date","Begin Date","Yes"]
["New Hire","New HireCitizenship","Citizenship","Yes"]
["New Hire","New HireCity, State & Zip","City, State & Zip","Yes"]
["New Hire","New HireCrew Code","Crew Code","Yes, If Applicable"]
["New Hire","New HireDate of Birth","Date of Birth","Yes"]
["New Hire","New HireDoes Union Employee receive a footwear stipend?","Does Union Employee receive a footwear stipend?","Yes, If Applicable"]
["New Hire","New HireEffective Date","Effective Date","Yes"]
["New Hire","New HireEmail (Personal Non Dartmouth)","Email (Personal Non Dartmouth)","Yes"]
["New Hire","New HireEnd Date","End Date","Yes, If Term/Temp"]
["New Hire","New HireFirst Name","First Name","Yes"]
["New Hire","New HireFTE","FTE","Yes, If Applicable"]
["New Hire","New HireFunding Information (GL or OGA)","Funding Information (GL or OGA)","Yes"]
["New Hire","New HireGender","Gender","Yes"]
["New Hire","New HireGrade (Union)","Grade (Union)","Yes, If Applicable"]
["New Hire","New HireHinman Box","Hinman Box","Yes"]
["New Hire","New HireHours/Week","Hours/Week","Yes"]
["New Hire","New HireiExpense default account","iExpense default account","Yes"]
["New Hire","New HireIs this a graduate student?","Is this a graduate student?","Yes"]
["New Hire","New HireLast Name","Last Name","Yes"]
["New Hire","New HireLegal Mailing Address","Legal Mailing Address","Yes"]
["New Hire","New HireLegal Residence Address (No PO Boxes)","Legal Residence Address (No PO Boxes)","Yes"]
["New Hire","New HireMiddle Initial","Middle Initial","Yes"]
["New Hire","New HireMonths/Year","Months/Year","Yes"]
["New Hire","New HireOffice Location (Building & Room)","Office Location (Building & Room)","Yes"]
["New Hire","New HireOrganization","Organization","Yes"]
["New Hire","New HirePay Amount","Pay Amount","Yes"]
["New Hire","New HirePayment Period","Payment Period","Yes"]
["New Hire","New HirePayment Type","Payment Type","Yes"]
["New Hire","New HirePeople Group","People Group","Yes"]
["New Hire","New HirePhone Number","Phone Number","Yes"]
["New Hire","New HirePosition Number","Position Number","Yes"]
["New Hire","New HirePostdoc","Postdoc","Yes"]
["New Hire","New HirePreferred First Name","Preferred First Name","Yes"]
["New Hire","New HirePreferred Last Name","Preferred Last Name","Yes"]
["New Hire","New HirePreferred Middle Initial","Preferred Middle Initial","Yes"]
["New Hire","New HireRegular or Temporary","Regular or Temporary","Yes"]
["New Hire","New HireSocial Security Number","Social Security Number","Yes"]
["New Hire","New HireSupervisor","Supervisor","Yes"]
["New Hire","New HireTimekeeping Location","Timekeeping Location","Yes"]
["New Hire","New HireTitle","Title","Yes"]
["New Hire","New HireVisa Type","Visa Type","Yes, if not US"]
["New Hire","New HireVisa Type (if not US Cititzen)","Visa Type (if not US Cititzen)","Yes, if not US"]
["New Hire","New HireWork Arrangement","Work Arrangement","Yes"]
["Organization Change","Organization ChangeApprover(s)","Approver(s)","Yes"]
["Organization Change","Organization ChangeAssignment #","Assignment #","Yes"]
["Organization Change","Organization ChangeBegin Date","Begin Date","Yes"]
["Organization Change","Organization ChangeDart ID","Dart ID","Yes"]
["Organization Change",{"$f":"CONCATENATE(A194,C194)","v":"Organization ChangeEffective Date"},"Effective Date","Yes"]
["Organization Change","Organization ChangeFirst Name","First Name","Yes"]
["Organization Change","Organization ChangeFunding Information (GL or OGA)","Funding Information (GL or OGA)","Yes"]
["Organization Change","Organization ChangeHinman Box","Hinman Box","Yes"]
["Organization Change","Organization ChangeiExpense Default Account","iExpense Default Account","Yes"]
["Organization Change","Organization ChangeIs this a graduate student?","Is this a graduate student?","Yes"]
["Organization Change","Organization ChangeLast Name","Last Name","Yes"]
["Organization Change","Organization ChangeMiddle Initial","Middle Initial","Yes"]
["Organization Change","Organization ChangeOffice Location (Building & Room)","Office Location (Building & Room)","Yes"]
["Organization Change","Organization ChangeOrganization","Organization","Yes"]
["Organization Change","Organization ChangePeople Group","People Group","Yes"]
["Organization Change","Organization ChangePosition Number","Position Number","Yes"]
["Organization Change","Organization ChangeSupervisor","Supervisor","Yes"]
["Organization Change","Organization ChangeTimekeeping Location","Timekeeping Location","Yes"]
["Organization Change","Organization ChangeTitle","Title","Yes"]
["Organization Change","Organization ChangeWork Arrangement","Work Arrangement","Yes"]
["Promotion","PromotionApprover(s)","Approver(s)","Yes"]
["Promotion","PromotionAssignment #","Assignment #","Yes"]
["Promotion","PromotionBegin Date","Begin Date","Yes"]
["Promotion","PromotionCrew Code","Crew Code","Yes, if changing"]
["Promotion","PromotionDart ID","Dart ID","Yes"]
["Promotion","PromotionDoes Union Employee receive a footwear stipend?","Does Union Employee receive a footwear stipend?","Yes, If Applicable"]
["Promotion","PromotionEffective Date","Effective Date","Yes"]
["Promotion","PromotionFirst Name","First Name","Yes"]
["Promotion","PromotionFTE","FTE","Yes, if changing"]
["Promotion","PromotionFunding Information (GL or OGA)","Funding Information (GL or OGA)","Yes, if changing"]
["Promotion","PromotionGrade","Grade","Yes, if changing"]
["Promotion","PromotionGrade (Union)","Grade (Union)","Yes, if changing"]
["Promotion","PromotionHours/Week","Hours/Week","Yes, if changing"]
["Promotion","PromotioniExpense default account","iExpense default account","Yes"]
["Promotion","PromotionIs this a graduate student?","Is this a graduate student?","Yes"]
["Promotion","PromotionLast Name","Last Name","Yes"]
["Promotion","PromotionMiddle Initial","Middle Initial","Yes"]
["Promotion","PromotionMonths/Year","Months/Year","Yes, if changing"]
["Promotion","PromotionOffice Location (Building & Room)","Office Location (Building & Room)","Yes"]
["Promotion","PromotionOrganization","Organization","Yes"]
["Promotion","PromotionPay Amount","Pay Amount","Yes"]
["Promotion","PromotionPayment Period","Payment Period","Yes"]
["Promotion","PromotionPayment Type","Payment Type","Yes"]
["Promotion","PromotionPeople Group","People Group","Yes"]
["Promotion","PromotionPosition Number","Position Number","Yes"]
["Promotion","PromotionRegular or Temporary","Regular or Temporary","Yes"]
["Promotion","PromotionSupervisor","Supervisor","Yes, if changing"]
["Promotion","PromotionTimekeeping Location","Timekeeping Location","Yes"]
["Promotion","PromotionTitle","Title","Yes"]
["Promotion","PromotionWork Arrangement","Work Arrangement","Yes"]
["Re-Hire","Re-HireApprover(s)","Approver(s)","Yes",null,null,null,"Account Change"]
["Re-Hire","Re-HireBegin Date","Begin Date","Yes",null,null,null,"Additional Assignment"]
["Re-Hire","Re-HireCitizenship","Citizenship","Yes",null,null,null,"Additional Payments"]
["Re-Hire","Re-HireCity, State & Zip","City, State & Zip","Yes",null,null,null,"End Assignment"]
["Re-Hire","Re-HireCrew Code","Crew Code","Yes, If Applicable",null,null,null,"FTE Change (Faculty, Research Assoc, or Fellow)"]
["Re-Hire","Re-HireDart ID","Dart ID","Yes",null,null,null,"Hours Change"]
["Re-Hire","Re-HireDoes Union Employee receive a footwear stipend?","Does Union Employee receive a footwear stipend?","Yes, If Applicable",null,null,null,"New Hire"]
["Re-Hire","Re-HireEffective Date","Effective Date","Yes",null,null,null,"Organization Change"]
["Re-Hire","Re-HireEmail (Personal Non Dartmouth)","Email (Personal Non Dartmouth)","Yes",null,null,null,"Promotion"]
["Re-Hire","Re-HireEnd Date","End Date","Yes, If Term/Temp",null,null,null,"Re-Hire"]
["Re-Hire","Re-HireFirst Name","First Name","Yes",null,null,null,"Revised Pay Rate"]
["Re-Hire","Re-HireFTE","FTE","Yes, If Applicable",null,null,null,"Status Change"]
["Re-Hire","Re-HireFunding Information (GL or OGA)","Funding Information (GL or OGA)","Yes",null,null,null,"Termination/Retirement"]
["Re-Hire","Re-HireGender","Gender","Yes",null,null,null,"Title Change"]
["Re-Hire","Re-HireGrade","Grade","Yes",null,null,null,"Transfer From"]
["Re-Hire","Re-HireGrade (Union)","Grade (Union)","Yes, If Applicable",null,null,null,"Transfer To"]
["Re-Hire","Re-HireHinman Box","Hinman Box","Yes",null,null,null,"Grade Change "]
["Re-Hire","Re-HireHours/Week","Hours/Week","Yes",null,null,null,"Special Rate"]
["Re-Hire",{"$f":"CONCATENATE(A258,C258)","v":"Re-HireiExpense default account"},"iExpense default account","Yes"]
["Re-Hire","Re-HireIs this a graduate student?","Is this a graduate student?","Yes"]
["Re-Hire","Re-HireLast Name","Last Name","Yes"]
["Re-Hire","Re-HireLegal Mailing Address","Legal Mailing Address","Yes"]
["Re-Hire","Re-HireLegal Residence Address (No PO Boxes)","Legal Residence Address (No PO Boxes)","Yes"]
["Re-Hire","Re-HireMiddle Initial","Middle Initial","Yes"]
["Re-Hire","Re-HireMonths/Year","Months/Year","Yes"]
["Re-Hire","Re-HireOffice Location (Building & Room)","Office Location (Building & Room)","Yes"]
["Re-Hire","Re-HireOrganization","Organization","Yes"]
["Re-Hire","Re-HirePay Amount","Pay Amount","Yes"]
["Re-Hire","Re-HirePayment Period","Payment Period","Yes"]
["Re-Hire","Re-HirePayment Type","Payment Type","Yes"]
["Re-Hire","Re-HirePeople Group","People Group","Yes"]
["Re-Hire","Re-HirePhone Number","Phone Number","Yes"]
["Re-Hire","Re-HirePosition Number","Position Number","Yes"]
["Re-Hire","Re-HirePostdoc","Postdoc","Yes"]
["Re-Hire","Re-HirePreferred First Name","Preferred First Name","Yes"]
["Re-Hire","Re-HirePreferred Last Name","Preferred Last Name","Yes"]
["Re-Hire","Re-HirePreferred Middle Initial","Preferred Middle Initial","Yes"]
["Re-Hire","Re-HireRegular or Temporary","Regular or Temporary","Yes"]
["Re-Hire","Re-HireSupervisor","Supervisor","Yes"]
["Re-Hire","Re-HireTimekeeping Location","Timekeeping Location","Yes"]
["Re-Hire","Re-HireTitle","Title","Yes"]
["Re-Hire","Re-HireVisa Type","Visa Type","Yes, if not US"]
["Re-Hire","Re-HireVisa Type (if not US Cititzen)","Visa Type (if not US Cititzen)","Yes, if not US"]
["Re-Hire","Re-HireWork Arrangement","Work Arrangement","Yes"]
["Revised Pay Rate","Revised Pay RateApprover(s)","Approver(s)","Yes"]
["Revised Pay Rate","Revised Pay RateAssignment #","Assignment #","Yes"]
["Revised Pay Rate","Revised Pay RateBegin Date","Begin Date","Yes"]
["Revised Pay Rate","Revised Pay RateDart ID","Dart ID","Yes"]
["Revised Pay Rate","Revised Pay RateEffective Date","Effective Date","Yes"]
["Revised Pay Rate","Revised Pay RateFirst Name","First Name","Yes"]
["Revised Pay Rate","Revised Pay RateFunding Information (GL or OGA)","Funding Information (GL or OGA)","Yes"]
["Revised Pay Rate","Revised Pay RateIs this a graduate student?","Is this a graduate student?","Yes"]
["Revised Pay Rate","Revised Pay RateLast Name","Last Name","Yes"]
["Revised Pay Rate","Revised Pay RateMiddle Initial","Middle Initial","Yes"]
["Revised Pay Rate","Revised Pay RateOrganization","Organization","Yes"]
["Revised Pay Rate","Revised Pay RatePay Amount","Pay Amount","Yes"]
["Revised Pay Rate","Revised Pay RatePayment Period","Payment Period","Yes"]
["Revised Pay Rate","Revised Pay RatePayment Type","Payment Type","Yes"]
["Revised Pay Rate","Revised Pay RatePeople Group","People Group","Yes"]
["Revised Pay Rate","Revised Pay RatePosition Number","Position Number","Yes"]
["Revised Pay Rate","Revised Pay RateTitle","Title","Yes"]
["Revised Pay Rate","Revised Pay RateWork Arrangement","Work Arrangement","Yes"]
["Special Rate","Special RateApprover(s)","Approver(s)","Yes"]
["Special Rate","Special RateBegin Date","Begin Date","Yes"]
["Special Rate","Special RateDart ID","Dart ID","Yes"]
["Special Rate","Special RateEffective Date","Effective Date","Yes"]
["Special Rate","Special RateFirst Name","First Name","Yes"]
["Special Rate","Special RateFunding Information (GL or OGA)","Funding Information (GL or OGA)","Yes"]
["Special Rate","Special RateIs this a graduate student?","Is this a graduate student?","Yes"]
["Special Rate","Special RateLast Name","Last Name","Yes"]
["Special Rate","Special RateMiddle Initial","Middle Initial","Yes"]
["Special Rate","Special RateOrganization","Organization","Yes"]
["Special Rate","Special RatePay Amount","Pay Amount","Yes"]
["Special Rate","Special RatePayment Period","Payment Period","Yes"]
["Special Rate","Special RatePayment Type","Payment Type","Yes"]
["Special Rate","Special RatePeople Group","People Group","Yes"]
["Special Rate","Special RatePosition Number","Position Number","Yes"]
["Special Rate","Special RateSupervisor","Supervisor","Yes"]
["Special Rate","Special RateTitle","Title","Yes"]
["Special Rate","Special RateWork Arrangement","Work Arrangement","Yes"]
["Status Change","Status ChangeApprover(s)","Approver(s)","Yes"]
["Status Change","Status ChangeAssignment #","Assignment #","Yes"]
["Status Change",{"$f":"CONCATENATE(A322,C322)","v":"Status ChangeBegin Date"},"Begin Date","Yes"]
["Status Change","Status ChangeDart ID","Dart ID","Yes"]
["Status Change","Status ChangeDoes Union Employee receive a footwear stipend?","Does Union Employee receive a footwear stipend?","Yes, If Applicable"]
["Status Change","Status ChangeEffective Date","Effective Date","Yes"]
["Status Change","Status ChangeFirst Name","First Name","Yes"]
["Status Change","Status ChangeFTE","FTE","Yes, if changing"]
["Status Change","Status ChangeFunding Information (GL or OGA)","Funding Information (GL or OGA)","Yes"]
["Status Change","Status ChangeGrade","Grade","Yes, if changing"]
["Status Change","Status ChangeHours/Week","Hours/Week","Yes"]
["Status Change","Status ChangeiExpense Default Account","iExpense Default Account","Yes, if changing"]
["Status Change","Status ChangeIs this a graduate student?","Is this a graduate student?","Yes"]
["Status Change","Status ChangeLast Name","Last Name","Yes"]
["Status Change","Status ChangeMiddle Initial","Middle Initial","Yes"]
["Status Change","Status ChangeMonths/Year","Months/Year","Yes"]
["Status Change","Status ChangeOffice Location (Building & Room)","Office Location (Building & Room)","Yes, if changing"]
["Status Change","Status ChangeOrganization","Organization","Yes"]
["Status Change","Status ChangePay Amount","Pay Amount","Yes"]
["Status Change","Status ChangePayment Period","Payment Period","Yes"]
["Status Change","Status ChangePayment Type","Payment Type","Yes"]
["Status Change","Status ChangePeople Group","People Group","Yes"]
["Status Change","Status ChangePosition Number","Position Number","Yes"]
["Status Change","Status ChangeRegular or Temporary","Regular or Temporary","Yes"]
["Status Change","Status ChangeSupervisor","Supervisor","Yes, if changing"]
["Status Change","Status ChangeTimekeeping Location","Timekeeping Location","Yes, if changing"]
["Status Change","Status ChangeTitle","Title","Yes"]
["Status Change","Status ChangeUnused Vacation Days (Exempt ONLY)","Unused Vacation Days (Exempt ONLY)","Yes, If Applicable"]
["Status Change","Status ChangeWork Arrangement","Work Arrangement","Yes"]
["Termination/Retirement","Termination/RetirementApprover(s)","Approver(s)","Yes"]
["Termination/Retirement","Termination/RetirementAssignment #","Assignment #","Yes"]
["Termination/Retirement","Termination/RetirementDart ID","Dart ID","Yes"]
["Termination/Retirement","Termination/RetirementEffective Date","Effective Date","Yes"]
["Termination/Retirement","Termination/RetirementEnd Date","End Date","Yes"]
["Termination/Retirement","Termination/RetirementFirst Name","First Name","Yes"]
["Termination/Retirement","Termination/RetirementForwarding Address","Forwarding Address","Yes"]
["Termination/Retirement","Termination/RetirementForwarding Address City, State & Zip","Forwarding Address City, State & Zip","Yes"]
["Termination/Retirement","Termination/RetirementIs this a graduate student?","Is this a graduate student?","Yes"]
["Termination/Retirement","Termination/RetirementLast Day Worked","Last Day Worked","Yes"]
["Termination/Retirement","Termination/RetirementLast Name","Last Name","Yes"]
["Termination/Retirement","Termination/RetirementMiddle Initial","Middle Initial","Yes"]
["Termination/Retirement","Termination/RetirementOrganization","Organization","Yes"]
["Termination/Retirement","Termination/RetirementPeople Group","People Group","Yes"]
["Termination/Retirement","Termination/RetirementPosition Number","Position Number","Yes"]
["Termination/Retirement","Termination/RetirementReason - Other","Reason - Other","Yes, If Applicable"]
["Termination/Retirement","Termination/RetirementReason for Termination","Reason for Termination","Yes"]
["Termination/Retirement","Termination/RetirementResignation Letter Received?","Resignation Letter Received?","Yes"]
["Termination/Retirement","Termination/RetirementTitle","Title","Yes"]
["Termination/Retirement","Termination/RetirementUnused Vacation Days (Exempt ONLY)","Unused Vacation Days (Exempt ONLY)","Yes"]
["Termination/Retirement","Termination/RetirementUnused Vacation Days (Exempt)","Unused Vacation Days (Exempt)","Yes"]
["Termination/Retirement","Termination/RetirementWork Arrangement","Work Arrangement","Yes"]
["Title Change","Title ChangeApprover(s)","Approver(s)","Yes"]
["Title Change","Title ChangeAssignment #","Assignment #","Yes"]
["Title Change","Title ChangeBegin Date","Begin Date","Yes"]
["Title Change","Title ChangeCrew Code","Crew Code","Yes, if changing"]
["Title Change","Title ChangeDart ID","Dart ID","Yes"]
["Title Change","Title ChangeEffective Date","Effective Date","Yes"]
["Title Change","Title ChangeFirst Name","First Name","Yes"]
["Title Change","Title ChangeGrade (Union)","Grade (Union)","Yes, if changing"]
["Title Change","Title ChangeIs this a graduate student?","Is this a graduate student?","Yes"]
["Title Change","Title ChangeLast Name","Last Name","Yes"]
["Title Change","Title ChangeMiddle Initial","Middle Initial","Yes"]
["Title Change","Title ChangeOrganization","Organization","Yes"]
["Title Change","Title ChangePeople Group","People Group","Yes"]
["Title Change","Title ChangePosition Number","Position Number","Yes"]
["Title Change","Title ChangeTitle","Title","Yes"]
["Title Change",{"$f":"CONCATENATE(A386,C386)","v":"Title ChangeWork Arrangement"},"Work Arrangement","Yes"]
["Transfer From","Transfer FromApprover(s)","Approver(s)","Yes"]
["Transfer From","Transfer FromAssignment #","Assignment #","Yes"]
["Transfer From","Transfer FromDart ID","Dart ID","Yes"]
["Transfer From","Transfer FromEffective Date","Effective Date","Yes"]
["Transfer From","Transfer FromEnd Date","End Date","Yes"]
["Transfer From","Transfer FromFirst Name","First Name","Yes"]
["Transfer From","Transfer FromIs this a graduate student?","Is this a graduate student?","Yes"]
["Transfer From","Transfer FromLast Day Worked","Last Day Worked","Yes"]
["Transfer From","Transfer FromLast Name","Last Name","Yes"]
["Transfer From","Transfer FromMiddle Initial","Middle Initial","Yes"]
["Transfer From","Transfer FromOrganization","Organization","Yes"]
["Transfer From","Transfer FromPeople Group","People Group","Yes"]
["Transfer From","Transfer FromPosition Number","Position Number","Yes"]
["Transfer From","Transfer FromRegular or Temporary","Regular or Temporary","Yes"]
["Transfer From","Transfer FromTitle","Title","Yes"]
["Transfer From","Transfer FromWork Arrangement","Work Arrangement","Yes"]
["Transfer To","Transfer ToApprover(s)","Approver(s)","Yes"]
["Transfer To","Transfer ToBegin Date","Begin Date","Yes"]
["Transfer To","Transfer ToCrew Code","Crew Code","Yes, If Applicable"]
["Transfer To","Transfer ToDart ID","Dart ID","Yes"]
["Transfer To","Transfer ToDoes Union Employee receive a footwear stipend?","Does Union Employee receive a footwear stipend?","Yes, If Applicable"]
["Transfer To","Transfer ToEffective Date","Effective Date","Yes"]
["Transfer To","Transfer ToFirst Name","First Name","Yes"]
["Transfer To","Transfer ToFTE","FTE","Yes, If Applicable"]
["Transfer To","Transfer ToFunding Information (GL or OGA)","Funding Information (GL or OGA)","Yes"]
["Transfer To","Transfer ToGrade","Grade","Yes"]
["Transfer To","Transfer ToGrade (Union)","Grade (Union)","Yes, If Applicable"]
["Transfer To","Transfer ToHinman Box","Hinman Box","Yes"]
["Transfer To","Transfer ToHours/Week","Hours/Week","Yes"]
["Transfer To","Transfer ToiExpense default account","iExpense default account","Yes"]
["Transfer To","Transfer ToIs this a graduate student?","Is this a graduate student?","Yes"]
["Transfer To","Transfer ToLast Name","Last Name","Yes"]
["Transfer To","Transfer ToMiddle Initial","Middle Initial","Yes"]
["Transfer To","Transfer ToMonths/Year","Months/Year","Yes"]
["Transfer To","Transfer ToOffice Location (Building & Room)","Office Location (Building & Room)","Yes"]
["Transfer To","Transfer ToOrganization","Organization","Yes"]
["Transfer To","Transfer ToPay Amount","Pay Amount","Yes"]
["Transfer To","Transfer ToPayment Period","Payment Period","Yes"]
["Transfer To","Transfer ToPayment Type","Payment Type","Yes"]
["Transfer To","Transfer ToPeople Group","People Group","Yes"]
["Transfer To","Transfer ToPosition Number","Position Number","Yes"]
["Transfer To","Transfer ToPostdoc","Postdoc","Yes"]
["Transfer To","Transfer ToRegular or Temporary","Regular or Temporary","Yes"]
["Transfer To","Transfer ToSalary","Salary","Yes"]
["Transfer To","Transfer ToSupervisor","Supervisor","Yes"]
["Transfer To","Transfer ToTimekeeping Location","Timekeeping Location","Yes"]
["Transfer To","Transfer ToTitle","Title","Yes"]
["Transfer To","Transfer ToWork Arrangement","Work Arrangement","Yes"]

{"sheet":"Helpful Hints - All","index":7,"n_rows":243,"n_cols":16384,"rows_kept":243,"cut":false,"hidden":false,"merged":[]}
["Action ","Category","Action+Categ","Helpful Hint"]
["Account Change","Additional Helpful Information",{"$f":"CONCATENATE(A2,B2)","v":"Account ChangeAdditional Helpful Information"},"If this is a staff employee and there is only an account change, process the change via MYLS"]
["Account Change","Approver(s)","Account ChangeApprover(s)","List PA Approver(s) here"]
["Account Change","Begin Date","Account ChangeBegin Date","Should match the Effective Date"]
["Account Change","Comments (If you would like to provide any additional information)","Account ChangeComments (If you would like to provide any additional information)","Enter additional comments here"]
["Account Change","Date of Birth","Account ChangeDate of Birth","New Hires Only - DOBs should be entered in the e-Form or PASF directly in the appropriate listed fields - Never Email this information"]
["Account Change","Effective Date","Account ChangeEffective Date","Action effective date should be the date that the new account should go into effect"]
["Account Change","Funding Information (GL or OGA)","Account ChangeFunding Information (GL or OGA)","New funding information"]
["Account Change","iExpense default account","Account ChangeiExpense default account","GL Accounts Only"]
["Account Change","Last Day Worked","Account ChangeLast Day Worked","For Terminations Only"]
["Account Change","Middle Initial","Account ChangeMiddle Initial","Can leave blank if no middle initial listed in HRMS"]
["Account Change","Social Security Number","Account ChangeSocial Security Number","New Hires Only - SSNs should be entered in the e-Form or PASF directly in the appropriate listed fields - Never Email this information"]
["Account Change","Unused Vacation Days (Exempt ONLY)","Account ChangeUnused Vacation Days (Exempt ONLY)","For Terminations Only"]
["Additional Assignment","Approver(s)","Additional AssignmentApprover(s)","List PA Approver(s) here"]
["Additional Assignment","Begin Date","Additional AssignmentBegin Date","Should match the Effective Date"]
["Additional Assignment","Comments (If you would like to provide any additional information)","Additional AssignmentComments (If you would like to provide any additional information)","Enter additional comments here"]
["Additional Assignment","Crew Code","Additional AssignmentCrew Code","If applicable"]
["Additional Assignment","Date of Birth","Additional AssignmentDate of Birth","New Hires Only - DOBs should be entered in the e-Form or PASF directly in the appropriate listed fields - Never Email this information"]
["Additional Assignment","Effective Date","Additional AssignmentEffective Date","Action effective date needs to be the date that the additional assignment begins"]
["Additional Assignment","End Date","Additional AssignmentEnd Date","At the end of a TERM assignment, a termination PASF should be completed. The Finance Center will complete a termination PA for TEMP positions on this date"]
["Additional Assignment","FTE","Additional AssignmentFTE","This field is required for Faculty, Research Associates (A, B & C) and Fellows.  Hours/week and months/year are used to calculate FTE for Staff"]
["Additional Assignment","Funding Information (GL or OGA)","Additional AssignmentFunding Information (GL or OGA)","If multiple acccounts needed - please list accounts & percentages - must equal 100%"]
["Additional Assignment","Hours/Week","Additional AssignmentHours/Week","Hours are not required for Faculty, Research Associates or Fellows"]
["Additional Assignment","Last Day Worked","Additional AssignmentLast Day Worked","The Finance Center will complete a termination PA for temp positions on this date as well"]
["Additional Assignment","Middle Initial","Additional AssignmentMiddle Initial","Can leave blank if no middle initial listed in HRMS"]
["Additional Assignment","Office Location (Building & Room)","Additional AssignmentOffice Location (Building & Room)","Please make sure to include Room # with Location"]
["Additional Assignment","Payment Type","Additional AssignmentPayment Type","Please add comments in the field below for any payment type listed as \"Other\" or you are not sure which category the request falls under"]
["Additional Assignment","Regular or Temporary","Additional AssignmentRegular or Temporary","Temp assignment with 18.75+ hrs/week needs to be < 9 months.  If 9+ months is used, the temp will earn vacation & sick time."]
["Additional Assignment","Social Security Number","Additional AssignmentSocial Security Number","New Hires Only - SSNs should be entered in the e-Form or PASF directly in the appropriate listed fields - Never Email this information"]
["Additional Assignment","Title",{"$f":"CONCATENATE(A30,B30)","v":"Additional AssignmentTitle"},"If position is in DORR, title needs to match what is in DORR - If not, please reach out to HR."]
["Additional Payments","Additional Helpful Information","Additional PaymentsAdditional Helpful Information","Non-Exempt Lump Sum Payment form must be completed for Non-Exempt employees.  Communication Stipends require a completed and approved Communication Request Stipend with this request"]
["Additional Payments","Approver(s)","Additional PaymentsApprover(s)","List PA Approver(s) here"]
["Additional Payments","Begin Date","Additional PaymentsBegin Date","Should match the Effective Date"]
["Additional Payments","Comments (If you would like to provide any additional information)","Additional PaymentsComments (If you would like to provide any additional information)","Enter additional comments here"]
["Additional Payments","Date of Birth","Additional PaymentsDate of Birth","New Hires Only - DOBs should be entered in the e-Form or PASF directly in the appropriate listed fields - Never Email this information"]
["Additional Payments","Effective Date","Additional PaymentsEffective Date","For work performed - Effective date needs to match 1st day work started.  For Exempt & Non-Exempt One Time Payments - Enter the Friday before the end of the pay period you would like the payment paid out"]
["Additional Payments","Funding Information (GL or OGA)","Additional PaymentsFunding Information (GL or OGA)","If multiple acccounts needed - please list accounts & percentages - must equal 100%"]
["Additional Payments","Last Day Worked","Additional PaymentsLast Day Worked","For Terminations Only"]
["Additional Payments","Middle Initial","Additional PaymentsMiddle Initial","Can leave blank if no middle initial listed in HRMS"]
["Additional Payments","Regular or Temporary","Additional PaymentsRegular or Temporary","To determine employment status, look up the employee in the IRA LD assignment distribution report; refer to category field"]
["Additional Payments","Social Security Number","Additional PaymentsSocial Security Number","New Hires Only - SSNs should be entered in the e-Form or PASF directly in the appropriate listed fields - Never Email this information"]
["Additional Payments","Unused Vacation Days (Exempt ONLY)","Additional PaymentsUnused Vacation Days (Exempt ONLY)","For Terminations Only"]
["End Assignment","Approver(s)","End AssignmentApprover(s)","List PA Approver(s) here"]
["End Assignment","Comments (If you would like to provide any additional information)","End AssignmentComments (If you would like to provide any additional information)","Enter additional comments here"]
["End Assignment","Date of Birth","End AssignmentDate of Birth","New Hires Only - DOBs should be entered in the e-Form or PASF directly in the appropriate listed fields - Never Email this information"]
["End Assignment","Effective Date","End AssignmentEffective Date","Action effective date should the last date the employee works in this assignment"]
["End Assignment","End Date","End AssignmentEnd Date","Should match the Effective Date"]
["End Assignment","Last Day Worked","End AssignmentLast Day Worked","For Terminations Only"]
["End Assignment","Middle Initial","End AssignmentMiddle Initial","Can leave blank if no middle initial listed in HRMS"]
["End Assignment","Social Security Number","End AssignmentSocial Security Number","New Hires Only - SSNs should be entered in the e-Form or PASF directly in the appropriate listed fields - Never Email this information"]
["End Assignment","Unused Vacation Days (Exempt ONLY)","End AssignmentUnused Vacation Days (Exempt ONLY)","For Terminations Only"]
["FTE Change (Faculty, Research Assoc, or Fellow)","Additional Helpful Information","FTE Change (Faculty, Research Assoc, or Fellow)Additional Helpful Information","FTE change may also require a \"Revised Pay Rate\" action"]
["FTE Change (Faculty, Research Assoc, or Fellow)","Approver(s)","FTE Change (Faculty, Research Assoc, or Fellow)Approver(s)","List PA Approver(s) here"]
["FTE Change (Faculty, Research Assoc, or Fellow)","Begin Date","FTE Change (Faculty, Research Assoc, or Fellow)Begin Date","Should match the Effective Date"]
["FTE Change (Faculty, Research Assoc, or Fellow)","Comments (If you would like to provide any additional information)","FTE Change (Faculty, Research Assoc, or Fellow)Comments (If you would like to provide any additional information)","Enter additional comments here"]
["FTE Change (Faculty, Research Assoc, or Fellow)","Effective Date","FTE Change (Faculty, Research Assoc, or Fellow)Effective Date","Action effective date should be the date that the new FTE should go into effect"]
["FTE Change (Faculty, Research Assoc, or Fellow)","Last Day Worked","FTE Change (Faculty, Research Assoc, or Fellow)Last Day Worked","For Terminations Only"]
["FTE Change (Faculty, Research Assoc, or Fellow)","Middle Initial","FTE Change (Faculty, Research Assoc, or Fellow)Middle Initial","Can leave blank if no middle initial listed in HRMS"]
["FTE Change (Faculty, Research Assoc, or Fellow)","Pay Amount","FTE Change (Faculty, Research Assoc, or Fellow)Pay Amount","Use actual salary calculated at new FTE, NOT salary based on 100%"]
["FTE Change (Faculty, Research Assoc, or Fellow)","Unused Vacation Days (Exempt ONLY)","FTE Change (Faculty, Research Assoc, or Fellow)Unused Vacation Days (Exempt ONLY)","For Terminations Only"]
["Grade Change ","Comments (If you would like to provide any additional information)",{"$f":"CONCATENATE(A61,B61)","v":"Grade Change Comments (If you would like to provide any additional information)"},"Enter additional comments here"]
["Grade Change ","Last Day Worked","Grade Change Last Day Worked","For Terminations Only"]
["Grade Change ","Middle Initial","Grade Change Middle Initial","Can leave blank if no middle initial listed in HRMS"]
["Grade Change ","Unused Vacation Days (Exempt ONLY)","Grade Change Unused Vacation Days (Exempt ONLY)","For Terminations Only"]
["Grade Change","Approver(s)","Grade ChangeApprover(s)","List PA Approver(s) here"]
["Grade Change","Begin Date","Grade ChangeBegin Date","Should match the Effective Date"]
["Grade Change","Date of Birth","Grade ChangeDate of Birth","New Hires Only - DOBs should be entered in the e-Form or PASF directly in the appropriate listed fields - Never Email this information"]
["Grade Change","Effective Date","Grade ChangeEffective Date","Action effective date should be the date that the new Grade should go into effect"]
["Grade Change","Middle Initial","Grade ChangeMiddle Initial","Can leave blank if no middle initial listed in HRMS"]
["Grade Change","Social Security Number","Grade ChangeSocial Security Number","New Hires Only - SSNs should be entered in the e-Form or PASF directly in the appropriate listed fields - Never Email this information"]
["Grade Change","Title","Grade ChangeTitle","If position is in DORR, title and grade need to match what is in DORR, may require a \"Revised Pay Rate\" action"]
["Hours Change","Additional Helpful Information","Hours ChangeAdditional Helpful Information","Hours change may also require a \"Revised Pay Rate\" action"]
["Hours Change","Approver(s)","Hours ChangeApprover(s)","List PA Approver(s) here"]
["Hours Change","Begin Date","Hours ChangeBegin Date","Should match the Effective Date"]
["Hours Change","Comments (If you would like to provide any additional information)","Hours ChangeComments (If you would like to provide any additional information)","Enter additional comments here"]
["Hours Change","Date of Birth","Hours ChangeDate of Birth","New Hires Only - DOBs should be entered in the e-Form or PASF directly in the appropriate listed fields - Never Email this information"]
["Hours Change","Effective Date","Hours ChangeEffective Date","Action effective date should be the date that the new Hours should go into effect"]
["Hours Change","Hours/Week","Hours ChangeHours/Week","Hours are not required for Faculty, Fellow or Research Assoc.  "]
["Hours Change","Last Day Worked","Hours ChangeLast Day Worked","For Terminations Only"]
["Hours Change","Middle Initial","Hours ChangeMiddle Initial","Can leave blank if no middle initial listed in HRMS"]
["Hours Change","Social Security Number","Hours ChangeSocial Security Number","New Hires Only - SSNs should be entered in the e-Form or PASF directly in the appropriate listed fields - Never Email this information"]
["Hours Change","Unused Vacation Days (Exempt ONLY)","Hours ChangeUnused Vacation Days (Exempt ONLY)","For Terminations Only"]
["New Hire","Additional Helpful Information","New HireAdditional Helpful Information","Please complete additional action tabs for Relocation Payments, Sign On Bonues or Communication Stipends"]
["New Hire","Approver(s)","New HireApprover(s)","List PA Approver(s) here"]
["New Hire","Begin Date","New HireBegin Date","Should match the Effective Date"]
["New Hire","Citizenship","New HireCitizenship","Enter Country of Citizenship - If citizenship is not USA, the visa field needs to be completed.  If \"Other\" is selected, please enter the citizenship in the comments below"]
["New Hire","Comments (If you would like to provide any additional information)","New HireComments (If you would like to provide any additional information)","Enter additional comments here"]
["New Hire","Date of Birth","New HireDate of Birth","DOBs should be entered in the e-Form or PASF directly in the appropriate listed fields - Never Email this information"]
["New Hire","Effective Date","New HireEffective Date","Action effective date should be the date that the New Hire is expected to start (take in to account any training needed before their start date as well - if they are training - use an effective date of the first training date)"]
["New Hire","End Date","New HireEnd Date","At the end of a TERM assignment, a termination PASF should be completed. The Finance Center will complete a termination PA for TEMP positions on this date"]
["New Hire","FTE","New HireFTE","This field is required for Faculty, Research Associates (A, B & C) and Fellows.  Hours/week and months/year are used to calculate FTE for Staff"]
["New Hire","Funding Information (GL or OGA)","New HireFunding Information (GL or OGA)","If multiple acccounts needed - please list accounts & percentages - must equal 100%"]
["New Hire","Hours/Week",{"$f":"CONCATENATE(A93,B93)","v":"New HireHours/Week"},"Hours are not required for Faculty, Research Associates or Fellows"]
["New Hire","iExpense default account","New HireiExpense default account","GL accounts only"]
["New Hire","Last Day Worked","New HireLast Day Worked","For Terminations Only"]
["New Hire","Legal Residence Address (No PO Boxes)","New HireLegal Residence Address (No PO Boxes)","If the same as Mailing Address - Can write SAME"]
["New Hire","Middle Initial","New HireMiddle Initial","Middle initial will be required to match the I9"]
["New Hire","Pay Amount","New HirePay Amount","Non-Exempt positions should be at an hourly rate. Exempt positions should either be at a monthly or annual rate at a designated FTE"]
["New Hire","Position ","New HirePosition ","For a Non-Faculty Appt, use position # 0000000; this field will be completed by Geisel FC when employee is added to HRMS"]
["New Hire","Preferred First Name","New HirePreferred First Name","Only needed if different than legal name provided"]
["New Hire","Preferred Last Name","New HirePreferred Last Name","Only needed if different than legal name provided"]
["New Hire","Preferred Middle Initial","New HirePreferred Middle Initial","Only needed if different than legal name provided"]
["New Hire","Regular or Temporary","New HireRegular or Temporary","Temp assignment with 18.75+ hrs/week needs to be < 9 months.  If 9+ months is used, the emp will earn vacation & sick time."]
["New Hire","Social Security Number","New HireSocial Security Number","SSNs should be entered in the e-Form or PASF directly in the appropriate listed fields - Never Email this information"]
["New Hire","Title","New HireTitle","If position is in DORR, title needs to match what is in DORR - If not, please reach out to HR."]
["New Hire","Unused Vacation Days (Exempt ONLY)","New HireUnused Vacation Days (Exempt ONLY)","For Terminations Only"]
["New Hire","Visa Type (if not US Cititzen)","New HireVisa Type (if not US Cititzen)","If citizenship is not USA, the visa field needs to be completed"]
["Organization Change","Additional Helpful Information","Organization ChangeAdditional Helpful Information","Requests for JUST an Org Change do not require a PA - please submit your request through the General Requests Queue in OnBase including the employee information and New Org requested"]
["Organization Change","Approver(s)","Organization ChangeApprover(s)","List PA Approver(s) here"]
["Organization Change","Begin Date","Organization ChangeBegin Date","Should match the Effective Date"]
["Organization Change","Comments (If you would like to provide any additional information)","Organization ChangeComments (If you would like to provide any additional information)","Enter additional comments here"]
["Organization Change","Date of Birth","Organization ChangeDate of Birth","New Hires Only - DOBs should be entered in the e-Form or PASF directly in the appropriate listed fields - Never Email this information"]
["Organization Change","Effective Date","Organization ChangeEffective Date","Action effective date should be the date that the new Org should go into effect"]
["Organization Change","iExpense default account","Organization ChangeiExpense default account","GL Accounts Only"]
["Organization Change","Last Day Worked","Organization ChangeLast Day Worked","For Terminations Only"]
["Organization Change","Middle Initial","Organization ChangeMiddle Initial","Can leave blank if no middle initial listed in HRMS"]
["Organization Change","Social Security Number","Organization ChangeSocial Security Number","New Hires Only - SSNs should be entered in the e-Form or PASF directly in the appropriate listed fields - Never Email this information"]
["Organization Change","Unused Vacation Days (Exempt ONLY)","Organization ChangeUnused Vacation Days (Exempt ONLY)","For Terminations Only"]
["Promotion","Approver(s)","PromotionApprover(s)","List PA Approver(s) here"]
["Promotion","Begin Date","PromotionBegin Date","Should match the Effective Date"]
["Promotion","Comments (If you would like to provide any additional information)","PromotionComments (If you would like to provide any additional information)","Enter additional comments here"]
["Promotion","Date of Birth","PromotionDate of Birth","New Hires Only - DOBs should be entered in the e-Form or PASF directly in the appropriate listed fields - Never Email this information"]
["Promotion","Effective Date",{"$f":"CONCATENATE(A123,B123)","v":"PromotionEffective Date"},"Action effective date should be the date that the promotion should go into effect"]
["Promotion","FTE","PromotionFTE","This field is required for Faculty, Research Associates (A, B & C) and Fellows.  Hours/week and months/year are used to calculate FTE for Staff"]
["Promotion","Hours/Week","PromotionHours/Week","Hours are not required for Faculty, Research Associates or Fellows"]
["Promotion","iExpense default account","PromotioniExpense default account","GL Accounts Only"]
["Promotion","Last Day Worked","PromotionLast Day Worked","For Terminations Only"]
["Promotion","Middle Initial","PromotionMiddle Initial","Can leave blank if no middle initial listed in HRMS"]
["Promotion","Pay Amount","PromotionPay Amount","Non-Exempt positions should be at an hourly rate. Exempt positions should either be at a monthly or annual rate at a designated FTE"]
["Promotion","Social Security Number","PromotionSocial Security Number","New Hires Only - SSNs should be entered in the e-Form or PASF directly in the appropriate listed fields - Never Email this information"]
["Promotion","Title","PromotionTitle","If position is in DORR, title needs to match what is in DORR - If not, please reach out to HR.  "]
["Promotion","Additional Helpful Information","PromotionAdditional Helpful Information","Please list \"Revised Pay\" and \"Title Change\" as additional actions above if those are changing with the promotion"]
["Promotion","Unused Vacation Days (Exempt ONLY)","PromotionUnused Vacation Days (Exempt ONLY)","For Terminations Only"]
["New Hire","Re-Hire","Re-Hire","Re-Hire"]
["Re-Hire","Approver(s)",{"$f":"CONCATENATE(A135,B135)","v":"Re-HireApprover(s)"},"List PA Approver(s) here"]
["Re-Hire","Begin Date","Re-HireBegin Date","Should match the Effective Date","Re-Hire","Re-Hire","Re-Hire","Re-Hire","Re-Hire","Re-Hire","Re-Hire","Re-Hire","Re-Hire","Re-Hire","Re-Hire","Re-Hire","Re-Hire","Re-Hire","Re-Hire","Re-Hire","Re-Hire","Re-Hire","Re-Hire","Re-Hire","Re-Hire","Re-Hire","Re-Hire","Re-Hire","Re-Hire","Re-Hire","Re-Hire","Re-Hire","Re-Hire","Re-Hire","Re-Hire","Re-Hire","Re-Hire","Re-Hire","Re-Hire","Re-Hire","Re-Hire","Re-Hire","Re-Hire","Re-Hire","Re-Hire","Re-Hire","Re-Hire","Re-Hire","Re-Hire","Re-Hire","Re-Hire","Re-Hire","Re-Hire","Re-Hire","Re-Hire","Re-Hire","Re-Hire","Re-Hire","Re-Hire","Re-Hire","Re-Hire","Re-Hire","Re-Hire","Re-Hire","Re-Hire","Re-Hire","Re-Hire","Re-Hire","Re-Hire","Re-Hire","Re-Hire","Re-Hire","Re-Hire","Re-Hire","Re-Hire","Re-Hire","Re-Hire","Re-Hire","Re-Hire","Re-Hire","Re-Hire","Re-Hire","Re-Hire","Re-Hire","Re-Hire","Re-Hire","Re-Hire","Re-Hire","Re-Hire","Re-Hire","Re-Hire","Re-Hire","Re-Hire","Re-Hire","Re-Hire","Re-Hire","Re-Hire","Re-Hire","Re-Hire","Re-Hire","Re-Hire","Re-Hire","Re-Hire","Re-Hire","Re-Hire","Re-Hire","Re-Hire","Re-Hire","Re-Hire","Re-Hire","Re-Hire","Re-Hire","Re-Hire","Re-Hire","Re-Hire","Re-Hire","Re-Hire","Re-Hire","Re-Hire","Re-Hire","Re-Hire","Re-Hire","Re-Hire","Re-Hire","Re-Hire","Re-Hire","Re-Hire","Re-Hire","Re-Hire","Re-Hire","Re-Hire","Re-Hire","Re-Hire","Re-Hire","Re-Hire","Re-Hire","Re-Hire","Re-Hire","Re-Hire","Re-Hire","Re-Hire","Re-Hire","Re-Hire","Re-Hire","Re-Hire","Re-Hire","Re-Hire","Re-Hire","Re-Hire","Re-Hire","Re-Hire","Re-Hire","Re-Hire","Re-Hire","Re-Hire","Re-Hire","Re-Hire","Re-Hire","Re-Hire","Re-Hire","Re-Hire","Re-Hire","Re-Hire","Re-Hire","Re-Hire","Re-Hire","Re-Hire","Re-Hire","Re-Hire","Re-Hire","Re-Hire","Re-Hire","Re-Hire","Re-Hire","Re-Hire","Re-Hire","Re-Hire","Re-Hire","Re-Hire","Re-Hire","Re-Hire","Re-Hire","Re-Hire","Re-Hire","Re-Hire","Re-Hire","Re-Hire","Re-Hire","Re-Hire","Re-Hire","Re-Hire","Re-Hire","Re-Hire","Re-Hire","Re-Hire","Re-Hire","Re-Hire","Re-Hire","Re-Hire","Re-Hire","Re-Hire","Re-Hire","Re-Hire","Re-Hire","Re-Hire","Re-Hire","Re-Hire","Re-Hire","Re-Hire","Re-Hire","Re-Hire","Re-Hire","Re-Hire","Re-Hire","Re-Hire","Re-Hire","Re-Hire","Re-Hire","Re-Hire","Re-Hire","Re-Hire","Re-Hire","Re-Hire","Re-Hire","Re-Hire","Re-Hire","Re-Hire","Re-Hire","Re-Hire","Re-Hire","Re-Hire","Re-Hire","Re-Hire","Re-Hire","Re-Hire","Re-Hire","Re-Hire","Re-Hire","Re-Hire","Re-Hire","Re-Hire","Re-Hire","Re-Hire","Re-Hire","Re-Hire","Re-Hire","Re-Hire","Re-Hire","Re-Hire","Re-Hire","Re-Hire","Re-Hire","Re-Hire","Re-Hire","Re-Hire","Re-Hire","Re-Hire","Re-Hire","Re-Hire","Re-Hire","Re-Hire","Re-Hire","Re-Hire","Re-Hire","Re-Hire","Re-Hire","Re-Hire","Re-Hire","Re-Hire","Re-Hire","Re-Hire","Re-Hire","Re-Hire","Re-Hire","Re-Hire","Re-Hire","Re-Hire","Re-Hire","Re-Hire","Re-Hire","Re-Hire","Re-Hire","Re-Hire","Re-Hire","Re-Hire","Re-Hire","Re-Hire","Re-Hire","Re-Hire","Re-Hire","Re-Hire","Re-Hire","Re-Hire","Re-Hire","Re-Hire","Re-Hire","Re-Hire","Re-Hire","Re-Hire","Re-Hire","Re-Hire","Re-Hire","Re-Hire","Re-Hire","Re-Hire","Re-Hire","Re-Hire","Re-Hire","Re-Hire","Re-Hire","Re-Hire","Re-Hire","Re-Hire","Re-Hire","Re-Hire","Re-Hire","Re-Hire","Re-Hire","Re-Hire","Re-Hire","Re-Hire","Re-Hire","Re-Hire","Re-Hire","Re-Hire","Re-Hire","Re-Hire","Re-Hire","Re-Hire","Re-Hire","Re-Hire","Re-Hire","Re-Hire","Re-Hire","Re-Hire","Re-Hire","Re-Hire","Re-Hire","Re-Hire","Re-Hire","Re-Hire","Re-Hire","Re-Hire","Re-Hire","Re-Hire","Re-Hire","Re-Hire","Re-Hire","Re-Hire","Re-Hire","Re-Hire","Re-Hire","Re-Hire","Re-Hire","Re-Hire","Re-Hire","Re-Hire","Re-Hire","Re-Hire","Re-Hire","Re-Hire","Re-Hire","Re-Hire","Re-Hire","Re-Hire","Re-Hire","Re-Hire","Re-Hire","Re-Hire","Re-Hire","Re-Hire","Re-Hire","Re-Hire","Re-Hire","Re-Hire","Re-Hire","Re-Hire","Re-Hire","Re-Hire","Re-Hire","Re-Hire","Re-Hire","Re-Hire","Re-Hire","Re-Hire","Re-Hire","Re-Hire","Re-Hire","Re-Hire","Re-Hire","Re-Hire","Re-Hire","Re-Hire","Re-Hire","Re-Hire","Re-Hire","Re-Hire","Re-Hire","Re-Hire","Re-Hire","Re-Hire","Re-Hire","Re-Hire","Re-Hire","Re-Hire","Re-Hire","Re-Hire","Re-Hire","Re-Hire","Re-Hire","Re-Hire","Re-Hire","Re-Hire","Re-Hire","Re-Hire","Re-Hire","Re-Hire","Re-Hire","Re-Hire","Re-Hire","Re-Hire","Re-Hire","Re-Hire","Re-Hire","Re-Hire","Re-Hire","Re-Hire","Re-Hire","Re-Hire","Re-Hire","Re-Hire","Re-Hire","Re-Hire","Re-Hire","Re-Hire","Re-Hire","Re-Hire","Re-Hire","Re-Hire","Re-Hire","Re-Hire","Re-Hire","Re-Hire","Re-Hire","Re-Hire","Re-Hire","Re-Hire","Re-Hire","Re-Hire","Re-Hire","Re-Hire","Re-Hire","Re-Hire","Re-Hire","Re-Hire","Re-Hire","Re-Hire","Re-Hire","Re-Hire","Re-Hire","Re-Hire","Re-Hire","Re-Hire","Re-Hire","Re-Hire","Re-Hire","Re-Hire","Re-Hire","Re-Hire","Re-Hire","Re-Hire","Re-Hire","Re-Hire","Re-Hire","Re-Hire","Re-Hire","Re-Hire","Re-Hire","Re-Hire","Re-Hire","Re-Hire","Re-Hire","Re-Hire","Re-Hire","Re-Hire","Re-Hire","Re-Hire","Re-Hire","Re-Hire","Re-Hire","Re-Hire","Re-Hire","Re-Hire","Re-Hire","Re-Hire","Re-Hire","Re-Hire","Re-Hire","Re-Hire","Re-Hire","Re-Hire","Re-Hire","Re-Hire","Re-Hire","Re-Hire","Re-Hire","Re-Hire","Re-Hire","Re-Hire","Re-Hire","Re-Hire","Re-Hire","Re-Hire","Re-Hire","Re-Hire","Re-Hire","Re-Hire","Re-Hire","Re-Hire","Re-Hire","Re-Hire","Re-Hire","Re-Hire","Re-Hire","Re-Hire","Re-Hire","Re-Hire","Re-Hire","Re-Hire","Re-Hire","Re-Hire","Re-Hire","Re-Hire","Re-Hire","Re-Hire","Re-Hire","Re-Hire","Re-Hire","Re-Hire","Re-Hire","Re-Hire","Re-Hire","Re-Hire","Re-Hire","Re-Hire","Re-Hire","Re-Hire","Re-Hire","Re-Hire","Re-Hire","Re-Hire","Re-Hire","Re-Hire","Re-Hire","Re-Hire","Re-Hire","Re-Hire","Re-Hire","Re-Hire","Re-Hire","Re-Hire","Re-Hire","Re-Hire","Re-Hire","Re-Hire","Re-Hire","Re-Hire","Re-Hire","Re-Hire","Re-Hire","Re-Hire","Re-Hire","Re-Hire","Re-Hire","Re-Hire","Re-Hire","Re-Hire","Re-Hire","Re-Hire","Re-Hire","Re-Hire","Re-Hire","Re-Hire","Re-Hire","Re-Hire","Re-Hire","Re-Hire","Re-Hire","Re-Hire","Re-Hire","Re-Hire","Re-Hire","Re-Hire","Re-Hire","Re-Hire","Re-Hire","Re-Hire","Re-Hire","Re-Hire","Re-Hire","Re-Hire","Re-Hire","Re-Hire","Re-Hire","Re-Hire","Re-Hire","Re-Hire","Re-Hire","Re-Hire","Re-Hire","Re-Hire","Re-Hire","Re-Hire","Re-Hire","Re-Hire","Re-Hire","Re-Hire","Re-Hire","Re-Hire","Re-Hire","Re-Hire","Re-Hire","Re-Hire","Re-Hire","Re-Hire","Re-Hire","Re-Hire","Re-Hire","Re-Hire","Re-Hire","Re-Hire","Re-Hire","Re-Hire","Re-Hire","Re-Hire","Re-Hire","Re-Hire","Re-Hire","Re-Hire","Re-Hire","Re-Hire","Re-Hire","Re-Hire","Re-Hire","Re-Hire","Re-Hire","Re-Hire","Re-Hire","Re-Hire","Re-Hire","Re-Hire","Re-Hire","Re-Hire","Re-Hire","Re-Hire","Re-Hire","Re-Hire","Re-Hire","Re-Hire","Re-Hire","Re-Hire","Re-Hire","Re-Hire","Re-Hire","Re-Hire","Re-Hire","Re-Hire","Re-Hire","Re-Hire","Re-Hire","Re-Hire","Re-Hire","Re-Hire","Re-Hire","Re-Hire","Re-Hire","Re-Hire","Re-Hire","Re-Hire","Re-Hire","Re-Hire","Re-Hire","Re-Hire","Re-Hire","Re-Hire","Re-Hire","Re-Hire","Re-Hire","Re-Hire","Re-Hire","Re-Hire","Re-Hire","Re-Hire","Re-Hire","Re-Hire","Re-Hire","Re-Hire","Re-Hire","Re-Hire","Re-Hire","Re-Hire","Re-Hire","Re-Hire","Re-Hire","Re-Hire","Re-Hire","Re-Hire","Re-Hire","Re-Hire","Re-Hire","Re-Hire","Re-Hire","Re-Hire","Re-Hire","Re-Hire","Re-Hire","Re-Hire","Re-Hire","Re-Hire","Re-Hire","Re-Hire","Re-Hire","Re-Hire","Re-Hire","Re-Hire","Re-Hire","Re-Hire","Re-Hire","Re-Hire","Re-Hire","Re-Hire","Re-Hire","Re-Hire","Re-Hire","Re-Hire","Re-Hire","Re-Hire","Re-Hire","Re-Hire","Re-Hire","Re-Hire","Re-Hire","Re-Hire","Re-Hire","Re-Hire","Re-Hire","Re-Hire","Re-Hire","Re-Hire","Re-Hire","Re-Hire","Re-Hire","Re-Hire","Re-Hire","Re-Hire","Re-Hire","Re-Hire","Re-Hire","Re-Hire","Re-Hire","Re-Hire","Re-Hire","Re-Hire","Re-Hire","Re-Hire","Re-Hire","Re-Hire","Re-Hire","Re-Hire","Re-Hire","Re-Hire","Re-Hire","Re-Hire","Re-Hire","Re-Hire","Re-Hire","Re-Hire","Re-Hire","Re-Hire","Re-Hire","Re-Hire","Re-Hire","Re-Hire","Re-Hire","Re-Hire","Re-Hire","Re-Hire","Re-Hire","Re-Hire","Re-Hire","Re-Hire","Re-Hire","Re-Hire","Re-Hire","Re-Hire","Re-Hire","Re-Hire","Re-Hire","Re-Hire","Re-Hire","Re-Hire","Re-Hire","Re-Hire","Re-Hire","Re-Hire","Re-Hire","Re-Hire","Re-Hire","Re-Hire","Re-Hire","Re-Hire","Re-Hire","Re-Hire","Re-Hire","Re-Hire","Re-Hire","Re-Hire","Re-Hire","Re-Hire","Re-Hire","Re-Hire","Re-Hire","Re-Hire","Re-Hire","Re-Hire","Re-Hire","Re-Hire","Re-Hire","Re-Hire","Re-Hire","Re-Hire","Re-Hire","Re-Hire","Re-Hire","Re-Hire","Re-Hire","Re-Hire","Re-Hire","Re-Hire","Re-Hire","Re-Hire","Re-Hire","Re-Hire","Re-Hire","Re-Hire","Re-Hire","Re-Hire","Re-Hire","Re-Hire","Re-Hire","Re-Hire","Re-Hire","Re-Hire","Re-Hire","Re-Hire","Re-Hire","Re-Hire","Re-Hire","Re-Hire","Re-Hire","Re-Hire","Re-Hire","Re-Hire","Re-Hire","Re-Hire","Re-Hire","Re-Hire","Re-Hire","Re-Hire","Re-Hire","Re-Hire","Re-Hire","Re-Hire","Re-Hire","Re-Hire","Re-Hire","Re-Hire","Re-Hire","Re-Hire","Re-Hire","Re-Hire","Re-Hire","Re-Hire","Re-Hire","Re-Hire","Re-Hire","Re-Hire","Re-Hire","Re-Hire","Re-Hire","Re-Hire","Re-Hire","Re-Hire","Re-Hire","Re-Hire","Re-Hire","Re-Hire","Re-Hire","Re-Hire","Re-Hire","Re-Hire","Re-Hire","Re-Hire","Re-Hire","Re-Hire","Re-Hire","Re-Hire","Re-Hire","Re-Hire","Re-Hire","Re-Hire","Re-Hire","Re-Hire","Re-Hire","Re-Hire","Re-Hire","Re-Hire","Re-Hire","Re-Hire","Re-Hire","Re-Hire","Re-Hire","Re-Hire","Re-Hire","Re-Hire","Re-Hire","Re-Hire","Re-Hire","Re-Hire","Re-Hire","Re-Hire","Re-Hire","Re-Hire","Re-Hire","Re-Hire","Re-Hire","Re-Hire","Re-Hire","Re-Hire","Re-Hire","Re-Hire","Re-Hire","Re-Hire","Re-Hire","Re-Hire","Re-Hire","Re-Hire","Re-Hire","Re-Hire","Re-Hire","Re-Hire","Re-Hire","Re-Hire","Re-Hire","Re-Hire","Re-Hire","Re-Hire","Re-Hire","Re-Hire","Re-Hire","Re-Hire","Re-Hire","Re-Hire","Re-Hire","Re-Hire","Re-Hire","Re-Hire","Re-Hire","Re-Hire","Re-Hire","Re-Hire","Re-Hire","Re-Hire","Re-Hire","Re-Hire","Re-Hire","Re-Hire","Re-Hire","Re-Hire","Re-Hire","Re-Hire","Re-Hire","Re-Hire","Re-Hire","Re-Hire","Re-Hire","Re-Hire","Re-Hire","Re-Hire","Re-Hire","Re-Hire","Re-Hire","Re-Hire","Re-Hire","Re-Hire","Re-Hire","Re-Hire","Re-Hire","Re-Hire","Re-Hire","Re-Hire","Re-Hire","Re-Hire","Re-Hire","Re-Hire","Re-Hire","Re-Hire","Re-Hire","Re-Hire","Re-Hire","Re-Hire","Re-Hire","Re-Hire","Re-Hire","Re-Hire","Re-Hire","Re-Hire","Re-Hire","Re-Hire","Re-Hire","Re-Hire","Re-Hire","Re-Hire","Re-Hire","Re-Hire","Re-Hire","Re-Hire","Re-Hire","Re-Hire","Re-Hire","Re-Hire","Re-Hire","Re-Hire","Re-Hire","Re-Hire","Re-Hire","Re-Hire","Re-Hire","Re-Hire","Re-Hire","Re-Hire","Re-Hire","Re-Hire","Re-Hire","Re-Hire","Re-Hire","Re-Hire","Re-Hire","Re-Hire","Re-Hire","Re-Hire","Re-Hire","Re-Hire","Re-Hire","Re-Hire","Re-Hire","Re-Hire","Re-Hire","Re-Hire","Re-Hire","Re-Hire","Re-Hire","Re-Hire","Re-Hire","Re-Hire","Re-Hire","Re-Hire","Re-Hire","Re-Hire","Re-Hire","Re-Hire","Re-Hire","Re-Hire","Re-Hire","Re-Hire","Re-Hire","Re-Hire","Re-Hire","Re-Hire","Re-Hire","Re-Hire","Re-Hire","Re-Hire","Re-Hire","Re-Hire","Re-Hire","Re-Hire","Re-Hire","Re-Hire","Re-Hire","Re-Hire","Re-Hire","Re-Hire","Re-Hire","Re-Hire","Re-Hire","Re-Hire","Re-Hire","Re-Hire","Re-Hire","Re-Hire","Re-Hire","Re-Hire","Re-Hire","Re-Hire","Re-Hire","Re-Hire","Re-Hire","Re-Hire","Re-Hire","Re-Hire","Re-Hire","Re-Hire","Re-Hire","Re-Hire","Re-Hire","Re-Hire","Re-Hire","Re-Hire","Re-Hire","Re-Hire","Re-Hire","Re-Hire","Re-Hire","Re-Hire","Re-Hire","Re-Hire","Re-Hire","Re-Hire","Re-Hire","Re-Hire","Re-Hire","Re-Hire","Re-Hire","Re-Hire","Re-Hire","Re-Hire","Re-Hire","Re-Hire","Re-Hire","Re-Hire","Re-Hire","Re-Hire","Re-Hire","Re-Hire","Re-Hire","Re-Hire","Re-Hire","Re-Hire","Re-Hire","Re-Hire","Re-Hire","Re-Hire","Re-Hire","Re-Hire","Re-Hire","Re-Hire","Re-Hire","Re-Hire","Re-Hire","Re-Hire","Re-Hire","Re-Hire","Re-Hire","Re-Hire","Re-Hire","Re-Hire","Re-Hire","Re-Hire","Re-Hire","Re-Hire","Re-Hire","Re-Hire","Re-Hire","Re-Hire","Re-Hire","Re-Hire","Re-Hire","Re-Hire","Re-Hire","Re-Hire","Re-Hire","Re-Hire","Re-Hire","Re-Hire","Re-Hire","Re-Hire","Re-Hire","Re-Hire","Re-Hire","Re-Hire","Re-Hire","Re-Hire","Re-Hire","Re-Hire","Re-Hire","Re-Hire","Re-Hire","Re-Hire","Re-Hire","Re-Hire","Re-Hire","Re-Hire","Re-Hire","Re-Hire","Re-Hire","Re-Hire","Re-Hire","Re-Hire","Re-Hire","Re-Hire","Re-Hire","Re-Hire","Re-Hire","Re-Hire","Re-Hire","Re-Hire","Re-Hire","Re-Hire","Re-Hire","Re-Hire","Re-Hire","Re-Hire","Re-Hire","Re-Hire","Re-Hire","Re-Hire","Re-Hire","Re-Hire","Re-Hire","Re-Hire","Re-Hire","Re-Hire","Re-Hire","Re-Hire","Re-Hire","Re-Hire","Re-Hire","Re-Hire","Re-Hire","Re-Hire","Re-Hire","Re-Hire","Re-Hire","Re-Hire","Re-Hire","Re-Hire","Re-Hire","Re-Hire","Re-Hire","Re-Hire","Re-Hire","Re-Hire","Re-Hire","Re-Hire","Re-Hire","Re-Hire","Re-Hire","Re-Hire","Re-Hire","Re-Hire","Re-Hire","Re-Hire","Re-Hire","Re-Hire","Re-Hire","Re-Hire","Re-Hire","Re-Hire","Re-Hire","Re-Hire","Re-Hire","Re-Hire","Re-Hire","Re-Hire","Re-Hire","Re-Hire","Re-Hire","Re-Hire","Re-Hire","Re-Hire","Re-Hire","Re-Hire","Re-Hire","Re-Hire","Re-Hire","Re-Hire","Re-Hire","Re-Hire","Re-Hire","Re-Hire","Re-Hire","Re-Hire","Re-Hire","Re-Hire","Re-Hire","Re-Hire","Re-Hire","Re-Hire","Re-Hire","Re-Hire","Re-Hire","Re-Hire","Re-Hire","Re-Hire","Re-Hire","Re-Hire","Re-Hire","Re-Hire","Re-Hire","Re-Hire","Re-Hire","Re-Hire","Re-Hire","Re-Hire","Re-Hire","Re-Hire","Re-Hire","Re-Hire","Re-Hire","Re-Hire","Re-Hire","Re-Hire","Re-Hire","Re-Hire","Re-Hire","Re-Hire","Re-Hire","Re-Hire","Re-Hire","Re-Hire","Re-Hire","Re-Hire","Re-Hire","Re-Hire","Re-Hire","Re-Hire","Re-Hire","Re-Hire","Re-Hire","Re-Hire","Re-Hire","Re-Hire","Re-Hire","Re-Hire","Re-Hire","Re-Hire","Re-Hire","Re-Hire","Re-Hire","Re-Hire","Re-Hire","Re-Hire","Re-Hire","Re-Hire","Re-Hire","Re-Hire","Re-Hire","Re-Hire","Re-Hire","Re-Hire","Re-Hire","Re-Hire","Re-Hire","Re-Hire","Re-Hire","Re-Hire","Re-Hire","Re-Hire","Re-Hire","Re-Hire","Re-Hire","Re-Hire","Re-Hire","Re-Hire","Re-Hire","Re-Hire","Re-Hire","Re-Hire","Re-Hire","Re-Hire","Re-Hire","Re-Hire","Re-Hire","Re-Hire","Re-Hire","Re-Hire","Re-Hire","Re-Hire","Re-Hire","Re-Hire","Re-Hire","Re-Hire","Re-Hire","Re-Hire","Re-Hire","Re-Hire","Re-Hire","Re-Hire","Re-Hire","Re-Hire","Re-Hire","Re-Hire","Re-Hire","Re-Hire","Re-Hire","Re-Hire","Re-Hire","Re-Hire","Re-Hire","Re-Hire","Re-Hire","Re-Hire","Re-Hire","Re-Hire","Re-Hire","Re-Hire","Re-Hire","Re-Hire","Re-Hire","Re-Hire","Re-Hire","Re-Hire","Re-Hire","Re-Hire","Re-Hire","Re-Hire","Re-Hire","Re-Hire","Re-Hire","Re-Hire","Re-Hire","Re-Hire","Re-Hire","Re-Hire","Re-Hire","Re-Hire","Re-Hire","Re-Hire","Re-Hire","Re-Hire","Re-Hire","Re-Hire","Re-Hire","Re-Hire","Re-Hire","Re-Hire","Re-Hire","Re-Hire","Re-Hire","Re-Hire","Re-Hire","Re-Hire","Re-Hire","Re-Hire","Re-Hire","Re-Hire","Re-Hire","Re-Hire","Re-Hire","Re-Hire","Re-Hire","Re-Hire","Re-Hire","Re-Hire","Re-Hire","Re-Hire","Re-Hire","Re-Hire","Re-Hire","Re-Hire","Re-Hire","Re-Hire","Re-Hire","Re-Hire","Re-Hire","Re-Hire","Re-Hire","Re-Hire","Re-Hire","Re-Hire","Re-Hire","Re-Hire","Re-Hire","Re-Hire","Re-Hire","Re-Hire","Re-Hire","Re-Hire","Re-Hire","Re-Hire","Re-Hire","Re-Hire","Re-Hire","Re-Hire","Re-Hire","Re-Hire","Re-Hire","Re-Hire","Re-Hire","Re-Hire","Re-Hire","Re-Hire","Re-Hire","Re-Hire","Re-Hire","Re-Hire","Re-Hire","Re-Hire","Re-Hire","Re-Hire","Re-Hire","Re-Hire","Re-Hire","Re-Hire","Re-Hire","Re-Hire","Re-Hire","Re-Hire","Re-Hire","Re-Hire","Re-Hire","Re-Hire","Re-Hire","Re-Hire","Re-Hire","Re-Hire","Re-Hire","Re-Hire","Re-Hire","Re-Hire","Re-Hire","Re-Hire","Re-Hire","Re-Hire","Re-Hire","Re-Hire","Re-Hire","Re-Hire","Re-Hire","Re-Hire","Re-Hire","Re-Hire","Re-Hire","Re-Hire","Re-Hire","Re-Hire","Re-Hire","Re-Hire","Re-Hire","Re-Hire","Re-Hire","Re-Hire","Re-Hire","Re-Hire","Re-Hire","Re-Hire","Re-Hire","Re-Hire","Re-Hire","Re-Hire","Re-Hire","Re-Hire","Re-Hire","Re-Hire","Re-Hire","Re-Hire","Re-Hire","Re-Hire","Re-Hire","Re-Hire","Re-Hire","Re-Hire","Re-Hire","Re-Hire","Re-Hire","Re-Hire","Re-Hire","Re-Hire","Re-Hire","Re-Hire","Re-Hire","Re-Hire","Re-Hire","Re-Hire","Re-Hire","Re-Hire","Re-Hire","Re-Hire","Re-Hire","Re-Hire","Re-Hire","Re-Hire","Re-Hire","Re-Hire","Re-Hire","Re-Hire","Re-Hire","Re-Hire","Re-Hire","Re-Hire","Re-Hire","Re-Hire","Re-Hire","Re-Hire","Re-Hire","Re-Hire","Re-Hire","Re-Hire","Re-Hire","Re-Hire","Re-Hire","Re-Hire","Re-Hire","Re-Hire","Re-Hire","Re-Hire","Re-Hire","Re-Hire","Re-Hire","Re-Hire","Re-Hire","Re-Hire","Re-Hire","Re-Hire","Re-Hire","Re-Hire","Re-Hire","Re-Hire","Re-Hire","Re-Hire","Re-Hire","Re-Hire","Re-Hire","Re-Hire","Re-Hire","Re-Hire","Re-Hire","Re-Hire","Re-Hire","Re-Hire","Re-Hire","Re-Hire","Re-Hire","Re-Hire","Re-Hire","Re-Hire","Re-Hire","Re-Hire","Re-Hire","Re-Hire","Re-Hire","Re-Hire","Re-Hire","Re-Hire","Re-Hire","Re-Hire","Re-Hire","Re-Hire","Re-Hire","Re-Hire","Re-Hire","Re-Hire","Re-Hire","Re-Hire","Re-Hire","Re-Hire","Re-Hire","Re-Hire","Re-Hire","Re-Hire","Re-Hire","Re-Hire","Re-Hire","Re-Hire","Re-Hire","Re-Hire","Re-Hire","Re-Hire","Re-Hire","Re-Hire","Re-Hire","Re-Hire","Re-Hire","Re-Hire","Re-Hire","Re-Hire","Re-Hire","Re-Hire","Re-Hire","Re-Hire","Re-Hire","Re-Hire","Re-Hire","Re-Hire","Re-Hire","Re-Hire","Re-Hire","Re-Hire","Re-Hire","Re-Hire","Re-Hire","Re-Hire","Re-Hire","Re-Hire","Re-Hire","Re-Hire","Re-Hire","Re-Hire","Re-Hire","Re-Hire","Re-Hire","Re-Hire","Re-Hire","Re-Hire","Re-Hire","Re-Hire","Re-Hire","Re-Hire","Re-Hire","Re-Hire","Re-Hire","Re-Hire","Re-Hire","Re-Hire","Re-Hire","Re-Hire","Re-Hire","Re-Hire","Re-Hire","Re-Hire","Re-Hire","Re-Hire","Re-Hire","Re-Hire","Re-Hire","Re-Hire","Re-Hire","Re-Hire","Re-Hire","Re-Hire","Re-Hire","Re-Hire","Re-Hire","Re-Hire","Re-Hire","Re-Hire","Re-Hire","Re-Hire","Re-Hire","Re-Hire","Re-Hire","Re-Hire","Re-Hire","Re-Hire","Re-Hire","Re-Hire","Re-Hire","Re-Hire","Re-Hire","Re-Hire","Re-Hire","Re-Hire","Re-Hire","Re-Hire","Re-Hire","Re-Hire","Re-Hire","Re-Hire","Re-Hire","Re-Hire","Re-Hire","Re-Hire","Re-Hire","Re-Hire","Re-Hire","Re-Hire","Re-Hire","Re-Hire","Re-Hire","Re-Hire","Re-Hire","Re-Hire","Re-Hire","Re-Hire","Re-Hire","Re-Hire","Re-Hire","Re-Hire","Re-Hire","Re-Hire","Re-Hire","Re-Hire","Re-Hire","Re-Hire","Re-Hire","Re-Hire","Re-Hire","Re-Hire","Re-Hire","Re-Hire","Re-Hire","Re-Hire","Re-Hire","Re-Hire","Re-Hire","Re-Hire","Re-Hire","Re-Hire","Re-Hire","Re-Hire","Re-Hire","Re-Hire","Re-Hire","Re-Hire","Re-Hire","Re-Hire","Re-Hire","Re-Hire","Re-Hire","Re-Hire","Re-Hire","Re-Hire","Re-Hire","Re-Hire","Re-Hire","Re-Hire","Re-Hire","Re-Hire","Re-Hire","Re-Hire","Re-Hire","Re-Hire","Re-Hire","Re-Hire","Re-Hire","Re-Hire","Re-Hire","Re-Hire","Re-Hire","Re-Hire","Re-Hire","Re-Hire","Re-Hire","Re-Hire","Re-Hire","Re-Hire","Re-Hire","Re-Hire","Re-Hire","Re-Hire","Re-Hire","Re-Hire","Re-Hire","Re-Hire","Re-Hire","Re-Hire","Re-Hire","Re-Hire","Re-Hire","Re-Hire","Re-Hire","Re-Hire","Re-Hire","Re-Hire","Re-Hire","Re-Hire","Re-Hire","Re-Hire","Re-Hire","Re-Hire","Re-Hire","Re-Hire","Re-Hire","Re-Hire","Re-Hire","Re-Hire","Re-Hire","Re-Hire","Re-Hire","Re-Hire","Re-Hire","Re-Hire","Re-Hire","Re-Hire","Re-Hire","Re-Hire","Re-Hire","Re-Hire","Re-Hire","Re-Hire","Re-Hire","Re-Hire","Re-Hire","Re-Hire","Re-Hire","Re-Hire","Re-Hire","Re-Hire","Re-Hire","Re-Hire","Re-Hire","Re-Hire","Re-Hire","Re-Hire","Re-Hire","Re-Hire","Re-Hire","Re-Hire","Re-Hire","Re-Hire","Re-Hire","Re-Hire","Re-Hire","Re-Hire","Re-Hire","Re-Hire","Re-Hire","Re-Hire","Re-Hire","Re-Hire","Re-Hire","Re-Hire","Re-Hire","Re-Hire","Re-Hire","Re-Hire","Re-Hire","Re-Hire","Re-Hire","Re-Hire","Re-Hire","Re-Hire","Re-Hire","Re-Hire","Re-Hire","Re-Hire","Re-Hire","Re-Hire","Re-Hire","Re-Hire","Re-Hire","Re-Hire","Re-Hire","Re-Hire","Re-Hire","Re-Hire","Re-Hire","Re-Hire","Re-Hire","Re-Hire","Re-Hire","Re-Hire","Re-Hire","Re-Hire","Re-Hire","Re-Hire","Re-Hire","Re-Hire","Re-Hire","Re-Hire","Re-Hire","Re-Hire","Re-Hire","Re-Hire","Re-Hire","Re-Hire","Re-Hire","Re-Hire","Re-Hire","Re-Hire","Re-Hire","Re-Hire","Re-Hire","Re-Hire","Re-Hire","Re-Hire","Re-Hire","Re-Hire","Re-Hire","Re-Hire","Re-Hire","Re-Hire","Re-Hire","Re-Hire","Re-Hire","Re-Hire","Re-Hire","Re-Hire","Re-Hire","Re-Hire","Re-Hire","Re-Hire","Re-Hire","Re-Hire","Re-Hire","Re-Hire","Re-Hire","Re-Hire","Re-Hire","Re-Hire","Re-Hire","Re-Hire","Re-Hire","Re-Hire","Re-Hire","Re-Hire","Re-Hire","Re-Hire","Re-Hire","Re-Hire","Re-Hire","Re-Hire","Re-Hire","Re-Hire","Re-Hire","Re-Hire","Re-Hire","Re-Hire","Re-Hire","Re-Hire","Re-Hire","Re-Hire","Re-Hire","Re-Hire","Re-Hire","Re-Hire","Re-Hire","Re-Hire","Re-Hire","Re-Hire","Re-Hire","Re-Hire","Re-Hire","Re-Hire","Re-Hire","Re-Hire","Re-Hire","Re-Hire","Re-Hire","Re-Hire","Re-Hire","Re-Hire","Re-Hire","Re-Hire","Re-Hire","Re-Hire","Re-Hire","Re-Hire","Re-Hire","Re-Hire","Re-Hire","Re-Hire","Re-Hire","Re-Hire","Re-Hire","Re-Hire","Re-Hire","Re-Hire","Re-Hire","Re-Hire","Re-Hire","Re-Hire","Re-Hire","Re-Hire","Re-Hire","Re-Hire","Re-Hire","Re-Hire","Re-Hire","Re-Hire","Re-Hire","Re-Hire","Re-Hire","Re-Hire","Re-Hire","Re-Hire","Re-Hire","Re-Hire","Re-Hire","Re-Hire","Re-Hire","Re-Hire","Re-Hire","Re-Hire","Re-Hire","Re-Hire","Re-Hire","Re-Hire","Re-Hire","Re-Hire","Re-Hire","Re-Hire","Re-Hire","Re-Hire","Re-Hire","Re-Hire","Re-Hire","Re-Hire","Re-Hire","Re-Hire","Re-Hire","Re-Hire","Re-Hire","Re-Hire","Re-Hire","Re-Hire","Re-Hire","Re-Hire","Re-Hire","Re-Hire","Re-Hire","Re-Hire","Re-Hire","Re-Hire","Re-Hire","Re-Hire","Re-Hire","Re-Hire","Re-Hire","Re-Hire","Re-Hire","Re-Hire","Re-Hire","Re-Hire","Re-Hire","Re-Hire","Re-Hire","Re-Hire","Re-Hire","Re-Hire","Re-Hire","Re-Hire","Re-Hire","Re-Hire","Re-Hire","Re-Hire","Re-Hire","Re-Hire","Re-Hire","Re-Hire","Re-Hire","Re-Hire","Re-Hire","Re-Hire","Re-Hire","Re-Hire","Re-Hire","Re-Hire","Re-Hire","Re-Hire","Re-Hire","Re-Hire","Re-Hire","Re-Hire","Re-Hire","Re-Hire","Re-Hire","Re-Hire","Re-Hire","Re-Hire","Re-Hire","Re-Hire","Re-Hire","Re-Hire","Re-Hire","Re-Hire","Re-Hire","Re-Hire","Re-Hire","Re-Hire","Re-Hire","Re-Hire","Re-Hire","Re-Hire","Re-Hire","Re-Hire","Re-Hire","Re-Hire","Re-Hire","Re-Hire","Re-Hire","Re-Hire","Re-Hire","Re-Hire","Re-Hire","Re-Hire","Re-Hire","Re-Hire","Re-Hire","Re-Hire","Re-Hire","Re-Hire","Re-Hire","Re-Hire","Re-Hire","Re-Hire","Re-Hire","Re-Hire","Re-Hire","Re-Hire","Re-Hire","Re-Hire","Re-Hire","Re-Hire","Re-Hire","Re-Hire","Re-Hire","Re-Hire","Re-Hire","Re-Hire","Re-Hire","Re-Hire","Re-Hire","Re-Hire","Re-Hire","Re-Hire","Re-Hire","Re-Hire","Re-Hire","Re-Hire","Re-Hire","Re-Hire","Re-Hire","Re-Hire","Re-Hire","Re-Hire","Re-Hire","Re-Hire","Re-Hire","Re-Hire","Re-Hire","Re-Hire","Re-Hire","Re-Hire","Re-Hire","Re-Hire","Re-Hire","Re-Hire","Re-Hire","Re-Hire","Re-Hire","Re-Hire","Re-Hire","Re-Hire","Re-Hire","Re-Hire","Re-Hire","Re-Hire","Re-Hire","Re-Hire","Re-Hire","Re-Hire","Re-Hire","Re-Hire","Re-Hire","Re-Hire","Re-Hire","Re-Hire","Re-Hire","Re-Hire","Re-Hire","Re-Hire","Re-Hire","Re-Hire","Re-Hire","Re-Hire","Re-Hire","Re-Hire","Re-Hire","Re-Hire","Re-Hire","Re-Hire","Re-Hire","Re-Hire","Re-Hire","Re-Hire","Re-Hire","Re-Hire","Re-Hire","Re-Hire","Re-Hire","Re-Hire","Re-Hire","Re-Hire","Re-Hire","Re-Hire","Re-Hire","Re-Hire","Re-Hire","Re-Hire","Re-Hire","Re-Hire","Re-Hire","Re-Hire","Re-Hire","Re-Hire","Re-Hire","Re-Hire","Re-Hire","Re-Hire","Re-Hire","Re-Hire","Re-Hire","Re-Hire","Re-Hire","Re-Hire","Re-Hire","Re-Hire","Re-Hire","Re-Hire","Re-Hire","Re-Hire","Re-Hire","Re-Hire","Re-Hire","Re-Hire","Re-Hire","Re-Hire","Re-Hire","Re-Hire","Re-Hire","Re-Hire","Re-Hire","Re-Hire","Re-Hire","Re-Hire","Re-Hire","Re-Hire","Re-Hire","Re-Hire","Re-Hire","Re-Hire","Re-Hire","Re-Hire","Re-Hire","Re-Hire","Re-Hire","Re-Hire","Re-Hire","Re-Hire","Re-Hire","Re-Hire","Re-Hire","Re-Hire","Re-Hire","Re-Hire","Re-Hire","Re-Hire","Re-Hire","Re-Hire","Re-Hire","Re-Hire","Re-Hire","Re-Hire","Re-Hire","Re-Hire","Re-Hire","Re-Hire","Re-Hire","Re-Hire","Re-Hire","Re-Hire","Re-Hire","Re-Hire","Re-Hire","Re-Hire","Re-Hire","Re-Hire","Re-Hire","Re-Hire","Re-Hire","Re-Hire","Re-Hire","Re-Hire","Re-Hire","Re-Hire","Re-Hire","Re-Hire","Re-Hire","Re-Hire","Re-Hire","Re-Hire","Re-Hire","Re-Hire","Re-Hire","Re-Hire","Re-Hire","Re-Hire","Re-Hire","Re-Hire","Re-Hire","Re-Hire","Re-Hire","Re-Hire","Re-Hire","Re-Hire","Re-Hire","Re-Hire","Re-Hire","Re-Hire","Re-Hire","Re-Hire","Re-Hire","Re-Hire","Re-Hire","Re-Hire","Re-Hire","Re-Hire","Re-Hire","Re-Hire","Re-Hire","Re-Hire","Re-Hire","Re-Hire","Re-Hire","Re-Hire","Re-Hire","Re-Hire","Re-Hire","Re-Hire","Re-Hire","Re-Hire","Re-Hire","Re-Hire","Re-Hire","Re-Hire","Re-Hire","Re-Hire","Re-Hire","Re-Hire","Re-Hire","Re-Hire","Re-Hire","Re-Hire","Re-Hire","Re-Hire","Re-Hire","Re-Hire","Re-Hire","Re-Hire","Re-Hire","Re-Hire","Re-Hire","Re-Hire","Re-Hire","Re-Hire","Re-Hire","Re-Hire","Re-Hire","Re-Hire","Re-Hire","Re-Hire","Re-Hire","Re-Hire","Re-Hire","Re-Hire","Re-Hire","Re-Hire","Re-Hire","Re-Hire","Re-Hire","Re-Hire","Re-Hire","Re-Hire","Re-Hire","Re-Hire","Re-Hire","Re-Hire","Re-Hire","Re-Hire","Re-Hire","Re-Hire","Re-Hire","Re-Hire","Re-Hire","Re-Hire","Re-Hire","Re-Hire","Re-Hire","Re-Hire","Re-Hire","Re-Hire","Re-Hire","Re-Hire","Re-Hire","Re-Hire","Re-Hire","Re-Hire","Re-Hire","Re-Hire","Re-Hire","Re-Hire","Re-Hire","Re-Hire","Re-Hire","Re-Hire","Re-Hire","Re-Hire","Re-Hire","Re-Hire","Re-Hire","Re-Hire","Re-Hire","Re-Hire","Re-Hire","Re-Hire","Re-Hire","Re-Hire","Re-Hire","Re-Hire","Re-Hire","Re-Hire","Re-Hire","Re-Hire","Re-Hire","Re-Hire","Re-Hire","Re-Hire","Re-Hire","Re-Hire","Re-Hire","Re-Hire","Re-Hire","Re-Hire","Re-Hire","Re-Hire","Re-Hire","Re-Hire","Re-Hire","Re-Hire","Re-Hire","Re-Hire","Re-Hire","Re-Hire","Re-Hire","Re-Hire","Re-Hire","Re-Hire","Re-Hire","Re-Hire","Re-Hire","Re-Hire","Re-Hire","Re-Hire","Re-Hire","Re-Hire","Re-Hire","Re-Hire","Re-Hire","Re-Hire","Re-Hire","Re-Hire","Re-Hire","Re-Hire","Re-Hire","Re-Hire","Re-Hire","Re-Hire","Re-Hire","Re-Hire","Re-Hire","Re-Hire","Re-Hire","Re-Hire","Re-Hire","Re-Hire","Re-Hire","Re-Hire","Re-Hire","Re-Hire","Re-Hire","Re-Hire","Re-Hire","Re-Hire","Re-Hire","Re-Hire","Re-Hire","Re-Hire","Re-Hire","Re-Hire","Re-Hire","Re-Hire","Re-Hire","Re-Hire","Re-Hire","Re-Hire","Re-Hire","Re-Hire","Re-Hire","Re-Hire","Re-Hire","Re-Hire","Re-Hire","Re-Hire","Re-Hire","Re-Hire","Re-Hire","Re-Hire","Re-Hire","Re-Hire","Re-Hire","Re-Hire","Re-Hire","Re-Hire","Re-Hire","Re-Hire","Re-Hire","Re-Hire","Re-Hire","Re-Hire","Re-Hire","Re-Hire","Re-Hire","Re-Hire","Re-Hire","Re-Hire","Re-Hire","Re-Hire","Re-Hire","Re-Hire","Re-Hire","Re-Hire","Re-Hire","Re-Hire","Re-Hire","Re-Hire","Re-Hire","Re-Hire","Re-Hire","Re-Hire","Re-Hire","Re-Hire","Re-Hire","Re-Hire","Re-Hire","Re-Hire","Re-Hire","Re-Hire","Re-Hire","Re-Hire","Re-Hire","Re-Hire","Re-Hire","Re-Hire","Re-Hire","Re-Hire","Re-Hire","Re-Hire","Re-Hire","Re-Hire","Re-Hire","Re-Hire","Re-Hire","Re-Hire","Re-Hire","Re-Hire","Re-Hire","Re-Hire","Re-Hire","Re-Hire","Re-Hire","Re-Hire","Re-Hire","Re-Hire","Re-Hire","Re-Hire","Re-Hire","Re-Hire","Re-Hire","Re-Hire","Re-Hire","Re-Hire","Re-Hire","Re-Hire","Re-Hire","Re-Hire","Re-Hire","Re-Hire","Re-Hire","Re-Hire","Re-Hire","Re-Hire","Re-Hire","Re-Hire","Re-Hire","Re-Hire","Re-Hire","Re-Hire","Re-Hire","Re-Hire","Re-Hire","Re-Hire","Re-Hire","Re-Hire","Re-Hire","Re-Hire","Re-Hire","Re-Hire","Re-Hire","Re-Hire","Re-Hire","Re-Hire","Re-Hire","Re-Hire","Re-Hire","Re-Hire","Re-Hire","Re-Hire","Re-Hire","Re-Hire","Re-Hire","Re-Hire","Re-Hire","Re-Hire","Re-Hire","Re-Hire","Re-Hire","Re-Hire","Re-Hire","Re-Hire","Re-Hire","Re-Hire","Re-Hire","Re-Hire","Re-Hire","Re-Hire","Re-Hire","Re-Hire","Re-Hire","Re-Hire","Re-Hire","Re-Hire","Re-Hire","Re-Hire","Re-Hire","Re-Hire","Re-Hire","Re-Hire","Re-Hire","Re-Hire","Re-Hire","Re-Hire","Re-Hire","Re-Hire","Re-Hire","Re-Hire","Re-Hire","Re-Hire","Re-Hire","Re-Hire","Re-Hire","Re-Hire","Re-Hire","Re-Hire","Re-Hire","Re-Hire","Re-Hire","Re-Hire","Re-Hire","Re-Hire","Re-Hire","Re-Hire","Re-Hire","Re-Hire","Re-Hire","Re-Hire","Re-Hire","Re-Hire","Re-Hire","Re-Hire","Re-Hire","Re-Hire","Re-Hire","Re-Hire","Re-Hire","Re-Hire","Re-Hire","Re-Hire","Re-Hire","Re-Hire","Re-Hire","Re-Hire","Re-Hire","Re-Hire","Re-Hire","Re-Hire","Re-Hire","Re-Hire","Re-Hire","Re-Hire","Re-Hire","Re-Hire","Re-Hire","Re-Hire","Re-Hire","Re-Hire","Re-Hire","Re-Hire","Re-Hire","Re-Hire","Re-Hire","Re-Hire","Re-Hire","Re-Hire","Re-Hire","Re-Hire","Re-Hire","Re-Hire","Re-Hire","Re-Hire","Re-Hire","Re-Hire","Re-Hire","Re-Hire","Re-Hire","Re-Hire","Re-Hire","Re-Hire","Re-Hire","Re-Hire","Re-Hire","Re-Hire","Re-Hire","Re-Hire","Re-Hire","Re-Hire","Re-Hire","Re-Hire","Re-Hire","Re-Hire","Re-Hire","Re-Hire","Re-Hire","Re-Hire","Re-Hire","Re-Hire","Re-Hire","Re-Hire","Re-Hire","Re-Hire","Re-Hire","Re-Hire","Re-Hire","Re-Hire","Re-Hire","Re-Hire","Re-Hire","Re-Hire","Re-Hire","Re-Hire","Re-Hire","Re-Hire","Re-Hire","Re-Hire","Re-Hire","Re-Hire","Re-Hire","Re-Hire","Re-Hire","Re-Hire","Re-Hire","Re-Hire","Re-Hire","Re-Hire","Re-Hire","Re-Hire","Re-Hire","Re-Hire","Re-Hire","Re-Hire","Re-Hire","Re-Hire","Re-Hire","Re-Hire","Re-Hire","Re-Hire","Re-Hire","Re-Hire","Re-Hire","Re-Hire","Re-Hire","Re-Hire","Re-Hire","Re-Hire","Re-Hire","Re-Hire","Re-Hire","Re-Hire","Re-Hire","Re-Hire","Re-Hire","Re-Hire","Re-Hire","Re-Hire","Re-Hire","Re-Hire","Re-Hire","Re-Hire","Re-Hire","Re-Hire","Re-Hire","Re-Hire","Re-Hire","Re-Hire","Re-Hire","Re-Hire","Re-Hire","Re-Hire","Re-Hire","Re-Hire","Re-Hire","Re-Hire","Re-Hire","Re-Hire","Re-Hire","Re-Hire","Re-Hire","Re-Hire","Re-Hire","Re-Hire","Re-Hire","Re-Hire","Re-Hire","Re-Hire","Re-Hire","Re-Hire","Re-Hire","Re-Hire","Re-Hire","Re-Hire","Re-Hire","Re-Hire","Re-Hire","Re-Hire","Re-Hire","Re-Hire","Re-Hire","Re-Hire","Re-Hire","Re-Hire","Re-Hire","Re-Hire","Re-Hire","Re-Hire","Re-Hire","Re-Hire","Re-Hire","Re-Hire","Re-Hire","Re-Hire","Re-Hire","Re-Hire","Re-Hire","Re-Hire","Re-Hire","Re-Hire","Re-Hire","Re-Hire","Re-Hire","Re-Hire","Re-Hire","Re-Hire","Re-Hire","Re-Hire","Re-Hire","Re-Hire","Re-Hire","Re-Hire","Re-Hire","Re-Hire","Re-Hire","Re-Hire","Re-Hire","Re-Hire","Re-Hire","Re-Hire","Re-Hire","Re-Hire","Re-Hire","Re-Hire","Re-Hire","Re-Hire","Re-Hire","Re-Hire","Re-Hire","Re-Hire","Re-Hire","Re-Hire","Re-Hire","Re-Hire","Re-Hire","Re-Hire","Re-Hire","Re-Hire","Re-Hire","Re-Hire","Re-Hire","Re-Hire","Re-Hire","Re-Hire","Re-Hire","Re-Hire","Re-Hire","Re-Hire","Re-Hire","Re-Hire","Re-Hire","Re-Hire","Re-Hire","Re-Hire","Re-Hire","Re-Hire","Re-Hire","Re-Hire","Re-Hire","Re-Hire","Re-Hire","Re-Hire","Re-Hire","Re-Hire","Re-Hire","Re-Hire","Re-Hire","Re-Hire","Re-Hire","Re-Hire","Re-Hire","Re-Hire","Re-Hire","Re-Hire","Re-Hire","Re-Hire","Re-Hire","Re-Hire","Re-Hire","Re-Hire","Re-Hire","Re-Hire","Re-Hire","Re-Hire","Re-Hire","Re-Hire","Re-Hire","Re-Hire","Re-Hire","Re-Hire","Re-Hire","Re-Hire","Re-Hire","Re-Hire","Re-Hire","Re-Hire","Re-Hire","Re-Hire","Re-Hire","Re-Hire","Re-Hire","Re-Hire","Re-Hire","Re-Hire","Re-Hire","Re-Hire","Re-Hire","Re-Hire","Re-Hire","Re-Hire","Re-Hire","Re-Hire","Re-Hire","Re-Hire","Re-Hire","Re-Hire","Re-Hire","Re-Hire","Re-Hire","Re-Hire","Re-Hire","Re-Hire","Re-Hire","Re-Hire","Re-Hire","Re-Hire","Re-Hire","Re-Hire","Re-Hire","Re-Hire","Re-Hire","Re-Hire","Re-Hire","Re-Hire","Re-Hire","Re-Hire","Re-Hire","Re-Hire","Re-Hire","Re-Hire","Re-Hire","Re-Hire","Re-Hire","Re-Hire","Re-Hire","Re-Hire","Re-Hire","Re-Hire","Re-Hire","Re-Hire","Re-Hire","Re-Hire","Re-Hire","Re-Hire","Re-Hire","Re-Hire","Re-Hire","Re-Hire","Re-Hire","Re-Hire","Re-Hire","Re-Hire","Re-Hire","Re-Hire","Re-Hire","Re-Hire","Re-Hire","Re-Hire","Re-Hire","Re-Hire","Re-Hire","Re-Hire","Re-Hire","Re-Hire","Re-Hire","Re-Hire","Re-Hire","Re-Hire","Re-Hire","Re-Hire","Re-Hire","Re-Hire","Re-Hire","Re-Hire","Re-Hire","Re-Hire","Re-Hire","Re-Hire","Re-Hire","Re-Hire","Re-Hire","Re-Hire","Re-Hire","Re-Hire","Re-Hire","Re-Hire","Re-Hire","Re-Hire","Re-Hire","Re-Hire","Re-Hire","Re-Hire","Re-Hire","Re-Hire","Re-Hire","Re-Hire","Re-Hire","Re-Hire","Re-Hire","Re-Hire","Re-Hire","Re-Hire","Re-Hire","Re-Hire","Re-Hire","Re-Hire","Re-Hire","Re-Hire","Re-Hire","Re-Hire","Re-Hire","Re-Hire","Re-Hire","Re-Hire","Re-Hire","Re-Hire","Re-Hire","Re-Hire","Re-Hire","Re-Hire","Re-Hire","Re-Hire","Re-Hire","Re-Hire","Re-Hire","Re-Hire","Re-Hire","Re-Hire","Re-Hire","Re-Hire","Re-Hire","Re-Hire","Re-Hire","Re-Hire","Re-Hire","Re-Hire","Re-Hire","Re-Hire","Re-Hire","Re-Hire","Re-Hire","Re-Hire","Re-Hire","Re-Hire","Re-Hire","Re-Hire","Re-Hire","Re-Hire","Re-Hire","Re-Hire","Re-Hire","Re-Hire","Re-Hire","Re-Hire","Re-Hire","Re-Hire","Re-Hire","Re-Hire","Re-Hire","Re-Hire","Re-Hire","Re-Hire","Re-Hire","Re-Hire","Re-Hire","Re-Hire","Re-Hire","Re-Hire","Re-Hire","Re-Hire","Re-Hire","Re-Hire","Re-Hire","Re-Hire","Re-Hire","Re-Hire","Re-Hire","Re-Hire","Re-Hire","Re-Hire","Re-Hire","Re-Hire","Re-Hire","Re-Hire","Re-Hire","Re-Hire","Re-Hire","Re-Hire","Re-Hire","Re-Hire","Re-Hire","Re-Hire","Re-Hire","Re-Hire","Re-Hire","Re-Hire","Re-Hire","Re-Hire","Re-Hire","Re-Hire","Re-Hire","Re-Hire","Re-Hire","Re-Hire","Re-Hire","Re-Hire","Re-Hire","Re-Hire","Re-Hire","Re-Hire","Re-Hire","Re-Hire","Re-Hire","Re-Hire","Re-Hire","Re-Hire","Re-Hire","Re-Hire","Re-Hire","Re-Hire","Re-Hire","Re-Hire","Re-Hire","Re-Hire","Re-Hire","Re-Hire","Re-Hire","Re-Hire","Re-Hire","Re-Hire","Re-Hire","Re-Hire","Re-Hire","Re-Hire","Re-Hire","Re-Hire","Re-Hire","Re-Hire","Re-Hire","Re-Hire","Re-Hire","Re-Hire","Re-Hire","Re-Hire","Re-Hire","Re-Hire","Re-Hire","Re-Hire","Re-Hire","Re-Hire","Re-Hire","Re-Hire","Re-Hire","Re-Hire","Re-Hire","Re-Hire","Re-Hire","Re-Hire","Re-Hire","Re-Hire","Re-Hire","Re-Hire","Re-Hire","Re-Hire","Re-Hire","Re-Hire","Re-Hire","Re-Hire","Re-Hire","Re-Hire","Re-Hire","Re-Hire","Re-Hire","Re-Hire","Re-Hire","Re-Hire","Re-Hire","Re-Hire","Re-Hire","Re-Hire","Re-Hire","Re-Hire","Re-Hire","Re-Hire","Re-Hire","Re-Hire","Re-Hire","Re-Hire","Re-Hire","Re-Hire","Re-Hire","Re-Hire","Re-Hire","Re-Hire","Re-Hire","Re-Hire","Re-Hire","Re-Hire","Re-Hire","Re-Hire","Re-Hire","Re-Hire","Re-Hire","Re-Hire","Re-Hire","Re-Hire","Re-Hire","Re-Hire","Re-Hire","Re-Hire","Re-Hire","Re-Hire","Re-Hire","Re-Hire","Re-Hire","Re-Hire","Re-Hire","Re-Hire","Re-Hire","Re-Hire","Re-Hire","Re-Hire","Re-Hire","Re-Hire","Re-Hire","Re-Hire","Re-Hire","Re-Hire","Re-Hire","Re-Hire","Re-Hire","Re-Hire","Re-Hire","Re-Hire","Re-Hire","Re-Hire","Re-Hire","Re-Hire","Re-Hire","Re-Hire","Re-Hire","Re-Hire","Re-Hire","Re-Hire","Re-Hire","Re-Hire","Re-Hire","Re-Hire","Re-Hire","Re-Hire","Re-Hire","Re-Hire","Re-Hire","Re-Hire","Re-Hire","Re-Hire","Re-Hire","Re-Hire","Re-Hire","Re-Hire","Re-Hire","Re-Hire","Re-Hire","Re-Hire","Re-Hire","Re-Hire","Re-Hire","Re-Hire","Re-Hire","Re-Hire","Re-Hire","Re-Hire","Re-Hire","Re-Hire","Re-Hire","Re-Hire","Re-Hire","Re-Hire","Re-Hire","Re-Hire","Re-Hire","Re-Hire","Re-Hire","Re-Hire","Re-Hire","Re-Hire","Re-Hire","Re-Hire","Re-Hire","Re-Hire","Re-Hire","Re-Hire","Re-Hire","Re-Hire","Re-Hire","Re-Hire","Re-Hire","Re-Hire","Re-Hire","Re-Hire","Re-Hire","Re-Hire","Re-Hire","Re-Hire","Re-Hire","Re-Hire","Re-Hire","Re-Hire","Re-Hire","Re-Hire","Re-Hire","Re-Hire","Re-Hire","Re-Hire","Re-Hire","Re-Hire","Re-Hire","Re-Hire","Re-Hire","Re-Hire","Re-Hire","Re-Hire","Re-Hire","Re-Hire","Re-Hire","Re-Hire","Re-Hire","Re-Hire","Re-Hire","Re-Hire","Re-Hire","Re-Hire","Re-Hire","Re-Hire","Re-Hire","Re-Hire","Re-Hire","Re-Hire","Re-Hire","Re-Hire","Re-Hire","Re-Hire","Re-Hire","Re-Hire","Re-Hire","Re-Hire","Re-Hire","Re-Hire","Re-Hire","Re-Hire","Re-Hire","Re-Hire","Re-Hire","Re-Hire","Re-Hire","Re-Hire","Re-Hire","Re-Hire","Re-Hire","Re-Hire","Re-Hire","Re-Hire","Re-Hire","Re-Hire","Re-Hire","Re-Hire","Re-Hire","Re-Hire","Re-Hire","Re-Hire","Re-Hire","Re-Hire","Re-Hire","Re-Hire","Re-Hire","Re-Hire","Re-Hire","Re-Hire","Re-Hire","Re-Hire","Re-Hire","Re-Hire","Re-Hire","Re-Hire","Re-Hire","Re-Hire","Re-Hire","Re-Hire","Re-Hire","Re-Hire","Re-Hire","Re-Hire","Re-Hire","Re-Hire","Re-Hire","Re-Hire","Re-Hire","Re-Hire","Re-Hire","Re-Hire","Re-Hire","Re-Hire","Re-Hire","Re-Hire","Re-Hire","Re-Hire","Re-Hire","Re-Hire","Re-Hire","Re-Hire","Re-Hire","Re-Hire","Re-Hire","Re-Hire","Re-Hire","Re-Hire","Re-Hire","Re-Hire","Re-Hire","Re-Hire","Re-Hire","Re-Hire","Re-Hire","Re-Hire","Re-Hire","Re-Hire","Re-Hire","Re-Hire","Re-Hire","Re-Hire","Re-Hire","Re-Hire","Re-Hire","Re-Hire","Re-Hire","Re-Hire","Re-Hire","Re-Hire","Re-Hire","Re-Hire","Re-Hire","Re-Hire","Re-Hire","Re-Hire","Re-Hire","Re-Hire","Re-Hire","Re-Hire","Re-Hire","Re-Hire","Re-Hire","Re-Hire","Re-Hire","Re-Hire","Re-Hire","Re-Hire","Re-Hire","Re-Hire","Re-Hire","Re-Hire","Re-Hire","Re-Hire","Re-Hire","Re-Hire","Re-Hire","Re-Hire","Re-Hire","Re-Hire","Re-Hire","Re-Hire","Re-Hire","Re-Hire","Re-Hire","Re-Hire","Re-Hire","Re-Hire","Re-Hire","Re-Hire","Re-Hire","Re-Hire","Re-Hire","Re-Hire","Re-Hire","Re-Hire","Re-Hire","Re-Hire","Re-Hire","Re-Hire","Re-Hire","Re-Hire","Re-Hire","Re-Hire","Re-Hire","Re-Hire","Re-Hire","Re-Hire","Re-Hire","Re-Hire","Re-Hire","Re-Hire","Re-Hire","Re-Hire","Re-Hire","Re-Hire","Re-Hire","Re-Hire","Re-Hire","Re-Hire","Re-Hire","Re-Hire","Re-Hire","Re-Hire","Re-Hire","Re-Hire","Re-Hire","Re-Hire","Re-Hire","Re-Hire","Re-Hire","Re-Hire","Re-Hire","Re-Hire","Re-Hire","Re-Hire","Re-Hire","Re-Hire","Re-Hire","Re-Hire","Re-Hire","Re-Hire","Re-Hire","Re-Hire","Re-Hire","Re-Hire","Re-Hire","Re-Hire","Re-Hire","Re-Hire","Re-Hire","Re-Hire","Re-Hire","Re-Hire","Re-Hire","Re-Hire","Re-Hire","Re-Hire","Re-Hire","Re-Hire","Re-Hire","Re-Hire","Re-Hire","Re-Hire","Re-Hire","Re-Hire","Re-Hire","Re-Hire","Re-Hire","Re-Hire","Re-Hire","Re-Hire","Re-Hire","Re-Hire","Re-Hire","Re-Hire","Re-Hire","Re-Hire","Re-Hire","Re-Hire","Re-Hire","Re-Hire","Re-Hire","Re-Hire","Re-Hire","Re-Hire","Re-Hire","Re-Hire","Re-Hire","Re-Hire","Re-Hire","Re-Hire","Re-Hire","Re-Hire","Re-Hire","Re-Hire","Re-Hire","Re-Hire","Re-Hire","Re-Hire","Re-Hire","Re-Hire","Re-Hire","Re-Hire","Re-Hire","Re-Hire","Re-Hire","Re-Hire","Re-Hire","Re-Hire","Re-Hire","Re-Hire","Re-Hire","Re-Hire","Re-Hire","Re-Hire","Re-Hire","Re-Hire","Re-Hire","Re-Hire","Re-Hire","Re-Hire","Re-Hire","Re-Hire","Re-Hire","Re-Hire","Re-Hire","Re-Hire","Re-Hire","Re-Hire","Re-Hire","Re-Hire","Re-Hire","Re-Hire","Re-Hire","Re-Hire","Re-Hire","Re-Hire","Re-Hire","Re-Hire","Re-Hire","Re-Hire","Re-Hire","Re-Hire","Re-Hire","Re-Hire","Re-Hire","Re-Hire","Re-Hire","Re-Hire","Re-Hire","Re-Hire","Re-Hire","Re-Hire","Re-Hire","Re-Hire","Re-Hire","Re-Hire","Re-Hire","Re-Hire","Re-Hire","Re-Hire","Re-Hire","Re-Hire","Re-Hire","Re-Hire","Re-Hire","Re-Hire","Re-Hire","Re-Hire","Re-Hire","Re-Hire","Re-Hire","Re-Hire","Re-Hire","Re-Hire","Re-Hire","Re-Hire","Re-Hire","Re-Hire","Re-Hire","Re-Hire","Re-Hire","Re-Hire","Re-Hire","Re-Hire","Re-Hire","Re-Hire","Re-Hire","Re-Hire","Re-Hire","Re-Hire","Re-Hire","Re-Hire","Re-Hire","Re-Hire","Re-Hire","Re-Hire","Re-Hire","Re-Hire","Re-Hire","Re-Hire","Re-Hire","Re-Hire","Re-Hire","Re-Hire","Re-Hire","Re-Hire","Re-Hire","Re-Hire","Re-Hire","Re-Hire","Re-Hire","Re-Hire","Re-Hire","Re-Hire","Re-Hire","Re-Hire","Re-Hire","Re-Hire","Re-Hire","Re-Hire","Re-Hire","Re-Hire","Re-Hire","Re-Hire","Re-Hire","Re-Hire","Re-Hire","Re-Hire","Re-Hire","Re-Hire","Re-Hire","Re-Hire","Re-Hire","Re-Hire","Re-Hire","Re-Hire","Re-Hire","Re-Hire","Re-Hire","Re-Hire","Re-Hire","Re-Hire","Re-Hire","Re-Hire","Re-Hire","Re-Hire","Re-Hire","Re-Hire","Re-Hire","Re-Hire","Re-Hire","Re-Hire","Re-Hire","Re-Hire","Re-Hire","Re-Hire","Re-Hire","Re-Hire","Re-Hire","Re-Hire","Re-Hire","Re-Hire","Re-Hire","Re-Hire","Re-Hire","Re-Hire","Re-Hire","Re-Hire","Re-Hire","Re-Hire","Re-Hire","Re-Hire","Re-Hire","Re-Hire","Re-Hire","Re-Hire","Re-Hire","Re-Hire","Re-Hire","Re-Hire","Re-Hire","Re-Hire","Re-Hire","Re-Hire","Re-Hire","Re-Hire","Re-Hire","Re-Hire","Re-Hire","Re-Hire","Re-Hire","Re-Hire","Re-Hire","Re-Hire","Re-Hire","Re-Hire","Re-Hire","Re-Hire","Re-Hire","Re-Hire","Re-Hire","Re-Hire","Re-Hire","Re-Hire","Re-Hire","Re-Hire","Re-Hire","Re-Hire","Re-Hire","Re-Hire","Re-Hire","Re-Hire","Re-Hire","Re-Hire","Re-Hire","Re-Hire","Re-Hire","Re-Hire","Re-Hire","Re-Hire","Re-Hire","Re-Hire","Re-Hire","Re-Hire","Re-Hire","Re-Hire","Re-Hire","Re-Hire","Re-Hire","Re-Hire","Re-Hire","Re-Hire","Re-Hire","Re-Hire","Re-Hire","Re-Hire","Re-Hire","Re-Hire","Re-Hire","Re-Hire","Re-Hire","Re-Hire","Re-Hire","Re-Hire","Re-Hire","Re-Hire","Re-Hire","Re-Hire","Re-Hire","Re-Hire","Re-Hire","Re-Hire","Re-Hire","Re-Hire","Re-Hire","Re-Hire","Re-Hire","Re-Hire","Re-Hire","Re-Hire","Re-Hire","Re-Hire","Re-Hire","Re-Hire","Re-Hire","Re-Hire","Re-Hire","Re-Hire","Re-Hire","Re-Hire","Re-Hire","Re-Hire","Re-Hire","Re-Hire","Re-Hire","Re-Hire","Re-Hire","Re-Hire","Re-Hire","Re-Hire","Re-Hire","Re-Hire","Re-Hire","Re-Hire","Re-Hire","Re-Hire","Re-Hire","Re-Hire","Re-Hire","Re-Hire","Re-Hire","Re-Hire","Re-Hire","Re-Hire","Re-Hire","Re-Hire","Re-Hire","Re-Hire","Re-Hire","Re-Hire","Re-Hire","Re-Hire","Re-Hire","Re-Hire","Re-Hire","Re-Hire","Re-Hire","Re-Hire","Re-Hire","Re-Hire","Re-Hire","Re-Hire","Re-Hire","Re-Hire","Re-Hire","Re-Hire","Re-Hire","Re-Hire","Re-Hire","Re-Hire","Re-Hire","Re-Hire","Re-Hire","Re-Hire","Re-Hire","Re-Hire","Re-Hire","Re-Hire","Re-Hire","Re-Hire","Re-Hire","Re-Hire","Re-Hire","Re-Hire","Re-Hire","Re-Hire","Re-Hire","Re-Hire","Re-Hire","Re-Hire","Re-Hire","Re-Hire","Re-Hire","Re-Hire","Re-Hire","Re-Hire","Re-Hire","Re-Hire","Re-Hire","Re-Hire","Re-Hire","Re-Hire","Re-Hire","Re-Hire","Re-Hire","Re-Hire","Re-Hire","Re-Hire","Re-Hire","Re-Hire","Re-Hire","Re-Hire","Re-Hire","Re-Hire","Re-Hire","Re-Hire","Re-Hire","Re-Hire","Re-Hire","Re-Hire","Re-Hire","Re-Hire","Re-Hire","Re-Hire","Re-Hire","Re-Hire","Re-Hire","Re-Hire","Re-Hire","Re-Hire","Re-Hire","Re-Hire","Re-Hire","Re-Hire","Re-Hire","Re-Hire","Re-Hire","Re-Hire","Re-Hire","Re-Hire","Re-Hire","Re-Hire","Re-Hire","Re-Hire","Re-Hire","Re-Hire","Re-Hire","Re-Hire","Re-Hire","Re-Hire","Re-Hire","Re-Hire","Re-Hire","Re-Hire","Re-Hire","Re-Hire","Re-Hire","Re-Hire","Re-Hire","Re-Hire","Re-Hire","Re-Hire","Re-Hire","Re-Hire","Re-Hire","Re-Hire","Re-Hire","Re-Hire","Re-Hire","Re-Hire","Re-Hire","Re-Hire","Re-Hire","Re-Hire","Re-Hire","Re-Hire","Re-Hire","Re-Hire","Re-Hire","Re-Hire","Re-Hire","Re-Hire","Re-Hire","Re-Hire","Re-Hire","Re-Hire","Re-Hire","Re-Hire","Re-Hire","Re-Hire","Re-Hire","Re-Hire","Re-Hire","Re-Hire","Re-Hire","Re-Hire","Re-Hire","Re-Hire","Re-Hire","Re-Hire","Re-Hire","Re-Hire","Re-Hire","Re-Hire","Re-Hire","Re-Hire","Re-Hire","Re-Hire","Re-Hire","Re-Hire","Re-Hire","Re-Hire","Re-Hire","Re-Hire","Re-Hire","Re-Hire","Re-Hire","Re-Hire","Re-Hire","Re-Hire","Re-Hire","Re-Hire","Re-Hire","Re-Hire","Re-Hire","Re-Hire","Re-Hire","Re-Hire","Re-Hire","Re-Hire","Re-Hire","Re-Hire","Re-Hire","Re-Hire","Re-Hire","Re-Hire","Re-Hire","Re-Hire","Re-Hire","Re-Hire","Re-Hire","Re-Hire","Re-Hire","Re-Hire","Re-Hire","Re-Hire","Re-Hire","Re-Hire","Re-Hire","Re-Hire","Re-Hire","Re-Hire","Re-Hire","Re-Hire","Re-Hire","Re-Hire","Re-Hire","Re-Hire","Re-Hire","Re-Hire","Re-Hire","Re-Hire","Re-Hire","Re-Hire","Re-Hire","Re-Hire","Re-Hire","Re-Hire","Re-Hire","Re-Hire","Re-Hire","Re-Hire","Re-Hire","Re-Hire","Re-Hire","Re-Hire","Re-Hire","Re-Hire","Re-Hire","Re-Hire","Re-Hire","Re-Hire","Re-Hire","Re-Hire","Re-Hire","Re-Hire","Re-Hire","Re-Hire","Re-Hire","Re-Hire","Re-Hire","Re-Hire","Re-Hire","Re-Hire","Re-Hire","Re-Hire","Re-Hire","Re-Hire","Re-Hire","Re-Hire","Re-Hire","Re-Hire","Re-Hire","Re-Hire","Re-Hire","Re-Hire","Re-Hire","Re-Hire","Re-Hire","Re-Hire","Re-Hire","Re-Hire","Re-Hire","Re-Hire","Re-Hire","Re-Hire","Re-Hire","Re-Hire","Re-Hire","Re-Hire","Re-Hire","Re-Hire","Re-Hire","Re-Hire","Re-Hire","Re-Hire","Re-Hire","Re-Hire","Re-Hire","Re-Hire","Re-Hire","Re-Hire","Re-Hire","Re-Hire","Re-Hire","Re-Hire","Re-Hire","Re-Hire","Re-Hire","Re-Hire","Re-Hire","Re-Hire","Re-Hire","Re-Hire","Re-Hire","Re-Hire","Re-Hire","Re-Hire","Re-Hire","Re-Hire","Re-Hire","Re-Hire","Re-Hire","Re-Hire","Re-Hire","Re-Hire","Re-Hire","Re-Hire","Re-Hire","Re-Hire","Re-Hire","Re-Hire","Re-Hire","Re-Hire","Re-Hire","Re-Hire","Re-Hire","Re-Hire","Re-Hire","Re-Hire","Re-Hire","Re-Hire","Re-Hire","Re-Hire","Re-Hire","Re-Hire","Re-Hire","Re-Hire","Re-Hire","Re-Hire","Re-Hire","Re-Hire","Re-Hire","Re-Hire","Re-Hire","Re-Hire","Re-Hire","Re-Hire","Re-Hire","Re-Hire","Re-Hire","Re-Hire","Re-Hire","Re-Hire","Re-Hire","Re-Hire","Re-Hire","Re-Hire","Re-Hire","Re-Hire","Re-Hire","Re-Hire","Re-Hire","Re-Hire","Re-Hire","Re-Hire","Re-Hire","Re-Hire","Re-Hire","Re-Hire","Re-Hire","Re-Hire","Re-Hire","Re-Hire","Re-Hire","Re-Hire","Re-Hire","Re-Hire","Re-Hire","Re-Hire","Re-Hire","Re-Hire","Re-Hire","Re-Hire","Re-Hire","Re-Hire","Re-Hire","Re-Hire","Re-Hire","Re-Hire","Re-Hire","Re-Hire","Re-Hire","Re-Hire","Re-Hire","Re-Hire","Re-Hire","Re-Hire","Re-Hire","Re-Hire","Re-Hire","Re-Hire","Re-Hire","Re-Hire","Re-Hire","Re-Hire","Re-Hire","Re-Hire","Re-Hire","Re-Hire","Re-Hire","Re-Hire","Re-Hire","Re-Hire","Re-Hire","Re-Hire","Re-Hire","Re-Hire","Re-Hire","Re-Hire","Re-Hire","Re-Hire","Re-Hire","Re-Hire","Re-Hire","Re-Hire","Re-Hire","Re-Hire","Re-Hire","Re-Hire","Re-Hire","Re-Hire","Re-Hire","Re-Hire","Re-Hire","Re-Hire","Re-Hire","Re-Hire","Re-Hire","Re-Hire","Re-Hire","Re-Hire","Re-Hire","Re-Hire","Re-Hire","Re-Hire","Re-Hire","Re-Hire","Re-Hire","Re-Hire","Re-Hire","Re-Hire","Re-Hire","Re-Hire","Re-Hire","Re-Hire","Re-Hire","Re-Hire","Re-Hire","Re-Hire","Re-Hire","Re-Hire","Re-Hire","Re-Hire","Re-Hire","Re-Hire","Re-Hire","Re-Hire","Re-Hire","Re-Hire","Re-Hire","Re-Hire","Re-Hire","Re-Hire","Re-Hire","Re-Hire","Re-Hire","Re-Hire","Re-Hire","Re-Hire","Re-Hire","Re-Hire","Re-Hire","Re-Hire","Re-Hire","Re-Hire","Re-Hire","Re-Hire","Re-Hire","Re-Hire","Re-Hire","Re-Hire","Re-Hire","Re-Hire","Re-Hire","Re-Hire","Re-Hire","Re-Hire","Re-Hire","Re-Hire","Re-Hire","Re-Hire","Re-Hire","Re-Hire","Re-Hire","Re-Hire","Re-Hire","Re-Hire","Re-Hire","Re-Hire","Re-Hire","Re-Hire","Re-Hire","Re-Hire","Re-Hire","Re-Hire","Re-Hire","Re-Hire","Re-Hire","Re-Hire","Re-Hire","Re-Hire","Re-Hire","Re-Hire","Re-Hire","Re-Hire","Re-Hire","Re-Hire","Re-Hire","Re-Hire","Re-Hire","Re-Hire","Re-Hire","Re-Hire","Re-Hire","Re-Hire","Re-Hire","Re-Hire","Re-Hire","Re-Hire","Re-Hire","Re-Hire","Re-Hire","Re-Hire","Re-Hire","Re-Hire","Re-Hire","Re-Hire","Re-Hire","Re-Hire","Re-Hire","Re-Hire","Re-Hire","Re-Hire","Re-Hire","Re-Hire","Re-Hire","Re-Hire","Re-Hire","Re-Hire","Re-Hire","Re-Hire","Re-Hire","Re-Hire","Re-Hire","Re-Hire","Re-Hire","Re-Hire","Re-Hire","Re-Hire","Re-Hire","Re-Hire","Re-Hire","Re-Hire","Re-Hire","Re-Hire","Re-Hire","Re-Hire","Re-Hire","Re-Hire","Re-Hire","Re-Hire","Re-Hire","Re-Hire","Re-Hire","Re-Hire","Re-Hire","Re-Hire","Re-Hire","Re-Hire","Re-Hire","Re-Hire","Re-Hire","Re-Hire","Re-Hire","Re-Hire","Re-Hire","Re-Hire","Re-Hire","Re-Hire","Re-Hire","Re-Hire","Re-Hire","Re-Hire","Re-Hire","Re-Hire","Re-Hire","Re-Hire","Re-Hire","Re-Hire","Re-Hire","Re-Hire","Re-Hire","Re-Hire","Re-Hire","Re-Hire","Re-Hire","Re-Hire","Re-Hire","Re-Hire","Re-Hire","Re-Hire","Re-Hire","Re-Hire","Re-Hire","Re-Hire","Re-Hire","Re-Hire","Re-Hire","Re-Hire","Re-Hire","Re-Hire","Re-Hire","Re-Hire","Re-Hire","Re-Hire","Re-Hire","Re-Hire","Re-Hire","Re-Hire","Re-Hire","Re-Hire","Re-Hire","Re-Hire","Re-Hire","Re-Hire","Re-Hire","Re-Hire","Re-Hire","Re-Hire","Re-Hire","Re-Hire","Re-Hire","Re-Hire","Re-Hire","Re-Hire","Re-Hire","Re-Hire","Re-Hire","Re-Hire","Re-Hire","Re-Hire","Re-Hire","Re-Hire","Re-Hire","Re-Hire","Re-Hire","Re-Hire","Re-Hire","Re-Hire","Re-Hire","Re-Hire","Re-Hire","Re-Hire","Re-Hire","Re-Hire","Re-Hire","Re-Hire","Re-Hire","Re-Hire","Re-Hire","Re-Hire","Re-Hire","Re-Hire","Re-Hire","Re-Hire","Re-Hire","Re-Hire","Re-Hire","Re-Hire","Re-Hire","Re-Hire","Re-Hire","Re-Hire","Re-Hire","Re-Hire","Re-Hire","Re-Hire","Re-Hire","Re-Hire","Re-Hire","Re-Hire","Re-Hire","Re-Hire","Re-Hire","Re-Hire","Re-Hire","Re-Hire","Re-Hire","Re-Hire","Re-Hire","Re-Hire","Re-Hire","Re-Hire","Re-Hire","Re-Hire","Re-Hire","Re-Hire","Re-Hire","Re-Hire","Re-Hire","Re-Hire","Re-Hire","Re-Hire","Re-Hire","Re-Hire","Re-Hire","Re-Hire","Re-Hire","Re-Hire","Re-Hire","Re-Hire","Re-Hire","Re-Hire","Re-Hire","Re-Hire","Re-Hire","Re-Hire","Re-Hire","Re-Hire","Re-Hire","Re-Hire","Re-Hire","Re-Hire","Re-Hire","Re-Hire","Re-Hire","Re-Hire","Re-Hire","Re-Hire","Re-Hire","Re-Hire","Re-Hire","Re-Hire","Re-Hire","Re-Hire","Re-Hire","Re-Hire","Re-Hire","Re-Hire","Re-Hire","Re-Hire","Re-Hire","Re-Hire","Re-Hire","Re-Hire","Re-Hire","Re-Hire","Re-Hire","Re-Hire","Re-Hire","Re-Hire","Re-Hire","Re-Hire","Re-Hire","Re-Hire","Re-Hire","Re-Hire","Re-Hire","Re-Hire","Re-Hire","Re-Hire","Re-Hire","Re-Hire","Re-Hire","Re-Hire","Re-Hire","Re-Hire","Re-Hire","Re-Hire","Re-Hire","Re-Hire","Re-Hire","Re-Hire","Re-Hire","Re-Hire","Re-Hire","Re-Hire","Re-Hire","Re-Hire","Re-Hire","Re-Hire","Re-Hire","Re-Hire","Re-Hire","Re-Hire","Re-Hire","Re-Hire","Re-Hire","Re-Hire","Re-Hire","Re-Hire","Re-Hire","Re-Hire","Re-Hire","Re-Hire","Re-Hire","Re-Hire","Re-Hire","Re-Hire","Re-Hire","Re-Hire","Re-Hire","Re-Hire","Re-Hire","Re-Hire","Re-Hire","Re-Hire","Re-Hire","Re-Hire","Re-Hire","Re-Hire","Re-Hire","Re-Hire","Re-Hire","Re-Hire","Re-Hire","Re-Hire","Re-Hire","Re-Hire","Re-Hire","Re-Hire","Re-Hire","Re-Hire","Re-Hire","Re-Hire","Re-Hire","Re-Hire","Re-Hire","Re-Hire","Re-Hire","Re-Hire","Re-Hire","Re-Hire","Re-Hire","Re-Hire","Re-Hire","Re-Hire","Re-Hire","Re-Hire","Re-Hire","Re-Hire","Re-Hire","Re-Hire","Re-Hire","Re-Hire","Re-Hire","Re-Hire","Re-Hire","Re-Hire","Re-Hire","Re-Hire","Re-Hire","Re-Hire","Re-Hire","Re-Hire","Re-Hire","Re-Hire","Re-Hire","Re-Hire","Re-Hire","Re-Hire","Re-Hire","Re-Hire","Re-Hire","Re-Hire","Re-Hire","Re-Hire","Re-Hire","Re-Hire","Re-Hire","Re-Hire","Re-Hire","Re-Hire","Re-Hire","Re-Hire","Re-Hire","Re-Hire","Re-Hire","Re-Hire","Re-Hire","Re-Hire","Re-Hire","Re-Hire","Re-Hire","Re-Hire","Re-Hire","Re-Hire","Re-Hire","Re-Hire","Re-Hire","Re-Hire","Re-Hire","Re-Hire","Re-Hire","Re-Hire","Re-Hire","Re-Hire","Re-Hire","Re-Hire","Re-Hire","Re-Hire","Re-Hire","Re-Hire","Re-Hire","Re-Hire","Re-Hire","Re-Hire","Re-Hire","Re-Hire","Re-Hire","Re-Hire","Re-Hire","Re-Hire","Re-Hire","Re-Hire","Re-Hire","Re-Hire","Re-Hire","Re-Hire","Re-Hire","Re-Hire","Re-Hire","Re-Hire","Re-Hire","Re-Hire","Re-Hire","Re-Hire","Re-Hire","Re-Hire","Re-Hire","Re-Hire","Re-Hire","Re-Hire","Re-Hire","Re-Hire","Re-Hire","Re-Hire","Re-Hire","Re-Hire","Re-Hire","Re-Hire","Re-Hire","Re-Hire","Re-Hire","Re-Hire","Re-Hire","Re-Hire","Re-Hire","Re-Hire","Re-Hire","Re-Hire","Re-Hire","Re-Hire","Re-Hire","Re-Hire","Re-Hire","Re-Hire","Re-Hire","Re-Hire","Re-Hire","Re-Hire","Re-Hire","Re-Hire","Re-Hire","Re-Hire","Re-Hire","Re-Hire","Re-Hire","Re-Hire","Re-Hire","Re-Hire","Re-Hire","Re-Hire","Re-Hire","Re-Hire","Re-Hire","Re-Hire","Re-Hire","Re-Hire","Re-Hire","Re-Hire","Re-Hire","Re-Hire","Re-Hire","Re-Hire","Re-Hire","Re-Hire","Re-Hire","Re-Hire","Re-Hire","Re-Hire","Re-Hire","Re-Hire","Re-Hire","Re-Hire","Re-Hire","Re-Hire","Re-Hire","Re-Hire","Re-Hire","Re-Hire","Re-Hire","Re-Hire","Re-Hire","Re-Hire","Re-Hire","Re-Hire","Re-Hire","Re-Hire","Re-Hire","Re-Hire","Re-Hire","Re-Hire","Re-Hire","Re-Hire","Re-Hire","Re-Hire","Re-Hire","Re-Hire","Re-Hire","Re-Hire","Re-Hire","Re-Hire","Re-Hire","Re-Hire","Re-Hire","Re-Hire","Re-Hire","Re-Hire","Re-Hire","Re-Hire","Re-Hire","Re-Hire","Re-Hire","Re-Hire","Re-Hire","Re-Hire","Re-Hire","Re-Hire","Re-Hire","Re-Hire","Re-Hire","Re-Hire","Re-Hire","Re-Hire","Re-Hire","Re-Hire","Re-Hire","Re-Hire","Re-Hire","Re-Hire","Re-Hire","Re-Hire","Re-Hire","Re-Hire","Re-Hire","Re-Hire","Re-Hire","Re-Hire","Re-Hire","Re-Hire","Re-Hire","Re-Hire","Re-Hire","Re-Hire","Re-Hire","Re-Hire","Re-Hire","Re-Hire","Re-Hire","Re-Hire","Re-Hire","Re-Hire","Re-Hire","Re-Hire","Re-Hire","Re-Hire","Re-Hire","Re-Hire","Re-Hire","Re-Hire","Re-Hire","Re-Hire","Re-Hire","Re-Hire","Re-Hire","Re-Hire","Re-Hire","Re-Hire","Re-Hire","Re-Hire","Re-Hire","Re-Hire","Re-Hire","Re-Hire","Re-Hire","Re-Hire","Re-Hire","Re-Hire","Re-Hire","Re-Hire","Re-Hire","Re-Hire","Re-Hire","Re-Hire","Re-Hire","Re-Hire","Re-Hire","Re-Hire","Re-Hire","Re-Hire","Re-Hire","Re-Hire","Re-Hire","Re-Hire","Re-Hire","Re-Hire","Re-Hire","Re-Hire","Re-Hire","Re-Hire","Re-Hire","Re-Hire","Re-Hire","Re-Hire","Re-Hire","Re-Hire","Re-Hire","Re-Hire","Re-Hire","Re-Hire","Re-Hire","Re-Hire","Re-Hire","Re-Hire","Re-Hire","Re-Hire","Re-Hire","Re-Hire","Re-Hire","Re-Hire","Re-Hire","Re-Hire","Re-Hire","Re-Hire","Re-Hire","Re-Hire","Re-Hire","Re-Hire","Re-Hire","Re-Hire","Re-Hire","Re-Hire","Re-Hire","Re-Hire","Re-Hire","Re-Hire","Re-Hire","Re-Hire","Re-Hire","Re-Hire","Re-Hire","Re-Hire","Re-Hire","Re-Hire","Re-Hire","Re-Hire","Re-Hire","Re-Hire","Re-Hire","Re-Hire","Re-Hire","Re-Hire","Re-Hire","Re-Hire","Re-Hire","Re-Hire","Re-Hire","Re-Hire","Re-Hire","Re-Hire","Re-Hire","Re-Hire","Re-Hire","Re-Hire","Re-Hire","Re-Hire","Re-Hire","Re-Hire","Re-Hire","Re-Hire","Re-Hire","Re-Hire","Re-Hire","Re-Hire","Re-Hire","Re-Hire","Re-Hire","Re-Hire","Re-Hire","Re-Hire","Re-Hire","Re-Hire","Re-Hire","Re-Hire","Re-Hire","Re-Hire","Re-Hire","Re-Hire","Re-Hire","Re-Hire","Re-Hire","Re-Hire","Re-Hire","Re-Hire","Re-Hire","Re-Hire","Re-Hire","Re-Hire","Re-Hire","Re-Hire","Re-Hire","Re-Hire","Re-Hire","Re-Hire","Re-Hire","Re-Hire","Re-Hire","Re-Hire","Re-Hire","Re-Hire","Re-Hire","Re-Hire","Re-Hire","Re-Hire","Re-Hire","Re-Hire","Re-Hire","Re-Hire","Re-Hire","Re-Hire","Re-Hire","Re-Hire","Re-Hire","Re-Hire","Re-Hire","Re-Hire","Re-Hire","Re-Hire","Re-Hire","Re-Hire","Re-Hire","Re-Hire","Re-Hire","Re-Hire","Re-Hire","Re-Hire","Re-Hire","Re-Hire","Re-Hire","Re-Hire","Re-Hire","Re-Hire","Re-Hire","Re-Hire","Re-Hire","Re-Hire","Re-Hire","Re-Hire","Re-Hire","Re-Hire","Re-Hire","Re-Hire","Re-Hire","Re-Hire","Re-Hire","Re-Hire","Re-Hire","Re-Hire","Re-Hire","Re-Hire","Re-Hire","Re-Hire","Re-Hire","Re-Hire","Re-Hire","Re-Hire","Re-Hire","Re-Hire","Re-Hire","Re-Hire","Re-Hire","Re-Hire","Re-Hire","Re-Hire","Re-Hire","Re-Hire","Re-Hire","Re-Hire","Re-Hire","Re-Hire","Re-Hire","Re-Hire","Re-Hire","Re-Hire","Re-Hire","Re-Hire","Re-Hire","Re-Hire","Re-Hire","Re-Hire","Re-Hire","Re-Hire","Re-Hire","Re-Hire","Re-Hire","Re-Hire","Re-Hire","Re-Hire","Re-Hire","Re-Hire","Re-Hire","Re-Hire","Re-Hire","Re-Hire","Re-Hire","Re-Hire","Re-Hire","Re-Hire","Re-Hire","Re-Hire","Re-Hire","Re-Hire","Re-Hire","Re-Hire","Re-Hire","Re-Hire","Re-Hire","Re-Hire","Re-Hire","Re-Hire","Re-Hire","Re-Hire","Re-Hire","Re-Hire","Re-Hire","Re-Hire","Re-Hire","Re-Hire","Re-Hire","Re-Hire","Re-Hire","Re-Hire","Re-Hire","Re-Hire","Re-Hire","Re-Hire","Re-Hire","Re-Hire","Re-Hire","Re-Hire","Re-Hire","Re-Hire","Re-Hire","Re-Hire","Re-Hire","Re-Hire","Re-Hire","Re-Hire","Re-Hire","Re-Hire","Re-Hire","Re-Hire","Re-Hire","Re-Hire","Re-Hire","Re-Hire","Re-Hire","Re-Hire","Re-Hire","Re-Hire","Re-Hire","Re-Hire","Re-Hire","Re-Hire","Re-Hire","Re-Hire","Re-Hire","Re-Hire","Re-Hire","Re-Hire","Re-Hire","Re-Hire","Re-Hire","Re-Hire","Re-Hire","Re-Hire","Re-Hire","Re-Hire","Re-Hire","Re-Hire","Re-Hire","Re-Hire","Re-Hire","Re-Hire","Re-Hire","Re-Hire","Re-Hire","Re-Hire","Re-Hire","Re-Hire","Re-Hire","Re-Hire","Re-Hire","Re-Hire","Re-Hire","Re-Hire","Re-Hire","Re-Hire","Re-Hire","Re-Hire","Re-Hire","Re-Hire","Re-Hire","Re-Hire","Re-Hire","Re-Hire","Re-Hire","Re-Hire","Re-Hire","Re-Hire","Re-Hire","Re-Hire","Re-Hire","Re-Hire","Re-Hire","Re-Hire","Re-Hire","Re-Hire","Re-Hire","Re-Hire","Re-Hire","Re-Hire","Re-Hire","Re-Hire","Re-Hire","Re-Hire","Re-Hire","Re-Hire","Re-Hire","Re-Hire","Re-Hire","Re-Hire","Re-Hire","Re-Hire","Re-Hire","Re-Hire","Re-Hire","Re-Hire","Re-Hire","Re-Hire","Re-Hire","Re-Hire","Re-Hire","Re-Hire","Re-Hire","Re-Hire","Re-Hire","Re-Hire","Re-Hire","Re-Hire","Re-Hire","Re-Hire","Re-Hire","Re-Hire","Re-Hire","Re-Hire","Re-Hire","Re-Hire","Re-Hire","Re-Hire","Re-Hire","Re-Hire","Re-Hire","Re-Hire","Re-Hire","Re-Hire","Re-Hire","Re-Hire","Re-Hire","Re-Hire","Re-Hire","Re-Hire","Re-Hire","Re-Hire","Re-Hire","Re-Hire","Re-Hire","Re-Hire","Re-Hire","Re-Hire","Re-Hire","Re-Hire","Re-Hire","Re-Hire","Re-Hire","Re-Hire","Re-Hire","Re-Hire","Re-Hire","Re-Hire","Re-Hire","Re-Hire","Re-Hire","Re-Hire","Re-Hire","Re-Hire","Re-Hire","Re-Hire","Re-Hire","Re-Hire","Re-Hire","Re-Hire","Re-Hire","Re-Hire","Re-Hire","Re-Hire","Re-Hire","Re-Hire","Re-Hire","Re-Hire","Re-Hire","Re-Hire","Re-Hire","Re-Hire","Re-Hire","Re-Hire","Re-Hire","Re-Hire","Re-Hire","Re-Hire","Re-Hire","Re-Hire","Re-Hire","Re-Hire","Re-Hire","Re-Hire","Re-Hire","Re-Hire","Re-Hire","Re-Hire","Re-Hire","Re-Hire","Re-Hire","Re-Hire","Re-Hire","Re-Hire","Re-Hire","Re-Hire","Re-Hire","Re-Hire","Re-Hire","Re-Hire","Re-Hire","Re-Hire","Re-Hire","Re-Hire","Re-Hire","Re-Hire","Re-Hire","Re-Hire","Re-Hire","Re-Hire","Re-Hire","Re-Hire","Re-Hire","Re-Hire","Re-Hire","Re-Hire","Re-Hire","Re-Hire","Re-Hire","Re-Hire","Re-Hire","Re-Hire","Re-Hire","Re-Hire","Re-Hire","Re-Hire","Re-Hire","Re-Hire","Re-Hire","Re-Hire","Re-Hire","Re-Hire","Re-Hire","Re-Hire","Re-Hire","Re-Hire","Re-Hire","Re-Hire","Re-Hire","Re-Hire","Re-Hire","Re-Hire","Re-Hire","Re-Hire","Re-Hire","Re-Hire","Re-Hire","Re-Hire","Re-Hire","Re-Hire","Re-Hire","Re-Hire","Re-Hire","Re-Hire","Re-Hire","Re-Hire","Re-Hire","Re-Hire","Re-Hire","Re-Hire","Re-Hire","Re-Hire","Re-Hire","Re-Hire","Re-Hire","Re-Hire","Re-Hire","Re-Hire","Re-Hire","Re-Hire","Re-Hire","Re-Hire","Re-Hire","Re-Hire","Re-Hire","Re-Hire","Re-Hire","Re-Hire","Re-Hire","Re-Hire","Re-Hire","Re-Hire","Re-Hire","Re-Hire","Re-Hire","Re-Hire","Re-Hire","Re-Hire","Re-Hire","Re-Hire","Re-Hire","Re-Hire","Re-Hire","Re-Hire","Re-Hire","Re-Hire","Re-Hire","Re-Hire","Re-Hire","Re-Hire","Re-Hire","Re-Hire","Re-Hire","Re-Hire","Re-Hire","Re-Hire","Re-Hire","Re-Hire","Re-Hire","Re-Hire","Re-Hire","Re-Hire","Re-Hire","Re-Hire","Re-Hire","Re-Hire","Re-Hire","Re-Hire","Re-Hire","Re-Hire","Re-Hire","Re-Hire","Re-Hire","Re-Hire","Re-Hire","Re-Hire","Re-Hire","Re-Hire","Re-Hire","Re-Hire","Re-Hire","Re-Hire","Re-Hire","Re-Hire","Re-Hire","Re-Hire","Re-Hire","Re-Hire","Re-Hire","Re-Hire","Re-Hire","Re-Hire","Re-Hire","Re-Hire","Re-Hire","Re-Hire","Re-Hire","Re-Hire","Re-Hire","Re-Hire","Re-Hire","Re-Hire","Re-Hire","Re-Hire","Re-Hire","Re-Hire","Re-Hire","Re-Hire","Re-Hire","Re-Hire","Re-Hire","Re-Hire","Re-Hire","Re-Hire","Re-Hire","Re-Hire","Re-Hire","Re-Hire","Re-Hire","Re-Hire","Re-Hire","Re-Hire","Re-Hire","Re-Hire","Re-Hire","Re-Hire","Re-Hire","Re-Hire","Re-Hire","Re-Hire","Re-Hire","Re-Hire","Re-Hire","Re-Hire","Re-Hire","Re-Hire","Re-Hire","Re-Hire","Re-Hire","Re-Hire","Re-Hire","Re-Hire","Re-Hire","Re-Hire","Re-Hire","Re-Hire","Re-Hire","Re-Hire","Re-Hire","Re-Hire","Re-Hire","Re-Hire","Re-Hire","Re-Hire","Re-Hire","Re-Hire","Re-Hire","Re-Hire","Re-Hire","Re-Hire","Re-Hire","Re-Hire","Re-Hire","Re-Hire","Re-Hire","Re-Hire","Re-Hire","Re-Hire","Re-Hire","Re-Hire","Re-Hire","Re-Hire","Re-Hire","Re-Hire","Re-Hire","Re-Hire","Re-Hire","Re-Hire","Re-Hire","Re-Hire","Re-Hire","Re-Hire","Re-Hire","Re-Hire","Re-Hire","Re-Hire","Re-Hire","Re-Hire","Re-Hire","Re-Hire","Re-Hire","Re-Hire","Re-Hire","Re-Hire","Re-Hire","Re-Hire","Re-Hire","Re-Hire","Re-Hire","Re-Hire","Re-Hire","Re-Hire","Re-Hire","Re-Hire","Re-Hire","Re-Hire","Re-Hire","Re-Hire","Re-Hire","Re-Hire","Re-Hire","Re-Hire","Re-Hire","Re-Hire","Re-Hire","Re-Hire","Re-Hire","Re-Hire","Re-Hire","Re-Hire","Re-Hire","Re-Hire","Re-Hire","Re-Hire","Re-Hire","Re-Hire","Re-Hire","Re-Hire","Re-Hire","Re-Hire","Re-Hire","Re-Hire","Re-Hire","Re-Hire","Re-Hire","Re-Hire","Re-Hire","Re-Hire","Re-Hire","Re-Hire","Re-Hire","Re-Hire","Re-Hire","Re-Hire","Re-Hire","Re-Hire","Re-Hire","Re-Hire","Re-Hire","Re-Hire","Re-Hire","Re-Hire","Re-Hire","Re-Hire","Re-Hire","Re-Hire","Re-Hire","Re-Hire","Re-Hire","Re-Hire","Re-Hire","Re-Hire","Re-Hire","Re-Hire","Re-Hire","Re-Hire","Re-Hire","Re-Hire","Re-Hire","Re-Hire","Re-Hire","Re-Hire","Re-Hire","Re-Hire","Re-Hire","Re-Hire","Re-Hire","Re-Hire","Re-Hire","Re-Hire","Re-Hire","Re-Hire","Re-Hire","Re-Hire","Re-Hire","Re-Hire","Re-Hire","Re-Hire","Re-Hire","Re-Hire","Re-Hire","Re-Hire","Re-Hire","Re-Hire","Re-Hire","Re-Hire","Re-Hire","Re-Hire","Re-Hire","Re-Hire","Re-Hire","Re-Hire","Re-Hire","Re-Hire","Re-Hire","Re-Hire","Re-Hire","Re-Hire","Re-Hire","Re-Hire","Re-Hire","Re-Hire","Re-Hire","Re-Hire","Re-Hire","Re-Hire","Re-Hire","Re-Hire","Re-Hire","Re-Hire","Re-Hire","Re-Hire","Re-Hire","Re-Hire","Re-Hire","Re-Hire","Re-Hire","Re-Hire","Re-Hire","Re-Hire","Re-Hire","Re-Hire","Re-Hire","Re-Hire","Re-Hire","Re-Hire","Re-Hire","Re-Hire","Re-Hire","Re-Hire","Re-Hire","Re-Hire","Re-Hire","Re-Hire","Re-Hire","Re-Hire","Re-Hire","Re-Hire","Re-Hire","Re-Hire","Re-Hire","Re-Hire","Re-Hire","Re-Hire","Re-Hire","Re-Hire","Re-Hire","Re-Hire","Re-Hire","Re-Hire","Re-Hire","Re-Hire","Re-Hire","Re-Hire","Re-Hire","Re-Hire","Re-Hire","Re-Hire","Re-Hire","Re-Hire","Re-Hire","Re-Hire","Re-Hire","Re-Hire","Re-Hire","Re-Hire","Re-Hire","Re-Hire","Re-Hire","Re-Hire","Re-Hire","Re-Hire","Re-Hire","Re-Hire","Re-Hire","Re-Hire","Re-Hire","Re-Hire","Re-Hire","Re-Hire","Re-Hire","Re-Hire","Re-Hire","Re-Hire","Re-Hire","Re-Hire","Re-Hire","Re-Hire","Re-Hire","Re-Hire","Re-Hire","Re-Hire","Re-Hire","Re-Hire","Re-Hire","Re-Hire","Re-Hire","Re-Hire","Re-Hire","Re-Hire","Re-Hire","Re-Hire","Re-Hire","Re-Hire","Re-Hire","Re-Hire","Re-Hire","Re-Hire","Re-Hire","Re-Hire","Re-Hire","Re-Hire","Re-Hire","Re-Hire","Re-Hire","Re-Hire","Re-Hire","Re-Hire","Re-Hire","Re-Hire","Re-Hire","Re-Hire","Re-Hire","Re-Hire","Re-Hire","Re-Hire","Re-Hire","Re-Hire","Re-Hire","Re-Hire","Re-Hire","Re-Hire","Re-Hire","Re-Hire","Re-Hire","Re-Hire","Re-Hire","Re-Hire","Re-Hire","Re-Hire","Re-Hire","Re-Hire","Re-Hire","Re-Hire","Re-Hire","Re-Hire","Re-Hire","Re-Hire","Re-Hire","Re-Hire","Re-Hire","Re-Hire","Re-Hire","Re-Hire","Re-Hire","Re-Hire","Re-Hire","Re-Hire","Re-Hire","Re-Hire","Re-Hire","Re-Hire","Re-Hire","Re-Hire","Re-Hire","Re-Hire","Re-Hire","Re-Hire","Re-Hire","Re-Hire","Re-Hire","Re-Hire","Re-Hire","Re-Hire","Re-Hire","Re-Hire","Re-Hire","Re-Hire","Re-Hire","Re-Hire","Re-Hire","Re-Hire","Re-Hire","Re-Hire","Re-Hire","Re-Hire","Re-Hire","Re-Hire","Re-Hire","Re-Hire","Re-Hire","Re-Hire","Re-Hire","Re-Hire","Re-Hire","Re-Hire","Re-Hire","Re-Hire","Re-Hire","Re-Hire","Re-Hire","Re-Hire","Re-Hire","Re-Hire","Re-Hire","Re-Hire","Re-Hire","Re-Hire","Re-Hire","Re-Hire","Re-Hire","Re-Hire","Re-Hire","Re-Hire","Re-Hire","Re-Hire","Re-Hire","Re-Hire","Re-Hire","Re-Hire","Re-Hire","Re-Hire","Re-Hire","Re-Hire","Re-Hire","Re-Hire","Re-Hire","Re-Hire","Re-Hire","Re-Hire","Re-Hire","Re-Hire","Re-Hire","Re-Hire","Re-Hire","Re-Hire","Re-Hire","Re-Hire","Re-Hire","Re-Hire","Re-Hire","Re-Hire","Re-Hire","Re-Hire","Re-Hire","Re-Hire","Re-Hire","Re-Hire","Re-Hire","Re-Hire","Re-Hire","Re-Hire","Re-Hire","Re-Hire","Re-Hire","Re-Hire","Re-Hire","Re-Hire","Re-Hire","Re-Hire","Re-Hire","Re-Hire","Re-Hire","Re-Hire","Re-Hire","Re-Hire","Re-Hire","Re-Hire","Re-Hire","Re-Hire","Re-Hire","Re-Hire","Re-Hire","Re-Hire","Re-Hire","Re-Hire","Re-Hire","Re-Hire","Re-Hire","Re-Hire","Re-Hire","Re-Hire","Re-Hire","Re-Hire","Re-Hire","Re-Hire","Re-Hire","Re-Hire","Re-Hire","Re-Hire","Re-Hire","Re-Hire","Re-Hire","Re-Hire","Re-Hire","Re-Hire","Re-Hire","Re-Hire","Re-Hire","Re-Hire","Re-Hire","Re-Hire","Re-Hire","Re-Hire","Re-Hire","Re-Hire","Re-Hire","Re-Hire","Re-Hire","Re-Hire","Re-Hire","Re-Hire","Re-Hire","Re-Hire","Re-Hire","Re-Hire","Re-Hire","Re-Hire","Re-Hire","Re-Hire","Re-Hire","Re-Hire","Re-Hire","Re-Hire","Re-Hire","Re-Hire","Re-Hire","Re-Hire","Re-Hire","Re-Hire","Re-Hire","Re-Hire","Re-Hire","Re-Hire","Re-Hire","Re-Hire","Re-Hire","Re-Hire","Re-Hire","Re-Hire","Re-Hire","Re-Hire","Re-Hire","Re-Hire","Re-Hire","Re-Hire","Re-Hire","Re-Hire","Re-Hire","Re-Hire","Re-Hire","Re-Hire","Re-Hire","Re-Hire","Re-Hire","Re-Hire","Re-Hire","Re-Hire","Re-Hire","Re-Hire","Re-Hire","Re-Hire","Re-Hire","Re-Hire","Re-Hire","Re-Hire","Re-Hire","Re-Hire","Re-Hire","Re-Hire","Re-Hire","Re-Hire","Re-Hire","Re-Hire","Re-Hire","Re-Hire","Re-Hire","Re-Hire","Re-Hire","Re-Hire","Re-Hire","Re-Hire","Re-Hire","Re-Hire","Re-Hire","Re-Hire","Re-Hire","Re-Hire","Re-Hire","Re-Hire","Re-Hire","Re-Hire","Re-Hire","Re-Hire","Re-Hire","Re-Hire","Re-Hire","Re-Hire","Re-Hire","Re-Hire","Re-Hire","Re-Hire","Re-Hire","Re-Hire","Re-Hire","Re-Hire","Re-Hire","Re-Hire","Re-Hire","Re-Hire","Re-Hire","Re-Hire","Re-Hire","Re-Hire","Re-Hire","Re-Hire","Re-Hire","Re-Hire","Re-Hire","Re-Hire","Re-Hire","Re-Hire","Re-Hire","Re-Hire","Re-Hire","Re-Hire","Re-Hire","Re-Hire","Re-Hire","Re-Hire","Re-Hire","Re-Hire","Re-Hire","Re-Hire","Re-Hire","Re-Hire","Re-Hire","Re-Hire","Re-Hire","Re-Hire","Re-Hire","Re-Hire","Re-Hire","Re-Hire","Re-Hire","Re-Hire","Re-Hire","Re-Hire","Re-Hire","Re-Hire","Re-Hire","Re-Hire","Re-Hire","Re-Hire","Re-Hire","Re-Hire","Re-Hire","Re-Hire","Re-Hire","Re-Hire","Re-Hire","Re-Hire","Re-Hire","Re-Hire","Re-Hire","Re-Hire","Re-Hire","Re-Hire","Re-Hire","Re-Hire","Re-Hire","Re-Hire","Re-Hire","Re-Hire","Re-Hire","Re-Hire","Re-Hire","Re-Hire","Re-Hire","Re-Hire","Re-Hire","Re-Hire","Re-Hire","Re-Hire","Re-Hire","Re-Hire","Re-Hire","Re-Hire","Re-Hire","Re-Hire","Re-Hire","Re-Hire","Re-Hire","Re-Hire","Re-Hire","Re-Hire","Re-Hire","Re-Hire","Re-Hire","Re-Hire","Re-Hire","Re-Hire","Re-Hire","Re-Hire","Re-Hire","Re-Hire","Re-Hire","Re-Hire","Re-Hire","Re-Hire","Re-Hire","Re-Hire","Re-Hire","Re-Hire","Re-Hire","Re-Hire","Re-Hire","Re-Hire","Re-Hire","Re-Hire","Re-Hire","Re-Hire","Re-Hire","Re-Hire","Re-Hire","Re-Hire","Re-Hire","Re-Hire","Re-Hire","Re-Hire","Re-Hire","Re-Hire","Re-Hire","Re-Hire","Re-Hire","Re-Hire","Re-Hire","Re-Hire","Re-Hire","Re-Hire","Re-Hire","Re-Hire","Re-Hire","Re-Hire","Re-Hire","Re-Hire","Re-Hire","Re-Hire","Re-Hire","Re-Hire","Re-Hire","Re-Hire","Re-Hire","Re-Hire","Re-Hire","Re-Hire","Re-Hire","Re-Hire","Re-Hire","Re-Hire","Re-Hire","Re-Hire","Re-Hire","Re-Hire","Re-Hire","Re-Hire","Re-Hire","Re-Hire","Re-Hire","Re-Hire","Re-Hire","Re-Hire","Re-Hire","Re-Hire","Re-Hire","Re-Hire","Re-Hire","Re-Hire","Re-Hire","Re-Hire","Re-Hire","Re-Hire","Re-Hire","Re-Hire","Re-Hire","Re-Hire","Re-Hire","Re-Hire","Re-Hire","Re-Hire","Re-Hire","Re-Hire","Re-Hire","Re-Hire","Re-Hire","Re-Hire","Re-Hire","Re-Hire","Re-Hire","Re-Hire","Re-Hire","Re-Hire","Re-Hire","Re-Hire","Re-Hire","Re-Hire","Re-Hire","Re-Hire","Re-Hire","Re-Hire","Re-Hire","Re-Hire","Re-Hire","Re-Hire","Re-Hire","Re-Hire","Re-Hire","Re-Hire","Re-Hire","Re-Hire","Re-Hire","Re-Hire","Re-Hire","Re-Hire","Re-Hire","Re-Hire","Re-Hire","Re-Hire","Re-Hire","Re-Hire","Re-Hire","Re-Hire","Re-Hire","Re-Hire","Re-Hire","Re-Hire","Re-Hire","Re-Hire","Re-Hire","Re-Hire","Re-Hire","Re-Hire","Re-Hire","Re-Hire","Re-Hire","Re-Hire","Re-Hire","Re-Hire","Re-Hire","Re-Hire","Re-Hire","Re-Hire","Re-Hire","Re-Hire","Re-Hire","Re-Hire","Re-Hire","Re-Hire","Re-Hire","Re-Hire","Re-Hire","Re-Hire","Re-Hire","Re-Hire","Re-Hire","Re-Hire","Re-Hire","Re-Hire","Re-Hire","Re-Hire","Re-Hire","Re-Hire","Re-Hire","Re-Hire","Re-Hire","Re-Hire","Re-Hire","Re-Hire","Re-Hire","Re-Hire","Re-Hire","Re-Hire","Re-Hire","Re-Hire","Re-Hire","Re-Hire","Re-Hire","Re-Hire","Re-Hire","Re-Hire","Re-Hire","Re-Hire","Re-Hire","Re-Hire","Re-Hire","Re-Hire","Re-Hire","Re-Hire","Re-Hire","Re-Hire","Re-Hire","Re-Hire","Re-Hire","Re-Hire","Re-Hire","Re-Hire","Re-Hire","Re-Hire","Re-Hire","Re-Hire","Re-Hire","Re-Hire","Re-Hire","Re-Hire","Re-Hire","Re-Hire","Re-Hire","Re-Hire","Re-Hire","Re-Hire","Re-Hire","Re-Hire","Re-Hire","Re-Hire","Re-Hire","Re-Hire","Re-Hire","Re-Hire","Re-Hire","Re-Hire","Re-Hire","Re-Hire","Re-Hire","Re-Hire","Re-Hire","Re-Hire","Re-Hire","Re-Hire","Re-Hire","Re-Hire","Re-Hire","Re-Hire","Re-Hire","Re-Hire","Re-Hire","Re-Hire","Re-Hire","Re-Hire","Re-Hire","Re-Hire","Re-Hire","Re-Hire","Re-Hire","Re-Hire","Re-Hire","Re-Hire","Re-Hire","Re-Hire","Re-Hire","Re-Hire","Re-Hire","Re-Hire","Re-Hire","Re-Hire","Re-Hire","Re-Hire","Re-Hire","Re-Hire","Re-Hire","Re-Hire","Re-Hire","Re-Hire","Re-Hire","Re-Hire","Re-Hire","Re-Hire","Re-Hire","Re-Hire","Re-Hire","Re-Hire","Re-Hire","Re-Hire","Re-Hire","Re-Hire","Re-Hire","Re-Hire","Re-Hire","Re-Hire","Re-Hire","Re-Hire","Re-Hire","Re-Hire","Re-Hire","Re-Hire","Re-Hire","Re-Hire","Re-Hire","Re-Hire","Re-Hire","Re-Hire","Re-Hire","Re-Hire","Re-Hire","Re-Hire","Re-Hire","Re-Hire","Re-Hire","Re-Hire","Re-Hire","Re-Hire","Re-Hire","Re-Hire","Re-Hire","Re-Hire","Re-Hire","Re-Hire","Re-Hire","Re-Hire","Re-Hire","Re-Hire","Re-Hire","Re-Hire","Re-Hire","Re-Hire","Re-Hire","Re-Hire","Re-Hire","Re-Hire","Re-Hire","Re-Hire","Re-Hire","Re-Hire","Re-Hire","Re-Hire","Re-Hire","Re-Hire","Re-Hire","Re-Hire","Re-Hire","Re-Hire","Re-Hire","Re-Hire","Re-Hire","Re-Hire","Re-Hire","Re-Hire","Re-Hire","Re-Hire","Re-Hire","Re-Hire","Re-Hire","Re-Hire","Re-Hire","Re-Hire","Re-Hire","Re-Hire","Re-Hire","Re-Hire","Re-Hire","Re-Hire","Re-Hire","Re-Hire","Re-Hire","Re-Hire","Re-Hire","Re-Hire","Re-Hire","Re-Hire","Re-Hire","Re-Hire","Re-Hire","Re-Hire","Re-Hire","Re-Hire","Re-Hire","Re-Hire","Re-Hire","Re-Hire","Re-Hire","Re-Hire","Re-Hire","Re-Hire","Re-Hire","Re-Hire","Re-Hire","Re-Hire","Re-Hire","Re-Hire","Re-Hire","Re-Hire","Re-Hire","Re-Hire","Re-Hire","Re-Hire","Re-Hire","Re-Hire","Re-Hire","Re-Hire","Re-Hire","Re-Hire","Re-Hire","Re-Hire","Re-Hire","Re-Hire","Re-Hire","Re-Hire","Re-Hire","Re-Hire","Re-Hire","Re-Hire","Re-Hire","Re-Hire","Re-Hire","Re-Hire","Re-Hire","Re-Hire","Re-Hire","Re-Hire","Re-Hire","Re-Hire","Re-Hire","Re-Hire","Re-Hire","Re-Hire","Re-Hire","Re-Hire","Re-Hire","Re-Hire","Re-Hire","Re-Hire","Re-Hire","Re-Hire","Re-Hire","Re-Hire","Re-Hire","Re-Hire","Re-Hire","Re-Hire","Re-Hire","Re-Hire","Re-Hire","Re-Hire","Re-Hire","Re-Hire","Re-Hire","Re-Hire","Re-Hire","Re-Hire","Re-Hire","Re-Hire","Re-Hire","Re-Hire","Re-Hire","Re-Hire","Re-Hire","Re-Hire","Re-Hire","Re-Hire","Re-Hire","Re-Hire","Re-Hire","Re-Hire","Re-Hire","Re-Hire","Re-Hire","Re-Hire","Re-Hire","Re-Hire","Re-Hire","Re-Hire","Re-Hire","Re-Hire","Re-Hire","Re-Hire","Re-Hire","Re-Hire","Re-Hire","Re-Hire","Re-Hire","Re-Hire","Re-Hire","Re-Hire","Re-Hire","Re-Hire","Re-Hire","Re-Hire","Re-Hire","Re-Hire","Re-Hire","Re-Hire","Re-Hire","Re-Hire","Re-Hire","Re-Hire","Re-Hire","Re-Hire","Re-Hire","Re-Hire","Re-Hire","Re-Hire","Re-Hire","Re-Hire","Re-Hire","Re-Hire","Re-Hire","Re-Hire","Re-Hire","Re-Hire","Re-Hire","Re-Hire","Re-Hire","Re-Hire","Re-Hire","Re-Hire","Re-Hire","Re-Hire","Re-Hire","Re-Hire","Re-Hire","Re-Hire","Re-Hire","Re-Hire","Re-Hire","Re-Hire","Re-Hire","Re-Hire","Re-Hire","Re-Hire","Re-Hire","Re-Hire","Re-Hire","Re-Hire","Re-Hire","Re-Hire","Re-Hire","Re-Hire","Re-Hire","Re-Hire","Re-Hire","Re-Hire","Re-Hire","Re-Hire","Re-Hire","Re-Hire","Re-Hire","Re-Hire","Re-Hire","Re-Hire","Re-Hire","Re-Hire","Re-Hire","Re-Hire","Re-Hire","Re-Hire","Re-Hire","Re-Hire","Re-Hire","Re-Hire","Re-Hire","Re-Hire","Re-Hire","Re-Hire","Re-Hire","Re-Hire","Re-Hire","Re-Hire","Re-Hire","Re-Hire","Re-Hire","Re-Hire","Re-Hire","Re-Hire","Re-Hire","Re-Hire","Re-Hire","Re-Hire","Re-Hire","Re-Hire","Re-Hire","Re-Hire","Re-Hire","Re-Hire","Re-Hire","Re-Hire","Re-Hire","Re-Hire","Re-Hire","Re-Hire","Re-Hire","Re-Hire","Re-Hire","Re-Hire","Re-Hire","Re-Hire","Re-Hire","Re-Hire","Re-Hire","Re-Hire","Re-Hire","Re-Hire","Re-Hire","Re-Hire","Re-Hire","Re-Hire","Re-Hire","Re-Hire","Re-Hire","Re-Hire","Re-Hire","Re-Hire","Re-Hire","Re-Hire","Re-Hire","Re-Hire","Re-Hire","Re-Hire","Re-Hire","Re-Hire","Re-Hire","Re-Hire","Re-Hire","Re-Hire","Re-Hire","Re-Hire","Re-Hire","Re-Hire","Re-Hire","Re-Hire","Re-Hire","Re-Hire","Re-Hire","Re-Hire","Re-Hire","Re-Hire","Re-Hire","Re-Hire","Re-Hire","Re-Hire","Re-Hire","Re-Hire","Re-Hire","Re-Hire","Re-Hire","Re-Hire","Re-Hire","Re-Hire","Re-Hire","Re-Hire","Re-Hire","Re-Hire","Re-Hire","Re-Hire","Re-Hire","Re-Hire","Re-Hire","Re-Hire","Re-Hire","Re-Hire","Re-Hire","Re-Hire","Re-Hire","Re-Hire","Re-Hire","Re-Hire","Re-Hire","Re-Hire","Re-Hire","Re-Hire","Re-Hire","Re-Hire","Re-Hire","Re-Hire","Re-Hire","Re-Hire","Re-Hire","Re-Hire","Re-Hire","Re-Hire","Re-Hire","Re-Hire","Re-Hire","Re-Hire","Re-Hire","Re-Hire","Re-Hire","Re-Hire","Re-Hire","Re-Hire","Re-Hire","Re-Hire","Re-Hire","Re-Hire","Re-Hire","Re-Hire","Re-Hire","Re-Hire","Re-Hire","Re-Hire","Re-Hire","Re-Hire","Re-Hire","Re-Hire","Re-Hire","Re-Hire","Re-Hire","Re-Hire","Re-Hire","Re-Hire","Re-Hire","Re-Hire","Re-Hire","Re-Hire","Re-Hire","Re-Hire","Re-Hire","Re-Hire","Re-Hire","Re-Hire","Re-Hire","Re-Hire","Re-Hire","Re-Hire","Re-Hire","Re-Hire","Re-Hire","Re-Hire","Re-Hire","Re-Hire","Re-Hire","Re-Hire","Re-Hire","Re-Hire","Re-Hire","Re-Hire","Re-Hire","Re-Hire","Re-Hire","Re-Hire","Re-Hire","Re-Hire","Re-Hire","Re-Hire","Re-Hire","Re-Hire","Re-Hire","Re-Hire","Re-Hire","Re-Hire","Re-Hire","Re-Hire","Re-Hire","Re-Hire","Re-Hire","Re-Hire","Re-Hire","Re-Hire","Re-Hire","Re-Hire","Re-Hire","Re-Hire","Re-Hire","Re-Hire","Re-Hire","Re-Hire","Re-Hire","Re-Hire","Re-Hire","Re-Hire","Re-Hire","Re-Hire","Re-Hire","Re-Hire","Re-Hire","Re-Hire","Re-Hire","Re-Hire","Re-Hire","Re-Hire","Re-Hire","Re-Hire","Re-Hire","Re-Hire","Re-Hire","Re-Hire","Re-Hire","Re-Hire","Re-Hire","Re-Hire","Re-Hire","Re-Hire","Re-Hire","Re-Hire","Re-Hire","Re-Hire","Re-Hire","Re-Hire","Re-Hire","Re-Hire","Re-Hire","Re-Hire","Re-Hire","Re-Hire","Re-Hire","Re-Hire","Re-Hire","Re-Hire","Re-Hire","Re-Hire","Re-Hire","Re-Hire","Re-Hire","Re-Hire","Re-Hire","Re-Hire","Re-Hire","Re-Hire","Re-Hire","Re-Hire","Re-Hire","Re-Hire","Re-Hire","Re-Hire","Re-Hire","Re-Hire","Re-Hire","Re-Hire","Re-Hire","Re-Hire","Re-Hire","Re-Hire","Re-Hire","Re-Hire","Re-Hire","Re-Hire","Re-Hire","Re-Hire","Re-Hire","Re-Hire","Re-Hire","Re-Hire","Re-Hire","Re-Hire","Re-Hire","Re-Hire","Re-Hire","Re-Hire","Re-Hire","Re-Hire","Re-Hire","Re-Hire","Re-Hire","Re-Hire","Re-Hire","Re-Hire","Re-Hire","Re-Hire","Re-Hire","Re-Hire","Re-Hire","Re-Hire","Re-Hire","Re-Hire","Re-Hire","Re-Hire","Re-Hire","Re-Hire","Re-Hire","Re-Hire","Re-Hire","Re-Hire","Re-Hire","Re-Hire","Re-Hire","Re-Hire","Re-Hire","Re-Hire","Re-Hire","Re-Hire","Re-Hire","Re-Hire","Re-Hire","Re-Hire","Re-Hire","Re-Hire","Re-Hire","Re-Hire","Re-Hire","Re-Hire","Re-Hire","Re-Hire","Re-Hire","Re-Hire","Re-Hire","Re-Hire","Re-Hire","Re-Hire","Re-Hire","Re-Hire","Re-Hire","Re-Hire","Re-Hire","Re-Hire","Re-Hire","Re-Hire","Re-Hire","Re-Hire","Re-Hire","Re-Hire","Re-Hire","Re-Hire","Re-Hire","Re-Hire","Re-Hire","Re-Hire","Re-Hire","Re-Hire","Re-Hire","Re-Hire","Re-Hire","Re-Hire","Re-Hire","Re-Hire","Re-Hire","Re-Hire","Re-Hire","Re-Hire","Re-Hire","Re-Hire","Re-Hire","Re-Hire","Re-Hire","Re-Hire","Re-Hire","Re-Hire","Re-Hire","Re-Hire","Re-Hire","Re-Hire","Re-Hire","Re-Hire","Re-Hire","Re-Hire","Re-Hire","Re-Hire","Re-Hire","Re-Hire","Re-Hire","Re-Hire","Re-Hire","Re-Hire","Re-Hire","Re-Hire","Re-Hire","Re-Hire","Re-Hire","Re-Hire","Re-Hire","Re-Hire","Re-Hire","Re-Hire","Re-Hire","Re-Hire","Re-Hire","Re-Hire","Re-Hire","Re-Hire","Re-Hire","Re-Hire","Re-Hire","Re-Hire","Re-Hire","Re-Hire","Re-Hire","Re-Hire","Re-Hire","Re-Hire","Re-Hire","Re-Hire","Re-Hire","Re-Hire","Re-Hire","Re-Hire","Re-Hire","Re-Hire","Re-Hire","Re-Hire","Re-Hire","Re-Hire","Re-Hire","Re-Hire","Re-Hire","Re-Hire","Re-Hire","Re-Hire","Re-Hire","Re-Hire","Re-Hire","Re-Hire","Re-Hire","Re-Hire","Re-Hire","Re-Hire","Re-Hire","Re-Hire","Re-Hire","Re-Hire","Re-Hire","Re-Hire","Re-Hire","Re-Hire","Re-Hire","Re-Hire","Re-Hire","Re-Hire","Re-Hire","Re-Hire","Re-Hire","Re-Hire","Re-Hire","Re-Hire","Re-Hire","Re-Hire","Re-Hire","Re-Hire","Re-Hire","Re-Hire","Re-Hire","Re-Hire","Re-Hire","Re-Hire","Re-Hire","Re-Hire","Re-Hire","Re-Hire","Re-Hire","Re-Hire","Re-Hire","Re-Hire","Re-Hire","Re-Hire","Re-Hire","Re-Hire","Re-Hire","Re-Hire","Re-Hire","Re-Hire","Re-Hire","Re-Hire","Re-Hire","Re-Hire","Re-Hire","Re-Hire","Re-Hire","Re-Hire","Re-Hire","Re-Hire","Re-Hire","Re-Hire","Re-Hire","Re-Hire","Re-Hire","Re-Hire","Re-Hire","Re-Hire","Re-Hire","Re-Hire","Re-Hire","Re-Hire","Re-Hire","Re-Hire","Re-Hire","Re-Hire","Re-Hire","Re-Hire","Re-Hire","Re-Hire","Re-Hire","Re-Hire","Re-Hire","Re-Hire","Re-Hire","Re-Hire","Re-Hire","Re-Hire","Re-Hire","Re-Hire","Re-Hire","Re-Hire","Re-Hire","Re-Hire","Re-Hire","Re-Hire","Re-Hire","Re-Hire","Re-Hire","Re-Hire","Re-Hire","Re-Hire","Re-Hire","Re-Hire","Re-Hire","Re-Hire","Re-Hire","Re-Hire","Re-Hire","Re-Hire","Re-Hire","Re-Hire","Re-Hire","Re-Hire","Re-Hire","Re-Hire","Re-Hire","Re-Hire","Re-Hire","Re-Hire","Re-Hire","Re-Hire","Re-Hire","Re-Hire","Re-Hire","Re-Hire","Re-Hire","Re-Hire","Re-Hire","Re-Hire","Re-Hire","Re-Hire","Re-Hire","Re-Hire","Re-Hire","Re-Hire","Re-Hire","Re-Hire","Re-Hire","Re-Hire","Re-Hire","Re-Hire","Re-Hire","Re-Hire","Re-Hire","Re-Hire","Re-Hire","Re-Hire","Re-Hire","Re-Hire","Re-Hire","Re-Hire","Re-Hire","Re-Hire","Re-Hire","Re-Hire","Re-Hire","Re-Hire","Re-Hire","Re-Hire","Re-Hire","Re-Hire","Re-Hire","Re-Hire","Re-Hire","Re-Hire","Re-Hire","Re-Hire","Re-Hire","Re-Hire","Re-Hire","Re-Hire","Re-Hire","Re-Hire","Re-Hire","Re-Hire","Re-Hire","Re-Hire","Re-Hire","Re-Hire","Re-Hire","Re-Hire","Re-Hire","Re-Hire","Re-Hire","Re-Hire","Re-Hire","Re-Hire","Re-Hire","Re-Hire","Re-Hire","Re-Hire","Re-Hire","Re-Hire","Re-Hire","Re-Hire","Re-Hire","Re-Hire","Re-Hire","Re-Hire","Re-Hire","Re-Hire","Re-Hire","Re-Hire","Re-Hire","Re-Hire","Re-Hire","Re-Hire","Re-Hire","Re-Hire","Re-Hire","Re-Hire","Re-Hire","Re-Hire","Re-Hire","Re-Hire","Re-Hire","Re-Hire","Re-Hire","Re-Hire","Re-Hire","Re-Hire","Re-Hire","Re-Hire","Re-Hire","Re-Hire","Re-Hire","Re-Hire","Re-Hire","Re-Hire","Re-Hire","Re-Hire","Re-Hire","Re-Hire","Re-Hire","Re-Hire","Re-Hire","Re-Hire","Re-Hire","Re-Hire","Re-Hire","Re-Hire","Re-Hire","Re-Hire","Re-Hire","Re-Hire","Re-Hire","Re-Hire","Re-Hire","Re-Hire","Re-Hire","Re-Hire","Re-Hire","Re-Hire","Re-Hire","Re-Hire","Re-Hire","Re-Hire","Re-Hire","Re-Hire","Re-Hire","Re-Hire","Re-Hire","Re-Hire","Re-Hire","Re-Hire","Re-Hire","Re-Hire","Re-Hire","Re-Hire","Re-Hire","Re-Hire","Re-Hire","Re-Hire","Re-Hire","Re-Hire","Re-Hire","Re-Hire","Re-Hire","Re-Hire","Re-Hire","Re-Hire","Re-Hire","Re-Hire","Re-Hire","Re-Hire","Re-Hire","Re-Hire","Re-Hire","Re-Hire","Re-Hire","Re-Hire","Re-Hire","Re-Hire","Re-Hire","Re-Hire","Re-Hire","Re-Hire","Re-Hire","Re-Hire","Re-Hire","Re-Hire","Re-Hire","Re-Hire","Re-Hire","Re-Hire","Re-Hire","Re-Hire","Re-Hire","Re-Hire","Re-Hire","Re-Hire","Re-Hire","Re-Hire","Re-Hire","Re-Hire","Re-Hire","Re-Hire","Re-Hire","Re-Hire","Re-Hire","Re-Hire","Re-Hire","Re-Hire","Re-Hire","Re-Hire","Re-Hire","Re-Hire","Re-Hire","Re-Hire","Re-Hire","Re-Hire","Re-Hire","Re-Hire","Re-Hire","Re-Hire","Re-Hire","Re-Hire","Re-Hire","Re-Hire","Re-Hire","Re-Hire","Re-Hire","Re-Hire","Re-Hire","Re-Hire","Re-Hire","Re-Hire","Re-Hire","Re-Hire","Re-Hire","Re-Hire","Re-Hire","Re-Hire","Re-Hire","Re-Hire","Re-Hire","Re-Hire","Re-Hire","Re-Hire","Re-Hire","Re-Hire","Re-Hire","Re-Hire","Re-Hire","Re-Hire","Re-Hire","Re-Hire","Re-Hire","Re-Hire","Re-Hire","Re-Hire","Re-Hire","Re-Hire","Re-Hire","Re-Hire","Re-Hire","Re-Hire","Re-Hire","Re-Hire","Re-Hire","Re-Hire","Re-Hire","Re-Hire","Re-Hire","Re-Hire","Re-Hire","Re-Hire","Re-Hire","Re-Hire","Re-Hire","Re-Hire","Re-Hire","Re-Hire","Re-Hire","Re-Hire","Re-Hire","Re-Hire","Re-Hire","Re-Hire","Re-Hire","Re-Hire","Re-Hire","Re-Hire","Re-Hire","Re-Hire","Re-Hire","Re-Hire","Re-Hire","Re-Hire","Re-Hire","Re-Hire","Re-Hire","Re-Hire","Re-Hire","Re-Hire","Re-Hire","Re-Hire","Re-Hire","Re-Hire","Re-Hire","Re-Hire","Re-Hire","Re-Hire","Re-Hire","Re-Hire","Re-Hire","Re-Hire","Re-Hire","Re-Hire","Re-Hire","Re-Hire","Re-Hire","Re-Hire","Re-Hire","Re-Hire","Re-Hire","Re-Hire","Re-Hire","Re-Hire","Re-Hire","Re-Hire","Re-Hire","Re-Hire","Re-Hire","Re-Hire","Re-Hire","Re-Hire","Re-Hire","Re-Hire","Re-Hire","Re-Hire","Re-Hire","Re-Hire","Re-Hire","Re-Hire","Re-Hire","Re-Hire","Re-Hire","Re-Hire","Re-Hire","Re-Hire","Re-Hire","Re-Hire","Re-Hire","Re-Hire","Re-Hire","Re-Hire","Re-Hire","Re-Hire","Re-Hire","Re-Hire","Re-Hire","Re-Hire","Re-Hire","Re-Hire","Re-Hire","Re-Hire","Re-Hire","Re-Hire","Re-Hire","Re-Hire","Re-Hire","Re-Hire","Re-Hire","Re-Hire","Re-Hire","Re-Hire","Re-Hire","Re-Hire","Re-Hire","Re-Hire","Re-Hire","Re-Hire","Re-Hire","Re-Hire","Re-Hire","Re-Hire","Re-Hire","Re-Hire","Re-Hire","Re-Hire","Re-Hire","Re-Hire","Re-Hire","Re-Hire","Re-Hire","Re-Hire","Re-Hire","Re-Hire","Re-Hire","Re-Hire","Re-Hire","Re-Hire","Re-Hire","Re-Hire","Re-Hire","Re-Hire","Re-Hire","Re-Hire","Re-Hire","Re-Hire","Re-Hire","Re-Hire","Re-Hire","Re-Hire","Re-Hire","Re-Hire","Re-Hire","Re-Hire","Re-Hire","Re-Hire","Re-Hire","Re-Hire","Re-Hire","Re-Hire","Re-Hire","Re-Hire","Re-Hire","Re-Hire","Re-Hire","Re-Hire","Re-Hire","Re-Hire","Re-Hire","Re-Hire","Re-Hire","Re-Hire","Re-Hire","Re-Hire","Re-Hire","Re-Hire","Re-Hire","Re-Hire","Re-Hire","Re-Hire","Re-Hire","Re-Hire","Re-Hire","Re-Hire","Re-Hire","Re-Hire","Re-Hire","Re-Hire","Re-Hire","Re-Hire","Re-Hire","Re-Hire","Re-Hire","Re-Hire","Re-Hire","Re-Hire","Re-Hire","Re-Hire","Re-Hire","Re-Hire","Re-Hire","Re-Hire","Re-Hire","Re-Hire","Re-Hire","Re-Hire","Re-Hire","Re-Hire","Re-Hire","Re-Hire","Re-Hire","Re-Hire","Re-Hire","Re-Hire","Re-Hire","Re-Hire","Re-Hire","Re-Hire","Re-Hire","Re-Hire","Re-Hire","Re-Hire","Re-Hire","Re-Hire","Re-Hire","Re-Hire","Re-Hire","Re-Hire","Re-Hire","Re-Hire","Re-Hire","Re-Hire","Re-Hire","Re-Hire","Re-Hire","Re-Hire","Re-Hire","Re-Hire","Re-Hire","Re-Hire","Re-Hire","Re-Hire","Re-Hire","Re-Hire","Re-Hire","Re-Hire","Re-Hire","Re-Hire","Re-Hire","Re-Hire","Re-Hire","Re-Hire","Re-Hire","Re-Hire","Re-Hire","Re-Hire","Re-Hire","Re-Hire","Re-Hire","Re-Hire","Re-Hire","Re-Hire","Re-Hire","Re-Hire","Re-Hire","Re-Hire","Re-Hire","Re-Hire","Re-Hire","Re-Hire","Re-Hire","Re-Hire","Re-Hire","Re-Hire","Re-Hire","Re-Hire","Re-Hire","Re-Hire","Re-Hire","Re-Hire","Re-Hire","Re-Hire","Re-Hire","Re-Hire","Re-Hire","Re-Hire","Re-Hire","Re-Hire","Re-Hire","Re-Hire","Re-Hire","Re-Hire","Re-Hire","Re-Hire","Re-Hire","Re-Hire","Re-Hire","Re-Hire","Re-Hire","Re-Hire","Re-Hire","Re-Hire","Re-Hire","Re-Hire","Re-Hire","Re-Hire","Re-Hire","Re-Hire","Re-Hire","Re-Hire","Re-Hire","Re-Hire","Re-Hire","Re-Hire","Re-Hire","Re-Hire","Re-Hire","Re-Hire","Re-Hire","Re-Hire","Re-Hire","Re-Hire","Re-Hire","Re-Hire","Re-Hire","Re-Hire","Re-Hire","Re-Hire","Re-Hire","Re-Hire","Re-Hire","Re-Hire","Re-Hire","Re-Hire","Re-Hire","Re-Hire","Re-Hire","Re-Hire","Re-Hire","Re-Hire","Re-Hire","Re-Hire","Re-Hire","Re-Hire","Re-Hire","Re-Hire","Re-Hire","Re-Hire","Re-Hire","Re-Hire","Re-Hire","Re-Hire","Re-Hire","Re-Hire","Re-Hire","Re-Hire","Re-Hire","Re-Hire","Re-Hire","Re-Hire","Re-Hire","Re-Hire","Re-Hire","Re-Hire","Re-Hire","Re-Hire","Re-Hire","Re-Hire","Re-Hire","Re-Hire","Re-Hire","Re-Hire","Re-Hire","Re-Hire","Re-Hire","Re-Hire","Re-Hire","Re-Hire","Re-Hire","Re-Hire","Re-Hire","Re-Hire","Re-Hire","Re-Hire","Re-Hire","Re-Hire","Re-Hire","Re-Hire","Re-Hire","Re-Hire","Re-Hire","Re-Hire","Re-Hire","Re-Hire","Re-Hire","Re-Hire","Re-Hire","Re-Hire","Re-Hire","Re-Hire","Re-Hire","Re-Hire","Re-Hire","Re-Hire","Re-Hire","Re-Hire","Re-Hire","Re-Hire","Re-Hire","Re-Hire","Re-Hire","Re-Hire","Re-Hire","Re-Hire","Re-Hire","Re-Hire","Re-Hire","Re-Hire","Re-Hire","Re-Hire","Re-Hire","Re-Hire","Re-Hire","Re-Hire","Re-Hire","Re-Hire","Re-Hire","Re-Hire","Re-Hire","Re-Hire","Re-Hire","Re-Hire","Re-Hire","Re-Hire","Re-Hire","Re-Hire","Re-Hire","Re-Hire","Re-Hire","Re-Hire","Re-Hire","Re-Hire","Re-Hire","Re-Hire","Re-Hire","Re-Hire","Re-Hire","Re-Hire","Re-Hire","Re-Hire","Re-Hire","Re-Hire","Re-Hire","Re-Hire","Re-Hire","Re-Hire","Re-Hire","Re-Hire","Re-Hire","Re-Hire","Re-Hire","Re-Hire","Re-Hire","Re-Hire","Re-Hire","Re-Hire","Re-Hire","Re-Hire","Re-Hire","Re-Hire","Re-Hire","Re-Hire","Re-Hire","Re-Hire","Re-Hire","Re-Hire","Re-Hire","Re-Hire","Re-Hire","Re-Hire","Re-Hire","Re-Hire","Re-Hire","Re-Hire","Re-Hire","Re-Hire","Re-Hire","Re-Hire","Re-Hire","Re-Hire","Re-Hire","Re-Hire","Re-Hire","Re-Hire","Re-Hire","Re-Hire","Re-Hire","Re-Hire","Re-Hire","Re-Hire","Re-Hire","Re-Hire","Re-Hire","Re-Hire","Re-Hire","Re-Hire","Re-Hire","Re-Hire","Re-Hire","Re-Hire","Re-Hire","Re-Hire","Re-Hire","Re-Hire","Re-Hire","Re-Hire","Re-Hire","Re-Hire","Re-Hire","Re-Hire","Re-Hire","Re-Hire","Re-Hire","Re-Hire","Re-Hire","Re-Hire","Re-Hire","Re-Hire","Re-Hire","Re-Hire","Re-Hire","Re-Hire","Re-Hire","Re-Hire","Re-Hire","Re-Hire","Re-Hire","Re-Hire","Re-Hire","Re-Hire","Re-Hire","Re-Hire","Re-Hire","Re-Hire","Re-Hire","Re-Hire","Re-Hire","Re-Hire","Re-Hire","Re-Hire","Re-Hire","Re-Hire","Re-Hire","Re-Hire","Re-Hire","Re-Hire","Re-Hire","Re-Hire","Re-Hire","Re-Hire","Re-Hire","Re-Hire","Re-Hire","Re-Hire","Re-Hire","Re-Hire","Re-Hire","Re-Hire","Re-Hire","Re-Hire","Re-Hire","Re-Hire","Re-Hire","Re-Hire","Re-Hire","Re-Hire","Re-Hire","Re-Hire","Re-Hire","Re-Hire","Re-Hire","Re-Hire","Re-Hire","Re-Hire","Re-Hire","Re-Hire","Re-Hire","Re-Hire","Re-Hire","Re-Hire","Re-Hire","Re-Hire","Re-Hire","Re-Hire","Re-Hire","Re-Hire","Re-Hire","Re-Hire","Re-Hire","Re-Hire","Re-Hire","Re-Hire","Re-Hire","Re-Hire","Re-Hire","Re-Hire","Re-Hire","Re-Hire","Re-Hire","Re-Hire","Re-Hire","Re-Hire","Re-Hire","Re-Hire","Re-Hire","Re-Hire","Re-Hire","Re-Hire","Re-Hire","Re-Hire","Re-Hire","Re-Hire","Re-Hire","Re-Hire","Re-Hire","Re-Hire","Re-Hire","Re-Hire","Re-Hire","Re-Hire","Re-Hire","Re-Hire","Re-Hire","Re-Hire","Re-Hire","Re-Hire","Re-Hire","Re-Hire","Re-Hire","Re-Hire","Re-Hire","Re-Hire","Re-Hire","Re-Hire","Re-Hire","Re-Hire","Re-Hire","Re-Hire","Re-Hire","Re-Hire","Re-Hire","Re-Hire","Re-Hire","Re-Hire","Re-Hire","Re-Hire","Re-Hire","Re-Hire","Re-Hire","Re-Hire","Re-Hire","Re-Hire","Re-Hire","Re-Hire","Re-Hire","Re-Hire","Re-Hire","Re-Hire","Re-Hire","Re-Hire","Re-Hire","Re-Hire","Re-Hire","Re-Hire","Re-Hire","Re-Hire","Re-Hire","Re-Hire","Re-Hire","Re-Hire","Re-Hire","Re-Hire","Re-Hire","Re-Hire","Re-Hire","Re-Hire","Re-Hire","Re-Hire","Re-Hire","Re-Hire","Re-Hire","Re-Hire","Re-Hire","Re-Hire","Re-Hire","Re-Hire","Re-Hire","Re-Hire","Re-Hire","Re-Hire","Re-Hire","Re-Hire","Re-Hire","Re-Hire","Re-Hire","Re-Hire","Re-Hire","Re-Hire","Re-Hire","Re-Hire","Re-Hire","Re-Hire","Re-Hire","Re-Hire","Re-Hire","Re-Hire","Re-Hire","Re-Hire","Re-Hire","Re-Hire","Re-Hire","Re-Hire","Re-Hire","Re-Hire","Re-Hire","Re-Hire","Re-Hire","Re-Hire","Re-Hire","Re-Hire","Re-Hire","Re-Hire","Re-Hire","Re-Hire","Re-Hire","Re-Hire","Re-Hire","Re-Hire","Re-Hire","Re-Hire","Re-Hire","Re-Hire","Re-Hire","Re-Hire","Re-Hire","Re-Hire","Re-Hire","Re-Hire","Re-Hire","Re-Hire","Re-Hire","Re-Hire","Re-Hire","Re-Hire","Re-Hire","Re-Hire","Re-Hire","Re-Hire","Re-Hire","Re-Hire","Re-Hire","Re-Hire","Re-Hire","Re-Hire","Re-Hire","Re-Hire","Re-Hire","Re-Hire","Re-Hire","Re-Hire","Re-Hire","Re-Hire","Re-Hire","Re-Hire","Re-Hire","Re-Hire","Re-Hire","Re-Hire","Re-Hire","Re-Hire","Re-Hire","Re-Hire","Re-Hire","Re-Hire","Re-Hire","Re-Hire","Re-Hire","Re-Hire","Re-Hire","Re-Hire","Re-Hire","Re-Hire","Re-Hire","Re-Hire","Re-Hire","Re-Hire","Re-Hire","Re-Hire","Re-Hire","Re-Hire","Re-Hire","Re-Hire","Re-Hire","Re-Hire","Re-Hire","Re-Hire","Re-Hire","Re-Hire","Re-Hire","Re-Hire","Re-Hire","Re-Hire","Re-Hire","Re-Hire","Re-Hire","Re-Hire","Re-Hire","Re-Hire","Re-Hire","Re-Hire","Re-Hire","Re-Hire","Re-Hire","Re-Hire","Re-Hire","Re-Hire","Re-Hire","Re-Hire","Re-Hire","Re-Hire","Re-Hire","Re-Hire","Re-Hire","Re-Hire","Re-Hire","Re-Hire","Re-Hire","Re-Hire","Re-Hire","Re-Hire","Re-Hire","Re-Hire","Re-Hire","Re-Hire","Re-Hire","Re-Hire","Re-Hire","Re-Hire","Re-Hire","Re-Hire","Re-Hire","Re-Hire","Re-Hire","Re-Hire","Re-Hire","Re-Hire","Re-Hire","Re-Hire","Re-Hire","Re-Hire","Re-Hire","Re-Hire","Re-Hire","Re-Hire","Re-Hire","Re-Hire","Re-Hire","Re-Hire","Re-Hire","Re-Hire","Re-Hire","Re-Hire","Re-Hire","Re-Hire","Re-Hire","Re-Hire","Re-Hire","Re-Hire","Re-Hire","Re-Hire","Re-Hire","Re-Hire","Re-Hire","Re-Hire","Re-Hire","Re-Hire","Re-Hire","Re-Hire","Re-Hire","Re-Hire","Re-Hire","Re-Hire","Re-Hire","Re-Hire","Re-Hire","Re-Hire","Re-Hire","Re-Hire","Re-Hire","Re-Hire","Re-Hire","Re-Hire","Re-Hire","Re-Hire","Re-Hire","Re-Hire","Re-Hire","Re-Hire","Re-Hire","Re-Hire","Re-Hire","Re-Hire","Re-Hire","Re-Hire","Re-Hire","Re-Hire","Re-Hire","Re-Hire","Re-Hire","Re-Hire","Re-Hire","Re-Hire","Re-Hire","Re-Hire","Re-Hire","Re-Hire","Re-Hire","Re-Hire","Re-Hire","Re-Hire","Re-Hire","Re-Hire","Re-Hire","Re-Hire","Re-Hire","Re-Hire","Re-Hire","Re-Hire","Re-Hire","Re-Hire","Re-Hire","Re-Hire","Re-Hire","Re-Hire","Re-Hire","Re-Hire","Re-Hire","Re-Hire","Re-Hire","Re-Hire","Re-Hire","Re-Hire","Re-Hire","Re-Hire","Re-Hire","Re-Hire","Re-Hire","Re-Hire","Re-Hire","Re-Hire","Re-Hire","Re-Hire","Re-Hire","Re-Hire","Re-Hire","Re-Hire","Re-Hire","Re-Hire","Re-Hire","Re-Hire","Re-Hire","Re-Hire","Re-Hire","Re-Hire","Re-Hire","Re-Hire","Re-Hire","Re-Hire","Re-Hire","Re-Hire","Re-Hire","Re-Hire","Re-Hire","Re-Hire","Re-Hire","Re-Hire","Re-Hire","Re-Hire","Re-Hire","Re-Hire","Re-Hire","Re-Hire","Re-Hire","Re-Hire","Re-Hire","Re-Hire","Re-Hire","Re-Hire","Re-Hire","Re-Hire","Re-Hire","Re-Hire","Re-Hire","Re-Hire","Re-Hire","Re-Hire","Re-Hire","Re-Hire","Re-Hire","Re-Hire","Re-Hire","Re-Hire","Re-Hire","Re-Hire","Re-Hire","Re-Hire","Re-Hire","Re-Hire","Re-Hire","Re-Hire","Re-Hire","Re-Hire","Re-Hire","Re-Hire","Re-Hire","Re-Hire","Re-Hire","Re-Hire","Re-Hire","Re-Hire","Re-Hire","Re-Hire","Re-Hire","Re-Hire","Re-Hire","Re-Hire","Re-Hire","Re-Hire","Re-Hire","Re-Hire","Re-Hire","Re-Hire","Re-Hire","Re-Hire","Re-Hire","Re-Hire","Re-Hire","Re-Hire","Re-Hire","Re-Hire","Re-Hire","Re-Hire","Re-Hire","Re-Hire","Re-Hire","Re-Hire","Re-Hire","Re-Hire","Re-Hire","Re-Hire","Re-Hire","Re-Hire","Re-Hire","Re-Hire","Re-Hire","Re-Hire","Re-Hire","Re-Hire","Re-Hire","Re-Hire","Re-Hire","Re-Hire","Re-Hire","Re-Hire","Re-Hire","Re-Hire","Re-Hire","Re-Hire","Re-Hire","Re-Hire","Re-Hire","Re-Hire","Re-Hire","Re-Hire","Re-Hire","Re-Hire","Re-Hire","Re-Hire","Re-Hire","Re-Hire","Re-Hire","Re-Hire","Re-Hire","Re-Hire","Re-Hire","Re-Hire","Re-Hire","Re-Hire","Re-Hire","Re-Hire","Re-Hire","Re-Hire","Re-Hire","Re-Hire","Re-Hire","Re-Hire","Re-Hire","Re-Hire","Re-Hire","Re-Hire","Re-Hire","Re-Hire","Re-Hire","Re-Hire","Re-Hire","Re-Hire","Re-Hire","Re-Hire","Re-Hire","Re-Hire","Re-Hire","Re-Hire","Re-Hire","Re-Hire","Re-Hire","Re-Hire","Re-Hire","Re-Hire","Re-Hire","Re-Hire","Re-Hire","Re-Hire","Re-Hire","Re-Hire","Re-Hire","Re-Hire","Re-Hire","Re-Hire","Re-Hire","Re-Hire","Re-Hire","Re-Hire","Re-Hire","Re-Hire","Re-Hire","Re-Hire","Re-Hire","Re-Hire","Re-Hire","Re-Hire","Re-Hire","Re-Hire","Re-Hire","Re-Hire","Re-Hire","Re-Hire","Re-Hire","Re-Hire","Re-Hire","Re-Hire","Re-Hire","Re-Hire","Re-Hire","Re-Hire","Re-Hire","Re-Hire","Re-Hire","Re-Hire","Re-Hire","Re-Hire","Re-Hire","Re-Hire","Re-Hire","Re-Hire","Re-Hire","Re-Hire","Re-Hire","Re-Hire","Re-Hire","Re-Hire","Re-Hire","Re-Hire","Re-Hire","Re-Hire","Re-Hire","Re-Hire","Re-Hire","Re-Hire","Re-Hire","Re-Hire","Re-Hire","Re-Hire","Re-Hire","Re-Hire","Re-Hire","Re-Hire","Re-Hire","Re-Hire","Re-Hire","Re-Hire","Re-Hire","Re-Hire","Re-Hire","Re-Hire","Re-Hire","Re-Hire","Re-Hire","Re-Hire","Re-Hire","Re-Hire","Re-Hire","Re-Hire","Re-Hire","Re-Hire","Re-Hire","Re-Hire","Re-Hire","Re-Hire","Re-Hire","Re-Hire","Re-Hire","Re-Hire","Re-Hire","Re-Hire","Re-Hire","Re-Hire","Re-Hire","Re-Hire","Re-Hire","Re-Hire","Re-Hire","Re-Hire","Re-Hire","Re-Hire","Re-Hire","Re-Hire","Re-Hire","Re-Hire","Re-Hire","Re-Hire","Re-Hire","Re-Hire","Re-Hire","Re-Hire","Re-Hire","Re-Hire","Re-Hire","Re-Hire","Re-Hire","Re-Hire","Re-Hire","Re-Hire","Re-Hire","Re-Hire","Re-Hire","Re-Hire","Re-Hire","Re-Hire","Re-Hire","Re-Hire","Re-Hire","Re-Hire","Re-Hire","Re-Hire","Re-Hire","Re-Hire","Re-Hire","Re-Hire","Re-Hire","Re-Hire","Re-Hire","Re-Hire","Re-Hire","Re-Hire","Re-Hire","Re-Hire","Re-Hire","Re-Hire","Re-Hire","Re-Hire","Re-Hire","Re-Hire","Re-Hire","Re-Hire","Re-Hire","Re-Hire","Re-Hire","Re-Hire","Re-Hire","Re-Hire","Re-Hire","Re-Hire","Re-Hire","Re-Hire","Re-Hire","Re-Hire","Re-Hire","Re-Hire","Re-Hire","Re-Hire","Re-Hire","Re-Hire","Re-Hire","Re-Hire","Re-Hire","Re-Hire","Re-Hire","Re-Hire","Re-Hire","Re-Hire","Re-Hire","Re-Hire","Re-Hire","Re-Hire","Re-Hire","Re-Hire","Re-Hire","Re-Hire","Re-Hire","Re-Hire","Re-Hire","Re-Hire","Re-Hire","Re-Hire","Re-Hire","Re-Hire","Re-Hire","Re-Hire","Re-Hire","Re-Hire","Re-Hire","Re-Hire","Re-Hire","Re-Hire","Re-Hire","Re-Hire","Re-Hire","Re-Hire","Re-Hire","Re-Hire","Re-Hire","Re-Hire","Re-Hire","Re-Hire","Re-Hire","Re-Hire","Re-Hire","Re-Hire","Re-Hire","Re-Hire","Re-Hire","Re-Hire","Re-Hire","Re-Hire","Re-Hire","Re-Hire","Re-Hire","Re-Hire","Re-Hire","Re-Hire","Re-Hire","Re-Hire","Re-Hire","Re-Hire","Re-Hire","Re-Hire","Re-Hire","Re-Hire","Re-Hire","Re-Hire","Re-Hire","Re-Hire","Re-Hire","Re-Hire","Re-Hire","Re-Hire","Re-Hire","Re-Hire","Re-Hire","Re-Hire","Re-Hire","Re-Hire","Re-Hire","Re-Hire","Re-Hire","Re-Hire","Re-Hire","Re-Hire","Re-Hire","Re-Hire","Re-Hire","Re-Hire","Re-Hire","Re-Hire","Re-Hire","Re-Hire","Re-Hire","Re-Hire","Re-Hire","Re-Hire","Re-Hire","Re-Hire","Re-Hire","Re-Hire","Re-Hire","Re-Hire","Re-Hire","Re-Hire","Re-Hire","Re-Hire","Re-Hire","Re-Hire","Re-Hire","Re-Hire","Re-Hire","Re-Hire","Re-Hire","Re-Hire","Re-Hire","Re-Hire","Re-Hire","Re-Hire","Re-Hire","Re-Hire","Re-Hire","Re-Hire","Re-Hire","Re-Hire","Re-Hire","Re-Hire","Re-Hire","Re-Hire","Re-Hire","Re-Hire","Re-Hire","Re-Hire","Re-Hire","Re-Hire","Re-Hire","Re-Hire","Re-Hire","Re-Hire","Re-Hire","Re-Hire","Re-Hire","Re-Hire","Re-Hire","Re-Hire","Re-Hire","Re-Hire","Re-Hire","Re-Hire","Re-Hire","Re-Hire","Re-Hire","Re-Hire","Re-Hire","Re-Hire","Re-Hire","Re-Hire","Re-Hire","Re-Hire","Re-Hire","Re-Hire","Re-Hire","Re-Hire","Re-Hire","Re-Hire","Re-Hire","Re-Hire","Re-Hire","Re-Hire","Re-Hire","Re-Hire","Re-Hire","Re-Hire","Re-Hire","Re-Hire","Re-Hire","Re-Hire","Re-Hire","Re-Hire","Re-Hire","Re-Hire","Re-Hire","Re-Hire","Re-Hire","Re-Hire","Re-Hire","Re-Hire","Re-Hire","Re-Hire","Re-Hire","Re-Hire","Re-Hire","Re-Hire","Re-Hire","Re-Hire","Re-Hire","Re-Hire","Re-Hire","Re-Hire","Re-Hire","Re-Hire","Re-Hire","Re-Hire","Re-Hire","Re-Hire","Re-Hire","Re-Hire","Re-Hire","Re-Hire","Re-Hire","Re-Hire","Re-Hire","Re-Hire","Re-Hire","Re-Hire","Re-Hire","Re-Hire","Re-Hire","Re-Hire","Re-Hire","Re-Hire","Re-Hire","Re-Hire","Re-Hire","Re-Hire","Re-Hire","Re-Hire","Re-Hire","Re-Hire","Re-Hire","Re-Hire","Re-Hire","Re-Hire","Re-Hire","Re-Hire","Re-Hire","Re-Hire","Re-Hire","Re-Hire","Re-Hire","Re-Hire","Re-Hire","Re-Hire","Re-Hire","Re-Hire","Re-Hire","Re-Hire","Re-Hire","Re-Hire","Re-Hire","Re-Hire","Re-Hire","Re-Hire","Re-Hire","Re-Hire","Re-Hire","Re-Hire","Re-Hire","Re-Hire","Re-Hire","Re-Hire","Re-Hire","Re-Hire","Re-Hire","Re-Hire","Re-Hire","Re-Hire","Re-Hire","Re-Hire","Re-Hire","Re-Hire","Re-Hire","Re-Hire","Re-Hire","Re-Hire","Re-Hire","Re-Hire","Re-Hire","Re-Hire","Re-Hire","Re-Hire","Re-Hire","Re-Hire","Re-Hire","Re-Hire","Re-Hire","Re-Hire","Re-Hire","Re-Hire","Re-Hire","Re-Hire","Re-Hire","Re-Hire","Re-Hire","Re-Hire","Re-Hire","Re-Hire","Re-Hire","Re-Hire","Re-Hire","Re-Hire","Re-Hire","Re-Hire","Re-Hire","Re-Hire","Re-Hire","Re-Hire","Re-Hire","Re-Hire","Re-Hire","Re-Hire","Re-Hire","Re-Hire","Re-Hire","Re-Hire","Re-Hire","Re-Hire","Re-Hire","Re-Hire","Re-Hire","Re-Hire","Re-Hire","Re-Hire","Re-Hire","Re-Hire","Re-Hire","Re-Hire","Re-Hire","Re-Hire","Re-Hire","Re-Hire","Re-Hire","Re-Hire","Re-Hire","Re-Hire","Re-Hire","Re-Hire","Re-Hire","Re-Hire","Re-Hire","Re-Hire","Re-Hire","Re-Hire","Re-Hire","Re-Hire","Re-Hire","Re-Hire","Re-Hire","Re-Hire","Re-Hire","Re-Hire","Re-Hire","Re-Hire","Re-Hire","Re-Hire","Re-Hire","Re-Hire","Re-Hire","Re-Hire","Re-Hire","Re-Hire","Re-Hire","Re-Hire","Re-Hire","Re-Hire","Re-Hire","Re-Hire","Re-Hire","Re-Hire","Re-Hire","Re-Hire","Re-Hire","Re-Hire","Re-Hire","Re-Hire","Re-Hire","Re-Hire","Re-Hire","Re-Hire","Re-Hire","Re-Hire","Re-Hire","Re-Hire","Re-Hire","Re-Hire","Re-Hire","Re-Hire","Re-Hire","Re-Hire","Re-Hire","Re-Hire","Re-Hire","Re-Hire","Re-Hire","Re-Hire","Re-Hire","Re-Hire","Re-Hire","Re-Hire","Re-Hire","Re-Hire","Re-Hire","Re-Hire","Re-Hire","Re-Hire","Re-Hire","Re-Hire","Re-Hire","Re-Hire","Re-Hire","Re-Hire","Re-Hire","Re-Hire","Re-Hire","Re-Hire","Re-Hire","Re-Hire","Re-Hire","Re-Hire","Re-Hire","Re-Hire","Re-Hire","Re-Hire","Re-Hire","Re-Hire","Re-Hire","Re-Hire","Re-Hire","Re-Hire","Re-Hire","Re-Hire","Re-Hire","Re-Hire","Re-Hire","Re-Hire","Re-Hire","Re-Hire","Re-Hire","Re-Hire","Re-Hire","Re-Hire","Re-Hire","Re-Hire","Re-Hire","Re-Hire","Re-Hire","Re-Hire","Re-Hire","Re-Hire","Re-Hire","Re-Hire","Re-Hire","Re-Hire","Re-Hire","Re-Hire","Re-Hire","Re-Hire","Re-Hire","Re-Hire","Re-Hire","Re-Hire","Re-Hire","Re-Hire","Re-Hire","Re-Hire","Re-Hire","Re-Hire","Re-Hire","Re-Hire","Re-Hire","Re-Hire","Re-Hire","Re-Hire","Re-Hire","Re-Hire","Re-Hire","Re-Hire","Re-Hire","Re-Hire","Re-Hire","Re-Hire","Re-Hire","Re-Hire","Re-Hire","Re-Hire","Re-Hire","Re-Hire","Re-Hire","Re-Hire","Re-Hire","Re-Hire","Re-Hire","Re-Hire","Re-Hire","Re-Hire","Re-Hire","Re-Hire","Re-Hire","Re-Hire","Re-Hire","Re-Hire","Re-Hire","Re-Hire","Re-Hire","Re-Hire","Re-Hire","Re-Hire","Re-Hire","Re-Hire","Re-Hire","Re-Hire","Re-Hire","Re-Hire","Re-Hire","Re-Hire","Re-Hire","Re-Hire","Re-Hire","Re-Hire","Re-Hire","Re-Hire","Re-Hire","Re-Hire","Re-Hire","Re-Hire","Re-Hire","Re-Hire","Re-Hire","Re-Hire","Re-Hire","Re-Hire","Re-Hire","Re-Hire","Re-Hire","Re-Hire","Re-Hire","Re-Hire","Re-Hire","Re-Hire","Re-Hire","Re-Hire","Re-Hire","Re-Hire","Re-Hire","Re-Hire","Re-Hire","Re-Hire","Re-Hire","Re-Hire","Re-Hire","Re-Hire","Re-Hire","Re-Hire","Re-Hire","Re-Hire","Re-Hire","Re-Hire","Re-Hire","Re-Hire","Re-Hire","Re-Hire","Re-Hire","Re-Hire","Re-Hire","Re-Hire","Re-Hire","Re-Hire","Re-Hire","Re-Hire","Re-Hire","Re-Hire","Re-Hire","Re-Hire","Re-Hire","Re-Hire","Re-Hire","Re-Hire","Re-Hire","Re-Hire","Re-Hire","Re-Hire","Re-Hire","Re-Hire","Re-Hire","Re-Hire","Re-Hire","Re-Hire","Re-Hire","Re-Hire","Re-Hire","Re-Hire","Re-Hire","Re-Hire","Re-Hire","Re-Hire","Re-Hire","Re-Hire","Re-Hire","Re-Hire","Re-Hire","Re-Hire","Re-Hire","Re-Hire","Re-Hire","Re-Hire","Re-Hire","Re-Hire","Re-Hire","Re-Hire","Re-Hire","Re-Hire","Re-Hire","Re-Hire","Re-Hire","Re-Hire","Re-Hire","Re-Hire","Re-Hire","Re-Hire","Re-Hire","Re-Hire","Re-Hire","Re-Hire","Re-Hire","Re-Hire","Re-Hire","Re-Hire","Re-Hire","Re-Hire","Re-Hire","Re-Hire","Re-Hire","Re-Hire","Re-Hire","Re-Hire","Re-Hire","Re-Hire","Re-Hire","Re-Hire","Re-Hire","Re-Hire","Re-Hire","Re-Hire","Re-Hire","Re-Hire","Re-Hire","Re-Hire","Re-Hire","Re-Hire","Re-Hire","Re-Hire","Re-Hire","Re-Hire","Re-Hire","Re-Hire","Re-Hire","Re-Hire","Re-Hire","Re-Hire","Re-Hire","Re-Hire","Re-Hire","Re-Hire","Re-Hire","Re-Hire","Re-Hire","Re-Hire","Re-Hire","Re-Hire","Re-Hire","Re-Hire","Re-Hire","Re-Hire","Re-Hire","Re-Hire","Re-Hire","Re-Hire","Re-Hire","Re-Hire","Re-Hire","Re-Hire","Re-Hire","Re-Hire","Re-Hire","Re-Hire","Re-Hire","Re-Hire","Re-Hire","Re-Hire","Re-Hire","Re-Hire","Re-Hire","Re-Hire","Re-Hire","Re-Hire","Re-Hire","Re-Hire","Re-Hire","Re-Hire","Re-Hire","Re-Hire","Re-Hire","Re-Hire","Re-Hire","Re-Hire","Re-Hire","Re-Hire","Re-Hire","Re-Hire","Re-Hire","Re-Hire","Re-Hire","Re-Hire","Re-Hire","Re-Hire","Re-Hire","Re-Hire","Re-Hire","Re-Hire","Re-Hire","Re-Hire","Re-Hire","Re-Hire","Re-Hire","Re-Hire","Re-Hire","Re-Hire","Re-Hire","Re-Hire","Re-Hire","Re-Hire","Re-Hire","Re-Hire","Re-Hire","Re-Hire","Re-Hire","Re-Hire","Re-Hire","Re-Hire","Re-Hire","Re-Hire","Re-Hire","Re-Hire","Re-Hire","Re-Hire","Re-Hire","Re-Hire","Re-Hire","Re-Hire","Re-Hire","Re-Hire","Re-Hire","Re-Hire","Re-Hire","Re-Hire","Re-Hire","Re-Hire","Re-Hire","Re-Hire","Re-Hire","Re-Hire","Re-Hire","Re-Hire","Re-Hire","Re-Hire","Re-Hire","Re-Hire","Re-Hire","Re-Hire","Re-Hire","Re-Hire","Re-Hire","Re-Hire","Re-Hire","Re-Hire","Re-Hire","Re-Hire","Re-Hire","Re-Hire","Re-Hire","Re-Hire","Re-Hire","Re-Hire","Re-Hire","Re-Hire","Re-Hire","Re-Hire","Re-Hire","Re-Hire","Re-Hire","Re-Hire","Re-Hire","Re-Hire","Re-Hire","Re-Hire","Re-Hire","Re-Hire","Re-Hire","Re-Hire","Re-Hire","Re-Hire","Re-Hire","Re-Hire","Re-Hire","Re-Hire","Re-Hire","Re-Hire","Re-Hire","Re-Hire","Re-Hire","Re-Hire","Re-Hire","Re-Hire","Re-Hire","Re-Hire","Re-Hire","Re-Hire","Re-Hire","Re-Hire","Re-Hire","Re-Hire","Re-Hire","Re-Hire","Re-Hire","Re-Hire","Re-Hire","Re-Hire","Re-Hire","Re-Hire","Re-Hire","Re-Hire","Re-Hire","Re-Hire","Re-Hire","Re-Hire","Re-Hire","Re-Hire","Re-Hire","Re-Hire","Re-Hire","Re-Hire","Re-Hire","Re-Hire","Re-Hire","Re-Hire","Re-Hire","Re-Hire","Re-Hire","Re-Hire","Re-Hire","Re-Hire","Re-Hire","Re-Hire","Re-Hire","Re-Hire","Re-Hire","Re-Hire","Re-Hire","Re-Hire","Re-Hire","Re-Hire","Re-Hire","Re-Hire","Re-Hire","Re-Hire","Re-Hire","Re-Hire","Re-Hire","Re-Hire","Re-Hire","Re-Hire","Re-Hire","Re-Hire","Re-Hire","Re-Hire","Re-Hire","Re-Hire","Re-Hire","Re-Hire","Re-Hire","Re-Hire","Re-Hire","Re-Hire","Re-Hire","Re-Hire","Re-Hire","Re-Hire","Re-Hire","Re-Hire","Re-Hire","Re-Hire","Re-Hire","Re-Hire","Re-Hire","Re-Hire","Re-Hire","Re-Hire","Re-Hire","Re-Hire","Re-Hire","Re-Hire","Re-Hire","Re-Hire","Re-Hire","Re-Hire","Re-Hire","Re-Hire","Re-Hire","Re-Hire","Re-Hire","Re-Hire","Re-Hire","Re-Hire","Re-Hire","Re-Hire","Re-Hire","Re-Hire","Re-Hire","Re-Hire","Re-Hire","Re-Hire","Re-Hire","Re-Hire","Re-Hire","Re-Hire","Re-Hire","Re-Hire","Re-Hire","Re-Hire","Re-Hire","Re-Hire","Re-Hire","Re-Hire","Re-Hire","Re-Hire","Re-Hire","Re-Hire","Re-Hire","Re-Hire","Re-Hire","Re-Hire","Re-Hire","Re-Hire","Re-Hire","Re-Hire","Re-Hire","Re-Hire","Re-Hire","Re-Hire","Re-Hire","Re-Hire","Re-Hire","Re-Hire","Re-Hire","Re-Hire","Re-Hire","Re-Hire","Re-Hire","Re-Hire","Re-Hire","Re-Hire","Re-Hire","Re-Hire","Re-Hire","Re-Hire","Re-Hire","Re-Hire","Re-Hire","Re-Hire","Re-Hire","Re-Hire","Re-Hire","Re-Hire","Re-Hire","Re-Hire","Re-Hire","Re-Hire","Re-Hire","Re-Hire","Re-Hire","Re-Hire","Re-Hire","Re-Hire","Re-Hire","Re-Hire","Re-Hire","Re-Hire","Re-Hire","Re-Hire","Re-Hire","Re-Hire","Re-Hire","Re-Hire","Re-Hire","Re-Hire","Re-Hire","Re-Hire","Re-Hire","Re-Hire","Re-Hire","Re-Hire","Re-Hire","Re-Hire","Re-Hire","Re-Hire","Re-Hire","Re-Hire","Re-Hire","Re-Hire","Re-Hire","Re-Hire","Re-Hire","Re-Hire","Re-Hire","Re-Hire","Re-Hire","Re-Hire","Re-Hire","Re-Hire","Re-Hire","Re-Hire","Re-Hire","Re-Hire","Re-Hire","Re-Hire","Re-Hire","Re-Hire","Re-Hire","Re-Hire","Re-Hire","Re-Hire","Re-Hire","Re-Hire","Re-Hire","Re-Hire","Re-Hire","Re-Hire","Re-Hire","Re-Hire","Re-Hire","Re-Hire","Re-Hire","Re-Hire","Re-Hire","Re-Hire","Re-Hire","Re-Hire","Re-Hire","Re-Hire","Re-Hire","Re-Hire","Re-Hire","Re-Hire","Re-Hire","Re-Hire","Re-Hire","Re-Hire","Re-Hire","Re-Hire","Re-Hire","Re-Hire","Re-Hire","Re-Hire","Re-Hire","Re-Hire","Re-Hire","Re-Hire","Re-Hire","Re-Hire","Re-Hire","Re-Hire","Re-Hire","Re-Hire","Re-Hire","Re-Hire","Re-Hire","Re-Hire","Re-Hire","Re-Hire","Re-Hire","Re-Hire","Re-Hire","Re-Hire","Re-Hire","Re-Hire","Re-Hire","Re-Hire","Re-Hire","Re-Hire","Re-Hire","Re-Hire","Re-Hire","Re-Hire","Re-Hire","Re-Hire","Re-Hire","Re-Hire","Re-Hire","Re-Hire","Re-Hire","Re-Hire","Re-Hire","Re-Hire","Re-Hire","Re-Hire","Re-Hire","Re-Hire","Re-Hire","Re-Hire","Re-Hire","Re-Hire","Re-Hire","Re-Hire","Re-Hire","Re-Hire","Re-Hire","Re-Hire","Re-Hire","Re-Hire","Re-Hire","Re-Hire","Re-Hire","Re-Hire","Re-Hire","Re-Hire","Re-Hire","Re-Hire","Re-Hire","Re-Hire","Re-Hire","Re-Hire","Re-Hire","Re-Hire","Re-Hire","Re-Hire","Re-Hire","Re-Hire","Re-Hire","Re-Hire","Re-Hire","Re-Hire","Re-Hire","Re-Hire","Re-Hire","Re-Hire","Re-Hire","Re-Hire","Re-Hire","Re-Hire","Re-Hire","Re-Hire","Re-Hire","Re-Hire","Re-Hire","Re-Hire","Re-Hire","Re-Hire","Re-Hire","Re-Hire","Re-Hire","Re-Hire","Re-Hire","Re-Hire","Re-Hire","Re-Hire","Re-Hire","Re-Hire","Re-Hire","Re-Hire","Re-Hire","Re-Hire","Re-Hire","Re-Hire","Re-Hire","Re-Hire","Re-Hire","Re-Hire","Re-Hire","Re-Hire","Re-Hire","Re-Hire","Re-Hire","Re-Hire","Re-Hire","Re-Hire","Re-Hire","Re-Hire","Re-Hire","Re-Hire","Re-Hire","Re-Hire","Re-Hire","Re-Hire","Re-Hire","Re-Hire","Re-Hire","Re-Hire","Re-Hire","Re-Hire","Re-Hire","Re-Hire","Re-Hire","Re-Hire","Re-Hire","Re-Hire","Re-Hire","Re-Hire","Re-Hire","Re-Hire","Re-Hire","Re-Hire","Re-Hire","Re-Hire","Re-Hire","Re-Hire","Re-Hire","Re-Hire","Re-Hire","Re-Hire","Re-Hire","Re-Hire","Re-Hire","Re-Hire","Re-Hire","Re-Hire","Re-Hire","Re-Hire","Re-Hire","Re-Hire","Re-Hire","Re-Hire","Re-Hire","Re-Hire","Re-Hire","Re-Hire","Re-Hire","Re-Hire","Re-Hire","Re-Hire","Re-Hire","Re-Hire","Re-Hire","Re-Hire","Re-Hire","Re-Hire","Re-Hire","Re-Hire","Re-Hire","Re-Hire","Re-Hire","Re-Hire","Re-Hire","Re-Hire","Re-Hire","Re-Hire","Re-Hire","Re-Hire","Re-Hire","Re-Hire","Re-Hire","Re-Hire","Re-Hire","Re-Hire","Re-Hire","Re-Hire","Re-Hire","Re-Hire","Re-Hire","Re-Hire","Re-Hire","Re-Hire","Re-Hire","Re-Hire","Re-Hire","Re-Hire","Re-Hire","Re-Hire","Re-Hire","Re-Hire","Re-Hire","Re-Hire","Re-Hire","Re-Hire","Re-Hire","Re-Hire","Re-Hire","Re-Hire","Re-Hire","Re-Hire","Re-Hire","Re-Hire","Re-Hire","Re-Hire","Re-Hire","Re-Hire","Re-Hire","Re-Hire","Re-Hire","Re-Hire","Re-Hire","Re-Hire","Re-Hire","Re-Hire","Re-Hire","Re-Hire","Re-Hire","Re-Hire","Re-Hire","Re-Hire","Re-Hire","Re-Hire","Re-Hire","Re-Hire","Re-Hire","Re-Hire","Re-Hire","Re-Hire","Re-Hire","Re-Hire","Re-Hire","Re-Hire","Re-Hire","Re-Hire","Re-Hire","Re-Hire","Re-Hire","Re-Hire","Re-Hire","Re-Hire","Re-Hire","Re-Hire","Re-Hire","Re-Hire","Re-Hire","Re-Hire","Re-Hire","Re-Hire","Re-Hire","Re-Hire","Re-Hire","Re-Hire","Re-Hire","Re-Hire","Re-Hire","Re-Hire","Re-Hire","Re-Hire","Re-Hire","Re-Hire","Re-Hire","Re-Hire","Re-Hire","Re-Hire","Re-Hire","Re-Hire","Re-Hire","Re-Hire","Re-Hire","Re-Hire","Re-Hire","Re-Hire","Re-Hire","Re-Hire","Re-Hire","Re-Hire","Re-Hire","Re-Hire","Re-Hire","Re-Hire","Re-Hire","Re-Hire","Re-Hire","Re-Hire","Re-Hire","Re-Hire","Re-Hire","Re-Hire","Re-Hire","Re-Hire","Re-Hire","Re-Hire","Re-Hire","Re-Hire","Re-Hire","Re-Hire","Re-Hire","Re-Hire","Re-Hire","Re-Hire","Re-Hire","Re-Hire","Re-Hire","Re-Hire","Re-Hire","Re-Hire","Re-Hire","Re-Hire","Re-Hire","Re-Hire","Re-Hire","Re-Hire","Re-Hire","Re-Hire","Re-Hire","Re-Hire","Re-Hire","Re-Hire","Re-Hire","Re-Hire","Re-Hire","Re-Hire","Re-Hire","Re-Hire","Re-Hire","Re-Hire","Re-Hire","Re-Hire","Re-Hire","Re-Hire","Re-Hire","Re-Hire","Re-Hire","Re-Hire","Re-Hire","Re-Hire","Re-Hire","Re-Hire","Re-Hire","Re-Hire","Re-Hire","Re-Hire","Re-Hire","Re-Hire","Re-Hire","Re-Hire","Re-Hire","Re-Hire","Re-Hire","Re-Hire","Re-Hire","Re-Hire","Re-Hire","Re-Hire","Re-Hire","Re-Hire","Re-Hire","Re-Hire","Re-Hire","Re-Hire","Re-Hire","Re-Hire","Re-Hire","Re-Hire","Re-Hire","Re-Hire","Re-Hire","Re-Hire","Re-Hire","Re-Hire","Re-Hire","Re-Hire","Re-Hire","Re-Hire","Re-Hire","Re-Hire","Re-Hire","Re-Hire","Re-Hire","Re-Hire","Re-Hire","Re-Hire","Re-Hire","Re-Hire","Re-Hire","Re-Hire","Re-Hire","Re-Hire","Re-Hire","Re-Hire","Re-Hire","Re-Hire","Re-Hire","Re-Hire","Re-Hire","Re-Hire","Re-Hire","Re-Hire","Re-Hire","Re-Hire","Re-Hire","Re-Hire","Re-Hire","Re-Hire","Re-Hire","Re-Hire","Re-Hire","Re-Hire","Re-Hire","Re-Hire","Re-Hire","Re-Hire","Re-Hire","Re-Hire","Re-Hire","Re-Hire","Re-Hire","Re-Hire","Re-Hire","Re-Hire","Re-Hire","Re-Hire","Re-Hire","Re-Hire","Re-Hire","Re-Hire","Re-Hire","Re-Hire","Re-Hire","Re-Hire","Re-Hire","Re-Hire","Re-Hire","Re-Hire","Re-Hire","Re-Hire","Re-Hire","Re-Hire","Re-Hire","Re-Hire","Re-Hire","Re-Hire","Re-Hire","Re-Hire","Re-Hire","Re-Hire","Re-Hire","Re-Hire","Re-Hire","Re-Hire","Re-Hire","Re-Hire","Re-Hire","Re-Hire","Re-Hire","Re-Hire","Re-Hire","Re-Hire","Re-Hire","Re-Hire","Re-Hire","Re-Hire","Re-Hire","Re-Hire","Re-Hire","Re-Hire","Re-Hire","Re-Hire","Re-Hire","Re-Hire","Re-Hire","Re-Hire","Re-Hire","Re-Hire","Re-Hire","Re-Hire","Re-Hire","Re-Hire","Re-Hire","Re-Hire","Re-Hire","Re-Hire","Re-Hire","Re-Hire","Re-Hire","Re-Hire","Re-Hire","Re-Hire","Re-Hire","Re-Hire","Re-Hire","Re-Hire","Re-Hire","Re-Hire","Re-Hire","Re-Hire","Re-Hire","Re-Hire","Re-Hire","Re-Hire","Re-Hire","Re-Hire","Re-Hire","Re-Hire","Re-Hire","Re-Hire","Re-Hire","Re-Hire","Re-Hire","Re-Hire","Re-Hire","Re-Hire","Re-Hire","Re-Hire","Re-Hire","Re-Hire","Re-Hire","Re-Hire","Re-Hire","Re-Hire","Re-Hire","Re-Hire","Re-Hire","Re-Hire","Re-Hire","Re-Hire","Re-Hire","Re-Hire","Re-Hire","Re-Hire","Re-Hire","Re-Hire","Re-Hire","Re-Hire","Re-Hire","Re-Hire","Re-Hire","Re-Hire","Re-Hire","Re-Hire","Re-Hire","Re-Hire","Re-Hire","Re-Hire","Re-Hire","Re-Hire","Re-Hire","Re-Hire","Re-Hire","Re-Hire","Re-Hire","Re-Hire","Re-Hire","Re-Hire","Re-Hire","Re-Hire","Re-Hire","Re-Hire","Re-Hire","Re-Hire","Re-Hire","Re-Hire","Re-Hire","Re-Hire","Re-Hire","Re-Hire","Re-Hire","Re-Hire","Re-Hire","Re-Hire","Re-Hire","Re-Hire","Re-Hire","Re-Hire","Re-Hire","Re-Hire","Re-Hire","Re-Hire","Re-Hire","Re-Hire","Re-Hire","Re-Hire","Re-Hire","Re-Hire","Re-Hire","Re-Hire","Re-Hire","Re-Hire","Re-Hire","Re-Hire","Re-Hire","Re-Hire","Re-Hire","Re-Hire","Re-Hire","Re-Hire","Re-Hire","Re-Hire","Re-Hire","Re-Hire","Re-Hire","Re-Hire","Re-Hire","Re-Hire","Re-Hire","Re-Hire","Re-Hire","Re-Hire","Re-Hire","Re-Hire","Re-Hire","Re-Hire","Re-Hire","Re-Hire","Re-Hire","Re-Hire","Re-Hire","Re-Hire","Re-Hire","Re-Hire","Re-Hire","Re-Hire","Re-Hire","Re-Hire","Re-Hire","Re-Hire","Re-Hire","Re-Hire","Re-Hire","Re-Hire","Re-Hire","Re-Hire","Re-Hire","Re-Hire","Re-Hire","Re-Hire","Re-Hire","Re-Hire","Re-Hire","Re-Hire","Re-Hire","Re-Hire","Re-Hire","Re-Hire","Re-Hire","Re-Hire","Re-Hire","Re-Hire","Re-Hire","Re-Hire","Re-Hire","Re-Hire","Re-Hire","Re-Hire","Re-Hire","Re-Hire","Re-Hire","Re-Hire","Re-Hire","Re-Hire","Re-Hire","Re-Hire","Re-Hire","Re-Hire","Re-Hire","Re-Hire","Re-Hire","Re-Hire","Re-Hire","Re-Hire","Re-Hire","Re-Hire","Re-Hire","Re-Hire","Re-Hire","Re-Hire","Re-Hire","Re-Hire","Re-Hire","Re-Hire","Re-Hire","Re-Hire","Re-Hire","Re-Hire","Re-Hire","Re-Hire","Re-Hire","Re-Hire","Re-Hire","Re-Hire","Re-Hire","Re-Hire","Re-Hire","Re-Hire","Re-Hire","Re-Hire","Re-Hire","Re-Hire","Re-Hire","Re-Hire","Re-Hire","Re-Hire","Re-Hire","Re-Hire","Re-Hire","Re-Hire","Re-Hire","Re-Hire","Re-Hire","Re-Hire","Re-Hire","Re-Hire","Re-Hire","Re-Hire","Re-Hire","Re-Hire","Re-Hire","Re-Hire","Re-Hire","Re-Hire","Re-Hire","Re-Hire","Re-Hire","Re-Hire","Re-Hire","Re-Hire","Re-Hire","Re-Hire","Re-Hire","Re-Hire","Re-Hire","Re-Hire","Re-Hire","Re-Hire","Re-Hire","Re-Hire","Re-Hire","Re-Hire","Re-Hire","Re-Hire","Re-Hire","Re-Hire","Re-Hire","Re-Hire","Re-Hire","Re-Hire","Re-Hire","Re-Hire","Re-Hire","Re-Hire","Re-Hire","Re-Hire","Re-Hire","Re-Hire","Re-Hire","Re-Hire","Re-Hire","Re-Hire","Re-Hire","Re-Hire","Re-Hire","Re-Hire","Re-Hire","Re-Hire","Re-Hire","Re-Hire","Re-Hire","Re-Hire","Re-Hire","Re-Hire","Re-Hire","Re-Hire","Re-Hire","Re-Hire","Re-Hire","Re-Hire","Re-Hire","Re-Hire","Re-Hire","Re-Hire","Re-Hire","Re-Hire","Re-Hire","Re-Hire","Re-Hire","Re-Hire","Re-Hire","Re-Hire","Re-Hire","Re-Hire","Re-Hire","Re-Hire","Re-Hire","Re-Hire","Re-Hire","Re-Hire","Re-Hire","Re-Hire","Re-Hire","Re-Hire","Re-Hire","Re-Hire","Re-Hire","Re-Hire","Re-Hire","Re-Hire","Re-Hire","Re-Hire","Re-Hire","Re-Hire","Re-Hire","Re-Hire","Re-Hire","Re-Hire","Re-Hire","Re-Hire","Re-Hire","Re-Hire","Re-Hire","Re-Hire","Re-Hire","Re-Hire","Re-Hire","Re-Hire","Re-Hire","Re-Hire","Re-Hire","Re-Hire","Re-Hire","Re-Hire","Re-Hire","Re-Hire","Re-Hire","Re-Hire","Re-Hire","Re-Hire","Re-Hire","Re-Hire","Re-Hire","Re-Hire","Re-Hire","Re-Hire","Re-Hire","Re-Hire","Re-Hire","Re-Hire","Re-Hire","Re-Hire","Re-Hire","Re-Hire","Re-Hire","Re-Hire","Re-Hire","Re-Hire","Re-Hire","Re-Hire","Re-Hire","Re-Hire","Re-Hire","Re-Hire","Re-Hire","Re-Hire","Re-Hire","Re-Hire","Re-Hire","Re-Hire","Re-Hire","Re-Hire","Re-Hire","Re-Hire","Re-Hire","Re-Hire","Re-Hire","Re-Hire","Re-Hire","Re-Hire","Re-Hire","Re-Hire","Re-Hire","Re-Hire","Re-Hire","Re-Hire","Re-Hire","Re-Hire","Re-Hire","Re-Hire","Re-Hire","Re-Hire","Re-Hire","Re-Hire","Re-Hire","Re-Hire","Re-Hire","Re-Hire","Re-Hire","Re-Hire","Re-Hire","Re-Hire","Re-Hire","Re-Hire","Re-Hire","Re-Hire","Re-Hire","Re-Hire","Re-Hire","Re-Hire","Re-Hire","Re-Hire","Re-Hire","Re-Hire","Re-Hire","Re-Hire","Re-Hire","Re-Hire","Re-Hire","Re-Hire","Re-Hire","Re-Hire","Re-Hire","Re-Hire","Re-Hire","Re-Hire","Re-Hire","Re-Hire","Re-Hire","Re-Hire","Re-Hire","Re-Hire","Re-Hire","Re-Hire","Re-Hire","Re-Hire","Re-Hire","Re-Hire","Re-Hire","Re-Hire","Re-Hire","Re-Hire","Re-Hire","Re-Hire","Re-Hire","Re-Hire","Re-Hire","Re-Hire","Re-Hire","Re-Hire","Re-Hire","Re-Hire","Re-Hire","Re-Hire","Re-Hire","Re-Hire","Re-Hire","Re-Hire","Re-Hire","Re-Hire","Re-Hire","Re-Hire","Re-Hire","Re-Hire","Re-Hire","Re-Hire","Re-Hire","Re-Hire","Re-Hire","Re-Hire","Re-Hire","Re-Hire","Re-Hire","Re-Hire","Re-Hire","Re-Hire","Re-Hire","Re-Hire","Re-Hire","Re-Hire","Re-Hire","Re-Hire","Re-Hire","Re-Hire","Re-Hire","Re-Hire","Re-Hire","Re-Hire","Re-Hire","Re-Hire","Re-Hire","Re-Hire","Re-Hire","Re-Hire","Re-Hire","Re-Hire","Re-Hire","Re-Hire","Re-Hire","Re-Hire","Re-Hire","Re-Hire","Re-Hire","Re-Hire","Re-Hire","Re-Hire","Re-Hire","Re-Hire","Re-Hire","Re-Hire","Re-Hire","Re-Hire","Re-Hire","Re-Hire","Re-Hire","Re-Hire","Re-Hire","Re-Hire","Re-Hire","Re-Hire","Re-Hire","Re-Hire","Re-Hire","Re-Hire","Re-Hire","Re-Hire","Re-Hire","Re-Hire","Re-Hire","Re-Hire","Re-Hire","Re-Hire","Re-Hire","Re-Hire","Re-Hire","Re-Hire","Re-Hire","Re-Hire","Re-Hire","Re-Hire","Re-Hire","Re-Hire","Re-Hire","Re-Hire","Re-Hire","Re-Hire","Re-Hire","Re-Hire","Re-Hire","Re-Hire","Re-Hire","Re-Hire","Re-Hire","Re-Hire","Re-Hire","Re-Hire","Re-Hire","Re-Hire","Re-Hire","Re-Hire","Re-Hire","Re-Hire","Re-Hire","Re-Hire","Re-Hire","Re-Hire","Re-Hire","Re-Hire","Re-Hire","Re-Hire","Re-Hire","Re-Hire","Re-Hire","Re-Hire","Re-Hire","Re-Hire","Re-Hire","Re-Hire","Re-Hire","Re-Hire","Re-Hire","Re-Hire","Re-Hire","Re-Hire","Re-Hire","Re-Hire","Re-Hire","Re-Hire","Re-Hire","Re-Hire","Re-Hire","Re-Hire","Re-Hire","Re-Hire","Re-Hire","Re-Hire","Re-Hire","Re-Hire","Re-Hire","Re-Hire","Re-Hire","Re-Hire","Re-Hire","Re-Hire","Re-Hire","Re-Hire","Re-Hire","Re-Hire","Re-Hire","Re-Hire","Re-Hire","Re-Hire","Re-Hire","Re-Hire","Re-Hire","Re-Hire","Re-Hire","Re-Hire","Re-Hire","Re-Hire","Re-Hire","Re-Hire","Re-Hire","Re-Hire","Re-Hire","Re-Hire","Re-Hire","Re-Hire","Re-Hire","Re-Hire","Re-Hire","Re-Hire","Re-Hire","Re-Hire","Re-Hire","Re-Hire","Re-Hire","Re-Hire","Re-Hire","Re-Hire","Re-Hire","Re-Hire","Re-Hire","Re-Hire","Re-Hire","Re-Hire","Re-Hire","Re-Hire","Re-Hire","Re-Hire","Re-Hire","Re-Hire","Re-Hire","Re-Hire","Re-Hire","Re-Hire","Re-Hire","Re-Hire","Re-Hire","Re-Hire","Re-Hire","Re-Hire","Re-Hire","Re-Hire","Re-Hire","Re-Hire","Re-Hire","Re-Hire","Re-Hire","Re-Hire","Re-Hire","Re-Hire","Re-Hire","Re-Hire","Re-Hire","Re-Hire","Re-Hire","Re-Hire","Re-Hire","Re-Hire","Re-Hire","Re-Hire","Re-Hire","Re-Hire","Re-Hire","Re-Hire","Re-Hire","Re-Hire","Re-Hire","Re-Hire","Re-Hire","Re-Hire","Re-Hire","Re-Hire","Re-Hire","Re-Hire","Re-Hire","Re-Hire","Re-Hire","Re-Hire","Re-Hire","Re-Hire","Re-Hire","Re-Hire","Re-Hire","Re-Hire","Re-Hire","Re-Hire","Re-Hire","Re-Hire","Re-Hire","Re-Hire","Re-Hire","Re-Hire","Re-Hire","Re-Hire","Re-Hire","Re-Hire","Re-Hire","Re-Hire","Re-Hire","Re-Hire","Re-Hire","Re-Hire","Re-Hire","Re-Hire","Re-Hire","Re-Hire","Re-Hire","Re-Hire","Re-Hire","Re-Hire","Re-Hire","Re-Hire","Re-Hire","Re-Hire","Re-Hire","Re-Hire","Re-Hire","Re-Hire","Re-Hire","Re-Hire","Re-Hire","Re-Hire","Re-Hire","Re-Hire","Re-Hire","Re-Hire","Re-Hire","Re-Hire","Re-Hire","Re-Hire","Re-Hire","Re-Hire","Re-Hire","Re-Hire","Re-Hire","Re-Hire","Re-Hire","Re-Hire","Re-Hire","Re-Hire","Re-Hire","Re-Hire","Re-Hire","Re-Hire","Re-Hire","Re-Hire","Re-Hire","Re-Hire","Re-Hire","Re-Hire","Re-Hire","Re-Hire","Re-Hire","Re-Hire","Re-Hire","Re-Hire","Re-Hire","Re-Hire","Re-Hire","Re-Hire","Re-Hire","Re-Hire","Re-Hire","Re-Hire","Re-Hire","Re-Hire","Re-Hire","Re-Hire","Re-Hire","Re-Hire","Re-Hire","Re-Hire","Re-Hire","Re-Hire","Re-Hire","Re-Hire","Re-Hire","Re-Hire","Re-Hire","Re-Hire","Re-Hire","Re-Hire","Re-Hire","Re-Hire","Re-Hire","Re-Hire","Re-Hire","Re-Hire","Re-Hire","Re-Hire","Re-Hire","Re-Hire","Re-Hire","Re-Hire","Re-Hire","Re-Hire","Re-Hire","Re-Hire","Re-Hire","Re-Hire","Re-Hire","Re-Hire","Re-Hire","Re-Hire","Re-Hire","Re-Hire","Re-Hire","Re-Hire","Re-Hire","Re-Hire","Re-Hire","Re-Hire","Re-Hire","Re-Hire","Re-Hire","Re-Hire","Re-Hire","Re-Hire","Re-Hire","Re-Hire","Re-Hire","Re-Hire","Re-Hire","Re-Hire","Re-Hire","Re-Hire","Re-Hire","Re-Hire","Re-Hire","Re-Hire","Re-Hire","Re-Hire","Re-Hire","Re-Hire","Re-Hire","Re-Hire","Re-Hire","Re-Hire","Re-Hire","Re-Hire","Re-Hire","Re-Hire","Re-Hire","Re-Hire","Re-Hire","Re-Hire","Re-Hire","Re-Hire","Re-Hire","Re-Hire","Re-Hire","Re-Hire","Re-Hire","Re-Hire","Re-Hire","Re-Hire","Re-Hire","Re-Hire","Re-Hire","Re-Hire","Re-Hire","Re-Hire","Re-Hire","Re-Hire","Re-Hire","Re-Hire","Re-Hire","Re-Hire","Re-Hire","Re-Hire","Re-Hire","Re-Hire","Re-Hire","Re-Hire","Re-Hire","Re-Hire","Re-Hire","Re-Hire","Re-Hire","Re-Hire","Re-Hire","Re-Hire","Re-Hire","Re-Hire","Re-Hire","Re-Hire","Re-Hire","Re-Hire","Re-Hire","Re-Hire","Re-Hire","Re-Hire","Re-Hire","Re-Hire","Re-Hire","Re-Hire","Re-Hire","Re-Hire","Re-Hire","Re-Hire","Re-Hire","Re-Hire","Re-Hire","Re-Hire","Re-Hire","Re-Hire","Re-Hire","Re-Hire","Re-Hire","Re-Hire","Re-Hire","Re-Hire","Re-Hire","Re-Hire","Re-Hire","Re-Hire","Re-Hire","Re-Hire","Re-Hire","Re-Hire","Re-Hire","Re-Hire","Re-Hire","Re-Hire","Re-Hire","Re-Hire","Re-Hire","Re-Hire","Re-Hire","Re-Hire","Re-Hire","Re-Hire","Re-Hire","Re-Hire","Re-Hire","Re-Hire","Re-Hire","Re-Hire","Re-Hire","Re-Hire","Re-Hire","Re-Hire","Re-Hire","Re-Hire","Re-Hire","Re-Hire","Re-Hire","Re-Hire","Re-Hire","Re-Hire","Re-Hire","Re-Hire","Re-Hire","Re-Hire","Re-Hire","Re-Hire","Re-Hire","Re-Hire","Re-Hire","Re-Hire","Re-Hire","Re-Hire","Re-Hire","Re-Hire","Re-Hire","Re-Hire","Re-Hire","Re-Hire","Re-Hire","Re-Hire","Re-Hire","Re-Hire","Re-Hire","Re-Hire","Re-Hire","Re-Hire","Re-Hire","Re-Hire","Re-Hire","Re-Hire","Re-Hire","Re-Hire","Re-Hire","Re-Hire","Re-Hire","Re-Hire","Re-Hire","Re-Hire","Re-Hire","Re-Hire","Re-Hire","Re-Hire","Re-Hire","Re-Hire","Re-Hire","Re-Hire","Re-Hire","Re-Hire","Re-Hire","Re-Hire","Re-Hire","Re-Hire","Re-Hire","Re-Hire","Re-Hire","Re-Hire","Re-Hire","Re-Hire","Re-Hire","Re-Hire","Re-Hire","Re-Hire","Re-Hire","Re-Hire","Re-Hire","Re-Hire","Re-Hire","Re-Hire","Re-Hire","Re-Hire","Re-Hire","Re-Hire","Re-Hire","Re-Hire","Re-Hire","Re-Hire","Re-Hire","Re-Hire","Re-Hire","Re-Hire","Re-Hire","Re-Hire","Re-Hire","Re-Hire","Re-Hire","Re-Hire","Re-Hire","Re-Hire","Re-Hire","Re-Hire","Re-Hire","Re-Hire","Re-Hire","Re-Hire","Re-Hire","Re-Hire","Re-Hire","Re-Hire","Re-Hire","Re-Hire","Re-Hire","Re-Hire","Re-Hire","Re-Hire","Re-Hire","Re-Hire","Re-Hire","Re-Hire","Re-Hire","Re-Hire","Re-Hire","Re-Hire","Re-Hire","Re-Hire","Re-Hire","Re-Hire","Re-Hire","Re-Hire","Re-Hire","Re-Hire","Re-Hire","Re-Hire","Re-Hire","Re-Hire","Re-Hire","Re-Hire","Re-Hire","Re-Hire","Re-Hire","Re-Hire","Re-Hire","Re-Hire","Re-Hire","Re-Hire","Re-Hire","Re-Hire","Re-Hire","Re-Hire","Re-Hire","Re-Hire","Re-Hire","Re-Hire","Re-Hire","Re-Hire","Re-Hire","Re-Hire","Re-Hire","Re-Hire","Re-Hire","Re-Hire","Re-Hire","Re-Hire","Re-Hire","Re-Hire","Re-Hire","Re-Hire","Re-Hire","Re-Hire","Re-Hire","Re-Hire","Re-Hire","Re-Hire","Re-Hire","Re-Hire","Re-Hire","Re-Hire","Re-Hire","Re-Hire","Re-Hire","Re-Hire","Re-Hire","Re-Hire","Re-Hire","Re-Hire","Re-Hire","Re-Hire","Re-Hire","Re-Hire","Re-Hire","Re-Hire","Re-Hire","Re-Hire","Re-Hire","Re-Hire","Re-Hire","Re-Hire","Re-Hire","Re-Hire","Re-Hire","Re-Hire","Re-Hire","Re-Hire","Re-Hire","Re-Hire","Re-Hire","Re-Hire","Re-Hire","Re-Hire","Re-Hire","Re-Hire","Re-Hire","Re-Hire","Re-Hire","Re-Hire","Re-Hire","Re-Hire","Re-Hire","Re-Hire","Re-Hire","Re-Hire","Re-Hire","Re-Hire","Re-Hire","Re-Hire","Re-Hire","Re-Hire","Re-Hire","Re-Hire","Re-Hire","Re-Hire","Re-Hire","Re-Hire","Re-Hire","Re-Hire","Re-Hire","Re-Hire","Re-Hire","Re-Hire","Re-Hire","Re-Hire","Re-Hire","Re-Hire","Re-Hire","Re-Hire","Re-Hire","Re-Hire","Re-Hire","Re-Hire","Re-Hire","Re-Hire","Re-Hire","Re-Hire","Re-Hire","Re-Hire","Re-Hire","Re-Hire","Re-Hire","Re-Hire","Re-Hire","Re-Hire","Re-Hire","Re-Hire","Re-Hire","Re-Hire","Re-Hire","Re-Hire","Re-Hire","Re-Hire","Re-Hire","Re-Hire","Re-Hire","Re-Hire","Re-Hire","Re-Hire","Re-Hire","Re-Hire","Re-Hire","Re-Hire","Re-Hire","Re-Hire","Re-Hire","Re-Hire","Re-Hire","Re-Hire","Re-Hire","Re-Hire","Re-Hire","Re-Hire","Re-Hire","Re-Hire","Re-Hire","Re-Hire","Re-Hire","Re-Hire","Re-Hire","Re-Hire","Re-Hire","Re-Hire","Re-Hire","Re-Hire","Re-Hire","Re-Hire","Re-Hire","Re-Hire","Re-Hire","Re-Hire","Re-Hire","Re-Hire","Re-Hire","Re-Hire","Re-Hire","Re-Hire","Re-Hire","Re-Hire","Re-Hire","Re-Hire","Re-Hire","Re-Hire","Re-Hire","Re-Hire","Re-Hire","Re-Hire","Re-Hire","Re-Hire","Re-Hire","Re-Hire","Re-Hire","Re-Hire","Re-Hire","Re-Hire","Re-Hire","Re-Hire","Re-Hire","Re-Hire","Re-Hire","Re-Hire","Re-Hire","Re-Hire","Re-Hire","Re-Hire","Re-Hire","Re-Hire","Re-Hire","Re-Hire","Re-Hire","Re-Hire","Re-Hire","Re-Hire","Re-Hire","Re-Hire","Re-Hire","Re-Hire","Re-Hire","Re-Hire","Re-Hire","Re-Hire","Re-Hire","Re-Hire","Re-Hire","Re-Hire","Re-Hire","Re-Hire","Re-Hire","Re-Hire","Re-Hire","Re-Hire","Re-Hire","Re-Hire","Re-Hire","Re-Hire","Re-Hire","Re-Hire","Re-Hire","Re-Hire","Re-Hire","Re-Hire","Re-Hire","Re-Hire","Re-Hire","Re-Hire","Re-Hire","Re-Hire","Re-Hire","Re-Hire","Re-Hire","Re-Hire","Re-Hire","Re-Hire","Re-Hire","Re-Hire","Re-Hire","Re-Hire","Re-Hire","Re-Hire","Re-Hire","Re-Hire","Re-Hire","Re-Hire","Re-Hire","Re-Hire","Re-Hire","Re-Hire","Re-Hire","Re-Hire","Re-Hire","Re-Hire","Re-Hire","Re-Hire","Re-Hire","Re-Hire","Re-Hire","Re-Hire","Re-Hire","Re-Hire","Re-Hire","Re-Hire","Re-Hire","Re-Hire","Re-Hire","Re-Hire","Re-Hire","Re-Hire","Re-Hire","Re-Hire","Re-Hire","Re-Hire","Re-Hire","Re-Hire","Re-Hire","Re-Hire","Re-Hire","Re-Hire","Re-Hire","Re-Hire","Re-Hire","Re-Hire","Re-Hire","Re-Hire","Re-Hire","Re-Hire","Re-Hire","Re-Hire","Re-Hire","Re-Hire","Re-Hire","Re-Hire","Re-Hire","Re-Hire","Re-Hire","Re-Hire","Re-Hire","Re-Hire","Re-Hire","Re-Hire","Re-Hire","Re-Hire","Re-Hire","Re-Hire","Re-Hire","Re-Hire","Re-Hire","Re-Hire","Re-Hire","Re-Hire","Re-Hire","Re-Hire","Re-Hire","Re-Hire","Re-Hire","Re-Hire","Re-Hire","Re-Hire","Re-Hire","Re-Hire","Re-Hire","Re-Hire","Re-Hire","Re-Hire","Re-Hire","Re-Hire","Re-Hire","Re-Hire","Re-Hire","Re-Hire","Re-Hire","Re-Hire","Re-Hire","Re-Hire","Re-Hire","Re-Hire","Re-Hire","Re-Hire","Re-Hire","Re-Hire","Re-Hire","Re-Hire","Re-Hire","Re-Hire","Re-Hire","Re-Hire","Re-Hire","Re-Hire","Re-Hire","Re-Hire","Re-Hire","Re-Hire","Re-Hire","Re-Hire","Re-Hire","Re-Hire","Re-Hire","Re-Hire","Re-Hire","Re-Hire","Re-Hire","Re-Hire","Re-Hire","Re-Hire","Re-Hire","Re-Hire","Re-Hire","Re-Hire","Re-Hire","Re-Hire","Re-Hire","Re-Hire","Re-Hire","Re-Hire","Re-Hire","Re-Hire","Re-Hire","Re-Hire","Re-Hire","Re-Hire","Re-Hire","Re-Hire","Re-Hire","Re-Hire","Re-Hire","Re-Hire","Re-Hire","Re-Hire","Re-Hire","Re-Hire","Re-Hire","Re-Hire","Re-Hire","Re-Hire","Re-Hire","Re-Hire","Re-Hire","Re-Hire","Re-Hire","Re-Hire","Re-Hire","Re-Hire","Re-Hire","Re-Hire","Re-Hire","Re-Hire","Re-Hire","Re-Hire","Re-Hire","Re-Hire","Re-Hire","Re-Hire","Re-Hire","Re-Hire","Re-Hire","Re-Hire","Re-Hire","Re-Hire","Re-Hire","Re-Hire","Re-Hire","Re-Hire","Re-Hire","Re-Hire","Re-Hire","Re-Hire","Re-Hire","Re-Hire","Re-Hire","Re-Hire","Re-Hire","Re-Hire","Re-Hire","Re-Hire","Re-Hire","Re-Hire","Re-Hire","Re-Hire","Re-Hire","Re-Hire","Re-Hire","Re-Hire","Re-Hire","Re-Hire","Re-Hire","Re-Hire","Re-Hire","Re-Hire","Re-Hire","Re-Hire","Re-Hire","Re-Hire","Re-Hire","Re-Hire","Re-Hire","Re-Hire","Re-Hire","Re-Hire","Re-Hire","Re-Hire","Re-Hire","Re-Hire","Re-Hire","Re-Hire","Re-Hire","Re-Hire","Re-Hire","Re-Hire","Re-Hire","Re-Hire","Re-Hire","Re-Hire","Re-Hire","Re-Hire","Re-Hire","Re-Hire","Re-Hire","Re-Hire","Re-Hire","Re-Hire","Re-Hire","Re-Hire","Re-Hire","Re-Hire","Re-Hire","Re-Hire","Re-Hire","Re-Hire","Re-Hire","Re-Hire","Re-Hire","Re-Hire","Re-Hire","Re-Hire","Re-Hire","Re-Hire","Re-Hire","Re-Hire","Re-Hire","Re-Hire","Re-Hire","Re-Hire","Re-Hire","Re-Hire","Re-Hire","Re-Hire","Re-Hire","Re-Hire","Re-Hire","Re-Hire","Re-Hire","Re-Hire","Re-Hire","Re-Hire","Re-Hire","Re-Hire","Re-Hire","Re-Hire","Re-Hire","Re-Hire","Re-Hire","Re-Hire","Re-Hire","Re-Hire","Re-Hire","Re-Hire","Re-Hire","Re-Hire","Re-Hire","Re-Hire","Re-Hire","Re-Hire","Re-Hire","Re-Hire","Re-Hire","Re-Hire","Re-Hire","Re-Hire","Re-Hire","Re-Hire","Re-Hire","Re-Hire","Re-Hire","Re-Hire","Re-Hire","Re-Hire","Re-Hire","Re-Hire","Re-Hire","Re-Hire","Re-Hire","Re-Hire","Re-Hire","Re-Hire","Re-Hire","Re-Hire","Re-Hire","Re-Hire","Re-Hire","Re-Hire","Re-Hire","Re-Hire","Re-Hire","Re-Hire","Re-Hire","Re-Hire","Re-Hire","Re-Hire","Re-Hire","Re-Hire","Re-Hire","Re-Hire","Re-Hire","Re-Hire","Re-Hire","Re-Hire","Re-Hire","Re-Hire","Re-Hire","Re-Hire","Re-Hire","Re-Hire","Re-Hire","Re-Hire","Re-Hire","Re-Hire","Re-Hire","Re-Hire","Re-Hire","Re-Hire","Re-Hire","Re-Hire","Re-Hire","Re-Hire","Re-Hire","Re-Hire","Re-Hire","Re-Hire","Re-Hire","Re-Hire","Re-Hire","Re-Hire","Re-Hire","Re-Hire","Re-Hire","Re-Hire","Re-Hire","Re-Hire","Re-Hire","Re-Hire","Re-Hire","Re-Hire","Re-Hire","Re-Hire","Re-Hire","Re-Hire","Re-Hire","Re-Hire","Re-Hire","Re-Hire","Re-Hire","Re-Hire","Re-Hire","Re-Hire","Re-Hire","Re-Hire","Re-Hire","Re-Hire","Re-Hire","Re-Hire","Re-Hire","Re-Hire","Re-Hire","Re-Hire","Re-Hire","Re-Hire","Re-Hire","Re-Hire","Re-Hire","Re-Hire","Re-Hire","Re-Hire","Re-Hire","Re-Hire","Re-Hire","Re-Hire","Re-Hire","Re-Hire","Re-Hire","Re-Hire","Re-Hire","Re-Hire","Re-Hire","Re-Hire","Re-Hire","Re-Hire","Re-Hire","Re-Hire","Re-Hire","Re-Hire","Re-Hire","Re-Hire","Re-Hire","Re-Hire","Re-Hire","Re-Hire","Re-Hire","Re-Hire","Re-Hire","Re-Hire","Re-Hire","Re-Hire","Re-Hire","Re-Hire","Re-Hire","Re-Hire","Re-Hire","Re-Hire","Re-Hire","Re-Hire","Re-Hire","Re-Hire","Re-Hire","Re-Hire","Re-Hire","Re-Hire","Re-Hire","Re-Hire","Re-Hire","Re-Hire","Re-Hire","Re-Hire","Re-Hire","Re-Hire","Re-Hire","Re-Hire","Re-Hire","Re-Hire","Re-Hire","Re-Hire","Re-Hire","Re-Hire","Re-Hire","Re-Hire","Re-Hire","Re-Hire","Re-Hire","Re-Hire","Re-Hire","Re-Hire","Re-Hire","Re-Hire","Re-Hire","Re-Hire","Re-Hire","Re-Hire","Re-Hire","Re-Hire","Re-Hire","Re-Hire","Re-Hire","Re-Hire","Re-Hire","Re-Hire","Re-Hire","Re-Hire","Re-Hire","Re-Hire","Re-Hire","Re-Hire","Re-Hire","Re-Hire","Re-Hire","Re-Hire","Re-Hire","Re-Hire","Re-Hire","Re-Hire","Re-Hire","Re-Hire","Re-Hire","Re-Hire","Re-Hire","Re-Hire","Re-Hire","Re-Hire","Re-Hire","Re-Hire","Re-Hire","Re-Hire","Re-Hire","Re-Hire","Re-Hire","Re-Hire","Re-Hire","Re-Hire","Re-Hire","Re-Hire","Re-Hire","Re-Hire","Re-Hire","Re-Hire","Re-Hire","Re-Hire","Re-Hire","Re-Hire","Re-Hire","Re-Hire","Re-Hire","Re-Hire","Re-Hire","Re-Hire","Re-Hire","Re-Hire","Re-Hire","Re-Hire","Re-Hire","Re-Hire","Re-Hire","Re-Hire","Re-Hire","Re-Hire","Re-Hire","Re-Hire","Re-Hire","Re-Hire","Re-Hire","Re-Hire","Re-Hire","Re-Hire","Re-Hire","Re-Hire","Re-Hire","Re-Hire","Re-Hire","Re-Hire","Re-Hire","Re-Hire","Re-Hire","Re-Hire","Re-Hire","Re-Hire","Re-Hire","Re-Hire","Re-Hire","Re-Hire","Re-Hire","Re-Hire","Re-Hire","Re-Hire","Re-Hire","Re-Hire","Re-Hire","Re-Hire","Re-Hire","Re-Hire","Re-Hire","Re-Hire","Re-Hire","Re-Hire","Re-Hire","Re-Hire","Re-Hire","Re-Hire","Re-Hire","Re-Hire","Re-Hire","Re-Hire","Re-Hire","Re-Hire","Re-Hire","Re-Hire","Re-Hire","Re-Hire","Re-Hire","Re-Hire","Re-Hire","Re-Hire","Re-Hire","Re-Hire","Re-Hire","Re-Hire","Re-Hire","Re-Hire","Re-Hire","Re-Hire","Re-Hire","Re-Hire","Re-Hire","Re-Hire","Re-Hire","Re-Hire","Re-Hire","Re-Hire","Re-Hire","Re-Hire","Re-Hire","Re-Hire","Re-Hire","Re-Hire","Re-Hire","Re-Hire","Re-Hire","Re-Hire","Re-Hire","Re-Hire","Re-Hire","Re-Hire","Re-Hire","Re-Hire","Re-Hire","Re-Hire","Re-Hire","Re-Hire","Re-Hire","Re-Hire","Re-Hire","Re-Hire","Re-Hire","Re-Hire","Re-Hire","Re-Hire","Re-Hire","Re-Hire","Re-Hire","Re-Hire","Re-Hire","Re-Hire","Re-Hire","Re-Hire","Re-Hire","Re-Hire","Re-Hire","Re-Hire","Re-Hire","Re-Hire","Re-Hire","Re-Hire","Re-Hire","Re-Hire","Re-Hire","Re-Hire","Re-Hire","Re-Hire","Re-Hire","Re-Hire","Re-Hire","Re-Hire","Re-Hire","Re-Hire","Re-Hire","Re-Hire","Re-Hire","Re-Hire","Re-Hire","Re-Hire","Re-Hire","Re-Hire","Re-Hire","Re-Hire","Re-Hire","Re-Hire","Re-Hire","Re-Hire","Re-Hire","Re-Hire","Re-Hire","Re-Hire","Re-Hire","Re-Hire","Re-Hire","Re-Hire","Re-Hire","Re-Hire","Re-Hire","Re-Hire","Re-Hire","Re-Hire","Re-Hire","Re-Hire","Re-Hire","Re-Hire","Re-Hire","Re-Hire","Re-Hire","Re-Hire","Re-Hire","Re-Hire","Re-Hire","Re-Hire","Re-Hire","Re-Hire","Re-Hire","Re-Hire","Re-Hire","Re-Hire","Re-Hire","Re-Hire","Re-Hire","Re-Hire","Re-Hire","Re-Hire","Re-Hire","Re-Hire","Re-Hire","Re-Hire","Re-Hire","Re-Hire","Re-Hire","Re-Hire","Re-Hire","Re-Hire","Re-Hire","Re-Hire","Re-Hire","Re-Hire","Re-Hire","Re-Hire","Re-Hire","Re-Hire","Re-Hire","Re-Hire","Re-Hire","Re-Hire","Re-Hire","Re-Hire","Re-Hire","Re-Hire","Re-Hire","Re-Hire","Re-Hire","Re-Hire","Re-Hire","Re-Hire","Re-Hire","Re-Hire","Re-Hire","Re-Hire","Re-Hire","Re-Hire","Re-Hire","Re-Hire","Re-Hire","Re-Hire","Re-Hire","Re-Hire","Re-Hire","Re-Hire","Re-Hire","Re-Hire","Re-Hire","Re-Hire","Re-Hire","Re-Hire","Re-Hire","Re-Hire","Re-Hire","Re-Hire","Re-Hire","Re-Hire","Re-Hire","Re-Hire","Re-Hire","Re-Hire","Re-Hire","Re-Hire","Re-Hire","Re-Hire","Re-Hire","Re-Hire","Re-Hire","Re-Hire","Re-Hire","Re-Hire","Re-Hire","Re-Hire","Re-Hire","Re-Hire","Re-Hire","Re-Hire","Re-Hire","Re-Hire","Re-Hire","Re-Hire","Re-Hire","Re-Hire","Re-Hire","Re-Hire","Re-Hire","Re-Hire","Re-Hire","Re-Hire","Re-Hire","Re-Hire","Re-Hire","Re-Hire","Re-Hire","Re-Hire","Re-Hire","Re-Hire","Re-Hire","Re-Hire","Re-Hire","Re-Hire","Re-Hire","Re-Hire","Re-Hire","Re-Hire","Re-Hire","Re-Hire","Re-Hire","Re-Hire","Re-Hire","Re-Hire","Re-Hire","Re-Hire","Re-Hire","Re-Hire","Re-Hire","Re-Hire","Re-Hire","Re-Hire","Re-Hire","Re-Hire","Re-Hire","Re-Hire","Re-Hire","Re-Hire","Re-Hire","Re-Hire","Re-Hire","Re-Hire","Re-Hire","Re-Hire","Re-Hire","Re-Hire","Re-Hire","Re-Hire","Re-Hire","Re-Hire","Re-Hire","Re-Hire","Re-Hire","Re-Hire","Re-Hire","Re-Hire","Re-Hire","Re-Hire","Re-Hire","Re-Hire","Re-Hire","Re-Hire","Re-Hire","Re-Hire","Re-Hire","Re-Hire","Re-Hire","Re-Hire","Re-Hire","Re-Hire","Re-Hire","Re-Hire","Re-Hire","Re-Hire","Re-Hire","Re-Hire","Re-Hire","Re-Hire","Re-Hire","Re-Hire","Re-Hire","Re-Hire","Re-Hire","Re-Hire","Re-Hire","Re-Hire","Re-Hire","Re-Hire","Re-Hire","Re-Hire","Re-Hire","Re-Hire","Re-Hire","Re-Hire","Re-Hire","Re-Hire","Re-Hire","Re-Hire","Re-Hire","Re-Hire","Re-Hire","Re-Hire","Re-Hire","Re-Hire","Re-Hire","Re-Hire","Re-Hire","Re-Hire","Re-Hire","Re-Hire","Re-Hire","Re-Hire","Re-Hire","Re-Hire","Re-Hire","Re-Hire","Re-Hire","Re-Hire","Re-Hire","Re-Hire","Re-Hire","Re-Hire","Re-Hire","Re-Hire","Re-Hire","Re-Hire","Re-Hire","Re-Hire","Re-Hire","Re-Hire","Re-Hire","Re-Hire","Re-Hire","Re-Hire","Re-Hire","Re-Hire","Re-Hire","Re-Hire","Re-Hire","Re-Hire","Re-Hire","Re-Hire","Re-Hire","Re-Hire","Re-Hire","Re-Hire","Re-Hire","Re-Hire","Re-Hire","Re-Hire","Re-Hire","Re-Hire","Re-Hire","Re-Hire","Re-Hire","Re-Hire","Re-Hire","Re-Hire","Re-Hire","Re-Hire","Re-Hire","Re-Hire","Re-Hire","Re-Hire","Re-Hire","Re-Hire","Re-Hire","Re-Hire","Re-Hire","Re-Hire","Re-Hire","Re-Hire","Re-Hire","Re-Hire","Re-Hire","Re-Hire","Re-Hire","Re-Hire","Re-Hire","Re-Hire","Re-Hire","Re-Hire","Re-Hire","Re-Hire","Re-Hire","Re-Hire","Re-Hire","Re-Hire","Re-Hire","Re-Hire","Re-Hire","Re-Hire","Re-Hire","Re-Hire","Re-Hire","Re-Hire","Re-Hire","Re-Hire","Re-Hire","Re-Hire","Re-Hire","Re-Hire","Re-Hire","Re-Hire","Re-Hire","Re-Hire","Re-Hire","Re-Hire","Re-Hire","Re-Hire","Re-Hire","Re-Hire","Re-Hire","Re-Hire","Re-Hire","Re-Hire","Re-Hire","Re-Hire","Re-Hire","Re-Hire","Re-Hire","Re-Hire","Re-Hire","Re-Hire","Re-Hire","Re-Hire","Re-Hire","Re-Hire","Re-Hire","Re-Hire","Re-Hire","Re-Hire","Re-Hire","Re-Hire","Re-Hire","Re-Hire","Re-Hire","Re-Hire","Re-Hire","Re-Hire","Re-Hire","Re-Hire","Re-Hire","Re-Hire","Re-Hire","Re-Hire","Re-Hire","Re-Hire","Re-Hire","Re-Hire","Re-Hire","Re-Hire","Re-Hire","Re-Hire","Re-Hire","Re-Hire","Re-Hire","Re-Hire","Re-Hire","Re-Hire","Re-Hire","Re-Hire","Re-Hire","Re-Hire","Re-Hire","Re-Hire","Re-Hire","Re-Hire","Re-Hire","Re-Hire","Re-Hire","Re-Hire","Re-Hire","Re-Hire","Re-Hire","Re-Hire","Re-Hire","Re-Hire","Re-Hire","Re-Hire","Re-Hire","Re-Hire","Re-Hire","Re-Hire","Re-Hire","Re-Hire","Re-Hire","Re-Hire","Re-Hire","Re-Hire","Re-Hire","Re-Hire","Re-Hire","Re-Hire","Re-Hire","Re-Hire","Re-Hire","Re-Hire","Re-Hire","Re-Hire","Re-Hire","Re-Hire","Re-Hire","Re-Hire","Re-Hire","Re-Hire","Re-Hire","Re-Hire","Re-Hire","Re-Hire","Re-Hire","Re-Hire","Re-Hire","Re-Hire","Re-Hire","Re-Hire","Re-Hire","Re-Hire","Re-Hire","Re-Hire","Re-Hire","Re-Hire","Re-Hire","Re-Hire","Re-Hire","Re-Hire","Re-Hire","Re-Hire","Re-Hire","Re-Hire","Re-Hire","Re-Hire","Re-Hire","Re-Hire","Re-Hire","Re-Hire","Re-Hire","Re-Hire","Re-Hire","Re-Hire","Re-Hire","Re-Hire","Re-Hire","Re-Hire","Re-Hire","Re-Hire","Re-Hire","Re-Hire","Re-Hire","Re-Hire","Re-Hire","Re-Hire","Re-Hire","Re-Hire","Re-Hire","Re-Hire","Re-Hire","Re-Hire","Re-Hire","Re-Hire","Re-Hire","Re-Hire","Re-Hire","Re-Hire","Re-Hire","Re-Hire","Re-Hire","Re-Hire","Re-Hire","Re-Hire","Re-Hire","Re-Hire","Re-Hire","Re-Hire","Re-Hire","Re-Hire","Re-Hire","Re-Hire","Re-Hire","Re-Hire","Re-Hire","Re-Hire","Re-Hire","Re-Hire","Re-Hire","Re-Hire","Re-Hire","Re-Hire","Re-Hire","Re-Hire","Re-Hire","Re-Hire","Re-Hire","Re-Hire","Re-Hire","Re-Hire","Re-Hire","Re-Hire","Re-Hire","Re-Hire","Re-Hire","Re-Hire","Re-Hire","Re-Hire","Re-Hire","Re-Hire","Re-Hire","Re-Hire","Re-Hire","Re-Hire","Re-Hire","Re-Hire","Re-Hire","Re-Hire","Re-Hire","Re-Hire","Re-Hire","Re-Hire","Re-Hire","Re-Hire","Re-Hire","Re-Hire","Re-Hire","Re-Hire","Re-Hire","Re-Hire","Re-Hire","Re-Hire","Re-Hire","Re-Hire","Re-Hire","Re-Hire","Re-Hire","Re-Hire","Re-Hire","Re-Hire","Re-Hire","Re-Hire","Re-Hire","Re-Hire","Re-Hire","Re-Hire","Re-Hire","Re-Hire","Re-Hire","Re-Hire","Re-Hire","Re-Hire","Re-Hire","Re-Hire","Re-Hire","Re-Hire","Re-Hire","Re-Hire","Re-Hire","Re-Hire","Re-Hire","Re-Hire","Re-Hire","Re-Hire","Re-Hire","Re-Hire","Re-Hire","Re-Hire","Re-Hire","Re-Hire","Re-Hire","Re-Hire","Re-Hire","Re-Hire","Re-Hire","Re-Hire","Re-Hire","Re-Hire","Re-Hire","Re-Hire","Re-Hire","Re-Hire","Re-Hire","Re-Hire","Re-Hire","Re-Hire","Re-Hire","Re-Hire","Re-Hire","Re-Hire","Re-Hire","Re-Hire","Re-Hire","Re-Hire","Re-Hire","Re-Hire","Re-Hire","Re-Hire","Re-Hire","Re-Hire","Re-Hire","Re-Hire","Re-Hire","Re-Hire","Re-Hire","Re-Hire","Re-Hire","Re-Hire","Re-Hire","Re-Hire","Re-Hire","Re-Hire","Re-Hire","Re-Hire","Re-Hire","Re-Hire","Re-Hire","Re-Hire","Re-Hire","Re-Hire","Re-Hire","Re-Hire","Re-Hire","Re-Hire","Re-Hire","Re-Hire","Re-Hire","Re-Hire","Re-Hire","Re-Hire","Re-Hire","Re-Hire","Re-Hire","Re-Hire","Re-Hire","Re-Hire","Re-Hire","Re-Hire","Re-Hire","Re-Hire","Re-Hire","Re-Hire","Re-Hire","Re-Hire","Re-Hire","Re-Hire","Re-Hire","Re-Hire","Re-Hire","Re-Hire","Re-Hire","Re-Hire","Re-Hire","Re-Hire","Re-Hire","Re-Hire","Re-Hire","Re-Hire","Re-Hire","Re-Hire","Re-Hire","Re-Hire","Re-Hire","Re-Hire","Re-Hire","Re-Hire","Re-Hire","Re-Hire","Re-Hire","Re-Hire","Re-Hire","Re-Hire","Re-Hire","Re-Hire","Re-Hire","Re-Hire","Re-Hire","Re-Hire","Re-Hire","Re-Hire","Re-Hire","Re-Hire","Re-Hire","Re-Hire","Re-Hire","Re-Hire","Re-Hire","Re-Hire","Re-Hire","Re-Hire","Re-Hire","Re-Hire","Re-Hire","Re-Hire","Re-Hire","Re-Hire","Re-Hire","Re-Hire","Re-Hire","Re-Hire","Re-Hire","Re-Hire","Re-Hire","Re-Hire","Re-Hire","Re-Hire","Re-Hire","Re-Hire","Re-Hire","Re-Hire","Re-Hire","Re-Hire","Re-Hire","Re-Hire","Re-Hire","Re-Hire","Re-Hire","Re-Hire","Re-Hire","Re-Hire","Re-Hire","Re-Hire","Re-Hire","Re-Hire","Re-Hire","Re-Hire","Re-Hire","Re-Hire","Re-Hire","Re-Hire","Re-Hire","Re-Hire","Re-Hire","Re-Hire","Re-Hire","Re-Hire","Re-Hire","Re-Hire","Re-Hire","Re-Hire","Re-Hire","Re-Hire","Re-Hire","Re-Hire","Re-Hire","Re-Hire","Re-Hire","Re-Hire","Re-Hire","Re-Hire","Re-Hire","Re-Hire","Re-Hire","Re-Hire","Re-Hire","Re-Hire","Re-Hire","Re-Hire","Re-Hire","Re-Hire","Re-Hire","Re-Hire","Re-Hire","Re-Hire","Re-Hire","Re-Hire","Re-Hire","Re-Hire","Re-Hire","Re-Hire","Re-Hire","Re-Hire","Re-Hire","Re-Hire","Re-Hire","Re-Hire","Re-Hire","Re-Hire","Re-Hire","Re-Hire","Re-Hire","Re-Hire","Re-Hire","Re-Hire","Re-Hire","Re-Hire","Re-Hire","Re-Hire","Re-Hire","Re-Hire","Re-Hire","Re-Hire","Re-Hire","Re-Hire","Re-Hire","Re-Hire","Re-Hire","Re-Hire","Re-Hire","Re-Hire","Re-Hire","Re-Hire","Re-Hire","Re-Hire","Re-Hire","Re-Hire","Re-Hire","Re-Hire","Re-Hire","Re-Hire","Re-Hire","Re-Hire","Re-Hire","Re-Hire","Re-Hire","Re-Hire","Re-Hire","Re-Hire","Re-Hire","Re-Hire","Re-Hire","Re-Hire","Re-Hire","Re-Hire","Re-Hire","Re-Hire","Re-Hire","Re-Hire","Re-Hire","Re-Hire","Re-Hire","Re-Hire","Re-Hire","Re-Hire","Re-Hire","Re-Hire","Re-Hire","Re-Hire","Re-Hire","Re-Hire","Re-Hire","Re-Hire","Re-Hire","Re-Hire","Re-Hire","Re-Hire","Re-Hire","Re-Hire","Re-Hire","Re-Hire","Re-Hire","Re-Hire","Re-Hire","Re-Hire","Re-Hire","Re-Hire","Re-Hire","Re-Hire","Re-Hire","Re-Hire","Re-Hire","Re-Hire","Re-Hire","Re-Hire","Re-Hire","Re-Hire","Re-Hire","Re-Hire","Re-Hire","Re-Hire","Re-Hire","Re-Hire","Re-Hire","Re-Hire","Re-Hire","Re-Hire","Re-Hire","Re-Hire","Re-Hire","Re-Hire","Re-Hire","Re-Hire","Re-Hire","Re-Hire","Re-Hire","Re-Hire","Re-Hire","Re-Hire","Re-Hire","Re-Hire","Re-Hire","Re-Hire","Re-Hire","Re-Hire","Re-Hire","Re-Hire","Re-Hire","Re-Hire","Re-Hire","Re-Hire","Re-Hire","Re-Hire","Re-Hire","Re-Hire","Re-Hire","Re-Hire","Re-Hire","Re-Hire","Re-Hire","Re-Hire","Re-Hire","Re-Hire","Re-Hire","Re-Hire","Re-Hire","Re-Hire","Re-Hire","Re-Hire","Re-Hire","Re-Hire","Re-Hire","Re-Hire","Re-Hire","Re-Hire","Re-Hire","Re-Hire","Re-Hire","Re-Hire","Re-Hire","Re-Hire","Re-Hire","Re-Hire","Re-Hire","Re-Hire","Re-Hire","Re-Hire","Re-Hire","Re-Hire","Re-Hire","Re-Hire","Re-Hire","Re-Hire","Re-Hire","Re-Hire","Re-Hire","Re-Hire","Re-Hire","Re-Hire","Re-Hire","Re-Hire","Re-Hire","Re-Hire","Re-Hire","Re-Hire","Re-Hire","Re-Hire","Re-Hire","Re-Hire","Re-Hire","Re-Hire","Re-Hire","Re-Hire","Re-Hire","Re-Hire","Re-Hire","Re-Hire","Re-Hire","Re-Hire","Re-Hire","Re-Hire","Re-Hire","Re-Hire","Re-Hire","Re-Hire","Re-Hire","Re-Hire","Re-Hire","Re-Hire","Re-Hire","Re-Hire","Re-Hire","Re-Hire","Re-Hire","Re-Hire","Re-Hire","Re-Hire","Re-Hire","Re-Hire","Re-Hire","Re-Hire","Re-Hire","Re-Hire","Re-Hire","Re-Hire","Re-Hire","Re-Hire","Re-Hire","Re-Hire","Re-Hire","Re-Hire","Re-Hire","Re-Hire","Re-Hire","Re-Hire","Re-Hire","Re-Hire","Re-Hire","Re-Hire","Re-Hire","Re-Hire","Re-Hire","Re-Hire","Re-Hire","Re-Hire","Re-Hire","Re-Hire","Re-Hire","Re-Hire","Re-Hire","Re-Hire","Re-Hire","Re-Hire","Re-Hire","Re-Hire","Re-Hire","Re-Hire","Re-Hire","Re-Hire","Re-Hire","Re-Hire","Re-Hire","Re-Hire","Re-Hire","Re-Hire","Re-Hire","Re-Hire","Re-Hire","Re-Hire","Re-Hire","Re-Hire","Re-Hire","Re-Hire","Re-Hire","Re-Hire","Re-Hire","Re-Hire","Re-Hire","Re-Hire","Re-Hire","Re-Hire","Re-Hire","Re-Hire","Re-Hire","Re-Hire","Re-Hire","Re-Hire","Re-Hire","Re-Hire","Re-Hire","Re-Hire","Re-Hire","Re-Hire","Re-Hire","Re-Hire","Re-Hire","Re-Hire","Re-Hire","Re-Hire","Re-Hire","Re-Hire","Re-Hire","Re-Hire","Re-Hire","Re-Hire","Re-Hire","Re-Hire","Re-Hire","Re-Hire","Re-Hire","Re-Hire","Re-Hire","Re-Hire","Re-Hire","Re-Hire","Re-Hire","Re-Hire","Re-Hire","Re-Hire","Re-Hire","Re-Hire","Re-Hire","Re-Hire","Re-Hire","Re-Hire","Re-Hire","Re-Hire","Re-Hire","Re-Hire","Re-Hire","Re-Hire","Re-Hire","Re-Hire","Re-Hire","Re-Hire","Re-Hire","Re-Hire","Re-Hire","Re-Hire","Re-Hire","Re-Hire","Re-Hire","Re-Hire","Re-Hire","Re-Hire","Re-Hire","Re-Hire","Re-Hire","Re-Hire","Re-Hire","Re-Hire","Re-Hire","Re-Hire","Re-Hire","Re-Hire","Re-Hire","Re-Hire","Re-Hire","Re-Hire","Re-Hire","Re-Hire","Re-Hire","Re-Hire","Re-Hire","Re-Hire","Re-Hire","Re-Hire","Re-Hire","Re-Hire","Re-Hire","Re-Hire","Re-Hire","Re-Hire","Re-Hire","Re-Hire","Re-Hire","Re-Hire","Re-Hire","Re-Hire","Re-Hire","Re-Hire","Re-Hire","Re-Hire","Re-Hire","Re-Hire","Re-Hire","Re-Hire","Re-Hire","Re-Hire","Re-Hire","Re-Hire","Re-Hire","Re-Hire","Re-Hire","Re-Hire","Re-Hire","Re-Hire","Re-Hire","Re-Hire","Re-Hire","Re-Hire","Re-Hire","Re-Hire","Re-Hire","Re-Hire","Re-Hire","Re-Hire","Re-Hire","Re-Hire","Re-Hire","Re-Hire","Re-Hire","Re-Hire","Re-Hire","Re-Hire","Re-Hire","Re-Hire","Re-Hire","Re-Hire","Re-Hire","Re-Hire","Re-Hire","Re-Hire","Re-Hire","Re-Hire","Re-Hire","Re-Hire","Re-Hire","Re-Hire","Re-Hire","Re-Hire","Re-Hire","Re-Hire","Re-Hire","Re-Hire","Re-Hire","Re-Hire","Re-Hire","Re-Hire","Re-Hire","Re-Hire","Re-Hire","Re-Hire","Re-Hire","Re-Hire","Re-Hire","Re-Hire","Re-Hire","Re-Hire","Re-Hire","Re-Hire","Re-Hire","Re-Hire","Re-Hire","Re-Hire","Re-Hire","Re-Hire","Re-Hire","Re-Hire","Re-Hire","Re-Hire","Re-Hire","Re-Hire","Re-Hire","Re-Hire","Re-Hire","Re-Hire","Re-Hire","Re-Hire","Re-Hire","Re-Hire","Re-Hire","Re-Hire","Re-Hire","Re-Hire","Re-Hire","Re-Hire","Re-Hire","Re-Hire","Re-Hire","Re-Hire","Re-Hire","Re-Hire","Re-Hire","Re-Hire","Re-Hire","Re-Hire","Re-Hire","Re-Hire","Re-Hire","Re-Hire","Re-Hire","Re-Hire","Re-Hire","Re-Hire","Re-Hire","Re-Hire","Re-Hire","Re-Hire","Re-Hire","Re-Hire","Re-Hire","Re-Hire","Re-Hire","Re-Hire","Re-Hire","Re-Hire","Re-Hire","Re-Hire","Re-Hire","Re-Hire","Re-Hire","Re-Hire","Re-Hire","Re-Hire","Re-Hire","Re-Hire","Re-Hire","Re-Hire","Re-Hire","Re-Hire","Re-Hire","Re-Hire","Re-Hire","Re-Hire","Re-Hire","Re-Hire","Re-Hire","Re-Hire","Re-Hire","Re-Hire","Re-Hire","Re-Hire","Re-Hire","Re-Hire","Re-Hire","Re-Hire","Re-Hire","Re-Hire","Re-Hire","Re-Hire","Re-Hire","Re-Hire","Re-Hire","Re-Hire","Re-Hire","Re-Hire","Re-Hire","Re-Hire","Re-Hire","Re-Hire","Re-Hire","Re-Hire","Re-Hire","Re-Hire","Re-Hire","Re-Hire","Re-Hire","Re-Hire","Re-Hire","Re-Hire","Re-Hire","Re-Hire","Re-Hire","Re-Hire","Re-Hire","Re-Hire","Re-Hire","Re-Hire","Re-Hire","Re-Hire","Re-Hire","Re-Hire","Re-Hire","Re-Hire","Re-Hire","Re-Hire","Re-Hire","Re-Hire","Re-Hire","Re-Hire","Re-Hire","Re-Hire","Re-Hire","Re-Hire","Re-Hire","Re-Hire","Re-Hire","Re-Hire","Re-Hire","Re-Hire","Re-Hire","Re-Hire","Re-Hire","Re-Hire","Re-Hire","Re-Hire","Re-Hire","Re-Hire","Re-Hire","Re-Hire","Re-Hire","Re-Hire","Re-Hire","Re-Hire","Re-Hire","Re-Hire","Re-Hire","Re-Hire","Re-Hire","Re-Hire","Re-Hire","Re-Hire","Re-Hire","Re-Hire","Re-Hire","Re-Hire","Re-Hire","Re-Hire","Re-Hire","Re-Hire","Re-Hire","Re-Hire","Re-Hire","Re-Hire","Re-Hire","Re-Hire","Re-Hire","Re-Hire","Re-Hire","Re-Hire","Re-Hire","Re-Hire","Re-Hire","Re-Hire","Re-Hire","Re-Hire","Re-Hire","Re-Hire","Re-Hire","Re-Hire","Re-Hire","Re-Hire","Re-Hire","Re-Hire","Re-Hire","Re-Hire","Re-Hire","Re-Hire","Re-Hire","Re-Hire","Re-Hire","Re-Hire","Re-Hire","Re-Hire","Re-Hire","Re-Hire","Re-Hire","Re-Hire","Re-Hire","Re-Hire","Re-Hire","Re-Hire","Re-Hire","Re-Hire","Re-Hire","Re-Hire","Re-Hire","Re-Hire","Re-Hire","Re-Hire","Re-Hire","Re-Hire","Re-Hire","Re-Hire","Re-Hire","Re-Hire","Re-Hire","Re-Hire","Re-Hire","Re-Hire","Re-Hire","Re-Hire","Re-Hire","Re-Hire","Re-Hire","Re-Hire","Re-Hire","Re-Hire","Re-Hire","Re-Hire","Re-Hire","Re-Hire","Re-Hire","Re-Hire","Re-Hire","Re-Hire","Re-Hire","Re-Hire","Re-Hire","Re-Hire","Re-Hire","Re-Hire","Re-Hire","Re-Hire","Re-Hire","Re-Hire","Re-Hire","Re-Hire","Re-Hire","Re-Hire","Re-Hire","Re-Hire","Re-Hire","Re-Hire","Re-Hire","Re-Hire","Re-Hire","Re-Hire","Re-Hire","Re-Hire","Re-Hire","Re-Hire","Re-Hire","Re-Hire","Re-Hire","Re-Hire","Re-Hire","Re-Hire","Re-Hire","Re-Hire","Re-Hire","Re-Hire","Re-Hire","Re-Hire","Re-Hire","Re-Hire","Re-Hire","Re-Hire","Re-Hire","Re-Hire","Re-Hire","Re-Hire","Re-Hire","Re-Hire","Re-Hire","Re-Hire","Re-Hire","Re-Hire","Re-Hire","Re-Hire","Re-Hire","Re-Hire","Re-Hire","Re-Hire","Re-Hire","Re-Hire","Re-Hire","Re-Hire","Re-Hire","Re-Hire","Re-Hire","Re-Hire","Re-Hire","Re-Hire","Re-Hire","Re-Hire","Re-Hire","Re-Hire","Re-Hire","Re-Hire","Re-Hire","Re-Hire","Re-Hire","Re-Hire","Re-Hire","Re-Hire","Re-Hire","Re-Hire","Re-Hire","Re-Hire","Re-Hire","Re-Hire","Re-Hire","Re-Hire","Re-Hire","Re-Hire","Re-Hire","Re-Hire","Re-Hire","Re-Hire","Re-Hire","Re-Hire","Re-Hire","Re-Hire","Re-Hire","Re-Hire","Re-Hire","Re-Hire","Re-Hire","Re-Hire","Re-Hire","Re-Hire","Re-Hire","Re-Hire","Re-Hire","Re-Hire","Re-Hire","Re-Hire","Re-Hire","Re-Hire","Re-Hire","Re-Hire","Re-Hire","Re-Hire","Re-Hire","Re-Hire","Re-Hire","Re-Hire","Re-Hire","Re-Hire","Re-Hire","Re-Hire","Re-Hire","Re-Hire","Re-Hire","Re-Hire","Re-Hire","Re-Hire","Re-Hire","Re-Hire","Re-Hire","Re-Hire","Re-Hire","Re-Hire","Re-Hire","Re-Hire","Re-Hire","Re-Hire","Re-Hire","Re-Hire","Re-Hire","Re-Hire","Re-Hire","Re-Hire","Re-Hire","Re-Hire","Re-Hire","Re-Hire","Re-Hire","Re-Hire","Re-Hire","Re-Hire","Re-Hire","Re-Hire","Re-Hire","Re-Hire","Re-Hire","Re-Hire","Re-Hire","Re-Hire","Re-Hire","Re-Hire","Re-Hire","Re-Hire","Re-Hire","Re-Hire","Re-Hire","Re-Hire","Re-Hire","Re-Hire","Re-Hire","Re-Hire","Re-Hire","Re-Hire","Re-Hire","Re-Hire","Re-Hire","Re-Hire","Re-Hire","Re-Hire","Re-Hire","Re-Hire","Re-Hire","Re-Hire","Re-Hire","Re-Hire","Re-Hire","Re-Hire","Re-Hire","Re-Hire","Re-Hire","Re-Hire","Re-Hire","Re-Hire","Re-Hire","Re-Hire","Re-Hire","Re-Hire","Re-Hire","Re-Hire","Re-Hire","Re-Hire","Re-Hire","Re-Hire","Re-Hire","Re-Hire","Re-Hire","Re-Hire","Re-Hire","Re-Hire","Re-Hire","Re-Hire","Re-Hire","Re-Hire","Re-Hire","Re-Hire","Re-Hire","Re-Hire","Re-Hire","Re-Hire","Re-Hire","Re-Hire","Re-Hire","Re-Hire","Re-Hire","Re-Hire","Re-Hire","Re-Hire","Re-Hire","Re-Hire","Re-Hire","Re-Hire","Re-Hire","Re-Hire","Re-Hire","Re-Hire","Re-Hire","Re-Hire","Re-Hire","Re-Hire","Re-Hire","Re-Hire","Re-Hire","Re-Hire","Re-Hire","Re-Hire","Re-Hire","Re-Hire","Re-Hire","Re-Hire","Re-Hire","Re-Hire","Re-Hire","Re-Hire","Re-Hire","Re-Hire","Re-Hire","Re-Hire","Re-Hire","Re-Hire","Re-Hire","Re-Hire","Re-Hire","Re-Hire","Re-Hire","Re-Hire","Re-Hire","Re-Hire","Re-Hire","Re-Hire","Re-Hire","Re-Hire","Re-Hire","Re-Hire","Re-Hire","Re-Hire","Re-Hire","Re-Hire","Re-Hire","Re-Hire","Re-Hire","Re-Hire","Re-Hire","Re-Hire","Re-Hire","Re-Hire","Re-Hire","Re-Hire","Re-Hire","Re-Hire","Re-Hire","Re-Hire","Re-Hire","Re-Hire","Re-Hire","Re-Hire","Re-Hire","Re-Hire","Re-Hire","Re-Hire","Re-Hire","Re-Hire","Re-Hire","Re-Hire","Re-Hire","Re-Hire","Re-Hire","Re-Hire","Re-Hire","Re-Hire","Re-Hire","Re-Hire","Re-Hire","Re-Hire","Re-Hire","Re-Hire","Re-Hire","Re-Hire","Re-Hire","Re-Hire","Re-Hire","Re-Hire","Re-Hire","Re-Hire","Re-Hire","Re-Hire","Re-Hire","Re-Hire","Re-Hire","Re-Hire","Re-Hire","Re-Hire","Re-Hire","Re-Hire","Re-Hire","Re-Hire","Re-Hire","Re-Hire","Re-Hire","Re-Hire","Re-Hire","Re-Hire","Re-Hire","Re-Hire","Re-Hire","Re-Hire","Re-Hire","Re-Hire","Re-Hire","Re-Hire","Re-Hire","Re-Hire","Re-Hire","Re-Hire","Re-Hire","Re-Hire","Re-Hire","Re-Hire","Re-Hire","Re-Hire","Re-Hire","Re-Hire","Re-Hire","Re-Hire","Re-Hire","Re-Hire","Re-Hire","Re-Hire","Re-Hire","Re-Hire","Re-Hire","Re-Hire","Re-Hire","Re-Hire","Re-Hire","Re-Hire","Re-Hire","Re-Hire","Re-Hire","Re-Hire","Re-Hire","Re-Hire","Re-Hire","Re-Hire","Re-Hire","Re-Hire","Re-Hire","Re-Hire","Re-Hire","Re-Hire","Re-Hire","Re-Hire","Re-Hire","Re-Hire","Re-Hire","Re-Hire","Re-Hire","Re-Hire","Re-Hire","Re-Hire","Re-Hire","Re-Hire","Re-Hire","Re-Hire","Re-Hire","Re-Hire","Re-Hire","Re-Hire","Re-Hire","Re-Hire","Re-Hire","Re-Hire","Re-Hire","Re-Hire","Re-Hire","Re-Hire","Re-Hire","Re-Hire","Re-Hire","Re-Hire","Re-Hire","Re-Hire","Re-Hire","Re-Hire","Re-Hire","Re-Hire","Re-Hire","Re-Hire","Re-Hire","Re-Hire","Re-Hire","Re-Hire","Re-Hire","Re-Hire","Re-Hire","Re-Hire","Re-Hire","Re-Hire","Re-Hire","Re-Hire","Re-Hire","Re-Hire","Re-Hire","Re-Hire","Re-Hire","Re-Hire","Re-Hire","Re-Hire","Re-Hire","Re-Hire","Re-Hire","Re-Hire","Re-Hire","Re-Hire","Re-Hire","Re-Hire","Re-Hire","Re-Hire","Re-Hire","Re-Hire","Re-Hire","Re-Hire","Re-Hire","Re-Hire","Re-Hire","Re-Hire","Re-Hire","Re-Hire","Re-Hire","Re-Hire","Re-Hire","Re-Hire","Re-Hire","Re-Hire","Re-Hire","Re-Hire","Re-Hire","Re-Hire","Re-Hire","Re-Hire","Re-Hire","Re-Hire","Re-Hire","Re-Hire","Re-Hire","Re-Hire","Re-Hire","Re-Hire","Re-Hire","Re-Hire","Re-Hire","Re-Hire","Re-Hire","Re-Hire","Re-Hire","Re-Hire","Re-Hire","Re-Hire","Re-Hire","Re-Hire","Re-Hire","Re-Hire","Re-Hire","Re-Hire","Re-Hire","Re-Hire","Re-Hire","Re-Hire","Re-Hire","Re-Hire","Re-Hire","Re-Hire","Re-Hire","Re-Hire","Re-Hire","Re-Hire","Re-Hire","Re-Hire","Re-Hire","Re-Hire","Re-Hire","Re-Hire","Re-Hire","Re-Hire","Re-Hire","Re-Hire","Re-Hire","Re-Hire","Re-Hire","Re-Hire","Re-Hire","Re-Hire","Re-Hire","Re-Hire","Re-Hire","Re-Hire","Re-Hire","Re-Hire","Re-Hire","Re-Hire","Re-Hire","Re-Hire","Re-Hire","Re-Hire","Re-Hire","Re-Hire","Re-Hire","Re-Hire","Re-Hire","Re-Hire","Re-Hire","Re-Hire","Re-Hire","Re-Hire","Re-Hire","Re-Hire","Re-Hire","Re-Hire","Re-Hire","Re-Hire","Re-Hire","Re-Hire","Re-Hire","Re-Hire","Re-Hire","Re-Hire","Re-Hire","Re-Hire","Re-Hire","Re-Hire","Re-Hire","Re-Hire","Re-Hire","Re-Hire","Re-Hire","Re-Hire","Re-Hire","Re-Hire","Re-Hire","Re-Hire","Re-Hire","Re-Hire","Re-Hire","Re-Hire","Re-Hire","Re-Hire","Re-Hire","Re-Hire","Re-Hire","Re-Hire","Re-Hire","Re-Hire","Re-Hire","Re-Hire","Re-Hire","Re-Hire","Re-Hire","Re-Hire","Re-Hire","Re-Hire","Re-Hire","Re-Hire","Re-Hire","Re-Hire","Re-Hire","Re-Hire","Re-Hire","Re-Hire","Re-Hire","Re-Hire","Re-Hire","Re-Hire","Re-Hire","Re-Hire","Re-Hire","Re-Hire","Re-Hire","Re-Hire","Re-Hire","Re-Hire","Re-Hire","Re-Hire","Re-Hire","Re-Hire","Re-Hire","Re-Hire","Re-Hire","Re-Hire","Re-Hire","Re-Hire","Re-Hire","Re-Hire","Re-Hire","Re-Hire","Re-Hire","Re-Hire","Re-Hire","Re-Hire","Re-Hire","Re-Hire","Re-Hire","Re-Hire","Re-Hire","Re-Hire","Re-Hire","Re-Hire","Re-Hire","Re-Hire","Re-Hire","Re-Hire","Re-Hire","Re-Hire","Re-Hire","Re-Hire","Re-Hire","Re-Hire","Re-Hire","Re-Hire","Re-Hire","Re-Hire","Re-Hire","Re-Hire","Re-Hire","Re-Hire","Re-Hire","Re-Hire","Re-Hire","Re-Hire","Re-Hire","Re-Hire","Re-Hire","Re-Hire","Re-Hire","Re-Hire","Re-Hire","Re-Hire","Re-Hire","Re-Hire","Re-Hire","Re-Hire","Re-Hire","Re-Hire","Re-Hire","Re-Hire","Re-Hire","Re-Hire","Re-Hire","Re-Hire","Re-Hire","Re-Hire","Re-Hire","Re-Hire","Re-Hire","Re-Hire","Re-Hire","Re-Hire","Re-Hire","Re-Hire","Re-Hire","Re-Hire","Re-Hire","Re-Hire","Re-Hire","Re-Hire","Re-Hire","Re-Hire","Re-Hire","Re-Hire","Re-Hire","Re-Hire","Re-Hire","Re-Hire","Re-Hire","Re-Hire","Re-Hire","Re-Hire","Re-Hire","Re-Hire","Re-Hire","Re-Hire","Re-Hire","Re-Hire","Re-Hire","Re-Hire","Re-Hire","Re-Hire","Re-Hire","Re-Hire","Re-Hire","Re-Hire","Re-Hire","Re-Hire","Re-Hire","Re-Hire","Re-Hire","Re-Hire","Re-Hire","Re-Hire","Re-Hire","Re-Hire","Re-Hire","Re-Hire","Re-Hire","Re-Hire","Re-Hire","Re-Hire","Re-Hire","Re-Hire","Re-Hire","Re-Hire","Re-Hire","Re-Hire","Re-Hire","Re-Hire","Re-Hire","Re-Hire","Re-Hire","Re-Hire","Re-Hire","Re-Hire","Re-Hire","Re-Hire","Re-Hire","Re-Hire","Re-Hire","Re-Hire","Re-Hire","Re-Hire","Re-Hire","Re-Hire","Re-Hire","Re-Hire","Re-Hire","Re-Hire","Re-Hire","Re-Hire","Re-Hire","Re-Hire","Re-Hire","Re-Hire","Re-Hire","Re-Hire","Re-Hire","Re-Hire","Re-Hire","Re-Hire","Re-Hire","Re-Hire","Re-Hire","Re-Hire","Re-Hire","Re-Hire","Re-Hire","Re-Hire","Re-Hire","Re-Hire","Re-Hire","Re-Hire","Re-Hire","Re-Hire","Re-Hire","Re-Hire","Re-Hire","Re-Hire","Re-Hire","Re-Hire","Re-Hire","Re-Hire","Re-Hire","Re-Hire","Re-Hire","Re-Hire","Re-Hire","Re-Hire","Re-Hire","Re-Hire","Re-Hire","Re-Hire","Re-Hire","Re-Hire","Re-Hire","Re-Hire","Re-Hire","Re-Hire","Re-Hire","Re-Hire","Re-Hire","Re-Hire","Re-Hire","Re-Hire","Re-Hire","Re-Hire","Re-Hire","Re-Hire","Re-Hire","Re-Hire","Re-Hire","Re-Hire","Re-Hire","Re-Hire","Re-Hire","Re-Hire","Re-Hire","Re-Hire","Re-Hire","Re-Hire","Re-Hire","Re-Hire","Re-Hire","Re-Hire","Re-Hire","Re-Hire","Re-Hire","Re-Hire","Re-Hire","Re-Hire","Re-Hire","Re-Hire","Re-Hire","Re-Hire","Re-Hire","Re-Hire","Re-Hire","Re-Hire","Re-Hire","Re-Hire","Re-Hire","Re-Hire","Re-Hire","Re-Hire","Re-Hire","Re-Hire","Re-Hire","Re-Hire","Re-Hire","Re-Hire","Re-Hire","Re-Hire","Re-Hire","Re-Hire","Re-Hire","Re-Hire","Re-Hire","Re-Hire","Re-Hire","Re-Hire","Re-Hire","Re-Hire","Re-Hire","Re-Hire","Re-Hire","Re-Hire","Re-Hire","Re-Hire","Re-Hire","Re-Hire","Re-Hire","Re-Hire","Re-Hire","Re-Hire","Re-Hire","Re-Hire","Re-Hire","Re-Hire","Re-Hire","Re-Hire","Re-Hire","Re-Hire","Re-Hire","Re-Hire","Re-Hire","Re-Hire","Re-Hire","Re-Hire","Re-Hire","Re-Hire","Re-Hire","Re-Hire","Re-Hire","Re-Hire","Re-Hire","Re-Hire","Re-Hire","Re-Hire","Re-Hire","Re-Hire","Re-Hire","Re-Hire","Re-Hire","Re-Hire","Re-Hire","Re-Hire","Re-Hire","Re-Hire","Re-Hire","Re-Hire","Re-Hire","Re-Hire","Re-Hire","Re-Hire","Re-Hire","Re-Hire","Re-Hire","Re-Hire","Re-Hire","Re-Hire","Re-Hire","Re-Hire","Re-Hire","Re-Hire","Re-Hire","Re-Hire","Re-Hire","Re-Hire","Re-Hire","Re-Hire","Re-Hire","Re-Hire","Re-Hire","Re-Hire","Re-Hire","Re-Hire","Re-Hire","Re-Hire","Re-Hire","Re-Hire","Re-Hire","Re-Hire","Re-Hire","Re-Hire","Re-Hire","Re-Hire","Re-Hire","Re-Hire","Re-Hire","Re-Hire","Re-Hire","Re-Hire","Re-Hire","Re-Hire","Re-Hire","Re-Hire","Re-Hire","Re-Hire","Re-Hire","Re-Hire","Re-Hire","Re-Hire","Re-Hire","Re-Hire","Re-Hire","Re-Hire","Re-Hire","Re-Hire","Re-Hire","Re-Hire","Re-Hire","Re-Hire","Re-Hire","Re-Hire","Re-Hire","Re-Hire","Re-Hire","Re-Hire","Re-Hire","Re-Hire","Re-Hire","Re-Hire","Re-Hire","Re-Hire","Re-Hire","Re-Hire","Re-Hire","Re-Hire","Re-Hire","Re-Hire","Re-Hire","Re-Hire","Re-Hire","Re-Hire","Re-Hire","Re-Hire","Re-Hire","Re-Hire","Re-Hire","Re-Hire","Re-Hire","Re-Hire","Re-Hire","Re-Hire","Re-Hire","Re-Hire","Re-Hire","Re-Hire","Re-Hire","Re-Hire","Re-Hire","Re-Hire","Re-Hire","Re-Hire","Re-Hire","Re-Hire","Re-Hire","Re-Hire","Re-Hire","Re-Hire","Re-Hire","Re-Hire","Re-Hire","Re-Hire","Re-Hire","Re-Hire","Re-Hire","Re-Hire","Re-Hire","Re-Hire","Re-Hire","Re-Hire","Re-Hire","Re-Hire","Re-Hire","Re-Hire","Re-Hire","Re-Hire","Re-Hire","Re-Hire","Re-Hire","Re-Hire","Re-Hire","Re-Hire","Re-Hire","Re-Hire","Re-Hire","Re-Hire","Re-Hire","Re-Hire","Re-Hire","Re-Hire","Re-Hire","Re-Hire","Re-Hire","Re-Hire","Re-Hire","Re-Hire","Re-Hire","Re-Hire","Re-Hire","Re-Hire","Re-Hire","Re-Hire","Re-Hire","Re-Hire","Re-Hire","Re-Hire","Re-Hire","Re-Hire","Re-Hire","Re-Hire","Re-Hire","Re-Hire","Re-Hire","Re-Hire","Re-Hire","Re-Hire","Re-Hire","Re-Hire","Re-Hire","Re-Hire","Re-Hire","Re-Hire","Re-Hire","Re-Hire","Re-Hire","Re-Hire","Re-Hire","Re-Hire","Re-Hire","Re-Hire","Re-Hire","Re-Hire","Re-Hire","Re-Hire","Re-Hire","Re-Hire","Re-Hire","Re-Hire","Re-Hire","Re-Hire","Re-Hire","Re-Hire","Re-Hire","Re-Hire","Re-Hire","Re-Hire","Re-Hire","Re-Hire","Re-Hire","Re-Hire","Re-Hire","Re-Hire","Re-Hire","Re-Hire","Re-Hire","Re-Hire","Re-Hire","Re-Hire","Re-Hire","Re-Hire","Re-Hire","Re-Hire","Re-Hire","Re-Hire","Re-Hire","Re-Hire","Re-Hire","Re-Hire","Re-Hire","Re-Hire","Re-Hire","Re-Hire","Re-Hire","Re-Hire","Re-Hire","Re-Hire","Re-Hire","Re-Hire","Re-Hire","Re-Hire","Re-Hire","Re-Hire","Re-Hire","Re-Hire","Re-Hire","Re-Hire","Re-Hire","Re-Hire","Re-Hire","Re-Hire","Re-Hire","Re-Hire","Re-Hire","Re-Hire","Re-Hire","Re-Hire","Re-Hire","Re-Hire","Re-Hire","Re-Hire","Re-Hire","Re-Hire","Re-Hire","Re-Hire","Re-Hire","Re-Hire","Re-Hire","Re-Hire","Re-Hire","Re-Hire","Re-Hire","Re-Hire","Re-Hire","Re-Hire","Re-Hire","Re-Hire","Re-Hire","Re-Hire","Re-Hire","Re-Hire","Re-Hire","Re-Hire","Re-Hire","Re-Hire","Re-Hire","Re-Hire","Re-Hire","Re-Hire","Re-Hire","Re-Hire","Re-Hire","Re-Hire","Re-Hire","Re-Hire","Re-Hire","Re-Hire","Re-Hire","Re-Hire","Re-Hire","Re-Hire","Re-Hire","Re-Hire","Re-Hire","Re-Hire","Re-Hire","Re-Hire","Re-Hire","Re-Hire","Re-Hire","Re-Hire","Re-Hire","Re-Hire","Re-Hire","Re-Hire","Re-Hire","Re-Hire","Re-Hire","Re-Hire","Re-Hire","Re-Hire","Re-Hire","Re-Hire","Re-Hire","Re-Hire","Re-Hire","Re-Hire","Re-Hire","Re-Hire","Re-Hire","Re-Hire","Re-Hire","Re-Hire","Re-Hire","Re-Hire","Re-Hire","Re-Hire","Re-Hire","Re-Hire","Re-Hire","Re-Hire","Re-Hire","Re-Hire","Re-Hire","Re-Hire","Re-Hire","Re-Hire","Re-Hire","Re-Hire","Re-Hire","Re-Hire","Re-Hire","Re-Hire","Re-Hire","Re-Hire","Re-Hire","Re-Hire","Re-Hire","Re-Hire","Re-Hire","Re-Hire","Re-Hire","Re-Hire","Re-Hire","Re-Hire","Re-Hire","Re-Hire","Re-Hire","Re-Hire","Re-Hire","Re-Hire","Re-Hire","Re-Hire","Re-Hire","Re-Hire","Re-Hire","Re-Hire","Re-Hire","Re-Hire","Re-Hire","Re-Hire","Re-Hire","Re-Hire","Re-Hire","Re-Hire","Re-Hire","Re-Hire","Re-Hire","Re-Hire","Re-Hire","Re-Hire","Re-Hire","Re-Hire","Re-Hire","Re-Hire","Re-Hire","Re-Hire","Re-Hire","Re-Hire","Re-Hire","Re-Hire","Re-Hire","Re-Hire","Re-Hire","Re-Hire","Re-Hire","Re-Hire","Re-Hire","Re-Hire","Re-Hire","Re-Hire","Re-Hire","Re-Hire","Re-Hire","Re-Hire","Re-Hire","Re-Hire","Re-Hire","Re-Hire","Re-Hire","Re-Hire","Re-Hire","Re-Hire","Re-Hire","Re-Hire","Re-Hire","Re-Hire","Re-Hire","Re-Hire","Re-Hire","Re-Hire","Re-Hire","Re-Hire","Re-Hire","Re-Hire","Re-Hire","Re-Hire","Re-Hire","Re-Hire","Re-Hire","Re-Hire","Re-Hire","Re-Hire","Re-Hire","Re-Hire","Re-Hire","Re-Hire","Re-Hire","Re-Hire","Re-Hire","Re-Hire","Re-Hire","Re-Hire","Re-Hire","Re-Hire","Re-Hire","Re-Hire","Re-Hire","Re-Hire","Re-Hire","Re-Hire","Re-Hire","Re-Hire","Re-Hire","Re-Hire","Re-Hire","Re-Hire","Re-Hire","Re-Hire","Re-Hire","Re-Hire","Re-Hire","Re-Hire","Re-Hire","Re-Hire","Re-Hire","Re-Hire","Re-Hire","Re-Hire","Re-Hire","Re-Hire","Re-Hire","Re-Hire","Re-Hire","Re-Hire","Re-Hire","Re-Hire","Re-Hire","Re-Hire","Re-Hire","Re-Hire","Re-Hire","Re-Hire","Re-Hire","Re-Hire","Re-Hire","Re-Hire","Re-Hire","Re-Hire","Re-Hire","Re-Hire","Re-Hire","Re-Hire","Re-Hire","Re-Hire","Re-Hire","Re-Hire","Re-Hire","Re-Hire","Re-Hire","Re-Hire","Re-Hire","Re-Hire","Re-Hire","Re-Hire","Re-Hire","Re-Hire","Re-Hire","Re-Hire","Re-Hire","Re-Hire","Re-Hire","Re-Hire","Re-Hire","Re-Hire","Re-Hire","Re-Hire","Re-Hire","Re-Hire","Re-Hire","Re-Hire","Re-Hire","Re-Hire","Re-Hire","Re-Hire","Re-Hire","Re-Hire","Re-Hire","Re-Hire","Re-Hire","Re-Hire","Re-Hire","Re-Hire","Re-Hire","Re-Hire","Re-Hire","Re-Hire","Re-Hire","Re-Hire","Re-Hire","Re-Hire","Re-Hire","Re-Hire","Re-Hire","Re-Hire","Re-Hire","Re-Hire","Re-Hire","Re-Hire","Re-Hire","Re-Hire","Re-Hire","Re-Hire","Re-Hire","Re-Hire","Re-Hire","Re-Hire","Re-Hire","Re-Hire","Re-Hire","Re-Hire","Re-Hire","Re-Hire","Re-Hire","Re-Hire","Re-Hire","Re-Hire","Re-Hire","Re-Hire","Re-Hire","Re-Hire","Re-Hire","Re-Hire","Re-Hire","Re-Hire","Re-Hire","Re-Hire","Re-Hire","Re-Hire","Re-Hire","Re-Hire","Re-Hire","Re-Hire","Re-Hire","Re-Hire","Re-Hire","Re-Hire","Re-Hire","Re-Hire","Re-Hire","Re-Hire","Re-Hire","Re-Hire","Re-Hire","Re-Hire","Re-Hire","Re-Hire","Re-Hire","Re-Hire","Re-Hire","Re-Hire","Re-Hire","Re-Hire","Re-Hire","Re-Hire","Re-Hire","Re-Hire","Re-Hire","Re-Hire","Re-Hire","Re-Hire","Re-Hire","Re-Hire","Re-Hire","Re-Hire","Re-Hire","Re-Hire","Re-Hire","Re-Hire","Re-Hire","Re-Hire","Re-Hire","Re-Hire","Re-Hire","Re-Hire","Re-Hire","Re-Hire","Re-Hire","Re-Hire","Re-Hire","Re-Hire","Re-Hire","Re-Hire","Re-Hire","Re-Hire","Re-Hire","Re-Hire","Re-Hire","Re-Hire","Re-Hire","Re-Hire","Re-Hire","Re-Hire","Re-Hire","Re-Hire","Re-Hire","Re-Hire","Re-Hire","Re-Hire","Re-Hire","Re-Hire","Re-Hire","Re-Hire","Re-Hire","Re-Hire","Re-Hire","Re-Hire","Re-Hire","Re-Hire","Re-Hire","Re-Hire","Re-Hire","Re-Hire","Re-Hire","Re-Hire","Re-Hire","Re-Hire","Re-Hire","Re-Hire","Re-Hire","Re-Hire","Re-Hire","Re-Hire","Re-Hire","Re-Hire","Re-Hire","Re-Hire","Re-Hire","Re-Hire","Re-Hire","Re-Hire","Re-Hire","Re-Hire","Re-Hire","Re-Hire","Re-Hire","Re-Hire","Re-Hire","Re-Hire","Re-Hire","Re-Hire","Re-Hire","Re-Hire","Re-Hire","Re-Hire","Re-Hire","Re-Hire","Re-Hire","Re-Hire","Re-Hire","Re-Hire","Re-Hire","Re-Hire","Re-Hire","Re-Hire","Re-Hire","Re-Hire","Re-Hire","Re-Hire","Re-Hire","Re-Hire","Re-Hire","Re-Hire","Re-Hire","Re-Hire","Re-Hire","Re-Hire","Re-Hire","Re-Hire","Re-Hire","Re-Hire","Re-Hire","Re-Hire","Re-Hire","Re-Hire","Re-Hire","Re-Hire","Re-Hire","Re-Hire","Re-Hire","Re-Hire","Re-Hire","Re-Hire","Re-Hire","Re-Hire","Re-Hire","Re-Hire","Re-Hire","Re-Hire","Re-Hire","Re-Hire","Re-Hire","Re-Hire","Re-Hire","Re-Hire","Re-Hire","Re-Hire","Re-Hire","Re-Hire","Re-Hire","Re-Hire","Re-Hire","Re-Hire","Re-Hire","Re-Hire","Re-Hire","Re-Hire","Re-Hire","Re-Hire","Re-Hire","Re-Hire","Re-Hire","Re-Hire","Re-Hire","Re-Hire","Re-Hire","Re-Hire","Re-Hire","Re-Hire","Re-Hire","Re-Hire","Re-Hire","Re-Hire","Re-Hire","Re-Hire","Re-Hire","Re-Hire","Re-Hire","Re-Hire","Re-Hire","Re-Hire","Re-Hire","Re-Hire","Re-Hire","Re-Hire","Re-Hire","Re-Hire","Re-Hire","Re-Hire","Re-Hire","Re-Hire","Re-Hire","Re-Hire","Re-Hire","Re-Hire","Re-Hire","Re-Hire","Re-Hire","Re-Hire","Re-Hire","Re-Hire","Re-Hire","Re-Hire","Re-Hire","Re-Hire","Re-Hire","Re-Hire","Re-Hire","Re-Hire","Re-Hire","Re-Hire","Re-Hire","Re-Hire","Re-Hire","Re-Hire","Re-Hire","Re-Hire","Re-Hire","Re-Hire","Re-Hire","Re-Hire","Re-Hire","Re-Hire","Re-Hire","Re-Hire","Re-Hire","Re-Hire","Re-Hire","Re-Hire","Re-Hire","Re-Hire","Re-Hire","Re-Hire","Re-Hire","Re-Hire","Re-Hire","Re-Hire","Re-Hire","Re-Hire","Re-Hire","Re-Hire","Re-Hire","Re-Hire","Re-Hire","Re-Hire","Re-Hire","Re-Hire","Re-Hire","Re-Hire","Re-Hire","Re-Hire","Re-Hire","Re-Hire","Re-Hire","Re-Hire","Re-Hire","Re-Hire","Re-Hire","Re-Hire","Re-Hire","Re-Hire","Re-Hire","Re-Hire","Re-Hire","Re-Hire","Re-Hire","Re-Hire","Re-Hire","Re-Hire","Re-Hire","Re-Hire","Re-Hire","Re-Hire","Re-Hire","Re-Hire","Re-Hire","Re-Hire","Re-Hire","Re-Hire","Re-Hire","Re-Hire","Re-Hire","Re-Hire","Re-Hire","Re-Hire","Re-Hire","Re-Hire","Re-Hire","Re-Hire","Re-Hire","Re-Hire","Re-Hire","Re-Hire","Re-Hire","Re-Hire","Re-Hire","Re-Hire","Re-Hire","Re-Hire","Re-Hire","Re-Hire","Re-Hire","Re-Hire","Re-Hire","Re-Hire","Re-Hire","Re-Hire","Re-Hire","Re-Hire","Re-Hire","Re-Hire","Re-Hire","Re-Hire","Re-Hire","Re-Hire","Re-Hire","Re-Hire","Re-Hire","Re-Hire","Re-Hire","Re-Hire","Re-Hire","Re-Hire","Re-Hire","Re-Hire","Re-Hire","Re-Hire","Re-Hire","Re-Hire","Re-Hire","Re-Hire","Re-Hire","Re-Hire","Re-Hire","Re-Hire","Re-Hire","Re-Hire","Re-Hire","Re-Hire","Re-Hire","Re-Hire","Re-Hire","Re-Hire","Re-Hire","Re-Hire","Re-Hire","Re-Hire","Re-Hire","Re-Hire","Re-Hire","Re-Hire","Re-Hire","Re-Hire","Re-Hire","Re-Hire","Re-Hire","Re-Hire","Re-Hire","Re-Hire","Re-Hire","Re-Hire","Re-Hire","Re-Hire","Re-Hire","Re-Hire","Re-Hire","Re-Hire","Re-Hire","Re-Hire","Re-Hire","Re-Hire","Re-Hire","Re-Hire","Re-Hire","Re-Hire","Re-Hire","Re-Hire","Re-Hire","Re-Hire","Re-Hire","Re-Hire","Re-Hire","Re-Hire","Re-Hire","Re-Hire","Re-Hire","Re-Hire","Re-Hire","Re-Hire","Re-Hire","Re-Hire","Re-Hire","Re-Hire","Re-Hire","Re-Hire","Re-Hire","Re-Hire","Re-Hire","Re-Hire","Re-Hire","Re-Hire","Re-Hire","Re-Hire","Re-Hire","Re-Hire","Re-Hire","Re-Hire","Re-Hire","Re-Hire","Re-Hire","Re-Hire","Re-Hire","Re-Hire","Re-Hire","Re-Hire","Re-Hire","Re-Hire","Re-Hire","Re-Hire","Re-Hire","Re-Hire","Re-Hire","Re-Hire","Re-Hire","Re-Hire","Re-Hire","Re-Hire","Re-Hire","Re-Hire","Re-Hire","Re-Hire","Re-Hire","Re-Hire","Re-Hire","Re-Hire","Re-Hire","Re-Hire","Re-Hire","Re-Hire","Re-Hire","Re-Hire","Re-Hire","Re-Hire","Re-Hire","Re-Hire","Re-Hire","Re-Hire","Re-Hire","Re-Hire","Re-Hire","Re-Hire","Re-Hire","Re-Hire","Re-Hire","Re-Hire","Re-Hire","Re-Hire","Re-Hire","Re-Hire","Re-Hire","Re-Hire","Re-Hire","Re-Hire","Re-Hire","Re-Hire","Re-Hire","Re-Hire","Re-Hire","Re-Hire","Re-Hire","Re-Hire","Re-Hire","Re-Hire","Re-Hire","Re-Hire","Re-Hire","Re-Hire","Re-Hire","Re-Hire","Re-Hire","Re-Hire","Re-Hire","Re-Hire","Re-Hire","Re-Hire","Re-Hire","Re-Hire","Re-Hire","Re-Hire","Re-Hire","Re-Hire","Re-Hire","Re-Hire","Re-Hire","Re-Hire","Re-Hire","Re-Hire","Re-Hire","Re-Hire","Re-Hire","Re-Hire","Re-Hire","Re-Hire","Re-Hire","Re-Hire","Re-Hire","Re-Hire","Re-Hire","Re-Hire","Re-Hire","Re-Hire","Re-Hire","Re-Hire","Re-Hire","Re-Hire","Re-Hire","Re-Hire","Re-Hire","Re-Hire","Re-Hire","Re-Hire","Re-Hire","Re-Hire","Re-Hire","Re-Hire","Re-Hire","Re-Hire","Re-Hire","Re-Hire","Re-Hire","Re-Hire","Re-Hire","Re-Hire","Re-Hire","Re-Hire","Re-Hire","Re-Hire","Re-Hire","Re-Hire","Re-Hire","Re-Hire","Re-Hire","Re-Hire","Re-Hire","Re-Hire","Re-Hire","Re-Hire","Re-Hire","Re-Hire","Re-Hire","Re-Hire","Re-Hire","Re-Hire","Re-Hire","Re-Hire","Re-Hire","Re-Hire","Re-Hire","Re-Hire","Re-Hire","Re-Hire","Re-Hire","Re-Hire","Re-Hire"]
["Re-Hire","Citizenship","Re-HireCitizenship","Enter Country of Citizenship - If citizenship is not USA, the visa field needs to be completed.  If \"Other\" is selected, please enter the citizenship in the comments below"]
["Re-Hire","Comments (If you would like to provide any additional information)","Re-HireComments (If you would like to provide any additional information)","Enter additional comments here"]
["Re-Hire","Date of Birth","Re-HireDate of Birth","New Hires Only - DOBs should be entered in the e-Form or PASF directly in the appropriate listed fields - Never Email this information"]
["Re-Hire","Effective Date","Re-HireEffective Date","Action effective date should be the date that the Re-Hire is expected to start (take in to account any training needed before their start date as well - if they are training - use an effective date of the first training date)"]
["Re-Hire","End Date","Re-HireEnd Date","At the end of a TERM assignment, a termination PASF should be completed. The Finance Center will complete a termination PA for TEMP positions on this date"]
["Re-Hire","FTE","Re-HireFTE","This field is required for Faculty, Research Associates (A, B & C) and Fellows.  Hours/week and months/year are used to calculate FTE for Staff"]
["Re-Hire","Hours/Week","Re-HireHours/Week","Hours are not required for Faculty, Research Associates or Fellows"]
["Re-Hire","iExpense default account","Re-HireiExpense default account","GL Accounts Only"]
["Re-Hire","Last Day Worked","Re-HireLast Day Worked","For Terminations Only"]
["Re-Hire","Legal Residence Address (No PO Boxes)","Re-HireLegal Residence Address (No PO Boxes)","If the same as Mailing Address - Can write SAME"]
["Re-Hire","Middle Initial","Re-HireMiddle Initial","Can leave blank if no middle initial listed in HRMS"]
["Re-Hire","Pay Amount","Re-HirePay Amount","Non-Exempt positions should be at an hourly rate. Exempt positions should either be at a monthly or annual rate at a designated FTE"]
["Re-Hire","Preferred First Name","Re-HirePreferred First Name","Only needed if different than legal name provided"]
["Re-Hire","Preferred Last Name","Re-HirePreferred Last Name","Only needed if different than legal name provided"]
["Re-Hire","Preferred Middle Initial","Re-HirePreferred Middle Initial","Only needed if different than legal name provided"]
["Re-Hire","Regular or Temporary","Re-HireRegular or Temporary","Temp assignment with 18.75+ hrs/week needs to be < 9 months.  If 9+ months is used, the emp will earn vacation & sick time."]
["Re-Hire","Social Security Number","Re-HireSocial Security Number","New Hires Only - SSNs should be entered in the e-Form or PASF directly in the appropriate listed fields - Never Email this information"]
["Re-Hire","Title","Re-HireTitle","If position is in DORR, title needs to match what is in DORR - If not, please reach out to HR.  "]
["Re-Hire","Unused Vacation Days (Exempt ONLY)","Re-HireUnused Vacation Days (Exempt ONLY)","For Terminations Only"]
["Re-Hire","Visa Type (if not US Cititzen)","Re-HireVisa Type (if not US Cititzen)","If citizenship is not USA, the visa field needs to be completed"]
["Revised Pay Rate","Approver(s)","Revised Pay RateApprover(s)","List PA Approver(s) here"]
["Revised Pay Rate","Begin Date","Revised Pay RateBegin Date","Should match the Effective Date"]
["Revised Pay Rate","Comments (If you would like to provide any additional information)","Revised Pay RateComments (If you would like to provide any additional information)","Enter additional comments here"]
["Revised Pay Rate","Date of Birth","Revised Pay RateDate of Birth","New Hires Only - DOBs should be entered in the e-Form or PASF directly in the appropriate listed fields - Never Email this information"]
["Revised Pay Rate","Effective Date","Revised Pay RateEffective Date","Action effective date should be the date that the new rate should go into effect *Biweekly revised pay rates must be effective as of the first Sunday of a new pay period"]
["Revised Pay Rate","Last Day Worked","Revised Pay RateLast Day Worked","For Terminations Only"]
["Revised Pay Rate","Middle Initial","Revised Pay RateMiddle Initial","Can leave blank if no middle initial listed in HRMS"]
["Revised Pay Rate","Social Security Number","Revised Pay RateSocial Security Number","New Hires Only - SSNs should be entered in the e-Form or PASF directly in the appropriate listed fields - Never Email this information"]
["Revised Pay Rate","Unused Vacation Days (Exempt ONLY)","Revised Pay RateUnused Vacation Days (Exempt ONLY)","For Terminations Only"]
["Special Rate","Approver(s)",{"$f":"CONCATENATE(A166,B166)","v":"Special RateApprover(s)"},"List PA Approver(s) here"]
["Special Rate","Comments (If you would like to provide any additional information)","Special RateComments (If you would like to provide any additional information)","Enter additional comments here"]
["Special Rate","Date of Birth","Special RateDate of Birth","New Hires Only - DOBs should be entered in the e-Form or PASF directly in the appropriate listed fields - Never Email this information"]
["Special Rate","Effective Date","Special RateEffective Date","Action effective date should be the date that the special rate should go into effect or added for the employee"]
["Special Rate","Last Day Worked","Special RateLast Day Worked","For Terminations Only"]
["Special Rate","Middle Initial","Special RateMiddle Initial","Can leave blank if no middle initial listed in HRMS"]
["Special Rate","Social Security Number","Special RateSocial Security Number","New Hires Only - SSNs should be entered in the e-Form or PASF directly in the appropriate listed fields - Never Email this information"]
["Special Rate","Unused Vacation Days (Exempt ONLY)","Special RateUnused Vacation Days (Exempt ONLY)","For Terminations Only"]
["Status Change","Approver(s)","Status ChangeApprover(s)","List PA Approver(s) here"]
["Status Change","Begin Date","Status ChangeBegin Date","Should match the Effective Date"]
["Status Change","Comments (If you would like to provide any additional information)","Status ChangeComments (If you would like to provide any additional information)","Enter additional comments here"]
["Status Change","Date of Birth","Status ChangeDate of Birth","New Hires Only - DOBs should be entered in the e-Form or PASF directly in the appropriate listed fields - Never Email this information"]
["Status Change","Effective Date","Status ChangeEffective Date","Action effective date should be the date that the new status should go into effect"]
["Status Change","FTE","Status ChangeFTE","This field is required for Faculty, Research Associates (A, B & C) and Fellows.  Hours/week and months/year are used to calculate FTE for Staff"]
["Status Change","Hours/Week","Status ChangeHours/Week","Hours are not required for Faculty, Research Associates or Fellows"]
["Status Change","Last Day Worked","Status ChangeLast Day Worked","For Terminations Only"]
["Status Change","Middle Initial","Status ChangeMiddle Initial","Can leave blank if no middle initial listed in HRMS"]
["Status Change","Pay Amount","Status ChangePay Amount","For Exempt - If changing from full time to part time or vice versa - make sure to add new monthly amount based on FTE"]
["Status Change","People Group","Status ChangePeople Group","Graduate Student changing to an employee would be a new hire action"]
["Status Change","Social Security Number","Status ChangeSocial Security Number","New Hires Only - SSNs should be entered in the e-Form or PASF directly in the appropriate listed fields - Never Email this information"]
["Status Change","Title","Status ChangeTitle","If position is in DORR, title needs to match what is in DORR - If not, please reach out to HR. "]
["Status Change","Unused Vacation Days (Exempt ONLY)","Status ChangeUnused Vacation Days (Exempt ONLY)","If employee is exempt and retiring, but staying on in a temp capacity - please enter unused vacation days"]
["Termination/Retirement","Additional Helpful Information","Termination/RetirementAdditional Helpful Information","Please verify that the employee does not have multiple assignments before terminating - or please verify all assignments are terminating at the same time.  If there are multiple assignments - use the additional action tabs to confirm all assignments terminating"]
["Termination/Retirement","Approver(s)","Termination/RetirementApprover(s)","List PA Approver(s) here"]
["Termination/Retirement","Comments (If you would like to provide any additional information)","Termination/RetirementComments (If you would like to provide any additional information)","Enter additional comments here"]
["Termination/Retirement","Date of Birth","Termination/RetirementDate of Birth","New Hires Only - DOBs should be entered in the e-Form or PASF directly in the appropriate listed fields - Never Email this information"]
["Termination/Retirement","Effective Date","Termination/RetirementEffective Date","Action effective date needs to match assignment end date - What is the last date that this employee plans to work"]
["Termination/Retirement","End Date","Termination/RetirementEnd Date","Should match the Effective Date"]
["Termination/Retirement","Last Day Worked","Termination/RetirementLast Day Worked","Should match the Effective Date and End Date"]
["Termination/Retirement","Middle Initial","Termination/RetirementMiddle Initial","Can leave blank if no middle initial listed in HRMS"]
["Termination/Retirement","Social Security Number","Termination/RetirementSocial Security Number","New Hires Only - SSNs should be entered in the e-Form or PASF directly in the appropriate listed fields - Never Email this information"]
["Termination/Retirement","Unused Vacation Days (Exempt ONLY)","Termination/RetirementUnused Vacation Days (Exempt ONLY)","See Unused Vaca Days Calculations Tab for assistance if needed"]
["Title Change","Approver(s)",{"$f":"CONCATENATE(A198,B198)","v":"Title ChangeApprover(s)"},"List PA Approver(s) here"]
["Title Change","Begin Date","Title ChangeBegin Date","Should match the Effective Date"]
["Title Change","Comments (If you would like to provide any additional information)","Title ChangeComments (If you would like to provide any additional information)","Enter additional comments here"]
["Title Change","Date of Birth","Title ChangeDate of Birth","New Hires Only - DOBs should be entered in the e-Form or PASF directly in the appropriate listed fields - Never Email this information"]
["Title Change","Effective Date","Title ChangeEffective Date","Action effective date should be the date that the new title should go into effect"]
["Title Change","Last Day Worked","Title ChangeLast Day Worked","For Terminations Only"]
["Title Change","Middle Initial","Title ChangeMiddle Initial","Can leave blank if no middle initial listed in HRMS"]
["Title Change","Social Security Number","Title ChangeSocial Security Number","New Hires Only - SSNs should be entered in the e-Form or PASF directly in the appropriate listed fields - Never Email this information"]
["Title Change","Unused Vacation Days (Exempt ONLY)","Title ChangeUnused Vacation Days (Exempt ONLY)","For Terminations Only"]
["Transfer From","Additional Helpful Information","Transfer FromAdditional Helpful Information","This action is for a position & ORG change. If this is for a transfer within the same department, please complete a Transfer From as well as a Transfer To action on the second tab"]
["Transfer From","Approver(s)","Transfer FromApprover(s)","List PA Approver(s) here"]
["Transfer From","Comments (If you would like to provide any additional information)","Transfer FromComments (If you would like to provide any additional information)","Enter additional comments here"]
["Transfer From","Date of Birth","Transfer FromDate of Birth","New Hires Only - DOBs should be entered in the e-Form or PASF directly in the appropriate listed fields - Never Email this information"]
["Transfer From","Effective Date","Transfer FromEffective Date","Action effective date needs to match assignment end date - What is the last date that this employee plans to work in this position"]
["Transfer From","End Date","Transfer FromEnd Date","Should match the Effective Date"]
["Transfer From","Last Day Worked","Transfer FromLast Day Worked","Should match the Effective Date and End Date"]
["Transfer From","Middle Initial","Transfer FromMiddle Initial","Can leave blank if no middle initial listed in HRMS"]
["Transfer From","Social Security Number","Transfer FromSocial Security Number","New Hires Only - SSNs should be entered in the e-Form or PASF directly in the appropriate listed fields - Never Email this information"]
["Transfer To","Additional Helpful Information","Transfer ToAdditional Helpful Information","This action is for a position & ORG change. If this is for a transfer within the same department, please complete a Transfer From as well as a Transfer To action on the second tab"]
["Transfer To","Approver(s)","Transfer ToApprover(s)","List PA Approver(s) here"]
["Transfer To","Begin Date","Transfer ToBegin Date","Should match the Effective Date"]
["Transfer To","Comments (If you would like to provide any additional information)","Transfer ToComments (If you would like to provide any additional information)","Enter additional comments here"]
["Transfer To","Date of Birth","Transfer ToDate of Birth","New Hires Only - DOBs should be entered in the e-Form or PASF directly in the appropriate listed fields - Never Email this information"]
["Transfer To","Effective Date","Transfer ToEffective Date","Action effective date should be the date that the Employee is expected to start in this new position (take in to account any training needed before their start date as well - if they are training - use an effective date of the first training date)"]
["Transfer To","FTE","Transfer ToFTE","This field is required for Faculty, Research Associates (A, B & C) and Fellows.  Hours/week and months/year are used to calculate FTE for Staff"]
["Transfer To","FTE","Transfer ToFTE","FTE change may also require a \"Revised Pay Rate\" action"]
["Transfer To","Hours/Week","Transfer ToHours/Week","Hours are not required for Faculty, Research Associates or Fellows"]
["Transfer To","iExpense default account","Transfer ToiExpense default account","GL Accounts Only"]
["Transfer To","Last Day Worked","Transfer ToLast Day Worked","For Terminations Only"]
["Transfer To","Middle Initial","Transfer ToMiddle Initial","Can leave blank if no middle initial listed in HRMS"]
["Transfer To","Pay Amount","Transfer ToPay Amount","Non-Exempt positions should be at an hourly rate. Exempt positions should either be at a monthly or annual rate at a designated FTE"]
["Transfer To","Social Security Number","Transfer ToSocial Security Number","New Hires Only - SSNs should be entered in the e-Form or PASF directly in the appropriate listed fields - Never Email this information"]
["Transfer To","Unused Vacation Days (Exempt ONLY)",{"$f":"CONCATENATE(A230,B230)","v":"Transfer ToUnused Vacation Days (Exempt ONLY)"},"For Terminations Only"]
[null,"Unused Vacation Days (Exempt ONLY)","Unused Vacation Days (Exempt ONLY)"]
["End Assignment","Title",{"$f":"CONCATENATE(A232,B232)","v":"End AssignmentTitle"},"If position is in DORR, title needs to match what is in DORR - If not, please reach out to HR. "]
["FTE Change (Faculty, Research Assoc, or Fellow)","Title","FTE Change (Faculty, Research Assoc, or Fellow)Title","If position is in DORR, title needs to match what is in DORR - If not, please reach out to HR. "]
["Hours Change","Title","Hours ChangeTitle","If position is in DORR, title needs to match what is in DORR - If not, please reach out to HR. "]
["Organization Change","Title","Organization ChangeTitle","If position is in DORR, title needs to match what is in DORR - If not, please reach out to HR. "]
["Revised Pay Rate","Title","Revised Pay RateTitle","If position is in DORR, title needs to match what is in DORR - If not, please reach out to HR. "]
["Special Rate","Title","Special RateTitle","If position is in DORR, title needs to match what is in DORR - If not, please reach out to HR. "]
["Termination/Retirement","Title","Termination/RetirementTitle","If position is in DORR, title needs to match what is in DORR - If not, please reach out to HR. "]
["Title Change","Title","Title ChangeTitle","If position is in DORR, title needs to match what is in DORR - If not, please reach out to HR. "]
["Transfer From","Title","Transfer FromTitle","If position is in DORR, title needs to match what is in DORR - If not, please reach out to HR. "]
["Transfer To","Title","Transfer ToTitle","If position is in DORR, title needs to match what is in DORR - If not, please reach out to HR. "]
["Account Change","Title","Account ChangeTitle","If position is in DORR, title needs to match what is in DORR - If not, please reach out to HR. "]
["Additional Payments","Additional Forms Needed","Additional PaymentsAdditional Forms Needed","Access the Mobile Communications Stipend Request Form and Lump Sum Payment Forms Here"]

{"sheet":"Drop Downs","index":8,"n_rows":196,"n_cols":12,"rows_kept":196,"cut":false,"hidden":false,"merged":[]}
["Actions","Gender","Reg/Temp","People Group","Grades","Yes/No","Termination Reasons","Payment Period","Payment Type","Work Arrangements","Timekeeping Locations","Citizenship"]
["Select An Action","Male ","Regular","Exempt Staff","Grade A","Yes","Cancellation","Annual","Regular Compensation","Onsite","100 - Payroll Office","United States"]
["Account Change","Female","Temporary","Exempt Student","Grade B","No","Chronic Abenteeism","Hourly","Commission","Remote","102 - Risk Management","Afghanistan"]
["Additional Assignment",null,null,"Faculty","Grade C",null,"Credential Revoked or denied","Monthly","Communication Stipend","Hybrid","103 - Records Management","Albania"]
["Additional Payments",null,null,"Fellow","Grade D",null,"Deceased","Total","Faculty Additional Pay (Non-Base)",null,"104 - Parking Operations","Algeria"]
["End Assignment",null,null,"Grandfathered","Grade D1",null,"Did not returned from LOA",null,"Faculty Base Pay",null,"105 - Validine System","Andorra"]
["FTE Change (Faculty, Research Assoc, or Fellow)",null,null,"IATSE","Grade E",null,"Dismissed for cause",null,"Graduate Student Stipend",null,"106 - Telephone Services","Angola"]
["Grade Change",null,null,"Non-Exempt Staff","Grade E1",null,"Employee Transfer",null,"Non-Exempt Student",null,"108 - Procurement Services Non Exempt","Antigua and Barbuda"]
["Hours Change",null,null,"Non-Exempt Student","Grade F",null,"End of Non-Paid Appointment",null,"Non-Faculty Additional Work Performed",null,"109 - Procurement Services - Exempt","Argentina"]
["New Hire",null,null,"Non-Union Service","Grade G",null,"End of Student Job",null,"Other \"Comments Required\"",null,"110 - Real Estate & Housing Programs Non Exempt","Armenia"]
["Organization Change",null,null,"Research Associate A","Grade H",null,"End of Temp Assignment",null,"Recognition/Discretionary/One-Time Additonal",null,"111 - Real Estate","Australia"]
["Promotion",null,null,"Research Associate B","Grade I",null,"End of Term Position",null,"Relocation/Signing Compensation",null,"112 - DDS","Austria"]
["Re-Hire",null,null,"Research Associate C","Grade J",null,"Failure to report to work",null,null,null,"114 - HR/Personnel","Azerbaijan"]
["Revised Pay Rate",null,null,"SEIU","Grade K",null,"Family Obligations",null,null,null,"115 - Fin Ctr Admin","Bahamas"]
["Special Rate",null,null,null,"Grade L",null,"Graduated",null,null,null,"118 - Courtyard Café","Bahrain"]
["Status Change",null,null,null,"Grade M",null,"Inn Transition",null,null,null,"122 - Collis Café","Bangladesh"]
["Termination/Retirement",null,null,null,"Grade N",null,"LTD Disqualified",null,null,null,"146 - FO&M Carpenters","Barbados"]
["Title Change",null,null,null,"Grade O",null,"Lay off, eliminated position",null,null,null,"148 - FO&M Draftspersons","Belarus"]
["Transfer From",null,null,null,"Grade P",null,"Lay off, funding expired",null,null,null,"150 - FO&M Electronics","Belgium"]
["Transfer To",null,null,null,"Grade Q",null,"No I-9 Filed",null,null,null,"152 - FO&M Electricians","Belize"]
[null,null,null,null,"Grade R",null,"Pre-dates systems",null,null,null,"154 - FO&M Equipment Maintenance","Benin"]
[null,null,null,null,"Grade S",null,"Quit Without Notice",null,null,null,"158 - FO&M Grounds Workers","Bhutan"]
[null,null,null,null,"Grade T",null,"Resignation in lieu of Termination (Mutual Agreement)",null,null,null,"160 - FO&M Heating Plant","Bolivia"]
[null,null,null,null,"Grade U",null,"Resignation with notice, another employer",null,null,null,"162 - FO&M Laborers","Bosnia and Herzegovina"]
[null,null,null,null,"DOSS A",null,"Resignation with notice, family illness",null,null,null,"164 - FO&M Hinman Mail Room","Botswana"]
[null,null,null,null,"DOSS B",null,"Resignation with notice, leaving area",null,null,null,"166 - FO&M Mechanics","Brazil"]
[null,null,null,null,"DOSS C",null,"Resignation with notice, personal",null,null,null,"168 - FO&M Dms Maintenance","Brunei"]
[null,null,null,null,"Other",null,"Resignation with notice, return to school",null,null,null,"170 - FO&M Painters","Bulgaria"]
[null,null,null,null,null,null,"Resignation, mutual agreement",null,null,null,"172 - FO&M Ski Way/Golf Course","Burkina Faso"]
[null,null,null,null,null,null,"Retirement",null,null,null,"174 - FO&M Stockroom","Burundi"]
[null,null,null,null,null,null,"Retirement incentive",null,null,null,"178 - ORL Dorm Janitors","Cabo Verde"]
[null,null,null,null,null,null,"Retirement (Mutual Agreement)",null,null,null,"180 - FO&M Janitors General","Cambodia"]
[null,null,null,null,null,null,"Unable to perform duties of job (physically)",null,null,null,"182 - FO&M Temporary Emp-Non Departmental","Cameroon"]
[null,null,null,null,null,null,"Unsatisfactory performance",null,null,null,"184 - FO&M DCAD Grounds Workers","Canada"]
[null,null,null,null,null,null,"Withdrawn",null,null,null,"190 - FO&M Administration","Central African Republic"]
[null,null,null,null,null,null,"Work Visa Expired",null,null,null,"200 - Alumni Relations","Chad"]
[null,null,null,null,null,null,null,null,null,null,"202 - Dartmouth College Fund","Chile"]
[null,null,null,null,null,null,null,null,null,null,"204 - Alumni Magazine","China"]
[null,null,null,null,null,null,null,null,null,null,"206 - Gift Planning","Colombia"]
[null,null,null,null,null,null,null,null,null,null,"210 - Principal Giving","Comoros"]
[null,null,null,null,null,null,null,null,null,null,"211 - Leadership Giving","Congo (Republic of the)"]
[null,null,null,null,null,null,null,null,null,null,"212 - Thayer School Development Office","Congo (Democratic Republic of the)"]
[null,null,null,null,null,null,null,null,null,null,"214 - Foundations Relations","Costa Rica"]
[null,null,null,null,null,null,null,null,null,null,"221 - Donor Engagement & Stewardship","Croatia"]
[null,null,null,null,null,null,null,null,null,null,"222 - Conferences & Special Events","Cuba"]
[null,null,null,null,null,null,null,null,null,null,"224 - College Printing & Mailing Services","Cyprus"]
[null,null,null,null,null,null,null,null,null,null,"226 - Advancement Business Operations","Czech Republic"]
[null,null,null,null,null,null,null,null,null,null,"228 - VP Office of Alumni Affairs","Denmark"]
[null,null,null,null,null,null,null,null,null,null,"302 - Dean of Admissions","Djibouti"]
[null,null,null,null,null,null,null,null,null,null,"304 - Financial Aid Administration","Dominica"]
[null,null,null,null,null,null,null,null,null,null,"400 - Academic Skills Center","Dominican Republic"]
[null,null,null,null,null,null,null,null,null,null,"402 - Career Services","Ecuador"]
[null,null,null,null,null,null,null,null,null,null,"404 - Safety & Security","Egypt"]
[null,null,null,null,null,null,null,null,null,null,"406 - Dean Of The College Admin","El Salvador"]
[null,null,null,null,null,null,null,null,null,null,"407 - Upper Class Deans Office","Equatorial Guinea"]
[null,null,null,null,null,null,null,null,null,null,"408 - First Year Office","Eritrea"]
[null,null,null,null,null,null,null,null,null,null,"409 - Skiway","Estonia"]
[null,null,null,null,null,null,null,null,null,null,"412 - Student Housing","Eswatini (formerly Swaziland)"]
[null,null,null,null,null,null,null,null,null,null,"414 -  Health Services","Ethiopia"]
[null,null,null,null,null,null,null,null,null,null,"416 - Office of Visa & Immigration Services","Fiji"]
[null,null,null,null,null,null,null,null,null,null,"418 - Native American Programs","Finland"]
[null,null,null,null,null,null,null,null,null,null,"420 - Outdoor Programs","France"]
[null,null,null,null,null,null,null,null,null,null,"422 - Residential Life","Gabon"]
[null,null,null,null,null,null,null,null,null,null,"424 - Student Activities","Gambia"]
[null,null,null,null,null,null,null,null,null,null,"450 - Physical Education","Georgia"]
[null,null,null,null,null,null,null,null,null,null,"451 - DCAD Ticket Office","Germany"]
[null,null,null,null,null,null,null,null,null,null,"452 - Intercollegiate Programs","Ghana"]
[null,null,null,null,null,null,null,null,null,null,"453 - DCAD Administration","Greece"]
[null,null,null,null,null,null,null,null,null,null,"454 - Hanover Country Club","Grenada"]
[null,null,null,null,null,null,null,null,null,null,"455 - DCAD Facilities Office","Guatemala"]
[null,null,null,null,null,null,null,null,null,null,"456 - Environment Heath & Safety","Guinea"]
[null,null,null,null,null,null,null,null,null,null,"527 - Morton Farms","Guinea-Bissau"]
[null,null,null,null,null,null,null,null,null,null,"700 - Medical School Administration","Guyana"]
[null,null,null,null,null,null,null,null,null,null,"701 - Neurology","Haiti"]
[null,null,null,null,null,null,null,null,null,null,"702 - Anatomy-Cytology","Honduras"]
[null,null,null,null,null,null,null,null,null,null,"704 - Animal Care & Use Program","Hungary"]
[null,null,null,null,null,null,null,null,null,null,"706 - Biochemistry","Iceland"]
[null,null,null,null,null,null,null,null,null,null,"708 - Biomedical Communications","India"]
[null,null,null,null,null,null,null,null,null,null,"710 - Med School Facilities Biosafety","Indonesia"]
[null,null,null,null,null,null,null,null,null,null,"712 - Community & Family Med.","Iran"]
[null,null,null,null,null,null,null,null,null,null,"714 - Central Services DMS","Iraq"]
[null,null,null,null,null,null,null,null,null,null,"715 - TDI","Ireland"]
[null,null,null,null,null,null,null,null,null,null,"716 - Development Med School","Israel"]
[null,null,null,null,null,null,null,null,null,null,"720 - OB/GYN","Italy"]
[null,null,null,null,null,null,null,null,null,null,"722 - Maternal & Child Health","Jamaica"]
[null,null,null,null,null,null,null,null,null,null,"724 - Norris Cotton Cancer Center","Japan"]
[null,null,null,null,null,null,null,null,null,null,"725 - Dean Of The Med School","Jordan"]
[null,null,null,null,null,null,null,null,null,null,"726 - Immunology","Kazakhstan"]
[null,null,null,null,null,null,null,null,null,null,"728 - Microbiology","Kenya"]
[null,null,null,null,null,null,null,null,null,null,"729 - Epidemiology","Kiribati"]
[null,null,null,null,null,null,null,null,null,null,"732 - Pathology","Korea (North)"]
[null,null,null,null,null,null,null,null,null,null,"734 - Pharmacology & Toxicology","Korea (South)"]
[null,null,null,null,null,null,null,null,null,null,"736 - Physiology","Kuwait"]
[null,null,null,null,null,null,null,null,null,null,"738 - Psychiatry","Kyrgyzstan"]
[null,null,null,null,null,null,null,null,null,null,"740 - Surgery","Laos"]
[null,null,null,null,null,null,null,null,null,null,"742 - Surgical Labs","Latvia"]
[null,null,null,null,null,null,null,null,null,null,"744 - Hematology & Oncology","Lebanon"]
[null,null,null,null,null,null,null,null,null,null,"746 - Department of Orthopedic Surgery","Lesotho"]
[null,null,null,null,null,null,null,null,null,null,"750 - DMS/Computing","Liberia"]
[null,null,null,null,null,null,null,null,null,null,"754 - Dms/Dhmc","Libya"]
[null,null,null,null,null,null,null,null,null,null,"756 - NCCC Pediatrics","Liechtenstein"]
[null,null,null,null,null,null,null,null,null,null,"758 - Department of Medicine","Lithuania"]
[null,null,null,null,null,null,null,null,null,null,"760 - Psychiatry","Luxembourg"]
[null,null,null,null,null,null,null,null,null,null,"762 - PRC-Psychiatric Research","Madagascar"]
[null,null,null,null,null,null,null,null,null,null,"766 - Anesthesiology","Malawi"]
[null,null,null,null,null,null,null,null,null,null,"768 - DMS Finance Center","Malaysia"]
[null,null,null,null,null,null,null,null,null,null,"770 - Radiology","Maldives"]
[null,null,null,null,null,null,null,null,null,null,"771 - Genetics","Mali"]
[null,null,null,null,null,null,null,null,null,null,"772 - Pediatrics","Malta"]
[null,null,null,null,null,null,null,null,null,null,"800 - Tuck School","Marshall Islands"]
[null,null,null,null,null,null,null,null,null,null,"804 - Hood Museum","Mauritania"]
[null,null,null,null,null,null,null,null,null,null,"806 - Baker/Berry Library","Mauritius"]
[null,null,null,null,null,null,null,null,null,null,"809 -  Rassias Center","Mexico"]
[null,null,null,null,null,null,null,null,null,null,"810 - Thayer School","Micronesia"]
[null,null,null,null,null,null,null,null,null,null,"814 - Hopkins Center Design Studio","Moldova"]
[null,null,null,null,null,null,null,null,null,null,"818 - MALS Program","Monaco"]
[null,null,null,null,null,null,null,null,null,null,"820 - Provost ","Mongolia"]
[null,null,null,null,null,null,null,null,null,null,"821 - Provost Administration","Montenegro"]
[null,null,null,null,null,null,null,null,null,null,"826 - Tucker Foundation","Morocco"]
[null,null,null,null,null,null,null,null,null,null,"828 - Computing - Networking","Mozambique"]
[null,null,null,null,null,null,null,null,null,null,"830 - Computing Services Community Relations","Myanmar (Burma)"]
[null,null,null,null,null,null,null,null,null,null,"832 - Communications Services","Namibia"]
[null,null,null,null,null,null,null,null,null,null,"834 - Computer Sales & Service","Nauru"]
[null,null,null,null,null,null,null,null,null,null,"836 - Administrative Computing","Nepal"]
[null,null,null,null,null,null,null,null,null,null,"838 - Machine Room","Netherlands"]
[null,null,null,null,null,null,null,null,null,null,"840 - Academic Computing","New Zealand"]
[null,null,null,null,null,null,null,null,null,null,"842 - Computing Business Office","Nicaragua"]
[null,null,null,null,null,null,null,null,null,null,"862 - Baker Library/Acquisitions","Niger"]
[null,null,null,null,null,null,null,null,null,null,"864 - Paddock Music Library","Nigeria"]
[null,null,null,null,null,null,null,null,null,null,"866 - Library Catalog & Metadata Ser.","North Macedonia (formerly Macedonia)"]
[null,null,null,null,null,null,null,null,null,null,"868 - Library Serials Section","Norway"]
[null,null,null,null,null,null,null,null,null,null,"870 - Special Collections Library","Oman"]
[null,null,null,null,null,null,null,null,null,null,"872 - Biomedical Libraries","Pakistan"]
[null,null,null,null,null,null,null,null,null,null,"874 - Feldberg Library","Palau"]
[null,null,null,null,null,null,null,null,null,null,"882 - Kresge Library","Panama"]
[null,null,null,null,null,null,null,null,null,null,"884 - Baker Public Services","Papua New Guinea"]
[null,null,null,null,null,null,null,null,null,null,"886 - Baker Reference Services","Paraguay"]
[null,null,null,null,null,null,null,null,null,null,"888 - Jones Media Center","Peru"]
[null,null,null,null,null,null,null,null,null,null,"890 - Baker Library","Philippines"]
[null,null,null,null,null,null,null,null,null,null,"892 - Preservation","Poland"]
[null,null,null,null,null,null,null,null,null,null,"895 - Public Affairs","Portugal"]
[null,null,null,null,null,null,null,null,null,null,"900 - Child Care Center","Qatar"]
[null,null,null,null,null,null,null,null,null,null,"901 - VP & Treasurers Office","Romania"]
[null,null,null,null,null,null,null,null,null,null,"902 - Dicky Center","Russia"]
[null,null,null,null,null,null,null,null,null,null,"904 - Affirmative Action Office","Rwanda"]
[null,null,null,null,null,null,null,null,null,null,"906 - Legal Affairs","Saint Kitts and Nevis"]
[null,null,null,null,null,null,null,null,null,null,"907 - Budget & Planning","Saint Lucia"]
[null,null,null,null,null,null,null,null,null,null,"908 - Presidents Office","Saint Vincent and the Grenadines"]
[null,null,null,null,null,null,null,null,null,null,"909 - Investment Office","Samoa"]
[null,null,null,null,null,null,null,null,null,null,"910 - Child Care Project","San Marino"]
[null,null,null,null,null,null,null,null,null,null,"912 - President's House","Sao Tome and Principe"]
[null,null,null,null,null,null,null,null,null,null,"913 - President's House","Saudi Arabia"]
[null,null,null,null,null,null,null,null,null,null,"940 - Audit & Advisory","Senegal"]
[null,null,null,null,null,null,null,null,null,null,"942 - EIS Reps","Serbia"]
[null,null,null,null,null,null,null,null,null,null,"944 - Financial Services","Seychelles"]
[null,null,null,null,null,null,null,null,null,null,"946 - Payroll Office","Sierra Leone"]
[null,null,null,null,null,null,null,null,null,null,"955 - Hopkins Center Design Studio","Singapore"]
[null,null,null,null,null,null,null,null,null,null,"956 - Grants and Contracts","Slovakia"]
[null,null,null,null,null,null,null,null,null,null,"958 - Loans","Slovenia"]
[null,null,null,null,null,null,null,null,null,null,"960 - Billing & Receivables","Solomon Islands"]
[null,null,null,null,null,null,null,null,null,null,"962 - Controllers Office","Somalia"]
[null,null,null,null,null,null,null,null,null,null,"Other","South Africa"]
[null,null,null,null,null,null,null,null,null,null,null,"South Sudan"]
[null,null,null,null,null,null,null,null,null,null,null,"Spain"]
[null,null,null,null,null,null,null,null,null,null,null,"Sri Lanka"]
[null,null,null,null,null,null,null,null,null,null,null,"Sudan"]
[null,null,null,null,null,null,null,null,null,null,null,"Suriname"]
[null,null,null,null,null,null,null,null,null,null,null,"Sweden"]
[null,null,null,null,null,null,null,null,null,null,null,"Switzerland"]
[null,null,null,null,null,null,null,null,null,null,null,"Syria"]
[null,null,null,null,null,null,null,null,null,null,null,"Taiwan"]
[null,null,null,null,null,null,null,null,null,null,null,"Tajikistan"]
[null,null,null,null,null,null,null,null,null,null,null,"Tanzania"]
[null,null,null,null,null,null,null,null,null,null,null,"Thailand"]
[null,null,null,null,null,null,null,null,null,null,null,"Timor-Leste"]
[null,null,null,null,null,null,null,null,null,null,null,"Togo"]
[null,null,null,null,null,null,null,null,null,null,null,"Tonga"]
[null,null,null,null,null,null,null,null,null,null,null,"Trinidad and Tobago"]
[null,null,null,null,null,null,null,null,null,null,null,"Tunisia"]
[null,null,null,null,null,null,null,null,null,null,null,"Turkey"]
[null,null,null,null,null,null,null,null,null,null,null,"Turkmenistan"]
[null,null,null,null,null,null,null,null,null,null,null,"Tuvalu"]
[null,null,null,null,null,null,null,null,null,null,null,"Uganda"]
[null,null,null,null,null,null,null,null,null,null,null,"Ukraine"]
[null,null,null,null,null,null,null,null,null,null,null,"United Arab Emirates"]
[null,null,null,null,null,null,null,null,null,null,null,"United Kingdom"]
[null,null,null,null,null,null,null,null,null,null,null,"Uruguay"]
[null,null,null,null,null,null,null,null,null,null,null,"Uzbekistan"]
[null,null,null,null,null,null,null,null,null,null,null,"Vanuatu"]
[null,null,null,null,null,null,null,null,null,null,null,"Vatican City (Holy See)"]
[null,null,null,null,null,null,null,null,null,null,null,"Venezuela"]
[null,null,null,null,null,null,null,null,null,null,null,"Vietnam"]
[null,null,null,null,null,null,null,null,null,null,null,"Yemen"]
[null,null,null,null,null,null,null,null,null,null,null,"Zambia"]
[null,null,null,null,null,null,null,null,null,null,null,"Zimbabwe"]
[null,null,null,null,null,null,null,null,null,null,null,"Other"]